Workbook

Sheet Sheet1 (3) (hidden)
A1: Выборка: Основные показатели работы учреждений Школы_OLAP
A2: Дата печати: 11.12.2013 13:01:44
A3: Отчет распечатан: Самигуллин Ильнур Кафилович
A4: Отчетные периоды: 2014_Нормативы
A6: Класс комплект | B6: Классов | C6: Учащихся | D6: Наполняемость | F6: Норматив НФЗ | G6: Норматив содержания воспитанников | H6: Объем по нормативу НФЗ | I6: Объем по содержанию воспитанников | K6: Фонд кухонных работников | L6: Бесплатное питание | M6: Отапливаемая площадь | O6: Общая площадь | P6: Расходы на комм. услуги | Q6: ФОТ вспомогательного персонала | R6: Объем фин. обеспечения | T6: Стоимость содержания имущества | U6: Налоги | V6: Связь | X6: Дератизация | Y6: Расходы на бассейн | Z6: Прочие расходы доведение | AA6: Вывоз мусора | AC6: Ком.услуги факт | AD6: Субвенции | AE6: Субсидии | AF6: Субвенции (из формы) | AG6: Субсидии (из формы) | AH6: Расходы на текущий ремонт
AJ7: Общий итог
A8: Учреждение 1 | E8: Учреждение 2 | J8: Учреждение 3 | N8: Учреждение 4 | S8: Учреждение 5 | W8: Учреждение 6 | AB8: ИНН | AF8: Учреждение 7 | AJ8: Класс комплект | AL8: Классов | AM8: Учащихся | AN8: Наполняемость | AO8: Норматив НФЗ | AP8: Норматив содержания воспитанников | AQ8: Объем по нормативу НФЗ | AR8: Объем по содержанию воспитанников | AT8: Фонд кухонных работников | AU8: Бесплатное питание | AV8: Отапливаемая площадь | AW8: Общая площадь | AX8: Расходы на комм. услуги | AY8: ФОТ вспомогательного персонала | AZ8: Объем фин. обеспечения | BA8: Стоимость содержания имущества | BB8: Налоги | BC8: Связь | BD8: Дератизация | BE8: Расходы на бассейн | BF8: Прочие расходы доведение | BG8: Вывоз мусора | BH8: Ком.услуги факт | BI8: Субвенции | BJ8: Субсидии | BK8: Субвенции (из формы) | BL8: Субсидии (из формы) | BM8: Расходы на текущий ремонт
A9: Общеотраслевое | E9: Школы | J9: Министерство образования и науки Республики Татарстан | N9: Муниципальные учреждения | S9: Кукморский муниципальный район | W9: Школы - Кукморский район | AB9: 1623002417 | AF9: Муниципальное бюджетное образовательное учреждение гимназия № 1 им. Ч.Т.Айтманова поселка городского типа Кукмор Кукморского муниципального района Республики Татарстан | AJ9: 17.00 | AL9: 39.00 | AM9: 763.00 | AN9: 163.13 | AO9: 339,108.00 | AP9: 0.00 | AQ9: 13,657,840.00 | AR9: 0.00 | AT9: 512,581.16 | AU9: 112,110.00 | AV9: 2,334.00 | AW9: 2,334.00 | AX9: 1,250,507.26 | AY9: 889,255.58 | AZ9: 16,757,786.72 | BA9: 3,099,946.72 | BB9: 0.00 | BC9: 21,816.00 | BD9: 4,201.20 | BE9: 0.00 | BF9: 91,320.38 | BG9: 32,896.40 | BH9: 1,393,754.00 | BI9: 11,790,193.00 | BJ9: 1,867,647.00 | BK9: 11,790,193.00 | BL9: 1,867,647.00 | BM9: 42,012.00
AB10: 1623002424 | AF10: Муниципальное бюджетное образовательное учреждение многопрофильный лицей имени Атласа Минхаировича Булатова п.г.т.Кукмор Кукморского муниципального района РТ | AJ10: 32.00 | AL10: 73.00 | AM10: 1,743.00 | AN10: 351.09 | AO10: 477,566.00 | AP10: 0.00 | AQ10: 26,432,856.30 | AR10: 0.00 | AT10: 935,537.57 | AU10: 252,247.50 | AV10: 7,570.40 | AW10: 7,570.40 | AX10: 3,451,166.44 | AY10: 1,177,440.26 | AZ10: 30,656,197.59 | BA10: 4,223,341.29 | BB10: 0.00 | BC10: 21,816.00 | BD10: 13,626.72 | BE10: 0.00 | BF10: 107,253.33 | BG10: 75,259.71 | BH10: 1,503,893.00 | BI10: 25,457,232.80 | BJ10: 975,623.50 | BK10: 25,457,232.80 | BL10: 975,623.50 | BM10: 136,267.20
AB11: 1623002431 | AF11: Муниципальное бюджетное образовательное учреждение средняя общеобразовательная школа №3 поселка городского типа Кукмор Кукморского муниципального района Республики Татарстан | AJ11: 22.00 | AL11: 50.00 | AM11: 1,229.00 | AN11: 185.16 | AO11: 314,879.00 | AP11: 0.00 | AQ11: 16,887,696.00 | AR11: 0.00 | AT11: 647,649.13 | AU11: 112,110.00 | AV11: 3,551.00 | AW11: 3,551.00 | AX11: 1,985,335.16 | AY11: 1,095,101.78 | AZ11: 20,043,961.87 | BA11: 3,156,265.87 | BB11: 0.00 | BC11: 21,816.00 | BD11: 6,391.80 | BE11: 0.00 | BF11: 86,588.35 | BG11: 53,083.81 | BH11: 1,069,607.00 | BI11: 16,435,766.00 | BJ11: 451,930.00 | BK11: 16,435,766.00 | BL11: 451,930.00 | BM11: 63,918.00
AB12: 1623002449 | AF12: Муниципальное бюджетное образовательное учреждение средняя общеобразовательная школа №4 п.г.т.Кукмор Кукморского муниципального района РТ | AJ12: 25.00 | AL12: 57.00 | AM12: 1,314.00 | AN12: 183.02 | AO12: 663,386.00 | AP12: 0.00 | AQ12: 19,826,012.00 | AR12: 0.00 | AT12: 850,799.57 | AU12: 168,165.00 | AV12: 7,187.00 | AW12: 7,187.00 | AX12: 2,967,592.04 | AY12: 1,095,101.78 | AZ12: 24,045,059.14 | BA12: 4,219,047.14 | BB12: 0.00 | BC12: 21,816.00 | BD12: 12,936.60 | BE12: 0.00 | BF12: 114,593.15 | BG12: 56,542.04 | BH12: 1,769,727.00 | BI12: 18,745,284.00 | BJ12: 1,080,728.00 | BK12: 18,745,284.00 | BL12: 1,080,728.00 | BM12: 129,366.00
AB13: 1623003266 | AF13: Муниципальное бюджетное образовательное учреждение средняя общеобразовательная школа села Лубяны Кукморского муниципального района Республики Татарстан | AJ13: 11.00 | AL13: 23.00 | AM13: 237.00 | AN13: 76.20 | AO13: 144,346.00 | AP13: 0.00 | AQ13: 5,860,184.00 | AR13: 0.00 | AT13: 198,188.36 | AU13: 28,027.50 | AV13: 1,377.00 | AW13: 1,377.00 | AX13: 549,606.36 | AY13: 518,732.42 | AZ13: 7,396,240.66 | BA13: 1,536,056.66 | BB13: 0.00 | BC13: 21,816.00 | BD13: 2,478.60 | BE13: 0.00 | BF13: 48,490.78 | BG13: 0.00 | BH13: 693,537.00 | BI13: 4,870,160.00 | BJ13: 990,024.00 | BK13: 4,870,160.00 | BL13: 990,024.00 | BM13: 24,786.00
AB14: 1623003298 | AF14: Гимназия с. Большой Сардек Кукморск. района | AJ14: 35.00 | AL14: 72.00 | AM14: 1,000.00 | AN14: 209.34 | AO14: 713,734.00 | AP14: 0.00 | AQ14: 23,233,814.00 | AR14: 0.00 | AT14: 673,374.41 | AU14: 56,055.00 | AV14: 4,975.00 | AW14: 4,975.00 | AX14: 2,442,465.86 | AY14: 1,869,083.48 | AZ14: 27,372,706.03 | BA14: 4,138,892.03 | BB14: 0.00 | BC14: 35,697.60 | BD14: 8,955.00 | BE14: 0.00 | BF14: 125,971.54 | BG14: 0.00 | BH14: 1,280,205.00 | BI14: 22,138,236.00 | BJ14: 1,095,578.00 | BK14: 22,138,236.00 | BL14: 1,095,578.00 | BM14: 89,550.00
AB15: 1623004051 | AF15: МБОУ СОШ с.Нижняя Русь Кукморского района | AJ15: 10.00 | AL15: 21.00 | AM15: 212.00 | AN15: 95.44 | AO15: 209,205.00 | AP15: 0.00 | AQ15: 5,607,240.50 | AR15: 0.00 | AT15: 208,093.83 | AU15: 0.00 | AV15: 5,339.00 | AW15: 5,339.00 | AX15: 1,328,197.25 | AY15: 518,732.42 | AZ15: 7,438,256.40 | BA15: 1,831,015.90 | BB15: 0.00 | BC15: 21,816.00 | BD15: 8,179.20 | BE15: 0.00 | BF15: 58,924.94 | BG15: 0.00 | BH15: 954,391.00 | BI15: 4,602,310.00 | BJ15: 1,004,930.50 | BK15: 4,602,310.00 | BL15: 1,004,930.50 | BM15: 81,792.00
AB16: 1623005055 | AF16: Муниципальное образовательное учреждение "Вечерняя (сменная) общеобразовательная школа п.г.т. Кукмор" | AJ16: 8.00 | AL16: 8.00 | AM16: 200.00 | AN16: 50.00 | AO16: 58,376.00 | AP16: 0.00 | AQ16: 3,847,894.00 | AR16: 0.00 | AT16: 0.00 | AU16: 0.00 | AV16: 258.50 | AW16: 258.50 | AX16: 83,007.10 | AY16: 436,393.94 | AZ16: 4,375,170.17 | BA16: 527,276.17 | BB16: 0.00 | BC16: 3,470.40 | BD16: 465.30 | BE16: 0.00 | BF16: 19,758.32 | BG16: 4,971.21 | BH16: 57,564.00 | BI16: 3,847,894.00 | BJ16: 0.00 | BK16: 3,847,894.00 | BL16: 0.00 | BM16: 4,653.00
AB17: 1623005834 | AF17: МБОУ СОШ с.Починок Сутер Кукморского района | AJ17: 11.00 | AL17: 25.00 | AM17: 177.00 | AN17: 49.30 | AO17: 906,172.00 | AP17: 0.00 | AQ17: 6,281,923.00 | AR17: 0.00 | AT17: 229,523.52 | AU17: 0.00 | AV17: 2,429.00 | AW17: 2,429.00 | AX17: 963,979.85 | AY17: 765,747.86 | AZ17: 8,067,831.54 | BA17: 1,785,908.54 | BB17: 0.00 | BC17: 28,756.80 | BD17: 4,372.20 | BE17: 0.00 | BF17: 56,905.16 | BG17: 0.00 | BH17: 656,881.00 | BI17: 4,830,215.00 | BJ17: 1,451,708.00 | BK17: 4,830,215.00 | BL17: 1,451,708.00 | BM17: 43,722.00
AB18: 1623005841 | AF18: МБОУ СОШ с.Сардек-Баш Кукморского района | AJ18: 14.00 | AL18: 33.00 | AM18: 301.00 | AN18: 91.20 | AO18: 1,285,193.00 | AP18: 0.00 | AQ18: 8,169,559.80 | AR18: 0.00 | AT18: 347,319.95 | AU18: 28,027.50 | AV18: 2,953.00 | AW18: 2,953.00 | AX18: 1,211,801.42 | AY18: 889,255.58 | AZ18: 10,362,140.70 | BA18: 2,192,580.90 | BB18: 0.00 | BC18: 32,227.20 | BD18: 5,315.40 | BE18: 0.00 | BF18: 66,405.27 | BG18: 0.00 | BH18: 770,876.00 | BI18: 7,513,214.80 | BJ18: 656,345.00 | BK18: 7,513,214.80 | BL18: 656,345.00 | BM18: 53,154.00
AB19: 1623005859 | AF19: Муниципальное бюджетное образовательное учреждение средняя общеобразовательная школа села Маскара Кукморского муниципального района Республики Татарстан | AJ19: 10.00 | AL19: 22.00 | AM19: 184.00 | AN19: 47.00 | AO19: 137,007.00 | AP19: 0.00 | AQ19: 5,438,382.00 | AR19: 0.00 | AT19: 187,180.34 | AU19: 0.00 | AV19: 2,399.00 | AW19: 2,399.00 | AX19: 771,440.27 | AY19: 518,732.42 | AZ19: 6,901,434.98 | BA19: 1,463,052.98 | BB19: 0.00 | BC19: 21,816.00 | BD19: 4,318.20 | BE19: 0.00 | BF19: 46,406.02 | BG19: 0.00 | BH19: 641,418.00 | BI19: 4,218,551.00 | BJ19: 1,219,831.00 | BK19: 4,218,551.00 | BL19: 1,219,831.00 | BM19: 43,182.00
AB20: 1623005866 | AF20: МБОУ СОШ с.Большой Кукмор Кукморского района | AJ20: 17.00 | AL20: 37.00 | AM20: 533.00 | AN20: 123.69 | AO20: 1,141,714.00 | AP20: 0.00 | AQ20: 10,469,655.80 | AR20: 0.00 | AT20: 512,085.89 | AU20: 56,055.00 | AV20: 4,824.40 | AW20: 4,824.40 | AX20: 1,837,953.94 | AY20: 765,747.86 | AZ20: 13,383,493.07 | BA20: 2,913,837.27 | BB20: 0.00 | BC20: 28,756.80 | BD20: 8,683.92 | BE20: 0.00 | BF20: 84,572.88 | BG20: 22,521.72 | BH20: 1,348,574.00 | BI20: 10,469,655.80 | BJ20: 0.00 | BK20: 10,469,655.80 | BL20: 0.00 | BM20: 86,839.20
AB21: 1623005880 | AF21: Муниципальное бюджетное образовательное учреждение средняя общеобразовательная школа села Лельвиж Кукморского муниципального района | AJ21: 10.00 | AL21: 23.00 | AM21: 173.00 | AN21: 61.50 | AO21: 213,868.00 | AP21: 0.00 | AQ21: 5,279,559.00 | AR21: 0.00 | AT21: 220,372.82 | AU21: 31,390.80 | AV21: 1,769.00 | AW21: 1,769.00 | AX21: 591,607.10 | AY21: 518,732.42 | AZ21: 6,544,369.34 | BA21: 1,264,810.34 | BB21: 0.00 | BC21: 21,816.00 | BD21: 3,184.20 | BE21: 0.00 | BF21: 36,777.10 | BG21: 0.00 | BH21: 400,695.00 | BI21: 3,597,281.00 | BJ21: 1,682,278.00 | BK21: 3,597,281.00 | BL21: 1,682,278.00 | BM21: 31,842.00
AB22: 1623005898 | AF22: МБОУ СОШ с.Яныль Кукморского района | AJ22: 14.00 | AL22: 30.00 | AM22: 402.00 | AN22: 172.16 | AO22: 244,035.00 | AP22: 0.00 | AQ22: 7,713,881.00 | AR22: 0.00 | AT22: 314,961.37 | AU22: 28,027.50 | AV22: 4,987.00 | AW22: 4,987.00 | AX22: 2,014,995.60 | AY22: 790,449.40 | AZ22: 9,886,810.25 | BA22: 2,172,929.25 | BB22: 0.00 | BC22: 25,286.40 | BD22: 8,976.60 | BE22: 0.00 | BF22: 65,611.98 | BG22: 0.00 | BH22: 849,850.00 | BI22: 7,425,571.00 | BJ22: 288,310.00 | BK22: 7,425,571.00 | BL22: 288,310.00 | BM22: 89,766.00
AB23: 1623005908 | AF23: МБОУ СОШ с.Ядыгерь Кукморского района | AJ23: 13.00 | AL23: 30.00 | AM23: 246.00 | AN23: 97.13 | AO23: 970,682.00 | AP23: 0.00 | AQ23: 7,612,445.00 | AR23: 0.00 | AT23: 297,379.01 | AU23: 22,422.00 | AV23: 2,337.70 | AW23: 2,337.70 | AX23: 854,790.52 | AY23: 765,747.86 | AZ23: 9,580,466.97 | BA23: 1,968,021.97 | BB23: 0.00 | BC23: 28,756.80 | BD23: 4,207.86 | BE23: 0.00 | BF23: 60,506.84 | BG23: 0.00 | BH23: 746,923.00 | BI23: 6,699,655.00 | BJ23: 912,790.00 | BK23: 6,699,655.00 | BL23: 912,790.00 | BM23: 42,078.60
AB24: 1623005915 | AF24: МБОУ СОШ с.Байлангар Кукморского района | AJ24: 10.00 | AL24: 25.00 | AM24: 199.00 | AN24: 66.30 | AO24: 527,737.00 | AP24: 0.00 | AQ24: 5,839,328.50 | AR24: 0.00 | AT24: 228,277.09 | AU24: 28,027.50 | AV24: 1,971.00 | AW24: 1,971.00 | AX24: 791,485.27 | AY24: 642,240.14 | AZ24: 7,294,330.64 | BA24: 1,455,002.14 | BB24: 0.00 | BC24: 25,286.40 | BD24: 3,547.80 | BE24: 0.00 | BF24: 43,630.21 | BG24: 0.00 | BH24: 448,515.00 | BI24: 4,477,694.00 | BJ24: 1,361,634.50 | BK24: 4,477,694.00 | BL24: 1,361,634.50 | BM24: 35,478.00
AB25: 1623005922 | AF25: МБОУ СОШ с.Олуяз Кукморского района | AJ25: 16.00 | AL25: 30.00 | AM25: 381.00 | AN25: 125.85 | AO25: 912,869.00 | AP25: 0.00 | AQ25: 8,700,527.40 | AR25: 0.00 | AT25: 305,994.66 | AU25: 32,511.90 | AV25: 2,540.00 | AW25: 2,540.00 | AX25: 1,113,212.85 | AY25: 913,957.12 | AZ25: 10,679,470.25 | BA25: 1,978,942.85 | BB25: 0.00 | BC25: 28,756.80 | BD25: 4,572.00 | BE25: 0.00 | BF25: 60,053.37 | BG25: 0.00 | BH25: 587,377.00 | BI25: 8,700,527.40 | BJ25: 0.00 | BK25: 8,700,527.40 | BL25: 0.00 | BM25: 45,720.00
AB26: 1623005930 | AF26: МБОУ СОШ с.Село-Чура Кукморского района | AJ26: 17.00 | AL26: 32.00 | AM26: 288.00 | AN26: 99.45 | AO26: 1,280,530.00 | AP26: 0.00 | AQ26: 8,593,932.50 | AR26: 0.00 | AT26: 359,202.01 | AU26: 30,269.70 | AV26: 1,887.50 | AW26: 1,887.50 | AX26: 942,842.46 | AY26: 889,255.58 | AZ26: 10,446,800.04 | BA26: 1,852,867.54 | BB26: 0.00 | BC26: 32,227.20 | BD26: 3,397.50 | BE26: 0.00 | BF26: 53,607.55 | BG26: 0.00 | BH26: 450,933.00 | BI26: 8,048,170.00 | BJ26: 545,762.50 | BK26: 8,048,170.00 | BL26: 545,762.50 | BM26: 33,975.00
AB27: 1623005947 | AF27: МБОУ СОШ с.Каркаусь Кукморского района | AJ27: 12.00 | AL27: 28.00 | AM27: 148.00 | AN27: 50.05 | AO27: 608,783.00 | AP27: 0.00 | AQ27: 6,427,290.00 | AR27: 0.00 | AT27: 232,709.30 | AU27: 0.00 | AV27: 2,239.00 | AW27: 2,239.00 | AX27: 758,262.22 | AY27: 913,957.12 | AZ27: 8,412,132.03 | BA27: 1,984,842.03 | BB27: 0.00 | BC27: 28,756.80 | BD27: 4,030.20 | BE27: 0.00 | BF27: 64,578.61 | BG27: 0.00 | BH27: 700,508.00 | BI27: 4,094,619.00 | BJ27: 2,332,671.00 | BK27: 4,094,619.00 | BL27: 2,332,671.00 | BM27: 40,302.00
AB28: 1623005954 | AF28: ООШ с.Туенбаш Кукморск. района | AJ28: 9.00 | AL28: 20.00 | AM28: 120.00 | AN28: 27.20 | AO28: 648,867.00 | AP28: 0.00 | AQ28: 4,745,680.00 | AR28: 0.00 | AT28: 157,090.13 | AU28: 0.00 | AV28: 931.00 | AW28: 931.00 | AX28: 760,473.20 | AY28: 477,563.18 | AZ28: 5,693,299.88 | BA28: 947,619.88 | BB28: 0.00 | BC28: 10,411.20 | BD28: 1,675.80 | BE28: 0.00 | BF28: 29,295.57 | BG28: 0.00 | BH28: 254,826.00 | BI28: 3,665,377.00 | BJ28: 1,080,303.00 | BK28: 3,665,377.00 | BL28: 1,080,303.00 | BM28: 16,758.00
AB29: 1623005961 | AF29: СОШ с.Ошторма Юмья Кукморск. района | AJ29: 13.00 | AL29: 33.00 | AM29: 319.00 | AN29: 148.30 | AO29: 1,349,410.00 | AP29: 0.00 | AQ29: 7,959,977.70 | AR29: 0.00 | AT29: 409,398.15 | AU29: 28,027.50 | AV29: 3,268.30 | AW29: 3,268.30 | AX29: 1,232,875.72 | AY29: 889,255.58 | AZ29: 11,061,196.62 | BA29: 3,101,218.92 | BB29: 0.00 | BC29: 32,227.20 | BD29: 5,882.94 | BE29: 0.00 | BF29: 98,725.15 | BG29: 0.00 | BH29: 1,578,873.00 | BI29: 7,204,980.20 | BJ29: 754,997.50 | BK29: 7,204,980.20 | BL29: 754,997.50 | BM29: 58,829.40
AB30: 1623005979 | AF30: МБОУ СОШ с. Чарли Кукморского района | AJ30: 12.00 | AL30: 25.00 | AM30: 128.00 | AN30: 37.97 | AO30: 526,802.00 | AP30: 0.00 | AQ30: 6,068,035.50 | AR30: 0.00 | AT30: 253,529.41 | AU30: 0.00 | AV30: 2,217.00 | AW30: 2,217.00 | AX30: 847,526.21 | AY30: 790,449.40 | AZ30: 7,798,789.77 | BA30: 1,730,754.27 | BB30: 0.00 | BC30: 25,286.40 | BD30: 3,990.60 | BE30: 0.00 | BF30: 54,155.46 | BG30: 0.00 | BH30: 563,437.00 | BI30: 4,093,433.00 | BJ30: 1,974,602.50 | BK30: 4,093,433.00 | BL30: 1,974,602.50 | BM30: 39,906.00
AB31: 1623005993 | AF31: Муниципальное бюджетное образовательное учреждение средняя общеобразовательная школа села Мамашир Кукморского муниципального района Республики Татарстан | AJ31: 9.00 | AL31: 23.00 | AM31: 203.00 | AN31: 75.90 | AO31: 144,346.00 | AP31: 0.00 | AQ31: 5,547,221.50 | AR31: 0.00 | AT31: 215,545.06 | AU31: 26,906.40 | AV31: 2,969.00 | AW31: 2,969.00 | AX31: 922,052.87 | AY31: 518,732.42 | AZ31: 6,814,349.12 | BA31: 1,267,127.62 | BB31: 0.00 | BC31: 21,816.00 | BD31: 5,344.20 | BE31: 0.00 | BF31: 36,310.54 | BG31: 0.00 | BH31: 389,031.00 | BI31: 4,247,321.00 | BJ31: 1,299,900.50 | BK31: 4,247,321.00 | BL31: 1,299,900.50 | BM31: 53,442.00
AB32: 1623006010 | AF32: МБОУ СОШ с.Березняк Кукморского района | AJ32: 11.00 | AL32: 25.00 | AM32: 127.00 | AN32: 43.53 | AO32: 1,731,054.00 | AP32: 0.00 | AQ32: 4,867,990.00 | AR32: 0.00 | AT32: 277,770.91 | AU32: 25,785.30 | AV32: 1,883.00 | AW32: 1,883.00 | AX32: 794,593.90 | AY32: 601,070.90 | AZ32: 6,302,493.27 | BA32: 1,434,503.27 | BB32: 0.00 | BC32: 10,411.20 | BD32: 3,389.40 | BE32: 0.00 | BF32: 41,663.56 | BG32: 0.00 | BH32: 440,518.00 | BI32: 4,867,990.00 | BJ32: 0.00 | BK32: 4,867,990.00 | BL32: 0.00 | BM32: 33,894.00
AB33: 1623006027 | AF33: МБОУ СОШ с.Починок Кучук Кукморского района | AJ33: 11.00 | AL33: 27.00 | AM33: 193.00 | AN33: 53.70 | AO33: 894,463.00 | AP33: 0.00 | AQ33: 6,296,618.50 | AR33: 0.00 | AT33: 271,952.37 | AU33: 0.00 | AV33: 5,559.00 | AW33: 5,559.00 | AX33: 1,657,079.87 | AY33: 765,747.86 | AZ33: 8,285,408.53 | BA33: 1,988,790.03 | BB33: 0.00 | BC33: 28,756.80 | BD33: 10,006.20 | BE33: 0.00 | BF33: 60,692.80 | BG33: 0.00 | BH33: 751,572.00 | BI33: 5,178,480.00 | BJ33: 1,118,138.50 | BK33: 5,178,480.00 | BL33: 1,118,138.50 | BM33: 100,062.00
AB34: 1623006034 | AF34: МБОУ СОШ Ныртинского совхоза Кукморского района | AJ34: 14.00 | AL34: 31.00 | AM34: 253.00 | AN34: 83.87 | AO34: 1,469,627.00 | AP34: 0.00 | AQ34: 7,823,816.50 | AR34: 0.00 | AT34: 302,550.94 | AU34: 28,027.50 | AV34: 3,599.00 | AW34: 3,599.00 | AX34: 1,189,928.53 | AY34: 889,255.58 | AZ34: 10,334,386.47 | BA34: 2,510,569.97 | BB34: 0.00 | BC34: 32,227.20 | BD34: 6,478.20 | BE34: 0.00 | BF34: 79,865.55 | BG34: 0.00 | BH34: 1,107,383.00 | BI34: 7,136,155.00 | BJ34: 687,661.50 | BK34: 7,136,155.00 | BL34: 687,661.50 | BM34: 64,782.00
AB35: 1623006041 | AF35: МБОУ СОШ с.Псяк Кукморского района | AJ35: 12.00 | AL35: 27.00 | AM35: 203.00 | AN35: 68.00 | AO35: 523,074.00 | AP35: 0.00 | AQ35: 6,148,577.00 | AR35: 0.00 | AT35: 251,200.44 | AU35: 29,148.60 | AV35: 1,655.00 | AW35: 1,655.00 | AX35: 630,912.72 | AY35: 642,240.14 | AZ35: 7,728,271.51 | BA35: 1,579,694.51 | BB35: 0.00 | BC35: 25,286.40 | BD35: 2,979.00 | BE35: 0.00 | BF35: 47,741.93 | BG35: 0.00 | BH35: 551,308.00 | BI35: 4,706,988.00 | BJ35: 1,441,589.00 | BK35: 4,706,988.00 | BL35: 1,441,589.00 | BM35: 29,790.00
AB36: 1623006059 | AF36: МБОУ СОШ с.Нырья Кукморского района | AJ36: 19.00 | AL36: 42.00 | AM36: 487.00 | AN36: 133.50 | AO36: 1,119,730.00 | AP36: 169,071.00 | AQ36: 10,728,358.20 | AR36: 1,521,639.00 | AT36: 661,201.11 | AU36: 173,649.30 | AV36: 2,458.00 | AW36: 2,458.00 | AX36: 1,393,326.91 | AY36: 1,037,464.84 | AZ36: 15,168,535.44 | BA36: 2,918,538.24 | BB36: 0.00 | BC36: 32,227.20 | BD36: 4,275.00 | BE36: 0.00 | BF36: 78,726.12 | BG36: 0.00 | BH36: 930,688.00 | BI36: 9,863,428.20 | BJ36: 864,930.00 | BK36: 9,863,428.20 | BL36: 864,930.00 | BM36: 42,750.00
AB37: 1623006066 | AF37: МБОУ СОШ с.Средний Кукмор Кукморского района | AJ37: 13.00 | AL37: 28.00 | AM37: 256.00 | AN37: 91.80 | AO37: 970,682.00 | AP37: 0.00 | AQ37: 7,456,561.60 | AR37: 0.00 | AT37: 405,478.75 | AU37: 28,027.50 | AV37: 2,233.00 | AW37: 2,233.00 | AX37: 835,058.83 | AY37: 765,747.86 | AZ37: 9,331,552.07 | BA37: 1,874,990.47 | BB37: 0.00 | BC37: 28,756.80 | BD37: 4,019.40 | BE37: 0.00 | BF37: 52,635.16 | BG37: 0.00 | BH37: 550,131.00 | BI37: 6,792,664.60 | BJ37: 663,897.00 | BK37: 6,792,664.60 | BL37: 663,897.00 | BM37: 40,194.00
AB38: 1623006073 | AF38: Муниципальное бюджетное образовательное учреждение средняя общеобразовательная школа деревни Нижний Арбаш Кукморского муниципального района Республики Татарстан | AJ38: 9.00 | AL38: 23.00 | AM38: 169.00 | AN38: 56.10 | AO38: 149,009.00 | AP38: 0.00 | AQ38: 5,185,906.50 | AR38: 0.00 | AT38: 211,999.47 | AU38: 23,543.10 | AV38: 2,147.00 | AW38: 2,147.00 | AX38: 683,679.09 | AY38: 518,732.42 | AZ38: 6,538,677.31 | BA38: 1,352,770.81 | BB38: 0.00 | BC38: 21,816.00 | BD38: 3,864.60 | BE38: 0.00 | BF38: 40,496.22 | BG38: 0.00 | BH38: 493,673.00 | BI38: 3,585,307.00 | BJ38: 1,600,599.50 | BK38: 3,585,307.00 | BL38: 1,600,599.50 | BM38: 38,646.00
AB39: 1623006098 | AF39: МБОУ СОШ с.Нижний Искубаш Кукморского района | AJ39: 15.00 | AL39: 34.00 | AM39: 178.00 | AN39: 52.02 | AO39: 1,296,260.00 | AP39: 0.00 | AQ39: 7,594,980.00 | AR39: 0.00 | AT39: 292,756.64 | AU39: 0.00 | AV39: 2,435.00 | AW39: 2,435.00 | AX39: 1,008,327.61 | AY39: 889,255.58 | AZ39: 9,529,646.97 | BA39: 1,934,666.97 | BB39: 0.00 | BC39: 32,227.20 | BD39: 4,383.00 | BE39: 0.00 | BF39: 60,056.55 | BG39: 0.00 | BH39: 612,158.00 | BI39: 5,858,504.00 | BJ39: 1,736,476.00 | BK39: 5,858,504.00 | BL39: 1,736,476.00 | BM39: 43,830.00
AB40: 1623010030 | AF40: Муниципальное бюджетное образовательное учреждение средняя общеобразовательная школа села Манзарас Кукморского муниципального района | AJ40: 20.00 | AL40: 45.00 | AM40: 844.00 | AN40: 148.56 | AO40: 408,727.00 | AP40: 0.00 | AQ40: 13,919,240.60 | AR40: 0.00 | AT40: 511,836.60 | AU40: 84,082.50 | AV40: 5,655.90 | AW40: 5,655.90 | AX40: 2,167,872.47 | AY40: 930,424.82 | AZ40: 16,992,740.13 | BA40: 3,073,499.53 | BB40: 0.00 | BC40: 21,816.00 | BD40: 10,180.62 | BE40: 0.00 | BF40: 88,743.71 | BG40: 36,441.08 | BH40: 1,288,168.00 | BI40: 13,919,240.60 | BJ40: 0.00 | BK40: 13,919,240.60 | BL40: 0.00 | BM40: 101,806.20
A41: Общий итог | AJ41: 471.00 | AL41: 1,041.00 | AM41: 13,210.00 | AN41: 3,317.46 | AO41: 22,381,241.00 | AP41: 169,071.00 | AQ41: 290,222,984.40 | AR41: 1,521,639.00 | AT41: 11,483,539.97 | AU41: 1,432,644.60 | AV41: 99,938.70 | AW41: 99,938.70 | AX41: 40,033,956.90 | AY41: 25,689,605.60 | AZ41: 361,224,005.48 | BA41: 69,479,382.08 | BB41: 0.00 | BC41: 795,772.80 | BD41: 178,309.26 | BE41: 0.00 | BF41: 2,061,064.10 | BG41: 281,715.97 | BH41: 25,836,994.00 | BI41: 259,082,098.40 | BJ41: 31,140,886.00 | BK41: 259,082,098.40 | BL41: 31,140,886.00 | BM41: 1,783,092.60

Sheet Sheet1 (2) (hidden)
A1: Выборка: Основные показатели работы учреждений Школы_OLAP и
A2: Дата печати: 11.12.2013 11:25:30
A3: Отчет распечатан: Самигуллин Ильнур Кафилович
A4: Отчетные периоды: 2014_Нормативы
A6: Класс комплект | B6: Классов | D6: Учащихся | E6: Наполняемость | G6: Норматив НФЗ | H6: Норматив содержания воспитанников | I6: Объем по нормативу НФЗ | K6: Объем финансовых затрат по обучению | L6: Объем по содержанию воспитанников | N6: Смета бюджет | O6: Смета внебюджет | P6: Фонд кухонных работников | R6: Бесплатное питание | S6: Отапливаемая площадь | U6: Общая площадь | V6: Общая численность | W6: Расходы на комм. услуги | Y6: Расходы на ремонт | Z6: Расходы на оборудование | AB6: Прочие расходы | AC6: Фактический НСИ | AD6: Фактический НСИ на кв.м | AF6: Базовый НСИ на кв.м | AG6: Поправочный коэфф. НСИ | AI6: Объем фин. обеспечения | AJ6: Итого НСИ | AK6: Стоимость содержания имущества | AM6: Объем финансирования учреждения из бюджета | AN6: Поправочный коэффициент к ОФО | AP6: Налоги | AQ6: Связь | AR6: Дератизация | AT6: Расходы на бассейн | AU6: Объем финансового обеспечения по нормативу без прочих расходов | AW6: НФЗ скорректированный | AX6: Сумма 305 (прочие) | AY6: Кол-во учреждений | BA6: Прочие расходы доведение | BB6: Вывоз мусора | BE6: Объем по НФЗ по нормативу | BF6: Ассигнования | BG6: Ассигнования 2011
BJ7: Общий итог
A8: Учреждение 1 | C8: Учреждение 2 | F8: Учреждение 3 | H8: Учреждение 4 | J8: Учреждение 5 | M8: Учреждение 6 | O8: Учреждение 7 | Q8: ИНН | T8: Учреждение 8 | V8: Ступень образования | X8: Программа обучения | AA8: Тип населенного пункта | AC8: Вид НФЗ | AE8: Тип учреждения | AH8: Тип класса | AJ8: Вид НСИ | AL8: Статус Гос. услуги | AO8: Специальная коррекционная школа- интернат | AQ8: КПП | AS8: Раздел / подраздел | AV8: Целевая статья | AX8: Вид расхода | AZ8: КОСГУ | BC8: ДопЭК | BF8: ДопФК | BH8: ДопКР | BJ8: Класс комплект | BK8: Классов | BL8: Учащихся | BM8: Наполняемость | BN8: Норматив НФЗ | BO8: Норматив содержания воспитанников | BP8: Объем по нормативу НФЗ | BQ8: Объем финансовых затрат по обучению | BR8: Объем по содержанию воспитанников | BS8: Смета бюджет | BT8: Смета внебюджет | BU8: Фонд кухонных работников | BV8: Бесплатное питание | BW8: Отапливаемая площадь | BX8: Общая площадь | BY8: Общая численность | BZ8: Расходы на комм. услуги | CA8: Расходы на ремонт | CB8: Расходы на оборудование | CC8: Прочие расходы | CD8: Фактический НСИ | CE8: Фактический НСИ на кв.м | CF8: Базовый НСИ на кв.м | CG8: Поправочный коэфф. НСИ | CH8: Объем фин. обеспечения | CI8: Итого НСИ | CJ8: Стоимость содержания имущества | CK8: Объем финансирования учреждения из бюджета | CL8: Поправочный коэффициент к ОФО | CM8: Налоги | CN8: Связь | CO8: Дератизация | CP8: Расходы на бассейн | CQ8: Объем финансового обеспечения по нормативу без прочих расходов | CR8: НФЗ скорректированный | CS8: Сумма 305 (прочие) | CT8: Кол-во учреждений | CU8: Прочие расходы доведение | CV8: Вывоз мусора | CW8: Объем по НФЗ по нормативу | CX8: Ассигнования | CY8: Ассигнования 2011
A9: Общеотраслевое | C9: Школы | F9: Министерство образования и науки Республики Татарстан | H9: Муниципальные учреждения | J9: Кукморский муниципальный район | M9: Школы - Кукморский район | O9: Гимназия с. Большой Сардек Кукморск. района | Q9: 1623003298 | BJ9: 35.00 | BK9: 72.00 | BL9: 1,000.00 | BM9: 209.34 | BN9: 713,734.00 | BO9: 0.00 | BP9: 23,233,814.00 | BQ9: 23,233,814.00 | BR9: 0.00 | BS9: 0.00 | BT9: 0.00 | BU9: 673,374.41 | BV9: 56,055.00 | BW9: 4,975.00 | BX9: 4,975.00 | BY9: 1,000.00 | BZ9: 2,442,465.86 | CA9: 1,869,083.48 | CB9: 0.00 | CC9: 729,429.41 | CD9: 897.36 | CE9: 0.34 | CF9: 214.37 | CG9: 20.89 | CH9: 27,372,706.03 | CI9: 6,581,417.89 | CJ9: 4,138,892.03 | CK9: 0.00 | CL9: 0.00 | CM9: 578,968.12 | CN9: 35,697.60 | CO9: 8,955.00 | CP9: 0.00 | CQ9: 26,643,276.62 | CR9: -4,138,892.03 | CS9: 0.00 | CT9: 0 | CU9: 125,971.54 | CV9: 0.00 | CW9: 23,597,699.00 | CX9: 0.00 | CY9: 0.00
O10: МБОУ СОШ Ныртинского совхоза Кукморского района | Q10: 1623006034 | BJ10: 14.00 | BK10: 31.00 | BL10: 253.00 | BM10: 83.87 | BN10: 1,469,627.00 | BO10: 0.00 | BP10: 7,823,816.50 | BQ10: 7,823,816.50 | BR10: 0.00 | BS10: 0.00 | BT10: 0.00 | BU10: 302,550.94 | BV10: 28,027.50 | BW10: 3,599.00 | BX10: 3,599.00 | BY10: 253.00 | BZ10: 1,189,928.53 | CA10: 889,255.58 | CB10: 0.00 | CC10: 330,578.44 | CD10: 470.46 | CE10: 0.25 | CF10: 171.30 | CG10: 10.97 | CH10: 10,334,386.47 | CI10: 3,700,546.50 | CJ10: 2,510,569.97 | CK10: 0.00 | CL10: 0.00 | CM10: 138,599.84 | CN10: 32,227.20 | CO10: 6,478.20 | CP10: 0.00 | CQ10: 10,003,808.03 | CR10: -2,510,569.97 | CS10: 0.00 | CT10: 0 | CU10: 79,865.55 | CV10: 0.00 | CW10: 8,597,050.00 | CX10: 0.00 | CY10: 0.00
O11: МБОУ СОШ с. Чарли Кукморского района | Q11: 1623005979 | BJ11: 12.00 | BK11: 25.00 | BL11: 128.00 | BM11: 37.97 | BN11: 526,802.00 | BO11: 0.00 | BP11: 6,068,035.50 | BQ11: 6,068,035.50 | BR11: 0.00 | BS11: 0.00 | BT11: 0.00 | BU11: 253,529.41 | BV11: 0.00 | BW11: 2,217.00 | BX11: 2,217.00 | BY11: 128.00 | BZ11: 847,526.21 | CA11: 790,449.40 | CB11: 0.00 | CC11: 253,529.41 | CD11: 234.17 | CE11: 0.04 | CF11: 85.16 | CG11: 5.49 | CH11: 7,798,789.77 | CI11: 2,578,304.48 | CJ11: 1,730,754.27 | CK11: 0.00 | CL11: 0.00 | CM11: 472,792.08 | CN11: 25,286.40 | CO11: 3,990.60 | CP11: 0.00 | CQ11: 7,545,260.36 | CR11: -1,730,754.27 | CS11: 0.00 | CT11: 0 | CU11: 54,155.46 | CV11: 0.00 | CW11: 8,155,626.00 | CX11: 0.00 | CY11: 0.00
O12: МБОУ СОШ с.Байлангар Кукморского района | Q12: 1623005915 | BJ12: 10.00 | BK12: 25.00 | BL12: 199.00 | BM12: 66.30 | BN12: 527,737.00 | BO12: 0.00 | BP12: 5,839,328.50 | BQ12: 5,839,328.50 | BR12: 0.00 | BS12: 0.00 | BT12: 0.00 | BU12: 228,277.09 | BV12: 28,027.50 | BW12: 1,971.00 | BX12: 1,971.00 | BY12: 199.00 | BZ12: 791,485.27 | CA12: 642,240.14 | CB12: 0.00 | CC12: 256,304.59 | CD12: 202.53 | CE12: 0.04 | CF12: 85.16 | CG12: 4.75 | CH12: 7,294,330.64 | CI12: 2,246,511.41 | CJ12: 1,455,002.14 | CK12: 0.00 | CL12: 0.00 | CM12: 181,153.16 | CN12: 25,286.40 | CO12: 3,547.80 | CP12: 0.00 | CQ12: 7,038,026.05 | CR12: -1,455,002.14 | CS12: 0.00 | CT12: 0 | CU12: 43,630.21 | CV12: 0.00 | CW12: 7,290,421.00 | CX12: 0.00 | CY12: 0.00
O13: МБОУ СОШ с.Березняк Кукморского района | Q13: 1623006010 | BJ13: 11.00 | BK13: 15.00 | BL13: 79.00 | BM13: 27.93 | BN13: 1,731,054.00 | BO13: 0.00 | BP13: 4,867,990.00 | BQ13: 4,867,990.00 | BR13: 0.00 | BS13: 0.00 | BT13: 0.00 | BU13: 277,770.91 | BV13: 25,785.30 | BW13: 1,883.00 | BX13: 1,883.00 | BY13: 79.00 | BZ13: 794,593.90 | CA13: 601,070.90 | CB13: 0.00 | CC13: 303,556.21 | CD13: 389.00 | CE13: 0.21 | CF13: 128.23 | CG13: 9.08 | CH13: 6,302,493.27 | CI13: 2,229,133.17 | CJ13: 1,434,503.27 | CK13: 0.00 | CL13: 0.00 | CM13: 791,534.08 | CN13: 10,411.20 | CO13: 3,389.40 | CP13: 0.00 | CQ13: 5,998,937.06 | CR13: -1,434,503.27 | CS13: 0.00 | CT13: 0 | CU13: 41,663.56 | CV13: 0.00 | CW13: 4,867,990.00 | CX13: 0.00 | CY13: 0.00
O14: МБОУ СОШ с.Большой Кукмор Кукморского района | Q14: 1623005866 | BJ14: 17.00 | BK14: 37.00 | BL14: 533.00 | BM14: 123.69 | BN14: 1,141,714.00 | BO14: 0.00 | BP14: 10,469,655.80 | BQ14: 10,469,655.80 | BR14: 0.00 | BS14: 0.00 | BT14: 0.00 | BU14: 512,085.89 | BV14: 56,055.00 | BW14: 4,824.40 | BX14: 4,824.40 | BY14: 533.00 | BZ14: 1,837,953.94 | CA14: 765,747.86 | CB14: 0.00 | CC14: 568,140.89 | CD14: 324.64 | CE14: 0.10 | CF14: 128.23 | CG14: 7.57 | CH14: 13,383,493.07 | CI14: 4,729,305.49 | CJ14: 2,913,837.27 | CK14: 0.00 | CL14: 0.00 | CM14: 889,905.80 | CN14: 28,756.80 | CO14: 8,683.92 | CP14: 0.00 | CQ14: 12,815,352.18 | CR14: -2,913,837.27 | CS14: 0.00 | CT14: 0 | CU14: 84,572.88 | CV14: 0.00 | CW14: 10,222,472.00 | CX14: 0.00 | CY14: 0.00
O15: МБОУ СОШ с.Каркаусь Кукморского района | Q15: 1623005947 | BJ15: 12.00 | BK15: 28.00 | BL15: 148.00 | BM15: 50.05 | BN15: 608,783.00 | BO15: 0.00 | BP15: 6,427,290.00 | BQ15: 6,427,290.00 | BR15: 0.00 | BS15: 0.00 | BT15: 0.00 | BU15: 232,709.30 | BV15: 0.00 | BW15: 2,239.00 | BX15: 2,239.00 | BY15: 148.00 | BZ15: 758,262.22 | CA15: 913,957.12 | CB15: 0.00 | CC15: 232,709.30 | CD15: 528.91 | CE15: 0.64 | CF15: 128.23 | CG15: 12.33 | CH15: 8,412,132.03 | CI15: 2,743,140.25 | CJ15: 1,984,842.03 | CK15: 0.00 | CL15: 0.00 | CM15: 471,237.64 | CN15: 28,756.80 | CO15: 4,030.20 | CP15: 0.00 | CQ15: 8,179,422.73 | CR15: -1,984,842.03 | CS15: 0.00 | CT15: 0 | CU15: 64,578.61 | CV15: 0.00 | CW15: 8,857,768.00 | CX15: 0.00 | CY15: 0.00
O16: МБОУ СОШ с.Нижний Искубаш Кукморского района | Q16: 1623006098 | BJ16: 15.00 | BK16: 34.00 | BL16: 178.00 | BM16: 52.02 | BN16: 1,296,260.00 | BO16: 0.00 | BP16: 7,594,980.00 | BQ16: 7,594,980.00 | BR16: 0.00 | BS16: 0.00 | BT16: 0.00 | BU16: 292,756.64 | BV16: 0.00 | BW16: 2,435.00 | BX16: 2,435.00 | BY16: 178.00 | BZ16: 1,008,327.61 | CA16: 889,255.58 | CB16: 0.00 | CC16: 292,756.64 | CD16: 447.41 | CE16: 0.14 | CF16: 171.30 | CG16: 10.44 | CH16: 9,529,646.97 | CI16: 2,943,042.58 | CJ16: 1,934,666.97 | CK16: 0.00 | CL16: 0.00 | CM16: 294,687.88 | CN16: 32,227.20 | CO16: 4,383.00 | CP16: 0.00 | CQ16: 9,236,890.33 | CR16: -1,934,666.97 | CS16: 0.00 | CT16: 0 | CU16: 60,056.55 | CV16: 0.00 | CW16: 9,531,241.00 | CX16: 0.00 | CY16: 0.00
O17: МБОУ СОШ с.Нижняя Русь Кукморского района | Q17: 1623004051 | BJ17: 10.00 | BK17: 21.00 | BL17: 212.00 | BM17: 95.44 | BN17: 209,205.00 | BO17: 0.00 | BP17: 5,607,240.50 | BQ17: 5,607,240.50 | BR17: 0.00 | BS17: 0.00 | BT17: 0.00 | BU17: 208,093.83 | BV17: 0.00 | BW17: 5,339.00 | BX17: 5,339.00 | BY17: 212.00 | BZ17: 1,328,197.25 | CA17: 518,732.42 | CB17: 0.00 | CC17: 187,180.34 | CD17: 56.63 | CE17: 0.00 | CF17: 42.09 | CG17: 1.35 | CH17: 7,438,256.40 | CI17: 3,159,225.15 | CJ17: 1,831,015.90 | CK17: 0.00 | CL17: 0.00 | CM17: 449,245.20 | CN17: 21,816.00 | CO17: 8,179.20 | CP17: 0.00 | CQ17: 7,251,076.06 | CR17: -1,831,015.90 | CS17: 0.00 | CT17: 0 | CU17: 58,924.94 | CV17: 0.00 | CW17: 6,633,553.00 | CX17: 0.00 | CY17: 0.00
O18: МБОУ СОШ с.Нырья Кукморского района | Q18: 1623006059 | BJ18: 19.00 | BK18: 36.00 | BL18: 460.00 | BM18: 124.50 | BN18: 1,119,730.00 | BO18: 169,071.00 | BP18: 10,728,358.20 | BQ18: 10,728,358.20 | BR18: 1,521,639.00 | BS18: 0.00 | BT18: 0.00 | BU18: 661,201.11 | BV18: 173,649.30 | BW18: 2,458.00 | BX18: 2,458.00 | BY18: 460.00 | BZ18: 1,393,326.91 | CA18: 1,037,464.84 | CB18: 0.00 | CC18: 792,407.08 | CD18: 595.30 | CE18: 0.19 | CF18: 171.30 | CG18: 13.89 | CH18: 15,168,535.44 | CI18: 4,311,913.15 | CJ18: 2,918,538.24 | CK18: 0.00 | CL18: 0.00 | CM18: 170,773.64 | CN18: 32,227.20 | CO18: 4,275.00 | CP18: 0.00 | CQ18: 14,376,128.36 | CR18: -4,440,177.24 | CS18: 0.00 | CT18: 0 | CU18: 78,726.12 | CV18: 0.00 | CW18: 11,687,696.00 | CX18: 0.00 | CY18: 0.00
O19: МБОУ СОШ с.Олуяз Кукморского района | Q19: 1623005922 | BJ19: 16.00 | BK19: 30.00 | BL19: 381.00 | BM19: 125.85 | BN19: 912,869.00 | BO19: 0.00 | BP19: 8,700,527.40 | BQ19: 8,700,527.40 | BR19: 0.00 | BS19: 0.00 | BT19: 0.00 | BU19: 305,994.66 | BV19: 32,511.90 | BW19: 2,540.00 | BX19: 2,540.00 | BY19: 381.00 | BZ19: 1,113,212.85 | CA19: 913,957.12 | CB19: 0.00 | CC19: 338,506.56 | CD19: 436.21 | CE19: 0.19 | CF19: 128.23 | CG19: 10.18 | CH19: 10,679,470.25 | CI19: 3,092,191.70 | CJ19: 1,978,942.85 | CK19: 0.00 | CL19: 0.00 | CM19: 169,918.24 | CN19: 28,756.80 | CO19: 4,572.00 | CP19: 0.00 | CQ19: 10,340,963.69 | CR19: -1,978,942.85 | CS19: 0.00 | CT19: 0 | CU19: 60,053.37 | CV19: 0.00 | CW19: 9,096,557.00 | CX19: 0.00 | CY19: 0.00
O20: МБОУ СОШ с.Починок Кучук Кукморского района | Q20: 1623006027 | BJ20: 11.00 | BK20: 27.00 | BL20: 193.00 | BM20: 53.70 | BN20: 894,463.00 | BO20: 0.00 | BP20: 6,296,618.50 | BQ20: 6,296,618.50 | BR20: 0.00 | BS20: 0.00 | BT20: 0.00 | BU20: 271,952.37 | BV20: 0.00 | BW20: 5,559.00 | BX20: 5,559.00 | BY20: 193.00 | BZ20: 1,657,079.87 | CA20: 765,747.86 | CB20: 0.00 | CC20: 271,952.37 | CD20: 372.67 | CE20: 0.22 | CF20: 128.23 | CG20: 8.67 | CH20: 8,285,408.53 | CI20: 3,645,905.90 | CJ20: 1,988,790.03 | CK20: 0.00 | CL20: 0.00 | CM20: 265,084.92 | CN20: 28,756.80 | CO20: 10,006.20 | CP20: 0.00 | CQ20: 8,013,456.16 | CR20: -1,988,790.03 | CS20: 0.00 | CT20: 0 | CU20: 60,692.80 | CV20: 0.00 | CW20: 7,467,022.00 | CX20: 0.00 | CY20: 0.00
O21: МБОУ СОШ с.Починок Сутер Кукморского района | Q21: 1623005834 | BJ21: 11.00 | BK21: 25.00 | BL21: 177.00 | BM21: 49.30 | BN21: 906,172.00 | BO21: 0.00 | BP21: 6,281,923.00 | BQ21: 6,281,923.00 | BR21: 0.00 | BS21: 0.00 | BT21: 0.00 | BU21: 229,523.52 | BV21: 0.00 | BW21: 2,429.00 | BX21: 2,429.00 | BY21: 177.00 | BZ21: 963,979.85 | CA21: 765,747.86 | CB21: 0.00 | CC21: 229,523.52 | CD21: 360.91 | CE21: 0.12 | CF21: 128.23 | CG21: 8.43 | CH21: 8,067,831.54 | CI21: 2,749,924.39 | CJ21: 1,785,908.54 | CK21: 0.00 | CL21: 0.00 | CM21: 201,928.84 | CN21: 28,756.80 | CO21: 4,372.20 | CP21: 0.00 | CQ21: 7,838,308.02 | CR21: -1,785,908.54 | CS21: 0.00 | CT21: 0 | CU21: 56,905.16 | CV21: 0.00 | CW21: 7,794,874.00 | CX21: 0.00 | CY21: 0.00
O22: МБОУ СОШ с.Псяк Кукморского района | Q22: 1623006041 | BJ22: 12.00 | BK22: 27.00 | BL22: 203.00 | BM22: 68.00 | BN22: 523,074.00 | BO22: 0.00 | BP22: 6,148,577.00 | BQ22: 6,148,577.00 | BR22: 0.00 | BS22: 0.00 | BT22: 0.00 | BU22: 251,200.44 | BV22: 29,148.60 | BW22: 1,655.00 | BX22: 1,655.00 | BY22: 203.00 | BZ22: 630,912.72 | CA22: 642,240.14 | CB22: 0.00 | CC22: 280,349.04 | CD22: 350.87 | CE22: 0.27 | CF22: 85.16 | CG22: 8.20 | CH22: 7,728,271.51 | CI22: 2,210,631.23 | CJ22: 1,579,694.51 | CK22: 0.00 | CL22: 0.00 | CM22: 220,082.76 | CN22: 25,286.40 | CO22: 2,979.00 | CP22: 0.00 | CQ22: 7,447,922.47 | CR22: -1,579,694.51 | CS22: 0.00 | CT22: 0 | CU22: 47,741.93 | CV22: 0.00 | CW22: 7,650,497.00 | CX22: 0.00 | CY22: 0.00
O23: МБОУ СОШ с.Сардек-Баш Кукморского района | Q23: 1623005841 | BJ23: 14.00 | BK23: 33.00 | BL23: 301.00 | BM23: 91.20 | BN23: 1,285,193.00 | BO23: 0.00 | BP23: 8,169,559.80 | BQ23: 8,169,559.80 | BR23: 0.00 | BS23: 0.00 | BT23: 0.00 | BU23: 347,319.95 | BV23: 28,027.50 | BW23: 2,953.00 | BX23: 2,953.00 | BY23: 301.00 | BZ23: 1,211,801.42 | CA23: 889,255.58 | CB23: 0.00 | CC23: 375,347.45 | CD23: 629.90 | CE23: 0.45 | CF23: 171.30 | CG23: 14.67 | CH23: 10,362,140.70 | CI23: 3,404,430.32 | CJ23: 2,192,580.90 | CK23: 0.00 | CL23: 0.00 | CM23: 350,420.28 | CN23: 32,227.20 | CO23: 5,315.40 | CP23: 0.00 | CQ23: 9,986,793.25 | CR23: -2,192,580.90 | CS23: 0.00 | CT23: 0 | CU23: 66,405.27 | CV23: 0.00 | CW23: 8,814,659.00 | CX23: 0.00 | CY23: 0.00
O24: МБОУ СОШ с.Село-Чура Кукморского района | Q24: 1623005930 | BJ24: 17.00 | BK24: 32.00 | BL24: 288.00 | BM24: 99.45 | BN24: 1,280,530.00 | BO24: 0.00 | BP24: 8,593,932.50 | BQ24: 8,593,932.50 | BR24: 0.00 | BS24: 0.00 | BT24: 0.00 | BU24: 359,202.01 | BV24: 30,269.70 | BW24: 1,887.50 | BX24: 1,887.50 | BY24: 288.00 | BZ24: 942,842.46 | CA24: 889,255.58 | CB24: 0.00 | CC24: 389,471.71 | CD24: 669.05 | CE24: 0.47 | CF24: 171.30 | CG24: 15.60 | CH24: 10,446,800.04 | CI24: 2,795,758.00 | CJ24: 1,852,867.54 | CK24: 0.00 | CL24: 0.00 | CM24: 126,594.72 | CN24: 32,227.20 | CO24: 3,397.50 | CP24: 0.00 | CQ24: 10,057,328.33 | CR24: -1,852,867.54 | CS24: 0.00 | CT24: 0 | CU24: 53,607.55 | CV24: 0.00 | CW24: 9,165,409.00 | CX24: 0.00 | CY24: 0.00
O25: МБОУ СОШ с.Средний Кукмор Кукморского района | Q25: 1623006066 | BJ25: 13.00 | BK25: 28.00 | BL25: 256.00 | BM25: 91.80 | BN25: 970,682.00 | BO25: 0.00 | BP25: 7,456,561.60 | BQ25: 7,456,561.60 | BR25: 0.00 | BS25: 0.00 | BT25: 0.00 | BU25: 405,478.75 | BV25: 28,027.50 | BW25: 2,233.00 | BX25: 2,233.00 | BY25: 256.00 | BZ25: 835,058.83 | CA25: 765,747.86 | CB25: 0.00 | CC25: 433,506.25 | CD25: 401.25 | CE25: 0.17 | CF25: 128.23 | CG25: 9.36 | CH25: 9,331,552.07 | CI25: 2,710,085.30 | CJ25: 1,874,990.47 | CK25: 0.00 | CL25: 0.00 | CM25: 897,070.36 | CN25: 28,756.80 | CO25: 4,019.40 | CP25: 0.00 | CQ25: 8,898,045.82 | CR25: -1,874,990.47 | CS25: 0.00 | CT25: 0 | CU25: 52,635.16 | CV25: 0.00 | CW25: 8,200,096.00 | CX25: 0.00 | CY25: 0.00
O26: МБОУ СОШ с.Ядыгерь Кукморского района | Q26: 1623005908 | BJ26: 13.00 | BK26: 30.00 | BL26: 246.00 | BM26: 97.13 | BN26: 970,682.00 | BO26: 0.00 | BP26: 7,612,445.00 | BQ26: 7,612,445.00 | BR26: 0.00 | BS26: 0.00 | BT26: 0.00 | BU26: 297,379.01 | BV26: 22,422.00 | BW26: 2,337.70 | BX26: 2,337.70 | BY26: 246.00 | BZ26: 854,790.52 | CA26: 765,747.86 | CB26: 0.00 | CC26: 319,801.01 | CD26: 328.19 | CE26: 0.11 | CF26: 128.23 | CG26: 7.67 | CH26: 9,580,466.97 | CI26: 2,822,848.49 | CJ26: 1,968,021.97 | CK26: 0.00 | CL26: 0.00 | CM26: 190,348.48 | CN26: 28,756.80 | CO26: 4,207.86 | CP26: 0.00 | CQ26: 9,260,665.96 | CR26: -1,968,021.97 | CS26: 0.00 | CT26: 0 | CU26: 60,506.84 | CV26: 0.00 | CW26: 8,581,543.00 | CX26: 0.00 | CY26: 0.00
O27: МБОУ СОШ с.Яныль Кукморского района | Q27: 1623005898 | BJ27: 14.00 | BK27: 30.00 | BL27: 402.00 | BM27: 172.16 | BN27: 244,035.00 | BO27: 0.00 | BP27: 7,713,881.00 | BQ27: 7,713,881.00 | BR27: 0.00 | BS27: 0.00 | BT27: 0.00 | BU27: 314,961.37 | BV27: 28,027.50 | BW27: 4,987.00 | BX27: 4,987.00 | BY27: 402.00 | BZ27: 2,014,995.60 | CA27: 790,449.40 | CB27: 0.00 | CC27: 342,988.87 | CD27: 162.28 | CE27: 0.01 | CF27: 85.16 | CG27: 3.80 | CH27: 9,886,810.25 | CI27: 4,187,948.85 | CJ27: 2,172,929.25 | CK27: 0.00 | CL27: 0.00 | CM27: 178,895.76 | CN27: 25,286.40 | CO27: 8,976.60 | CP27: 0.00 | CQ27: 9,543,821.38 | CR27: -2,172,929.25 | CS27: 0.00 | CT27: 0 | CU27: 65,611.98 | CV27: 0.00 | CW27: 8,434,796.00 | CX27: 0.00 | CY27: 0.00
O28: Муниципальное бюджетное образовательное учреждение средняя общеобразовательная школа №4 п.г.т.Кукмор Кукморского муниципального района РТ | Q28: 1623002449 | BJ28: 25.00 | BK28: 57.00 | BL28: 1,314.00 | BM28: 183.02 | BN28: 663,386.00 | BO28: 0.00 | BP28: 19,826,012.00 | BQ28: 19,826,012.00 | BR28: 0.00 | BS28: 0.00 | BT28: 0.00 | BU28: 850,799.57 | BV28: 168,165.00 | BW28: 7,187.00 | BX28: 7,187.00 | BY28: 1,314.00 | BZ28: 2,967,592.04 | CA28: 1,095,101.78 | CB28: 0.00 | CC28: 1,018,964.57 | CD28: 80.27 | CE28: 0.00 | CF28: 41.98 | CG28: 1.91 | CH28: 24,045,059.14 | CI28: 7,130,109.14 | CJ28: 4,219,047.14 | CK28: 0.00 | CL28: 0.00 | CM28: 762,115.64 | CN28: 21,816.00 | CO28: 12,936.60 | CP28: 0.00 | CQ28: 23,026,094.57 | CR28: -4,219,047.14 | CS28: 0.00 | CT28: 0 | CU28: 114,593.15 | CV28: 0.00 | CW28: 20,887,303.00 | CX28: 0.00 | CY28: 0.00
O29: Муниципальное бюджетное образовательное учреждение гимназия № 1 им. Ч.Т.Айтманова поселка городского типа Кукмор Кукморского муниципального района Республики Татарстан | Q29: 1623002417 | BJ29: 17.00 | BK29: 39.00 | BL29: 763.00 | BM29: 163.13 | BN29: 339,108.00 | BO29: 0.00 | BP29: 13,657,840.00 | BQ29: 13,657,840.00 | BR29: 0.00 | BS29: 0.00 | BT29: 0.00 | BU29: 512,581.16 | BV29: 112,110.00 | BW29: 2,334.00 | BX29: 2,334.00 | BY29: 763.00 | BZ29: 1,250,507.26 | CA29: 889,255.58 | CB29: 0.00 | CC29: 624,691.16 | CD29: 148.60 | CE29: 0.01 | CF29: 41.98 | CG29: 3.54 | CH29: 16,757,786.72 | CI29: 4,317,569.58 | CJ29: 3,099,946.72 | CK29: 0.00 | CL29: 0.00 | CM29: 287,835.24 | CN29: 21,816.00 | CO29: 4,201.20 | CP29: 0.00 | CQ29: 16,133,095.56 | CR29: -3,099,946.72 | CS29: 0.00 | CT29: 0 | CU29: 91,320.38 | CV29: 0.00 | CW29: 15,631,571.00 | CX29: 0.00 | CY29: 0.00
O30: Муниципальное бюджетное образовательное учреждение многопрофильный лицей имени Атласа Минхаировича Булатова п.г.т.Кукмор Кукморского муниципального района РТ | Q30: 1623002424 | BJ30: 32.00 | BK30: 73.00 | BL30: 1,743.00 | BM30: 351.09 | BN30: 477,566.00 | BO30: 0.00 | BP30: 26,432,856.30 | BQ30: 26,432,856.30 | BR30: 0.00 | BS30: 0.00 | BT30: 0.00 | BU30: 935,537.57 | BV30: 252,247.50 | BW30: 7,570.40 | BX30: 7,570.40 | BY30: 1,743.00 | BZ30: 3,451,166.44 | CA30: 1,177,440.26 | CB30: 0.00 | CC30: 1,187,785.07 | CD30: 81.20 | CE30: 0.00 | CF30: 41.98 | CG30: 1.93 | CH30: 30,656,197.59 | CI30: 7,599,260.02 | CJ30: 4,223,341.29 | CK30: 0.00 | CL30: 0.00 | CM30: 3,129,553.60 | CN30: 21,816.00 | CO30: 13,626.72 | CP30: 0.00 | CQ30: 29,468,412.52 | CR30: -4,223,341.29 | CS30: 0.00 | CT30: 0 | CU30: 107,253.33 | CV30: 0.00 | CW30: 27,361,831.00 | CX30: 0.00 | CY30: 0.00
O31: Муниципальное бюджетное образовательное учреждение средняя общеобразовательная школа №3 поселка городского типа Кукмор Кукморского муниципального района Республики Татарстан | Q31: 1623002431 | BJ31: 22.00 | BK31: 50.00 | BL31: 1,229.00 | BM31: 185.16 | BN31: 314,879.00 | BO31: 0.00 | BP31: 16,887,696.00 | BQ31: 16,887,696.00 | BR31: 0.00 | BS31: 0.00 | BT31: 0.00 | BU31: 647,649.13 | BV31: 112,110.00 | BW31: 3,551.00 | BX31: 3,551.00 | BY31: 1,229.00 | BZ31: 1,985,335.16 | CA31: 1,095,101.78 | CB31: 0.00 | CC31: 759,759.13 | CD31: 115.58 | CE31: 0.00 | CF31: 41.98 | CG31: 2.75 | CH31: 20,043,961.87 | CI31: 5,088,529.22 | CJ31: 3,156,265.87 | CK31: 0.00 | CL31: 0.00 | CM31: 581,846.20 | CN31: 21,816.00 | CO31: 6,391.80 | CP31: 0.00 | CQ31: 19,284,202.74 | CR31: -3,156,265.87 | CS31: 0.00 | CT31: 0 | CU31: 86,588.35 | CV31: 0.00 | CW31: 17,284,303.00 | CX31: 0.00 | CY31: 0.00
O32: Муниципальное бюджетное образовательное учреждение средняя общеобразовательная школа деревни Нижний Арбаш Кукморского муниципального района Республики Татарстан | Q32: 1623006073 | BJ32: 9.00 | BK32: 23.00 | BL32: 169.00 | BM32: 56.10 | BN32: 149,009.00 | BO32: 0.00 | BP32: 5,185,906.50 | BQ32: 5,185,906.50 | BR32: 0.00 | BS32: 0.00 | BT32: 0.00 | BU32: 211,999.47 | BV32: 23,543.10 | BW32: 2,147.00 | BX32: 2,147.00 | BY32: 169.00 | BZ32: 683,679.09 | CA32: 518,732.42 | CB32: 0.00 | CC32: 235,542.57 | CD32: 77.02 | CE32: 0.00 | CF32: 42.09 | CG32: 1.83 | CH32: 6,538,677.31 | CI32: 2,036,461.90 | CJ32: 1,352,770.81 | CK32: 0.00 | CL32: 0.00 | CM32: 570,790.96 | CN32: 21,816.00 | CO32: 3,864.60 | CP32: 0.00 | CQ32: 6,303,134.74 | CR32: -1,352,770.81 | CS32: 0.00 | CT32: 0 | CU32: 40,496.22 | CV32: 0.00 | CW32: 6,939,671.00 | CX32: 0.00 | CY32: 0.00
O33: Муниципальное бюджетное образовательное учреждение средняя общеобразовательная школа села Лельвиж Кукморского муниципального района | Q33: 1623005880 | BJ33: 10.00 | BK33: 23.00 | BL33: 173.00 | BM33: 61.50 | BN33: 213,868.00 | BO33: 0.00 | BP33: 5,279,559.00 | BQ33: 5,279,559.00 | BR33: 0.00 | BS33: 0.00 | BT33: 0.00 | BU33: 220,372.82 | BV33: 31,390.80 | BW33: 1,769.00 | BX33: 1,769.00 | BY33: 173.00 | BZ33: 591,607.10 | CA33: 518,732.42 | CB33: 0.00 | CC33: 251,763.62 | CD33: 85.17 | CE33: 0.00 | CF33: 42.09 | CG33: 2.02 | CH33: 6,544,369.34 | CI33: 1,856,429.44 | CJ33: 1,264,810.34 | CK33: 0.00 | CL33: 0.00 | CM33: 489,703.60 | CN33: 21,816.00 | CO33: 3,184.20 | CP33: 0.00 | CQ33: 6,292,605.72 | CR33: -1,264,810.34 | CS33: 0.00 | CT33: 0 | CU33: 36,777.10 | CV33: 0.00 | CW33: 7,080,282.00 | CX33: 0.00 | CY33: 0.00
O34: Муниципальное бюджетное образовательное учреждение средняя общеобразовательная школа села Лубяны Кукморского муниципального района Республики Татарстан | Q34: 1623003266 | BJ34: 11.00 | BK34: 23.00 | BL34: 237.00 | BM34: 76.20 | BN34: 144,346.00 | BO34: 0.00 | BP34: 5,860,184.00 | BQ34: 5,860,184.00 | BR34: 0.00 | BS34: 0.00 | BT34: 0.00 | BU34: 198,188.36 | BV34: 28,027.50 | BW34: 1,377.00 | BX34: 1,377.00 | BY34: 237.00 | BZ34: 549,606.36 | CA34: 518,732.42 | CB34: 0.00 | CC34: 226,215.86 | CD34: 122.58 | CE34: 0.01 | CF34: 42.09 | CG34: 2.91 | CH34: 7,396,240.66 | CI34: 2,085,675.02 | CJ34: 1,536,056.66 | CK34: 0.00 | CL34: 0.00 | CM34: 88,288.80 | CN34: 21,816.00 | CO34: 2,478.60 | CP34: 0.00 | CQ34: 7,170,024.80 | CR34: -1,536,056.66 | CS34: 0.00 | CT34: 0 | CU34: 48,490.78 | CV34: 0.00 | CW34: 6,893,041.00 | CX34: 0.00 | CY34: 0.00
O35: Муниципальное бюджетное образовательное учреждение средняя общеобразовательная школа села Мамашир Кукморского муниципального района Республики Татарстан | Q35: 1623005993 | BJ35: 9.00 | BK35: 23.00 | BL35: 203.00 | BM35: 75.90 | BN35: 144,346.00 | BO35: 0.00 | BP35: 5,547,221.50 | BQ35: 5,547,221.50 | BR35: 0.00 | BS35: 0.00 | BT35: 0.00 | BU35: 215,545.06 | BV35: 26,906.40 | BW35: 2,969.00 | BX35: 2,969.00 | BY35: 203.00 | BZ35: 922,052.87 | CA35: 518,732.42 | CB35: 0.00 | CC35: 242,451.46 | CD35: 60.10 | CE35: 0.00 | CF35: 42.09 | CG35: 1.43 | CH35: 6,814,349.12 | CI35: 2,189,192.49 | CJ35: 1,267,127.62 | CK35: 0.00 | CL35: 0.00 | CM35: 378,709.32 | CN35: 21,816.00 | CO35: 5,344.20 | CP35: 0.00 | CQ35: 6,571,897.66 | CR35: -1,267,127.62 | CS35: 0.00 | CT35: 0 | CU35: 36,310.54 | CV35: 0.00 | CW35: 6,893,041.00 | CX35: 0.00 | CY35: 0.00
O36: Муниципальное бюджетное образовательное учреждение средняя общеобразовательная школа села Манзарас Кукморского муниципального района | Q36: 1623010030 | BJ36: 20.00 | BK36: 45.00 | BL36: 844.00 | BM36: 148.56 | BN36: 408,727.00 | BO36: 0.00 | BP36: 13,919,240.60 | BQ36: 13,919,240.60 | BR36: 0.00 | BS36: 0.00 | BT36: 0.00 | BU36: 511,836.60 | BV36: 84,082.50 | BW36: 5,655.90 | BX36: 5,655.90 | BY36: 844.00 | BZ36: 2,167,872.47 | CA36: 930,424.82 | CB36: 0.00 | CC36: 595,919.10 | CD36: 74.44 | CE36: 0.00 | CF36: 42.09 | CG36: 1.77 | CH36: 16,992,740.13 | CI36: 5,204,942.92 | CJ36: 3,073,499.53 | CK36: 0.00 | CL36: 0.00 | CM36: 1,883,080.52 | CN36: 21,816.00 | CO36: 10,180.62 | CP36: 0.00 | CQ36: 16,396,821.03 | CR36: -3,073,499.53 | CS36: 0.00 | CT36: 0 | CU36: 88,743.71 | CV36: 0.00 | CW36: 13,290,980.00 | CX36: 0.00 | CY36: 0.00
O37: Муниципальное бюджетное образовательное учреждение средняя общеобразовательная школа села Маскара Кукморского муниципального района Республики Татарстан | Q37: 1623005859 | BJ37: 10.00 | BK37: 22.00 | BL37: 184.00 | BM37: 47.00 | BN37: 137,007.00 | BO37: 0.00 | BP37: 5,438,382.00 | BQ37: 5,438,382.00 | BR37: 0.00 | BS37: 0.00 | BT37: 0.00 | BU37: 187,180.34 | BV37: 0.00 | BW37: 2,399.00 | BX37: 2,399.00 | BY37: 184.00 | BZ37: 771,440.27 | CA37: 518,732.42 | CB37: 0.00 | CC37: 187,180.34 | CD37: 76.01 | CE37: 0.00 | CF37: 42.09 | CG37: 1.81 | CH37: 6,901,434.98 | CI37: 2,234,505.25 | CJ37: 1,463,052.98 | CK37: 0.00 | CL37: 0.00 | CM37: 153,544.04 | CN37: 21,816.00 | CO37: 4,318.20 | CP37: 0.00 | CQ37: 6,714,254.64 | CR37: -1,463,052.98 | CS37: 0.00 | CT37: 0 | CU37: 46,406.02 | CV37: 0.00 | CW37: 6,709,566.00 | CX37: 0.00 | CY37: 0.00
O38: Муниципальное образовательное учреждение "Вечерняя (сменная) общеобразовательная школа п.г.т. Кукмор" | Q38: 1623005055 | BJ38: 8.00 | BK38: 8.00 | BL38: 200.00 | BM38: 50.00 | BN38: 58,376.00 | BO38: 0.00 | BP38: 3,847,894.00 | BQ38: 3,847,894.00 | BR38: 0.00 | BS38: 0.00 | BT38: 0.00 | BU38: 0.00 | BV38: 0.00 | BW38: 258.50 | BX38: 258.50 | BY38: 200.00 | BZ38: 83,007.10 | CA38: 436,393.94 | CB38: 0.00 | CC38: 0.00 | CD38: 188.77 | CE38: 0.06 | CF38: 38.64 | CG38: 4.89 | CH38: 4,375,170.17 | CI38: 605,324.06 | CJ38: 527,276.17 | CK38: 0.00 | CL38: 0.00 | CM38: 2,639.00 | CN38: 3,470.40 | CO38: 465.30 | CP38: 0.00 | CQ38: 4,375,170.17 | CR38: -527,276.17 | CS38: 0.00 | CT38: 0 | CU38: 19,758.32 | CV38: 0.00 | CW38: 3,241,830.00 | CX38: 0.00 | CY38: 0.00
O39: ООШ с.Туенбаш Кукморск. района | Q39: 1623005954 | BJ39: 9.00 | BK39: 20.00 | BL39: 120.00 | BM39: 27.20 | BN39: 648,867.00 | BO39: 0.00 | BP39: 4,745,680.00 | BQ39: 4,745,680.00 | BR39: 0.00 | BS39: 0.00 | BT39: 0.00 | BU39: 157,090.13 | BV39: 0.00 | BW39: 931.00 | BX39: 931.00 | BY39: 120.00 | BZ39: 760,473.20 | CA39: 477,563.18 | CB39: 0.00 | CC39: 157,090.13 | CD39: 278.92 | CE39: 0.05 | CF39: 84.82 | CG39: 6.61 | CH39: 5,693,299.88 | CI39: 1,708,117.08 | CJ39: 947,619.88 | CK39: 0.00 | CL39: 0.00 | CM39: 44,546.32 | CN39: 10,411.20 | CO39: 1,675.80 | CP39: 0.00 | CQ39: 5,536,209.75 | CR39: -947,619.88 | CS39: 0.00 | CT39: 0 | CU39: 29,295.57 | CV39: 0.00 | CW39: 5,877,302.00 | CX39: 0.00 | CY39: 0.00
O40: СОШ с.Ошторма Юмья Кукморск. района | Q40: 1623005961 | BJ40: 13.00 | BK40: 31.00 | BL40: 312.00 | BM40: 144.80 | BN40: 1,349,410.00 | BO40: 0.00 | BP40: 7,959,977.70 | BQ40: 7,959,977.70 | BR40: 0.00 | BS40: 0.00 | BT40: 0.00 | BU40: 409,398.15 | BV40: 28,027.50 | BW40: 3,268.30 | BX40: 3,268.30 | BY40: 312.00 | BZ40: 1,232,875.72 | CA40: 889,255.58 | CB40: 0.00 | CC40: 437,425.65 | CD40: 497.08 | CE40: 0.19 | CF40: 171.30 | CG40: 11.60 | CH40: 11,061,196.62 | CI40: 4,334,142.64 | CJ40: 3,101,218.92 | CK40: 0.00 | CL40: 0.00 | CM40: 284,282.80 | CN40: 32,227.20 | CO40: 5,882.94 | CP40: 0.00 | CQ40: 10,623,770.97 | CR40: -3,101,218.92 | CS40: 0.00 | CT40: 0 | CU40: 98,725.15 | CV40: 0.00 | CW40: 8,679,466.00 | CX40: 0.00 | CY40: 0.00
M41: Школы - Кукморский район Итого | BJ41: 471.00 | BK41: 1,023.00 | BL41: 13,128.00 | BM41: 3,289.36 | BN41: 22,381,241.00 | BO41: 169,071.00 | BP41: 290,222,984.40 | BQ41: 290,222,984.40 | BR41: 1,521,639.00 | BS41: 0.00 | BT41: 0.00 | BU41: 11,483,539.97 | BV41: 1,432,644.60 | BW41: 99,938.70 | BX41: 99,938.70 | BY41: 13,128.00 | BZ41: 40,033,956.90 | CA41: 25,689,605.60 | CB41: 0.00 | CC41: 12,852,827.75 | CD41: 9,743.48 | CE41: 4.28 | CF41: 3,194.66 | CG41: 228.34 | CH41: 361,224,005.48 | CI41: 109,232,523.01 | CJ41: 69,479,382.08 | CK41: 0.00 | CL41: 0.00 | CM41: 15,696,177.84 | CN41: 795,772.80 | CO41: 178,309.26 | CP41: 0.00 | CQ41: 348,371,177.73 | CR41: -71,001,021.08 | CS41: 0.00 | CT41: 0 | CU41: 2,061,064.10 | CV41: 0.00 | CW41: 321,417,156.00 | CX41: 0.00 | CY41: 0.00
J42: Кукморский муниципальный район Итого | BJ42: 471.00 | BK42: 1,023.00 | BL42: 13,128.00 | BM42: 3,289.36 | BN42: 22,381,241.00 | BO42: 169,071.00 | BP42: 290,222,984.40 | BQ42: 290,222,984.40 | BR42: 1,521,639.00 | BS42: 0.00 | BT42: 0.00 | BU42: 11,483,539.97 | BV42: 1,432,644.60 | BW42: 99,938.70 | BX42: 99,938.70 | BY42: 13,128.00 | BZ42: 40,033,956.90 | CA42: 25,689,605.60 | CB42: 0.00 | CC42: 12,852,827.75 | CD42: 9,743.48 | CE42: 4.28 | CF42: 3,194.66 | CG42: 228.34 | CH42: 361,224,005.48 | CI42: 109,232,523.01 | CJ42: 69,479,382.08 | CK42: 0.00 | CL42: 0.00 | CM42: 15,696,177.84 | CN42: 795,772.80 | CO42: 178,309.26 | CP42: 0.00 | CQ42: 348,371,177.73 | CR42: -71,001,021.08 | CS42: 0.00 | CT42: 0 | CU42: 2,061,064.10 | CV42: 0.00 | CW42: 321,417,156.00 | CX42: 0.00 | CY42: 0.00
H43: Муниципальные учреждения Итого | BJ43: 471.00 | BK43: 1,023.00 | BL43: 13,128.00 | BM43: 3,289.36 | BN43: 22,381,241.00 | BO43: 169,071.00 | BP43: 290,222,984.40 | BQ43: 290,222,984.40 | BR43: 1,521,639.00 | BS43: 0.00 | BT43: 0.00 | BU43: 11,483,539.97 | BV43: 1,432,644.60 | BW43: 99,938.70 | BX43: 99,938.70 | BY43: 13,128.00 | BZ43: 40,033,956.90 | CA43: 25,689,605.60 | CB43: 0.00 | CC43: 12,852,827.75 | CD43: 9,743.48 | CE43: 4.28 | CF43: 3,194.66 | CG43: 228.34 | CH43: 361,224,005.48 | CI43: 109,232,523.01 | CJ43: 69,479,382.08 | CK43: 0.00 | CL43: 0.00 | CM43: 15,696,177.84 | CN43: 795,772.80 | CO43: 178,309.26 | CP43: 0.00 | CQ43: 348,371,177.73 | CR43: -71,001,021.08 | CS43: 0.00 | CT43: 0 | CU43: 2,061,064.10 | CV43: 0.00 | CW43: 321,417,156.00 | CX43: 0.00 | CY43: 0.00
F44: Министерство образования и науки Республики Татарстан Итого | BJ44: 471.00 | BK44: 1,023.00 | BL44: 13,128.00 | BM44: 3,289.36 | BN44: 22,381,241.00 | BO44: 169,071.00 | BP44: 290,222,984.40 | BQ44: 290,222,984.40 | BR44: 1,521,639.00 | BS44: 0.00 | BT44: 0.00 | BU44: 11,483,539.97 | BV44: 1,432,644.60 | BW44: 99,938.70 | BX44: 99,938.70 | BY44: 13,128.00 | BZ44: 40,033,956.90 | CA44: 25,689,605.60 | CB44: 0.00 | CC44: 12,852,827.75 | CD44: 9,743.48 | CE44: 4.28 | CF44: 3,194.66 | CG44: 228.34 | CH44: 361,224,005.48 | CI44: 109,232,523.01 | CJ44: 69,479,382.08 | CK44: 0.00 | CL44: 0.00 | CM44: 15,696,177.84 | CN44: 795,772.80 | CO44: 178,309.26 | CP44: 0.00 | CQ44: 348,371,177.73 | CR44: -71,001,021.08 | CS44: 0.00 | CT44: 0 | CU44: 2,061,064.10 | CV44: 0.00 | CW44: 321,417,156.00 | CX44: 0.00 | CY44: 0.00
C45: Школы Итого | BJ45: 471.00 | BK45: 1,023.00 | BL45: 13,128.00 | BM45: 3,289.36 | BN45: 22,381,241.00 | BO45: 169,071.00 | BP45: 290,222,984.40 | BQ45: 290,222,984.40 | BR45: 1,521,639.00 | BS45: 0.00 | BT45: 0.00 | BU45: 11,483,539.97 | BV45: 1,432,644.60 | BW45: 99,938.70 | BX45: 99,938.70 | BY45: 13,128.00 | BZ45: 40,033,956.90 | CA45: 25,689,605.60 | CB45: 0.00 | CC45: 12,852,827.75 | CD45: 9,743.48 | CE45: 4.28 | CF45: 3,194.66 | CG45: 228.34 | CH45: 361,224,005.48 | CI45: 109,232,523.01 | CJ45: 69,479,382.08 | CK45: 0.00 | CL45: 0.00 | CM45: 15,696,177.84 | CN45: 795,772.80 | CO45: 178,309.26 | CP45: 0.00 | CQ45: 348,371,177.73 | CR45: -71,001,021.08 | CS45: 0.00 | CT45: 0 | CU45: 2,061,064.10 | CV45: 0.00 | CW45: 321,417,156.00 | CX45: 0.00 | CY45: 0.00
A46: Общеотраслевое Итого | BJ46: 471.00 | BK46: 1,023.00 | BL46: 13,128.00 | BM46: 3,289.36 | BN46: 22,381,241.00 | BO46: 169,071.00 | BP46: 290,222,984.40 | BQ46: 290,222,984.40 | BR46: 1,521,639.00 | BS46: 0.00 | BT46: 0.00 | BU46: 11,483,539.97 | BV46: 1,432,644.60 | BW46: 99,938.70 | BX46: 99,938.70 | BY46: 13,128.00 | BZ46: 40,033,956.90 | CA46: 25,689,605.60 | CB46: 0.00 | CC46: 12,852,827.75 | CD46: 9,743.48 | CE46: 4.28 | CF46: 3,194.66 | CG46: 228.34 | CH46: 361,224,005.48 | CI46: 109,232,523.01 | CJ46: 69,479,382.08 | CK46: 0.00 | CL46: 0.00 | CM46: 15,696,177.84 | CN46: 795,772.80 | CO46: 178,309.26 | CP46: 0.00 | CQ46: 348,371,177.73 | CR46: -71,001,021.08 | CS46: 0.00 | CT46: 0 | CU46: 2,061,064.10 | CV46: 0.00 | CW46: 321,417,156.00 | CX46: 0.00 | CY46: 0.00
A47: Общий итог | BJ47: 471.00 | BK47: 1,023.00 | BL47: 13,128.00 | BM47: 3,289.36 | BN47: 22,381,241.00 | BO47: 169,071.00 | BP47: 290,222,984.40 | BQ47: 290,222,984.40 | BR47: 1,521,639.00 | BS47: 0.00 | BT47: 0.00 | BU47: 11,483,539.97 | BV47: 1,432,644.60 | BW47: 99,938.70 | BX47: 99,938.70 | BY47: 13,128.00 | BZ47: 40,033,956.90 | CA47: 25,689,605.60 | CB47: 0.00 | CC47: 12,852,827.75 | CD47: 9,743.48 | CE47: 4.28 | CF47: 3,194.66 | CG47: 228.34 | CH47: 361,224,005.48 | CI47: 109,232,523.01 | CJ47: =69479382.08 -> 69,479,382.08 | CK47: 0.00 | CL47: 0.00 | CM47: 15,696,177.84 | CN47: 795,772.80 | CO47: 178,309.26 | CP47: 0.00 | CQ47: 348,371,177.73 | CR47: -71,001,021.08 | CS47: 0.00 | CT47: 0 | CU47: 2,061,064.10 | CV47: 0.00 | CW47: 321,417,156.00 | CX47: 0.00 | CY47: 0.00
BQ48: =BR47 -> 1,521,639.00 | CA48: =CN47+CO47+BV47+BU47 -> 13,890,266.63 | CC48: =CH47-CQ47 -> 12,852,827.75 | CD48: =BU47 -> 11,483,539.97 | CI48: =CI47-CJ47 -> 39,753,140.93 | CJ48: =BZ47+CA47+CU47+BV47+CO47 -> 69,395,580.46 | CW48: =CW47-BQ47 -> 31,194,171.60
BQ49: =CJ47 -> 69,479,382.08
BQ50: =SUM(BQ47:BQ49) -> 361,224,005.48
CA52: =CA47-CC47 -> 12,836,777.85

Sheet зпшк (hidden)
B2: Нормативное финансирование в школах в 2016 году
O3: матзатраты | AE3: 69441818.08 | BO3: =AF8-BO8-BD8 -> 0.00 | CL3: =CL4-CL8 -> 93,318,818.34 | CM3: =#REF! ->  | CN3: =CM3-CO8 ->  | DA3: =DA8-DA4 ->  | DP3: =DP4-DP8 -> 0.00
B4: в рублях | H4: применяется | O4: =-(M8/1.04-M8) -> 10,318,762.68 | U4: остаток зп и есн после субв302 и 303 и кухраб | AB4: остаток зп и есн после субс302 | AE4: =AE3-AE8 -> -23,877,000.26 | AG4: 304+308 | AS4: 308 | BE4: 304 | BP4: 308 | BQ4: 308 | BR4: =BR8+CI8 -> 28,112,749.48 | BU4: 0 | BX4: 226004 | BY4: 225002 | BZ4: 221001 | CA4: 225023 | CB4: 226034 | CC4: 225001 | CG4: =SUM(CC8:CG8) -> 8,548,975.16 | CL4: =AE8+BV4 -> 93,318,818.34 | CM4: остаток зп и есн после 304 (ДКР 305) | CP4: должно быть | CX4: 304 | DA4: =#REF! ->  | DE4: Прочие субсидии | DP4: 508,976,345.74
A5: № п/п | B5: Наименованние | C5: ИНН | D5: Классы | E5: Класс-комплекты | F5: Учащиеся | G5: Тарификация 01012013 | H5: Тарификация 2015 декабрь НСОТ2 | I5: Тарификация за год ст 211 | J5: Тарификация за год ст 213 | K5: Тарификация за год ст 211+213 | L5: НФЗ | M5: Субвенция всего 283757,9822 | N5: ст211 | O5: ст 213 | P5: ИТОГО ст211+ст213 | Q5: НСВ | R5: ст211 | S5: ст213 | T5: ИТОГО | U5: ст211 | V5: ст213 | W5: итого ст211 и 213 | X5: Субсидии 302 | Y5: ст 211 субс302 | Z5: ст 213 субс302 | AA5: ст 211+213 субс302 | AB5: ст211 | AC5: ст213 | AD5: итого ст211 и 213 | AE5: НСИ 304 | AF5: Комуслуги норматив | AG5: Электроэнергия | AH5: Отопление | AI5: Газ | AJ5: Водоснабжение | AK5: Канализация | AL5: Электроэнергия | AM5: Отопление | AN5: Газ | AO5: Водоснабжение | AP5: Канализация | AQ5: Всего комуслуги | AR5: Не хватает лимитов на отопление | AS5: Электроэнергия | AT5: Отопление | AU5: Газ | AV5: Водоснабжение | AW5: Канализация | AX5: Электроэнергия | AY5: Отопление | AZ5: Газ | BA5: Водоснабжение | BB5: Канализация | BC5: Всего комуслуги | BE5: Электроэнергия | BF5: Отопление | BG5: Газ | BH5: Водоснабжение | BI5: Канализация | BJ5: Электроэнергия | BK5: Отопление | BL5: Газ | BM5: Водоснабжение | BN5: Канализация | BO5: Всего комуслуги | BP5: Каменный уголь, дрова | BQ5: ГСМ | BR5: Фонд кухонных работников ст211 | BS5: Фонд кухонных работников ст213 | BT5: Фонд кухонных работников (включая начисления) | BU5: Бесплатное питание (за искл. раздела 10) | BV5: прочие 304 всего | BW5: остаток 304 после комуслуг и прочих | BX5: Услуги охраны | BY5: Вывоз тбо | BZ5: Услуги связи | CA5: Дератизация | CB5: Сан.гиг. обслед. | CC5: Тех. обслуж. охрана | CD5: ГСМ | CE5: Компенсация ГСМ | CF5: Услуги всего | CG5: Прочие 226099 304 | CH5: остаток 304 после комуслуг и прочих и 226099 | CI5: ст 211 дкр304 | CJ5: ст 213 дкр304 | CK5: ст 211+213 дкр304 | CL5: остаток 304 после всех | CM5: ст211 | CN5: ст213 | CO5: итого ст211 и 213 | CP5: ст 211 распределено | CQ5: ст 213 распределено | CR5: ФОТ распределено | CS5: СУБВЕНЦИЯ 302 | CT5: СУБСИДИЯ 302 | CU5: НСВ 303 | CV5: НСИ 304 | CW5: ВСЕГО норматив распределено | CX5: разница с тарификацией ст 211 | CY5: разница с тарификацией ст 213 | CZ5: разница с тарификацией ст 211+213 | DA5: Норматив | DB5: Разница норматив -смета | DC5: Норматив +305 | DE5: Земельный налог | DF5: Транспортный налог | DG5: Налог на нег.воздействие окружающей среды | DH5: Налог на имущество | DI5: Налоги 308 всего | DJ5: Льготы жку | DK5: КУ 308 | DL5: Школьный автобус | DM5: КПТ 308 | DN5: ГСМ 308 | DO5: ИТОГО | DP5: ИТОГО СМЕТА
B8: ИТОГО | D8: =SUBTOTAL(9,D10:D41) -> 0.00 | E8: 0.00 | F8: 0.00 | G8: 26,711,712.03 | H8: 26,501,595.05 | I8: =SUBTOTAL(9,I10:I41) -> 318,019,140.60 | J8: 96,041,780.43 | K8: =SUBTOTAL(9,K10:K41) -> 414,060,921.03 | L8: 306,253,126.60 | M8: 268,287,829.60 | N8: 206,059,000.00 | O8: 62,228,829.60 | P8: =SUBTOTAL(9,P10:P41) -> 268,287,829.60 | Q8: 920,580.00 | R8: 707,000.00 | S8: 213,580.00 | T8: 920,580.00 | U8: 102,849,040.60 | V8: 31,061,165.24 | W8: 133,910,205.84 | X8: =SUBTOTAL(9,X10:X41) -> 37,965,297.00 | Y8: =SUBTOTAL(9,Y10:Y41) -> 29,159,000.00 | Z8: 8,806,297.00 | AA8: 37,965,297.00 | AB8: 73,690,040.60 | AC8: 22,254,868.24 | AD8: 95,944,908.84 | AE8: 93,318,818.34 | AF8: =SUBTOTAL(9,AF10:AF41) -> 48,768,509.38 | AG8: 11,963,050.00 | AH8: 36,505,161.11 | AI8: 1,456,680.09 | AJ8: 338,246.69 | AK8: 285,600.00 | AL8: =SUBTOTAL(9,AL10:AL41) -> 203,000.00 | AM8: 0.00 | AN8: 160,000.00 | AO8: 0.00 | AP8: 0.00 | AQ8: =SUBTOTAL(9,AQ10:AQ41) -> 50,911,737.89 | AR8: =SUBTOTAL(9,AR10:AR41) -> -2,143,228.510 | AS8: =SUBTOTAL(9,AS10:AS41) -> 0.00 | AT8: 3,547,525.45 | AU8: 0.00 | AV8: 0.00 | AW8: 0.00 | AX8: 0.00 | AY8: 0.00 | AZ8: 0.00 | BA8: 0.00 | BB8: 0.00 | BC8: 3,547,525.45 | BD8: 1,404,296.94 | BE8: =SUBTOTAL(9,BE10:BE41) -> 11,963,050.00 | BF8: 32,957,635.66 | BG8: 1,456,680.09 | BH8: 338,246.69 | BI8: 285,600.00 | BJ8: 203,000.00 | BK8: 0.00 | BL8: 160,000.00 | BM8: 0.00 | BN8: 0.00 | BO8: 47,364,212.44 | BP8: =SUBTOTAL(9,BP10:BP41) -> 112,100.00 | BQ8: =SUBTOTAL(9,BQ10:BQ41) -> 703,026.00 | BR8: =SUBTOTAL(9,BR10:BR41) -> 8,404,100.00 | BS8: 2,538,205.59 | BT8: 10,942,305.59 | BU8: 1,504,276.90 | BV8: 12,446,582.49 | BW8: 33,508,023.41 | BX8: =SUBTOTAL(9,BX10:BX41) -> 282,291.54 | BY8: 333,795.00 | BZ8: 991,761.03 | CA8: 296,369.64 | CB8: =SUBTOTAL(9,CB10:CB41) -> 605,829.00 | CC8: 148,225.64 | CD8: 304,292.30 | CE8: 248,700.00 | CF8: =SUBTOTAL(9,CF10:CF41) -> 3,211,264.15 | CG8: 4,636,493.07 | CH8: 30,296,759.26 | CI8: 19,708,649.48 | CJ8: 5,951,616.71 | CK8: 25,660,266.19 | CL8: 0.00 | CM8: 53,981,391.12 | CN8: 16,303,251.53 | CO8: 70,284,642.65 | CP8: =SUBTOTAL(9,CP10:CP41) -> 318,019,140.60 | CQ8: =SUBTOTAL(9,CQ10:CQ41) -> 96,041,780.43 | CR8: =SUBTOTAL(9,CR10:CR41) -> 414,060,921.03 | CS8: =SUBTOTAL(9,CS10:CS41) -> 268,287,829.60 | CT8: 37,965,297.00 | CU8: 920,580.00 | CV8: =SUBTOTAL(9,CV10:CV41) -> 93,318,818.34 | CW8: 400,492,524.94 | CX8: 0.00 | CY8: 0.00 | CZ8: 0.00 | DA8: =SUBTOTAL(9,DA10:DA41) -> 400,492,524.940 | DB8: 0.00 | DC8: 470,777,167.59 | DE8: =SUBTOTAL(9,DE10:DE41) -> 3,399,126.70 | DF8: =SUBTOTAL(9,DF10:DF41) -> 515,000.00 | DG8: 687,900.00 | DH8: =SUBTOTAL(9,DH10:DH41) -> 16,534,500.00 | DI8: 21,136,526.70 | DJ8: =SUBTOTAL(9,DJ10:DJ41) -> 5,100,000.00 | DK8: 3,547,525.45 | DL8: 7,600,000.00 | DM8: =SUBTOTAL(9,DM10:DM41) -> 112,100.00 | DN8: 703,026.00 | DO8: 38,199,178.150000000000 | DP8: 508,976,345.7400000000000000000
CS9: =CS8-M8 -> 0.00 | CT9: =CT8-X8 -> 0.00 | CU9: =CU8-Q8 -> 0.00 | CV9: =CV8-AE8 -> 0.00
A10: 1 | B10: МОУ Байлянгарская ср.шк. | C10: 1623005915 | G10: 540,191.95 | H10: 545,180.10 | I10: =H10*12 -> 6,542,161.20 | J10: =ROUND(I10*0.302,2) -> 1,975,732.68 | K10: =I10+J10 -> 8,517,893.88 | L10: =SUMIF(норм2016!$Q$11:$AR$76,$C10,норм2016!$AX$11:$AX$76) -> 5,463,793.00 | M10: =SUMIF(норм2016!$Q$11:$AR$76,$C10,норм2016!$AY$11:$AY$76) -> 3,435,532.00 | N10: =ROUND(P10/1.302,-3) -> 2,639,000.00 | O10: =P10-N10 -> 796,532.00 | P10: =M10 -> 3,435,532.00 | U10: =I10-N10-R10-BR10 -> 3,747,561.20 | V10: =J10-O10-S10-BS10 -> 1,132,168.65 | W10: =SUM(U10:V10) -> 4,879,729.85 | X10: =SUMIF(норм2016!$Q$11:$AR$76,$C10,норм2016!$AZ$11:$AZ$76) -> 2,028,261.00 | Y10: =ROUND(X10/1.302,-3) -> 1,558,000.00 | Z10: =X10-Y10 -> 470,261.00 | AA10: =SUM(Y10:Z10) -> 2,028,261.00 | AB10: =ROUND(U10-Y10,2) -> 2,189,561.20 | AC10: =V10-Z10 -> 661,907.65 | AD10: =SUM(AB10:AC10) -> 2,851,468.85 | AE10: =SUMIF(норм2016!$Q$11:$AR$76,$C10,норм2016!$BC$11:$BC$76) -> 1,926,684.03 | AF10: =SUMIF(норм2016!$Q$11:$AR$76,$C10,норм2016!$BM$11:$BM$76) -> 1,029,130.54 | AG10: 71,500.00 | AH10: 825,037.83 | AI10: =SUMIF(газ!$G$71:$G$147,C10,газ!$J$71:$J$147)*1000 -> 115,547.19 | AJ10: 0.00 | AK10: 0.00 | AL10: 40,000.00 | AM10: 0.00 | AN10: 0.00 | AO10: 0.00 | AP10: 0.00 | AQ10: =SUM(AG10:AP10) -> 1,052,085.02 | AR10: =ROUND(AF10-AQ10,2) -> -22,954.48 | AT10: =-$AR10 -> 22,954.48 | BC10: =SUM(AS10:BB10) -> 22,954.48 | BD10: =AR10+BC10 -> 0.00 | BE10: =AG10-AS10 -> 71,500.00 | BF10: =AH10-AT10 -> 802,083.35 | BG10: 115,547.19 | BH10: 0.00 | BI10: 0.00 | BJ10: 40,000.00 | BK10: 0.00 | BL10: 0.00 | BM10: 0.00 | BN10: 0.00 | BO10: =SUM(BE10:BN10) -> 1,029,130.54 | BP10: 0.00 | BR10: =ROUND(BT10/1.302,-2) -> 155,600.00 | BS10: =BT10-BR10 -> 47,032.03 | BT10: =SUMIF(норм2016!$Q$11:$AR$76,$C10,норм2016!$BE$11:$BE$76) -> 202,632.03 | BU10: =SUMIF(норм2016!$Q$11:$AR$76,$C10,норм2016!$BF$11:$BF$76) -> 29,428.88 | BV10: =BT10+BU10 -> 232,060.91 | BW10: =AE10-BO10-BV10 -> 665,492.58 | BX10: 10,049.20 | BZ10: 19,116.00 | CA10: 5,040.00 | CB10: 12,885.00 | CD10: 10,500.00 | CF10: =SUM(BX10:CE10) -> 57,590.20 | CG10: 61,215.50 | CH10: =BW10-CF10 -> 607,902.38 | CI10: =ROUND(CK10/1.302,-2) -> 419,900.00 | CJ10: =CK10-CI10 -> 126,786.88 | CK10: =ROUND(SUMIF(норм2016!$Q$11:$AR$76,$C10,норм2016!$BG$11:$BG$76),2) -> 546,686.88 | CL10: =CH10-CK10-CG10 -> 0.00 | CM10: =AB10-CI10 -> 1,769,661.20 | CN10: =AC10-CJ10 -> 535,120.77 | CO10: =SUM(CM10:CN10) -> 2,304,781.97 | CP10: =N10+R10+Y10+CI10+CM10+BR10 -> 6,542,161.20 | CQ10: =O10+S10+Z10+CJ10+CN10+BS10 -> 1,975,732.68 | CR10: =SUM(CP10:CQ10) -> 8,517,893.88 | CS10: =N10+O10 -> 3,435,532.00 | CT10: =AA10 -> 2,028,261.00 | CU10: =T10 -> 0.00 | CV10: =BO10+BV10+CG10+CK10+CF10 -> 1,926,684.03 | CW10: =SUM(CS10:CV10) -> 7,390,477.03 | CX10: =I10-CP10 -> 0.00 | CY10: =J10-CQ10 -> 0.00 | CZ10: =SUM(CX10:CY10) -> 0.00 | DA10: =M10+Q10+X10+AE10 -> 7,390,477.030 | DB10: =DA10-CW10 -> 0.00 | DC10: =CW10+CO10 -> 9,695,259.00 | DK10: =BC10 -> 22,954.48 | DL10: 0.00 | DM10: =BP10 -> 0.00 | DN10: =BQ10 -> 0.00 | DO10: =SUM(DI10:DN10) -> 22,954.480000000000 | DP10: =DC10+DO10 -> 9,718,213.4800000000000000000 | DQ10: Муниципальное образовательное учреждение средняя общеобразовательная школа с.Байлангар Кукморского муниципального района РТ | EA10: село | EB10: 825,037.83 | EC10: 0
A11: 2 | B11: МОУ Березнякская ср.шк. | C11: 1623006010 | G11: 535,713.67 | H11: 496,776.42 | I11: =H11*12 -> 5,961,317.04 | J11: 1,800,317.75 | K11: 7,761,634.79 | L11: =SUMIF(норм2016!$Q$11:$AR$76,C11,норм2016!$AX$11:$AX$76) -> 5,452,265.00 | M11: =SUMIF(норм2016!$Q$11:$AR$76,$C11,норм2016!$AY$11:$AY$76) -> 5,452,265.00 | N11: 4,188,000.00 | O11: 1,264,265.00 | P11: =M11 -> 5,452,265.00 | U11: 1,592,717.04 | V11: 481,500.77 | W11: 2,074,217.81 | X11: =SUMIF(норм2016!$Q$11:$AR$76,$C11,норм2016!$AZ$11:$AZ$76) -> 0.00 | Y11: =ROUND(X11/1.302,-3) -> 0.00 | Z11: =X11-Y11 -> 0.00 | AA11: 0.00 | AB11: =ROUND(U11-Y11,2) -> 1,592,717.04 | AC11: =V11-Z11 -> 481,500.77 | AD11: 2,074,217.81 | AE11: =SUMIF(норм2016!$Q$11:$AR$76,$C11,норм2016!$BC$11:$BC$76) -> 1,907,322.68 | AF11: =SUMIF(норм2016!$Q$11:$AR$76,$C11,норм2016!$BM$11:$BM$76) -> 899,163.52 | AG11: 280,500.00 | AH11: 675,674.81 | AI11: =SUMIF(газ!$G$71:$G$147,C11,газ!$J$71:$J$147)*1000 -> 63,480.82 | AJ11: 0.00 | AK11: 0.00 | AL11: 0.00 | AM11: 0.00 | AN11: 0.00 | AO11: 0.00 | AP11: 0.00 | AQ11: =SUM(AG11:AP11) -> 1,019,655.63 | AR11: =ROUND(AF11-AQ11,2) -> -120,492.11 | AT11: =-$AR11 -> 120,492.11 | BC11: =SUM(AS11:BB11) -> 120,492.11 | BD11: =AR11+BC11 -> 0.00 | BE11: =AG11-AS11 -> 280,500.00 | BF11: =AH11-AT11 -> 555,182.70 | BG11: =AI11-AU11 -> 63,480.82 | BH11: =AJ11-AV11 -> 0.00 | BI11: =AK11-AW11 -> 0.00 | BJ11: =AL11-AX11 -> 0.00 | BK11: =AM11-AY11 -> 0.00 | BL11: =AN11-AZ11 -> 0.00 | BM11: =AO11-BA11 -> 0.00 | BN11: =AP11-BB11 -> 0.00 | BO11: =SUM(BE11:BN11) -> 899,163.52 | BP11: 0.00 | BQ11: 20,528.00 | BR11: 180,600.00 | BS11: 54,551.98 | BT11: =SUMIF(норм2016!$Q$11:$AR$76,$C11,норм2016!$BE$11:$BE$76) -> 235,151.98 | BU11: =SUMIF(норм2016!$Q$11:$AR$76,$C11,норм2016!$BF$11:$BF$76) -> 27,074.57 | BV11: 262,226.55 | BW11: =AE11-BO11-BV11 -> 745,932.61 | BX11: 8,613.60 | BZ11: 19,737.60 | CA11: 3,612.00 | CB11: 19,576.00 | CD11: =20528-20528 -> 0.00 | CE11: 2,700.00 | CF11: =SUM(BX11:CE11) -> 54,239.20 | CG11: 58,230.84 | CH11: 691,693.41 | CI11: =ROUND(CK11/1.302,-2) -> 486,500.00 | CJ11: =CK11-CI11 -> 146,962.57 | CK11: =ROUND(SUMIF(норм2016!$Q$11:$AR$76,$C11,норм2016!$BG$11:$BG$76),2) -> 633,462.57 | CL11: =CH11-CK11-CG11 -> 0.00 | CM11: 1,106,217.04 | CN11: 334,538.20 | CO11: 1,440,755.24 | CP11: 5,961,317.04 | CQ11: 1,800,317.75 | CR11: =SUM(CP11:CQ11) -> 7,761,634.79 | CS11: =N11+O11 -> 5,452,265.00 | CT11: 0.00 | CU11: 0.00 | CV11: =BO11+BV11+CG11+CK11+CF11 -> 1,907,322.68 | CW11: =SUM(CS11:CV11) -> 7,359,587.68 | CX11: 0.00 | CY11: 0.00 | CZ11: =SUM(CX11:CY11) -> 0.00 | DA11: 7,359,587.680 | DB11: 0.00 | DC11: 8,800,342.92 | DK11: =BC11 -> 120,492.11 | DL11: 0.00 | DM11: =BP11 -> 0.00 | DN11: =BQ11 -> 20,528.00 | DO11: =SUM(DI11:DN11) -> 141,020.110000000000 | DP11: =DC11+DO11 -> 8,941,363.0300000000000000000 | DQ11: Муниципальное образовательное учреждение средняя общеобразовательная школа с.Березняк Кукморского муниципального района РТ | EA11: село | EB11: 675,674.81 | EC11: 0
A12: 3 | B12: МОУ Больше Кукморская ср.шк. | C12: 1623005866 | G12: 1,028,218.38 | H12: 1,046,395.20 | I12: 12,556,742.40 | J12: 3,792,136.20 | K12: 16,348,878.60 | L12: =SUMIF(норм2016!$Q$11:$AR$76,C12,норм2016!$AX$11:$AX$76) -> 11,546,718.00 | M12: =SUMIF(норм2016!$Q$11:$AR$76,$C12,норм2016!$AY$11:$AY$76) -> 11,546,718.00 | N12: 8,868,000.00 | O12: 2,678,718.00 | P12: 11,546,718.00 | U12: 3,403,742.40 | V12: 1,027,319.14 | W12: 4,431,061.54 | X12: =SUMIF(норм2016!$Q$11:$AR$76,$C12,норм2016!$AZ$11:$AZ$76) -> 0.00 | Y12: 0.00 | Z12: 0.00 | AA12: 0.00 | AB12: 3,403,742.40 | AC12: 1,027,319.14 | AD12: 4,431,061.54 | AE12: =SUMIF(норм2016!$Q$11:$AR$76,$C12,норм2016!$BC$11:$BC$76) -> 4,019,507.87 | AF12: =SUMIF(норм2016!$Q$11:$AR$76,$C12,норм2016!$BM$11:$BM$76) -> 2,501,069.02 | AG12: 825,000.00 | AH12: 1,568,416.62 | AI12: =SUMIF(газ!$G$71:$G$147,C12,газ!$J$71:$J$147)*1000 -> 101,851.09 | AJ12: 0.00 | AK12: 0.00 | AL12: 0.00 | AM12: 0.00 | AN12: 0.00 | AO12: 0.00 | AP12: 0.00 | AQ12: 2,495,267.71 | AR12: 5,801.31 | BC12: 0.00 | BD12: 5,801.31 | BE12: 825,000.00 | BF12: 1,568,416.62 | BG12: 101,851.09 | BH12: 0.00 | BI12: 0.00 | BJ12: 0.00 | BK12: 0.00 | BL12: 0.00 | BM12: 0.00 | BN12: 0.00 | BO12: 2,495,267.71 | BP12: 0.00 | BR12: 285,000.00 | BS12: 86,099.06 | BT12: =SUMIF(норм2016!$Q$11:$AR$76,$C12,норм2016!$BE$11:$BE$76) -> 371,099.06 | BU12: =SUMIF(норм2016!$Q$11:$AR$76,$C12,норм2016!$BF$11:$BF$76) -> 58,857.75 | BV12: 429,956.81 | BW12: 1,094,283.35 | BZ12: 48,639.60 | CA12: 3,864.00 | CB12: 21,889.00 | CD12: 11,088.00 | CE12: 2,700.00 | CF12: 88,180.60 | CG12: 199,088.79 | CH12: 1,006,102.75 | CI12: 619,800.00 | CJ12: 187,213.96 | CK12: =ROUND(SUMIF(норм2016!$Q$11:$AR$76,$C12,норм2016!$BG$11:$BG$76),2) -> 807,013.96 | CL12: 0.00 | CM12: 2,783,942.40 | CN12: 840,105.18 | CO12: 3,624,047.58 | CP12: 12,556,742.40 | CQ12: 3,792,136.20 | CR12: 16,348,878.60 | CS12: 11,546,718.00 | CT12: 0.00 | CU12: 0.00 | CV12: 4,019,507.87 | CW12: 15,566,225.87 | CX12: 0.00 | CY12: 0.00 | CZ12: 0.00 | DA12: 15,566,225.870 | DB12: 0.00 | DC12: 19,190,273.45 | DK12: 0.00 | DL12: 0.00 | DM12: 0.00 | DN12: 0.00 | DO12: 0.000000000000 | DP12: 19,190,273.4500000000000000000 | DQ12: Муниципальное образовательное учреждение средняя общеобразовательная школа с углубленным изучением отдельных предметов с.Большой Кукмор Кукморского муниципального района РТ | EA12: село | EB12: 1,568,416.62 | EC12: 0
A13: 4 | B13: МОУ Больше Сардекская гимназия | C13: 1623003298 | G13: 1,839,879.12 | H13: 1,809,629.66 | I13: 21,715,555.92 | J13: 6,558,097.89 | K13: 28,273,653.81 | L13: =SUMIF(норм2016!$Q$11:$AR$76,C13,норм2016!$AX$11:$AX$76) -> 22,591,491.00 | M13: =SUMIF(норм2016!$Q$11:$AR$76,$C13,норм2016!$AY$11:$AY$76) -> 21,077,745.00 | N13: 16,189,000.00 | O13: 4,888,745.00 | P13: 21,077,745.00 | U13: 5,019,555.92 | V13: 1,516,209.67 | W13: 6,535,765.59 | X13: =SUMIF(норм2016!$Q$11:$AR$76,$C13,норм2016!$AZ$11:$AZ$76) -> 1,513,746.00 | Y13: 1,163,000.00 | Z13: 350,746.00 | AA13: 1,513,746.00 | AB13: 3,856,555.92 | AC13: 1,165,463.67 | AD13: 5,022,019.59 | AE13: =SUMIF(норм2016!$Q$11:$AR$76,$C13,норм2016!$BC$11:$BC$76) -> 4,866,238.57 | AF13: =SUMIF(норм2016!$Q$11:$AR$76,$C13,норм2016!$BM$11:$BM$76) -> 1,975,654.90 | AG13: 368,500.00 | AH13: 1,404,901.69 | AI13: =SUMIF(газ!$G$71:$G$147,C13,газ!$J$71:$J$147)*1000 -> 237,365.79 | AJ13: 0.00 | AK13: 0.00 | AL13: 0.00 | AM13: 0.00 | AN13: 0.00 | AO13: 0.00 | AP13: 0.00 | AQ13: 2,010,767.48 | AR13: -35,112.58 | AT13: 35,112.58 | BC13: 35,112.58 | BD13: 0.00 | BE13: 368,500.00 | BF13: 1,369,789.11 | BG13: 237,365.79 | BH13: 0.00 | BI13: 0.00 | BJ13: 0.00 | BK13: 0.00 | BL13: 0.00 | BM13: 0.00 | BN13: 0.00 | BO13: 1,975,654.90 | BP13: 0.00 | BQ13: 320,000.00 | BR13: 507,000.00 | BS13: 153,143.22 | BT13: =SUMIF(норм2016!$Q$11:$AR$76,$C13,норм2016!$BE$11:$BE$76) -> 660,143.22 | BU13: =SUMIF(норм2016!$Q$11:$AR$76,$C13,норм2016!$BF$11:$BF$76) -> 58,857.75 | BV13: 719,000.97 | BW13: 2,171,582.70 | BX13: 8,613.60 | BZ13: 49,929.60 | CA13: 32,946.48 | CB13: 31,921.00 | CD13: =349095-320000 -> 29,095.00 | CE13: 9,000.00 | CF13: 161,505.68 | CG13: 127,044.41 | CH13: 2,010,077.02 | CI13: =ROUND(CK13/1.302,-2) -> 1,446,300.00 | CJ13: =CK13-CI13 -> 436,732.61 | CK13: =ROUND(SUMIF(норм2016!$Q$11:$AR$76,$C13,норм2016!$BG$11:$BG$76),2) -> 1,883,032.61 | CL13: 0.00 | CM13: 2,410,255.92 | CN13: 728,731.06 | CO13: 3,138,986.98 | CP13: 21,715,555.92 | CQ13: 6,558,097.89 | CR13: 28,273,653.81 | CS13: 21,077,745.00 | CT13: 1,513,746.00 | CU13: 0.00 | CV13: 4,866,238.57 | CW13: 27,457,729.57 | CX13: 0.00 | CY13: 0.00 | CZ13: 0.00 | DA13: 27,457,729.570 | DB13: 0.00 | DC13: 30,596,716.55 | DK13: 35,112.58 | DL13: 0.00 | DM13: 0.00 | DN13: 320,000.00 | DO13: 355,112.580000000000 | DP13: 30,951,829.1300000000000000000 | DQ13: Муниципальное образовательное учреждение- гимназия с.Большой Сардек Кукморского муниципального района Кукморского муниципального района РТ | EA13: село | EB13: 1,404,901.69 | EC13: 0
A14: 5 | B14: МОУ Верхне-Арбашская ср.шк | C14: 1623006073 | G14: 474,976.29 | H14: 465,854.78 | I14: 5,590,257.36 | J14: 1,688,257.72 | K14: 7,278,515.08 | L14: =SUMIF(норм2016!$Q$11:$AR$76,C14,норм2016!$AX$11:$AX$76) -> 5,408,630.00 | M14: =SUMIF(норм2016!$Q$11:$AR$76,$C14,норм2016!$AY$11:$AY$76) -> 3,172,808.00 | N14: 2,437,000.00 | O14: 735,808.00 | P14: 3,172,808.00 | U14: 3,011,957.36 | V14: 909,740.87 | W14: 3,921,698.23 | X14: =SUMIF(норм2016!$Q$11:$AR$76,$C14,норм2016!$AZ$11:$AZ$76) -> 2,235,822.00 | Y14: 1,717,000.00 | Z14: 518,822.00 | AA14: 2,235,822.00 | AB14: 1,294,957.36 | AC14: 390,918.87 | AD14: 1,685,876.23 | AE14: =SUMIF(норм2016!$Q$11:$AR$76,$C14,норм2016!$BC$11:$BC$76) -> 2,283,751.68 | AF14: =SUMIF(норм2016!$Q$11:$AR$76,$C14,норм2016!$BM$11:$BM$76) -> 1,386,674.63 | AG14: 192,500.00 | AH14: 1,102,936.14 | AI14: =SUMIF(газ!$G$71:$G$147,C14,газ!$J$71:$J$147)*1000 -> 0.00 | AJ14: 0.00 | AK14: 0.00 | AL14: 0.00 | AM14: 0.00 | AN14: 0.00 | AO14: 0.00 | AP14: 0.00 | AQ14: 1,295,436.14 | AR14: 91,238.49 | BC14: 0.00 | BD14: 91,238.49 | BE14: 192,500.00 | BF14: 1,102,936.14 | BG14: 0.00 | BH14: 0.00 | BI14: 0.00 | BJ14: 0.00 | BK14: 0.00 | BL14: 0.00 | BM14: 0.00 | BN14: 0.00 | BO14: 1,295,436.14 | BP14: 0.00 | BR14: 141,300.00 | BS14: 42,708.85 | BT14: =SUMIF(норм2016!$Q$11:$AR$76,$C14,норм2016!$BE$11:$BE$76) -> 184,008.85 | BU14: =SUMIF(норм2016!$Q$11:$AR$76,$C14,норм2016!$BF$11:$BF$76) -> 24,720.26 | BV14: 208,729.11 | BW14: 779,586.43 | BZ14: 9,841.20 | CA14: 22,714.44 | CB14: 13,142.00 | CE14: 28,800.00 | CF14: 74,497.64 | CG14: 158,401.91 | CH14: 705,088.79 | CI14: 419,900.00 | CJ14: 126,786.88 | CK14: =ROUND(SUMIF(норм2016!$Q$11:$AR$76,$C14,норм2016!$BG$11:$BG$76),2) -> 546,686.88 | CL14: 0.00 | CM14: 875,057.36 | CN14: 264,131.99 | CO14: 1,139,189.35 | CP14: 5,590,257.36 | CQ14: 1,688,257.72 | CR14: 7,278,515.08 | CS14: 3,172,808.00 | CT14: 2,235,822.00 | CU14: 0.00 | CV14: 2,283,751.68 | CW14: 7,692,381.68 | CX14: 0.00 | CY14: 0.00 | CZ14: 0.00 | DA14: 7,692,381.680 | DB14: 0.00 | DC14: 8,831,571.03 | DK14: 0.00 | DL14: 0.00 | DM14: 0.00 | DN14: 0.00 | DO14: 0.000000000000 | DP14: 8,831,571.0300000000000000000 | DQ14: Муниципальное образовательное учреждение средняя общеобразовательная школа с.Каркаусь Кукморского муниципального района РТ | EA14: село | EB14: 1,102,936.14 | EC14: 0
A15: 6 | B15: МОУ Вечерняя сменная шк. | C15: 1623005055 | G15: 321,576.78 | H15: 284,383.95 | I15: 3,412,607.40 | J15: 1,030,607.43 | K15: 4,443,214.83 | L15: =SUMIF(норм2016!$Q$11:$AR$76,C15,норм2016!$AX$11:$AX$76) -> 4,323,538.80 | M15: =SUMIF(норм2016!$Q$11:$AR$76,$C15,норм2016!$AY$11:$AY$76) -> 4,323,538.80 | N15: 3,321,000.00 | O15: 1,002,538.80 | P15: 4,323,538.80 | U15: 91,607.40 | V15: 28,068.63 | W15: 119,676.03 | X15: =SUMIF(норм2016!$Q$11:$AR$76,$C15,норм2016!$AZ$11:$AZ$76) -> 0.00 | Y15: =ROUND(X15/1.302,-3) -> 0.00 | Z15: =X15-Y15 -> 0.00 | AA15: 0.00 | AB15: 91,607.40 | AC15: 28,068.63 | AD15: 119,676.03 | AE15: =SUMIF(норм2016!$Q$11:$AR$76,$C15,норм2016!$BC$11:$BC$76) -> 1,087,456.13 | AF15: =SUMIF(норм2016!$Q$11:$AR$76,$C15,норм2016!$BM$11:$BM$76) -> 478,644.86 | AG15: 82,500.00 | AH15: 0.00 | AI15: =SUMIF(газ!$G$71:$G$147,C15,газ!$J$71:$J$147)*1000 -> 0.00 | AJ15: 0.00 | AK15: 0.00 | AL15: 0.00 | AM15: 0.00 | AN15: 0.00 | AO15: 0.00 | AP15: 0.00 | AQ15: 82,500.00 | AR15: 396,144.86 | BC15: 0.00 | BD15: 396,144.86 | BE15: 82,500.00 | BF15: 0.00 | BG15: 0.00 | BH15: 0.00 | BI15: 0.00 | BJ15: 0.00 | BK15: 0.00 | BL15: 0.00 | BM15: 0.00 | BN15: 0.00 | BO15: 82,500.00 | BP15: 0.00 | BR15: 0.00 | BS15: 0.00 | BT15: =SUMIF(норм2016!$Q$11:$AR$76,$C15,норм2016!$BE$11:$BE$76) -> 0.00 | BU15: =SUMIF(норм2016!$Q$11:$AR$76,$C15,норм2016!$BF$11:$BF$76) -> 0.00 | BV15: 0.00 | BW15: 1,004,956.13 | BX15: 7,211.52 | BY15: 22,440.00 | BZ15: 11,115.00 | CC15: 4,572.24 | CD15: 1,890.00 | CE15: 7,200.00 | CF15: 54,428.76 | CG15: 830,851.34 | CH15: 950,527.37 | CI15: =ROUND(CK15/1.302,-2)-292.6 -> 91,607.40 | CJ15: 28,068.63 | CK15: =ROUND(SUMIF(норм2016!$Q$11:$AR$76,$C15,норм2016!$BG$11:$BG$76),2)-340235.16 -> 119,676.03 | CL15: 0.00 | CM15: 0.00 | CN15: 0.00 | CO15: =SUM(CM15:CN15) -> 0.00 | CP15: 3,412,607.40 | CQ15: 1,030,607.43 | CR15: 4,443,214.83 | CS15: 4,323,538.80 | CT15: 0.00 | CU15: 0.00 | CV15: 1,087,456.13 | CW15: 5,410,994.93 | CX15: 0.00 | CY15: 0.00 | CZ15: 0.00 | DA15: 5,410,994.930 | DB15: 0.00 | DC15: 5,410,994.93 | DK15: 0.00 | DL15: 0.00 | DM15: 0.00 | DN15: 0.00 | DO15: 0.000000000000 | DP15: 5,410,994.9300000000000000000 | DQ15: Муниципальное образовательное учреждение Татарская гимназия №1.п.г.т.Кукмор Кукморского муниципального района Республики Татарстан | EA15: город | EB15: 0.00 | EC15: 0
A16: 7 | B16: МОУ Каркаусская ср.шк. | C16: 1623005947 | G16: 574,749.82 | H16: 494,686.84 | I16: 5,936,242.08 | J16: 1,792,745.11 | K16: 7,728,987.19 | L16: =SUMIF(норм2016!$Q$11:$AR$76,C16,норм2016!$AX$11:$AX$76) -> 6,649,956.50 | M16: =SUMIF(норм2016!$Q$11:$AR$76,$C16,норм2016!$AY$11:$AY$76) -> 4,366,006.00 | N16: 3,353,000.00 | O16: 1,013,006.00 | P16: 4,366,006.00 | U16: 2,369,542.08 | V16: 715,247.85 | W16: 3,084,789.93 | X16: =SUMIF(норм2016!$Q$11:$AR$76,$C16,норм2016!$AZ$11:$AZ$76) -> 2,283,950.50 | Y16: 1,754,000.00 | Z16: 529,950.50 | AA16: 2,283,950.50 | AB16: 615,542.08 | AC16: 185,297.35 | AD16: 800,839.43 | AE16: =SUMIF(норм2016!$Q$11:$AR$76,$C16,норм2016!$BC$11:$BC$76) -> 2,455,517.01 | AF16: =SUMIF(норм2016!$Q$11:$AR$76,$C16,норм2016!$BM$11:$BM$76) -> 1,216,290.61 | AG16: 265,650.00 | AH16: 837,157.00 | AI16: =SUMIF(газ!$G$71:$G$147,C16,газ!$J$71:$J$147)*1000 -> 146,561.34 | AJ16: 0.00 | AK16: 0.00 | AL16: 0.00 | AM16: 0.00 | AN16: 0.00 | AO16: 0.00 | AP16: 0.00 | AQ16: 1,249,368.34 | AR16: -33,077.73 | AT16: =-$AR16 -> 33,077.73 | BC16: 33,077.73 | BD16: 0.00 | BE16: 265,650.00 | BF16: 804,079.27 | BG16: 146,561.34 | BH16: 0.00 | BI16: 0.00 | BJ16: 0.00 | BK16: 0.00 | BL16: 0.00 | BM16: 0.00 | BN16: 0.00 | BO16: 1,216,290.61 | BP16: 0.00 | BR16: 213,700.00 | BS16: 64,491.26 | BT16: =SUMIF(норм2016!$Q$11:$AR$76,$C16,норм2016!$BE$11:$BE$76) -> 278,191.26 | BU16: =SUMIF(норм2016!$Q$11:$AR$76,$C16,норм2016!$BF$11:$BF$76) -> 0.00 | BV16: 278,191.26 | BW16: 961,035.14 | BX16: 7,553.92 | BZ16: 29,523.60 | CA16: 17,799.60 | CB16: 22,146.00 | CD16: 28,040.00 | CF16: 105,063.12 | CG16: 55,132.59 | CH16: 855,972.02 | CI16: =ROUND(CK16/1.302,-2)+442.08 -> 615,542.08 | CJ16: 185,297.35 | CK16: =ROUND(SUMIF(норм2016!$Q$11:$AR$76,$C16,норм2016!$BG$11:$BG$76),2)-6174.53 -> 800,839.43 | CL16: 0.00 | CM16: 0.00 | CN16: 0.00 | CO16: 0.00 | CP16: 5,936,242.08 | CQ16: 1,792,745.11 | CR16: 7,728,987.19 | CS16: 4,366,006.00 | CT16: 2,283,950.50 | CU16: 0.00 | CV16: 2,455,517.01 | CW16: 9,105,473.51 | CX16: 0.00 | CY16: 0.00 | CZ16: 0.00 | DA16: 9,105,473.510 | DB16: 0.00 | DC16: 9,105,473.51 | DK16: 33,077.73 | DL16: 0.00 | DM16: 0.00 | DN16: 0.00 | DO16: 33,077.730000000000 | DP16: 9,138,551.2400000000000000000 | DQ16: Муниципальное бюджетное образовательное учреждение многопрофильный лицей имени Атласа Минхаировича Булатова п.г.т.Кукмор Кукморского муниципального района РТ | EA16: село | EB16: 837,157.00 | EC16: 0
A17: 8 | B17: МОУ Кукморская гимназия №1 | C17: 1623002417 | G17: 1,217,051.84 | H17: 1,231,715.04 | I17: 14,780,580.48 | J17: 4,463,735.30 | K17: 19,244,315.78 | L17: =SUMIF(норм2016!$Q$11:$AR$76,C17,норм2016!$AX$11:$AX$76) -> 15,752,007.00 | M17: =SUMIF(норм2016!$Q$11:$AR$76,$C17,норм2016!$AY$11:$AY$76) -> 14,565,515.00 | N17: 11,187,000.00 | O17: 3,378,515.00 | P17: 14,565,515.00 | U17: 3,161,680.48 | V17: 954,743.79 | W17: 4,116,424.27 | X17: =SUMIF(норм2016!$Q$11:$AR$76,$C17,норм2016!$AZ$11:$AZ$76) -> 1,186,492.00 | Y17: 911,000.00 | Z17: 275,492.00 | AA17: 1,186,492.00 | AB17: 2,250,680.48 | AC17: 679,251.79 | AD17: 2,929,932.27 | AE17: =SUMIF(норм2016!$Q$11:$AR$76,$C17,норм2016!$BC$11:$BC$76) -> 3,540,690.05 | AF17: =SUMIF(норм2016!$Q$11:$AR$76,$C17,норм2016!$BM$11:$BM$76) -> 1,708,356.27 | AG17: 375,650.00 | AH17: 1,670,877.67 | AI17: =SUMIF(газ!$G$71:$G$147,C17,газ!$J$71:$J$147)*1000 -> 0.00 | AJ17: 61,643.09 | AK17: 52,000.00 | AL17: 0.00 | AM17: 0.00 | AN17: 0.00 | AO17: 0.00 | AP17: 0.00 | AQ17: 2,160,170.76 | AR17: -451,814.49 | AT17: 451,814.49 | BC17: 451,814.49 | BD17: 0.00 | BE17: 375,650.00 | BF17: 1,219,063.18 | BG17: 0.00 | BH17: 61,643.09 | BI17: 52,000.00 | BJ17: 0.00 | BK17: 0.00 | BL17: 0.00 | BM17: 0.00 | BN17: 0.00 | BO17: 1,708,356.27 | BP17: 0.00 | BR17: 431,900.00 | BS17: 130,476.51 | BT17: =SUMIF(норм2016!$Q$11:$AR$76,$C17,норм2016!$BE$11:$BE$76) -> 562,376.51 | BU17: =SUMIF(норм2016!$Q$11:$AR$76,$C17,норм2016!$BF$11:$BF$76) -> 117,715.50 | BV17: 680,092.01 | BW17: 1,152,241.77 | BX17: 20,313.70 | BY17: 44,880.00 | BZ17: 31,423.92 | CA17: 4,200.00 | CB17: 14,076.00 | CC17: 5,074.68 | CD17: 14,835.00 | CE17: 7,500.00 | CF17: 142,303.30 | CG17: 72,760.95 | CH17: 1,009,938.47 | CI17: 719,800.00 | CJ17: 217,377.52 | CK17: =ROUND(SUMIF(норм2016!$Q$11:$AR$76,$C17,норм2016!$BG$11:$BG$76),2) -> 937,177.52 | CL17: 0.00 | CM17: 1,530,880.48 | CN17: 461,874.27 | CO17: 1,992,754.75 | CP17: 14,780,580.48 | CQ17: 4,463,735.30 | CR17: 19,244,315.78 | CS17: 14,565,515.00 | CT17: 1,186,492.00 | CU17: 0.00 | CV17: 3,540,690.05 | CW17: 19,292,697.05 | CX17: 0.00 | CY17: 0.00 | CZ17: 0.00 | DA17: 19,292,697.050 | DB17: 0.00 | DC17: 21,285,451.80 | DE17: =2407600+991526.7 -> 3,399,126.70 | DF17: 515,000.00 | DG17: 687,900.00 | DH17: 16,534,500.00 | DI17: =SUM(DE17:DH17) -> 21,136,526.70 | DJ17: 5,100,000.00 | DK17: 451,814.49 | DL17: 7,600,000.00 | DM17: 0.00 | DN17: 0.00 | DO17: 34,288,341.190000000000 | DP17: 55,573,792.9900000000000000000 | DQ17: Муниципальное образовательное учреждение средняя общеобразовательная школа №3 п.г.т.Кукмор Кукморского муниципального района РТ | EA17: город | EB17: 1,670,877.67 | EC17: 0
A18: 9 | B18: МОУ Кукморская ср.шк.№2 | C18: 1623002424 | G18: 2,285,517.08 | H18: 2,315,721.17 | I18: 27,788,654.04 | J18: 8,392,173.52 | K18: 36,180,827.56 | L18: =SUMIF(норм2016!$Q$11:$AR$76,C18,норм2016!$AX$11:$AX$76) -> 28,654,376.10 | M18: =SUMIF(норм2016!$Q$11:$AR$76,$C18,норм2016!$AY$11:$AY$76) -> 28,420,064.60 | N18: 21,828,000.00 | O18: 6,592,064.60 | P18: 28,420,064.60 | U18: 5,292,354.04 | V18: 1,598,221.96 | W18: 6,890,576.00 | X18: =SUMIF(норм2016!$Q$11:$AR$76,$C18,норм2016!$AZ$11:$AZ$76) -> 234,311.50 | Y18: 180,000.00 | Z18: 54,311.50 | AA18: 234,311.50 | AB18: 5,112,354.04 | AC18: 1,543,910.46 | AD18: 6,656,264.50 | AE18: =SUMIF(норм2016!$Q$11:$AR$76,$C18,норм2016!$BC$11:$BC$76) -> 6,075,797.19 | AF18: =SUMIF(норм2016!$Q$11:$AR$76,$C18,норм2016!$BM$11:$BM$76) -> 3,265,510.02 | AG18: 830,500.00 | AH18: 3,246,166.96 | AI18: =SUMIF(газ!$G$71:$G$147,C18,газ!$J$71:$J$147)*1000 -> 0.00 | AJ18: 91,188.00 | AK18: 80,500.00 | AL18: 0.00 | AM18: 0.00 | AN18: 0.00 | AO18: 0.00 | AP18: 0.00 | AQ18: 4,248,354.96 | AR18: -982,844.94 | AT18: 982,844.94 | BC18: 982,844.94 | BD18: 0.00 | BE18: 830,500.00 | BF18: 2,263,322.02 | BG18: 0.00 | BH18: 91,188.00 | BI18: 80,500.00 | BJ18: 0.00 | BK18: 0.00 | BL18: 0.00 | BM18: 0.00 | BN18: 0.00 | BO18: 3,265,510.02 | BP18: 0.00 | BR18: 668,300.00 | BS18: 201,886.96 | BT18: =SUMIF(норм2016!$Q$11:$AR$76,$C18,норм2016!$BE$11:$BE$76) -> 870,186.96 | BU18: =SUMIF(норм2016!$Q$11:$AR$76,$C18,норм2016!$BF$11:$BF$76) -> 264,859.88 | BV18: 1,135,046.84 | BW18: 1,675,240.33 | BX18: 25,165.92 | BY18: 84,150.00 | BZ18: 19,074.96 | CA18: 5,040.00 | CB18: 15,903.00 | CC18: 5,074.68 | CD18: 51,890.00 | CF18: 206,298.56 | CG18: 228,049.32 | CH18: =BW18-CF18 -> 1,468,941.77 | CI18: 953,100.00 | CJ18: 287,792.45 | CK18: =ROUND(SUMIF(норм2016!$Q$11:$AR$76,$C18,норм2016!$BG$11:$BG$76),2) -> 1,240,892.45 | CL18: 0.00 | CM18: 4,159,254.04 | CN18: 1,256,118.01 | CO18: 5,415,372.05 | CP18: 27,788,654.04 | CQ18: 8,392,173.52 | CR18: 36,180,827.56 | CS18: 28,420,064.60 | CT18: 234,311.50 | CU18: 0.00 | CV18: 6,075,797.19 | CW18: 34,730,173.29 | CX18: 0.00 | CY18: 0.00 | CZ18: 0.00 | DA18: 34,730,173.290 | DB18: 0.00 | DC18: 40,145,545.34 | DK18: 982,844.94 | DL18: 0.00 | DM18: 0.00 | DN18: 0.00 | DO18: 982,844.940000000000 | DP18: 41,128,390.2800000000000000000 | DQ18: Муниципальное образовательное учреждение средняя общеобразовательная школа №4 п.г.т.Кукмор Кукморского муниципального района РТ | EA18: город | EB18: 3,246,166.96 | EC18: 0
A19: 10 | B19: МОУ Кукморская ср.шк.№3 | C19: 1623002431 | G19: 1,615,447.12 | H19: 1,666,507.44 | I19: 19,998,089.28 | J19: 6,039,422.96 | K19: 26,037,512.24 | L19: =SUMIF(норм2016!$Q$11:$AR$76,C19,норм2016!$AX$11:$AX$76) -> 19,121,270.80 | M19: =SUMIF(норм2016!$Q$11:$AR$76,$C19,норм2016!$AY$11:$AY$76) -> 19,121,270.80 | N19: 14,686,000.00 | O19: 4,435,270.80 | P19: 19,121,270.80 | U19: 4,780,189.28 | V19: 1,443,546.64 | W19: 6,223,735.92 | X19: =SUMIF(норм2016!$Q$11:$AR$76,$C19,норм2016!$AZ$11:$AZ$76) -> 0.00 | Y19: 0.00 | Z19: 0.00 | AA19: 0.00 | AB19: 4,780,189.28 | AC19: 1,443,546.64 | AD19: 6,223,735.92 | AE19: =SUMIF(норм2016!$Q$11:$AR$76,$C19,норм2016!$BC$11:$BC$76) -> 3,871,702.13 | AF19: =SUMIF(норм2016!$Q$11:$AR$76,$C19,норм2016!$BM$11:$BM$76) -> 1,641,655.42 | AG19: 380,600.00 | AH19: 1,434,818.81 | AI19: =SUMIF(газ!$G$71:$G$147,C19,газ!$J$71:$J$147)*1000 -> 0.00 | AJ19: 75,990.00 | AK19: 59,900.00 | AL19: 0.00 | AM19: 0.00 | AN19: 0.00 | AO19: 0.00 | AP19: 0.00 | AQ19: 1,951,308.81 | AR19: -309,653.39 | AT19: 309,653.39 | BC19: 309,653.39 | BD19: 0.00 | BE19: 380,600.00 | BF19: 1,125,165.42 | BG19: 0.00 | BH19: 75,990.00 | BI19: 59,900.00 | BJ19: 0.00 | BK19: 0.00 | BL19: 0.00 | BM19: 0.00 | BN19: 0.00 | BO19: 1,641,655.42 | BP19: 0.00 | BR19: 531,900.00 | BS19: 160,605.52 | BT19: =SUMIF(норм2016!$Q$11:$AR$76,$C19,норм2016!$BE$11:$BE$76) -> 692,505.52 | BU19: =SUMIF(норм2016!$Q$11:$AR$76,$C19,норм2016!$BF$11:$BF$76) -> 117,715.50 | BV19: 810,221.02 | BW19: 1,419,825.69 | BX19: 20,382.56 | BY19: 64,515.00 | BZ19: 22,190.16 | CA19: 2,940.00 | CB19: 15,903.00 | CC19: 5,074.68 | CD19: 5,670.00 | CE19: 7,800.00 | CF19: 144,475.40 | CG19: 121,233.53 | CH19: 1,275,350.29 | CI19: 886,400.00 | CJ19: 267,716.76 | CK19: =ROUND(SUMIF(норм2016!$Q$11:$AR$76,$C19,норм2016!$BG$11:$BG$76),2) -> 1,154,116.76 | CL19: 0.00 | CM19: 3,893,789.28 | CN19: 1,175,829.88 | CO19: 5,069,619.16 | CP19: 19,998,089.28 | CQ19: 6,039,422.96 | CR19: 26,037,512.24 | CS19: 19,121,270.80 | CT19: 0.00 | CU19: 0.00 | CV19: 3,871,702.13 | CW19: 22,992,972.93 | CX19: 0.00 | CY19: 0.00 | CZ19: 0.00 | DA19: 22,992,972.930 | DB19: 0.00 | DC19: 28,062,592.09 | DK19: 309,653.39 | DL19: 0.00 | DM19: 0.00 | DN19: 0.00 | DO19: 309,653.390000000000 | DP19: 28,372,245.4800000000000000000 | DQ19: Муниципальное образовательное учреждение средняя общеобразовательная школа с.Лельвиж Кукморского муниципального района РТ | EA19: город | EB19: 1,434,818.81 | EC19: 0
A20: 11 | B20: МОУ Кукморская ср.шк.№4 | C20: 1623002449 | G20: 1,604,211.59 | H20: 1,568,083.36 | I20: 18,817,000.32 | J20: 5,682,734.10 | K20: 24,499,734.42 | L20: =SUMIF(норм2016!$Q$11:$AR$76,C20,норм2016!$AX$11:$AX$76) -> 18,582,023.50 | M20: =SUMIF(норм2016!$Q$11:$AR$76,$C20,норм2016!$AY$11:$AY$76) -> 17,028,346.00 | N20: 13,079,000.00 | O20: 3,949,346.00 | P20: 17,028,346.00 | U20: 5,243,300.32 | V20: 1,584,029.01 | W20: 6,827,329.33 | X20: =SUMIF(норм2016!$Q$11:$AR$76,$C20,норм2016!$AZ$11:$AZ$76) -> 1,553,677.50 | Y20: 1,193,000.00 | Z20: 360,677.50 | AA20: 1,553,677.50 | AB20: 4,050,300.32 | AC20: 1,223,351.51 | AD20: 5,273,651.83 | AE20: =SUMIF(норм2016!$Q$11:$AR$76,$C20,норм2016!$BC$11:$BC$76) -> 5,773,281.48 | AF20: =SUMIF(норм2016!$Q$11:$AR$76,$C20,норм2016!$BM$11:$BM$76) -> 3,403,385.87 | AG20: 607,750.00 | AH20: 2,782,916.05 | AI20: =SUMIF(газ!$G$71:$G$147,C20,газ!$J$71:$J$147)*1000 -> 0.00 | AJ20: 45,594.00 | AK20: 54,800.00 | AL20: 0.00 | AM20: 0.00 | AN20: 0.00 | AO20: 0.00 | AP20: 0.00 | AQ20: 3,491,060.05 | AR20: -87,674.18 | AT20: 87,674.18 | BC20: 87,674.18 | BD20: 0.00 | BE20: 607,750.00 | BF20: 2,695,241.87 | BG20: 0.00 | BH20: 45,594.00 | BI20: 54,800.00 | BJ20: 0.00 | BK20: 0.00 | BL20: 0.00 | BM20: 0.00 | BN20: 0.00 | BO20: 3,403,385.87 | BP20: 0.00 | BR20: 494,700.00 | BS20: 149,359.09 | BT20: =SUMIF(норм2016!$Q$11:$AR$76,$C20,норм2016!$BE$11:$BE$76) -> 644,059.09 | BU20: =SUMIF(норм2016!$Q$11:$AR$76,$C20,норм2016!$BF$11:$BF$76) -> 176,573.25 | BV20: 820,632.34 | BW20: 1,549,263.27 | BX20: 24,088.48 | BY20: 72,930.00 | BZ20: 30,438.36 | CA20: 15,461.88 | CB20: 15,903.00 | CC20: 5,074.68 | CD20: 3,529.92 | CE20: 7,800.00 | CF20: 175,226.32 | CG20: 219,920.19 | CH20: 1,374,036.95 | CI20: 886,400.00 | CJ20: 267,716.76 | CK20: =ROUND(SUMIF(норм2016!$Q$11:$AR$76,$C20,норм2016!$BG$11:$BG$76),2) -> 1,154,116.76 | CL20: 0.00 | CM20: 3,163,900.32 | CN20: 955,634.75 | CO20: 4,119,535.07 | CP20: 18,817,000.32 | CQ20: 5,682,734.10 | CR20: 24,499,734.42 | CS20: 17,028,346.00 | CT20: 1,553,677.50 | CU20: 0.00 | CV20: 5,773,281.48 | CW20: 24,355,304.98 | CX20: 0.00 | CY20: 0.00 | CZ20: 0.00 | DA20: 24,355,304.980 | DB20: 0.00 | DC20: 28,474,840.05 | DK20: 87,674.18 | DL20: 0.00 | DM20: 0.00 | DN20: 0.00 | DO20: 87,674.180000000000 | DP20: 28,562,514.2300000000000000000 | DQ20: Муниципальное образовательное учреждение средняя общеобразовательная школас.Лубяны Кукморского муниципального района РТ | EA20: город | EB20: 2,782,916.05 | EC20: 0
A21: 12 | B21: МОУ Лельвижская ср.шк. | C21: 1623005880 | G21: 494,865.74 | H21: 497,207.36 | I21: 5,966,488.32 | J21: 1,801,879.47 | K21: 7,768,367.79 | L21: =SUMIF(норм2016!$Q$11:$AR$76,C21,норм2016!$AX$11:$AX$76) -> 5,500,209.00 | M21: =SUMIF(норм2016!$Q$11:$AR$76,$C21,норм2016!$AY$11:$AY$76) -> 3,368,880.00 | N21: 2,587,000.00 | O21: 781,880.00 | P21: 3,368,880.00 | U21: 3,242,288.32 | V21: 978,584.34 | W21: 4,220,872.66 | X21: =SUMIF(норм2016!$Q$11:$AR$76,$C21,норм2016!$AZ$11:$AZ$76) -> 2,131,329.00 | Y21: 1,637,000.00 | Z21: 494,329.00 | AA21: 2,131,329.00 | AB21: 1,605,288.32 | AC21: 484,255.34 | AD21: 2,089,543.66 | AE21: =SUMIF(норм2016!$Q$11:$AR$76,$C21,норм2016!$BC$11:$BC$76) -> 1,716,100.18 | AF21: =SUMIF(норм2016!$Q$11:$AR$76,$C21,норм2016!$BM$11:$BM$76) -> 845,315.53 | AG21: 200,750.00 | AH21: 569,961.39 | AI21: =SUMIF(газ!$G$71:$G$147,C21,газ!$J$71:$J$147)*1000 -> 0.00 | AJ21: 0.00 | AK21: 0.00 | AL21: 0.00 | AM21: 0.00 | AN21: 0.00 | AO21: 0.00 | AP21: 0.00 | AQ21: 770,711.39 | AR21: 74,604.14 | BC21: 0.00 | BD21: 74,604.14 | BE21: 200,750.00 | BF21: 569,961.39 | BG21: 0.00 | BH21: 0.00 | BI21: 0.00 | BJ21: 0.00 | BK21: 0.00 | BL21: 0.00 | BM21: 0.00 | BN21: 0.00 | BO21: 770,711.39 | BP21: 0.00 | BR21: 137,200.00 | BS21: 41,415.13 | BT21: =SUMIF(норм2016!$Q$11:$AR$76,$C21,норм2016!$BE$11:$BE$76) -> 178,615.13 | BU21: =SUMIF(норм2016!$Q$11:$AR$76,$C21,норм2016!$BF$11:$BF$76) -> 32,960.34 | BV21: 211,575.47 | BW21: 733,813.32 | BX21: 12,597.76 | BZ21: 19,074.96 | CA21: 4,200.00 | CB21: 13,142.00 | CD21: 1,575.00 | CE21: 12,900.00 | CF21: 63,489.72 | CG21: 123,636.72 | CH21: 670,323.60 | CI21: 419,900.00 | CJ21: 126,786.88 | CK21: =ROUND(SUMIF(норм2016!$Q$11:$AR$76,$C21,норм2016!$BG$11:$BG$76),2) -> 546,686.88 | CL21: 0.00 | CM21: 1,185,388.32 | CN21: 357,468.46 | CO21: 1,542,856.78 | CP21: 5,966,488.32 | CQ21: 1,801,879.47 | CR21: 7,768,367.79 | CS21: 3,368,880.00 | CT21: 2,131,329.00 | CU21: 0.00 | CV21: 1,716,100.18 | CW21: 7,216,309.18 | CX21: 0.00 | CY21: 0.00 | CZ21: 0.00 | DA21: 7,216,309.180 | DB21: 0.00 | DC21: 8,759,165.96 | DK21: 0.00 | DL21: 0.00 | DM21: 0.00 | DN21: 0.00 | DO21: 0.000000000000 | DP21: 8,759,165.9600000000000000000 | DQ21: Муниципальное образовательное учреждение средняя общеобразовательная школа с.Мамашир Кукморского муниципального района РТ | EA21: село | EB21: 569,961.39 | EC21: 0
A22: 13 | B22: МОУ Лубянская ср.школа | C22: 1623003266 | G22: 598,257.20 | H22: 600,532.76 | I22: 7,206,393.12 | J22: 2,176,330.72 | K22: 9,382,723.84 | L22: =SUMIF(норм2016!$Q$11:$AR$76,C22,норм2016!$AX$11:$AX$76) -> 6,590,345.00 | M22: =SUMIF(норм2016!$Q$11:$AR$76,$C22,норм2016!$AY$11:$AY$76) -> 5,392,927.00 | N22: 4,142,000.00 | O22: 1,250,927.00 | P22: 5,392,927.00 | U22: 2,935,293.12 | V22: 886,379.79 | W22: 3,821,672.91 | X22: =SUMIF(норм2016!$Q$11:$AR$76,$C22,норм2016!$AZ$11:$AZ$76) -> 1,197,418.00 | Y22: 920,000.00 | Z22: 277,418.00 | AA22: 1,197,418.00 | AB22: 2,015,293.12 | AC22: 608,961.79 | AD22: 2,624,254.91 | AE22: =SUMIF(норм2016!$Q$11:$AR$76,$C22,норм2016!$BC$11:$BC$76) -> 2,353,949.74 | AF22: =SUMIF(норм2016!$Q$11:$AR$76,$C22,норм2016!$BM$11:$BM$76) -> 1,479,578.82 | AG22: 280,500.00 | AH22: 1,258,568.46 | AI22: =SUMIF(газ!$G$71:$G$147,C22,газ!$J$71:$J$147)*1000 -> 0.00 | AJ22: 0.00 | AK22: 0.00 | AL22: 0.00 | AM22: 0.00 | AN22: 0.00 | AO22: 0.00 | AP22: 0.00 | AQ22: 1,539,068.46 | AR22: -59,489.64 | AT22: 59,489.64 | BC22: 59,489.64 | BD22: 0.00 | BE22: 280,500.00 | BF22: 1,199,078.82 | BG22: 0.00 | BH22: 0.00 | BI22: 0.00 | BJ22: 0.00 | BK22: 0.00 | BL22: 0.00 | BM22: 0.00 | BN22: 0.00 | BO22: 1,479,578.82 | BP22: 0.00 | BQ22: 162,835.00 | BR22: 129,100.00 | BS22: 39,023.93 | BT22: =SUMIF(норм2016!$Q$11:$AR$76,$C22,норм2016!$BE$11:$BE$76) -> 168,123.93 | BU22: =SUMIF(норм2016!$Q$11:$AR$76,$C22,норм2016!$BF$11:$BF$76) -> 29,428.88 | BV22: 197,552.81 | BW22: 676,818.11 | BZ22: 19,641.36 | CA22: 4,200.00 | CB22: 13,142.00 | CC22: 17,228.48 | CD22: =162835-162835 -> 0.00 | CE22: 24,600.00 | CF22: 78,811.84 | CG22: 51,319.39 | CH22: 598,006.27 | CI22: 419,900.00 | CJ22: 126,786.88 | CK22: =ROUND(SUMIF(норм2016!$Q$11:$AR$76,$C22,норм2016!$BG$11:$BG$76),2) -> 546,686.88 | CL22: 0.00 | CM22: 1,595,393.12 | CN22: 482,174.91 | CO22: 2,077,568.03 | CP22: 7,206,393.12 | CQ22: 2,176,330.72 | CR22: 9,382,723.84 | CS22: 5,392,927.00 | CT22: 1,197,418.00 | CU22: 0.00 | CV22: 2,353,949.74 | CW22: 8,944,294.74 | CX22: 0.00 | CY22: 0.00 | CZ22: 0.00 | DA22: 8,944,294.740 | DB22: 0.00 | DC22: 11,021,862.77 | DK22: 59,489.64 | DL22: 0.00 | DM22: 0.00 | DN22: 162,835.00 | DO22: 222,324.640000000000 | DP22: 11,244,187.4100000000000000000 | DQ22: Муниципальное образовательное учреждение средняя общеобразовательная школа с.Маскара Кукморского муниципального района РТ | EA22: село | EB22: 1,258,568.46 | EC22: 0
A23: 14 | B23: МОУ Мамаширская ср.шк | C23: 1623005993 | G23: 539,094.82 | H23: 546,949.54 | I23: 6,563,394.48 | J23: 1,982,145.13 | K23: 8,545,539.61 | L23: =SUMIF(норм2016!$Q$11:$AR$76,C23,норм2016!$AX$11:$AX$76) -> 5,885,190.50 | M23: =SUMIF(норм2016!$Q$11:$AR$76,$C23,норм2016!$AY$11:$AY$76) -> 4,025,803.00 | N23: 3,092,000.00 | O23: 933,803.00 | P23: 4,025,803.00 | U23: 3,288,494.48 | V23: 993,054.56 | W23: 4,281,549.04 | X23: =SUMIF(норм2016!$Q$11:$AR$76,$C23,норм2016!$AZ$11:$AZ$76) -> 1,859,387.50 | Y23: 1,428,000.00 | Z23: 431,387.50 | AA23: 1,859,387.50 | AB23: 1,860,494.48 | AC23: 561,667.06 | AD23: 2,422,161.54 | AE23: =SUMIF(норм2016!$Q$11:$AR$76,$C23,норм2016!$BC$11:$BC$76) -> 1,727,359.32 | AF23: =SUMIF(норм2016!$Q$11:$AR$76,$C23,норм2016!$BM$11:$BM$76) -> 780,541.80 | AG23: 0.00 | AH23: 736,702.95 | AI23: =SUMIF(газ!$G$71:$G$147,C23,газ!$J$71:$J$147)*1000 -> 0.00 | AJ23: 0.00 | AK23: 0.00 | AL23: 70,000.00 | AM23: 0.00 | AN23: 0.00 | AO23: 0.00 | AP23: 0.00 | AQ23: 806,702.95 | AR23: -26,161.15 | AT23: 26,161.15 | BC23: 26,161.15 | BD23: 0.00 | BE23: 0.00 | BF23: 710,541.80 | BG23: 0.00 | BH23: 0.00 | BI23: 0.00 | BJ23: 70,000.00 | BK23: 0.00 | BL23: 0.00 | BM23: 0.00 | BN23: 0.00 | BO23: 780,541.80 | BP23: 0.00 | BR23: 182,900.00 | BS23: 55,287.57 | BT23: =SUMIF(норм2016!$Q$11:$AR$76,$C23,норм2016!$BE$11:$BE$76) -> 238,187.57 | BU23: =SUMIF(норм2016!$Q$11:$AR$76,$C23,норм2016!$BF$11:$BF$76) -> 28,251.72 | BV23: 266,439.29 | BW23: 680,378.23 | BX23: 12,001.92 | BZ23: 20,390.40 | CA23: 4,200.00 | CB23: 13,142.00 | CD23: 25,091.00 | CF23: 74,825.32 | CG23: 58,866.03 | CH23: 605,552.91 | CI23: 419,900.00 | CJ23: 126,786.88 | CK23: =ROUND(SUMIF(норм2016!$Q$11:$AR$76,$C23,норм2016!$BG$11:$BG$76),2) -> 546,686.88 | CL23: 0.00 | CM23: 1,440,594.48 | CN23: 434,880.18 | CO23: 1,875,474.66 | CP23: 6,563,394.48 | CQ23: 1,982,145.13 | CR23: 8,545,539.61 | CS23: 4,025,803.00 | CT23: 1,859,387.50 | CU23: 0.00 | CV23: 1,727,359.32 | CW23: 7,612,549.82 | CX23: 0.00 | CY23: 0.00 | CZ23: 0.00 | DA23: 7,612,549.820 | DB23: 0.00 | DC23: 9,488,024.48 | DK23: 26,161.15 | DL23: 0.00 | DM23: 0.00 | DN23: 0.00 | DO23: 26,161.150000000000 | DP23: 9,514,185.6300000000000000000 | DQ23: Муниципальное образовательное учреждение средняя общеобразовательная школа д.Верхний Арбаш Кукморского муниципального района РТ | EA23: село | EB23: 736,702.95 | EC23: 0
A24: 15 | B24: МОУ Маскаринская ср.шк. | C24: 1623005859 | G24: 547,884.53 | H24: 561,644.05 | I24: 6,739,728.60 | J24: 2,035,398.04 | K24: 8,775,126.64 | L24: =SUMIF(норм2016!$Q$11:$AR$76,C24,норм2016!$AX$11:$AX$76) -> 6,010,636.00 | M24: =SUMIF(норм2016!$Q$11:$AR$76,$C24,норм2016!$AY$11:$AY$76) -> 4,603,804.00 | N24: 3,536,000.00 | O24: 1,067,804.00 | P24: 4,603,804.00 | U24: 3,020,828.60 | V24: 912,306.47 | W24: 3,933,135.07 | X24: =SUMIF(норм2016!$Q$11:$AR$76,$C24,норм2016!$AZ$11:$AZ$76) -> 1,406,832.00 | Y24: 1,081,000.00 | Z24: 325,832.00 | AA24: 1,406,832.00 | AB24: 1,939,828.60 | AC24: 586,474.47 | AD24: 2,526,303.07 | AE24: =SUMIF(норм2016!$Q$11:$AR$76,$C24,норм2016!$BC$11:$BC$76) -> 2,296,393.43 | AF24: =SUMIF(норм2016!$Q$11:$AR$76,$C24,норм2016!$BM$11:$BM$76) -> 1,365,707.02 | AG24: 115,500.00 | AH24: 1,059,286.53 | AI24: =SUMIF(газ!$G$71:$G$147,C24,газ!$J$71:$J$147)*1000 -> 0.00 | AJ24: 0.00 | AK24: 0.00 | AL24: 0.00 | AM24: 0.00 | AN24: 0.00 | AO24: 0.00 | AP24: 0.00 | AQ24: 1,174,786.53 | AR24: 190,920.49 | BC24: 0.00 | BD24: 190,920.49 | BE24: 115,500.00 | BF24: 1,059,286.53 | BG24: 0.00 | BH24: 0.00 | BI24: 0.00 | BJ24: 0.00 | BK24: 0.00 | BL24: 0.00 | BM24: 0.00 | BN24: 0.00 | BO24: 1,174,786.53 | BP24: 0.00 | BR24: 182,900.00 | BS24: 55,287.57 | BT24: =SUMIF(норм2016!$Q$11:$AR$76,$C24,норм2016!$BE$11:$BE$76) -> 238,187.57 | BU24: =SUMIF(норм2016!$Q$11:$AR$76,$C24,норм2016!$BF$11:$BF$76) -> 0.00 | BV24: 238,187.57 | BW24: 883,419.33 | BX24: 10,049.20 | BZ24: 19,116.00 | CA24: 4,200.00 | CB24: 13,142.00 | CD24: 1,260.00 | CE24: 9,900.00 | CF24: 57,667.20 | CG24: 279,065.25 | CH24: 825,752.13 | CI24: 419,900.00 | CJ24: 126,786.88 | CK24: =ROUND(SUMIF(норм2016!$Q$11:$AR$76,$C24,норм2016!$BG$11:$BG$76),2) -> 546,686.88 | CL24: 0.00 | CM24: 1,519,928.60 | CN24: 459,687.59 | CO24: 1,979,616.19 | CP24: 6,739,728.60 | CQ24: 2,035,398.04 | CR24: 8,775,126.64 | CS24: 4,603,804.00 | CT24: 1,406,832.00 | CU24: 0.00 | CV24: 2,296,393.43 | CW24: 8,307,029.43 | CX24: 0.00 | CY24: 0.00 | CZ24: 0.00 | DA24: 8,307,029.430 | DB24: 0.00 | DC24: 10,286,645.62 | DK24: 0.00 | DL24: 0.00 | DM24: 0.00 | DN24: 0.00 | DO24: 0.000000000000 | DP24: 10,286,645.6200000000000000000 | DQ24: Муниципальное образовательное учреждение средняя общеобразовательная школа с.Нижний Искубаш | EA24: село | EB24: 1,059,286.53 | EC24: 0
A25: 16 | B25: МОУ Нижне-Искубашская ср.шк. | C25: 1623006098 | G25: 676,391.84 | H25: 652,909.35 | I25: 7,834,912.20 | J25: 2,366,143.48 | K25: 10,201,055.68 | L25: =SUMIF(норм2016!$Q$11:$AR$76,C25,норм2016!$AX$11:$AX$76) -> 7,425,618.00 | M25: =SUMIF(норм2016!$Q$11:$AR$76,$C25,норм2016!$AY$11:$AY$76) -> 5,469,712.00 | N25: 4,201,000.00 | O25: 1,268,712.00 | P25: 5,469,712.00 | U25: 3,401,412.20 | V25: 1,027,169.92 | W25: 4,428,582.12 | X25: =SUMIF(норм2016!$Q$11:$AR$76,$C25,норм2016!$AZ$11:$AZ$76) -> 1,955,906.00 | Y25: 1,502,000.00 | Z25: 453,906.00 | AA25: 1,955,906.00 | AB25: 1,899,412.20 | AC25: 573,263.92 | AD25: 2,472,676.12 | AE25: =SUMIF(норм2016!$Q$11:$AR$76,$C25,норм2016!$BC$11:$BC$76) -> 2,669,844.02 | AF25: =SUMIF(норм2016!$Q$11:$AR$76,$C25,норм2016!$BM$11:$BM$76) -> 1,261,516.99 | AG25: 566,500.00 | AH25: 753,478.10 | AI25: =SUMIF(газ!$G$71:$G$147,C25,газ!$J$71:$J$147)*1000 -> 144,423.08 | AJ25: 0.00 | AK25: 0.00 | AL25: 0.00 | AM25: 0.00 | AN25: 0.00 | AO25: 0.00 | AP25: 0.00 | AQ25: 1,464,401.18 | AR25: -202,884.19 | AT25: 202,884.19 | BC25: 202,884.19 | BD25: 0.00 | BE25: 566,500.00 | BF25: 550,593.91 | BG25: 144,423.08 | BH25: 0.00 | BI25: 0.00 | BJ25: 0.00 | BK25: 0.00 | BL25: 0.00 | BM25: 0.00 | BN25: 0.00 | BO25: 1,261,516.99 | BP25: 0.00 | BR25: 232,500.00 | BS25: 70,261.56 | BT25: =SUMIF(норм2016!$Q$11:$AR$76,$C25,норм2016!$BE$11:$BE$76) -> 302,761.56 | BU25: =SUMIF(норм2016!$Q$11:$AR$76,$C25,норм2016!$BF$11:$BF$76) -> 0.00 | BV25: 302,761.56 | BW25: 1,105,565.47 | BX25: 11,644.64 | BZ25: 50,814.60 | CA25: 5,712.00 | CB25: 27,680.00 | CE25: 13,200.00 | CF25: 109,051.24 | CG25: 59,336.73 | CH25: 996,514.23 | CI25: 719,800.00 | CJ25: 217,377.50 | CK25: =ROUND(SUMIF(норм2016!$Q$11:$AR$76,$C25,норм2016!$BG$11:$BG$76),2) -> 937,177.50 | CL25: -0.00 | CM25: 1,179,612.20 | CN25: 355,886.42 | CO25: 1,535,498.62 | CP25: 7,834,912.20 | CQ25: 2,366,143.48 | CR25: 10,201,055.68 | CS25: 5,469,712.00 | CT25: 1,955,906.00 | CU25: 0.00 | CV25: 2,669,844.02 | CW25: 10,095,462.02 | CX25: 0.00 | CY25: 0.00 | CZ25: 0.00 | DA25: 10,095,462.020 | DB25: 0.00 | DC25: 11,630,960.64 | DK25: 202,884.19 | DL25: 0.00 | DM25: 0.00 | DN25: 0.00 | DO25: 202,884.190000000000 | DP25: 11,833,844.8300000000000000000 | DQ25: Муниципальное образовательное учреждение средняя общеобразовательная школа с.Нижний Русь Кукморского муниципального района РТ | EA25: село | EB25: 753,478.10 | EC25: 0
A26: 17 | B26: МОУ Нижне-Русская ср.шк. | C26: 1623004051 | G26: 603,606.96 | H26: 608,290.07 | I26: 7,299,480.84 | J26: 2,204,443.21 | K26: 9,503,924.05 | L26: =SUMIF(норм2016!$Q$11:$AR$76,C26,норм2016!$AX$11:$AX$76) -> 5,788,076.50 | M26: =SUMIF(норм2016!$Q$11:$AR$76,$C26,норм2016!$AY$11:$AY$76) -> 4,141,647.00 | N26: 3,181,000.00 | O26: 960,647.00 | P26: 4,141,647.00 | U26: 3,978,480.84 | V26: 1,201,535.06 | W26: 5,180,015.90 | X26: =SUMIF(норм2016!$Q$11:$AR$76,$C26,норм2016!$AZ$11:$AZ$76) -> 1,646,429.50 | Y26: 1,265,000.00 | Z26: 381,429.50 | AA26: 1,646,429.50 | AB26: 2,713,480.84 | AC26: 820,105.56 | AD26: 3,533,586.40 | AE26: =SUMIF(норм2016!$Q$11:$AR$76,$C26,норм2016!$BC$11:$BC$76) -> 2,208,664.00 | AF26: =SUMIF(норм2016!$Q$11:$AR$76,$C26,норм2016!$BM$11:$BM$76) -> 1,294,289.71 | AG26: 137,500.00 | AH26: 1,078,684.93 | AI26: =SUMIF(газ!$G$71:$G$147,C26,газ!$J$71:$J$147)*1000 -> 0.00 | AJ26: 0.00 | AK26: 0.00 | AL26: 0.00 | AM26: 0.00 | AN26: 0.00 | AO26: 0.00 | AP26: 0.00 | AQ26: 1,216,184.93 | AR26: 78,104.78 | BC26: 0.00 | BD26: 78,104.78 | BE26: 137,500.00 | BF26: 1,078,684.93 | BG26: 0.00 | BH26: 0.00 | BI26: 0.00 | BJ26: 0.00 | BK26: 0.00 | BL26: 0.00 | BM26: 0.00 | BN26: 0.00 | BO26: 1,216,184.93 | BP26: 0.00 | BR26: 140,000.00 | BS26: 42,261.15 | BT26: =SUMIF(норм2016!$Q$11:$AR$76,$C26,норм2016!$BE$11:$BE$76) -> 182,261.15 | BU26: =SUMIF(норм2016!$Q$11:$AR$76,$C26,норм2016!$BF$11:$BF$76) -> 0.00 | BV26: 182,261.15 | BW26: 810,217.92 | BX26: 9,981.12 | BZ26: 19,116.00 | CA26: 26,397.84 | CB26: 13,142.00 | CD26: 7,717.50 | CE26: 9,300.00 | CF26: 85,654.46 | CG26: 177,876.58 | CH26: 724,563.46 | CI26: 419,900.00 | CJ26: 126,786.88 | CK26: =ROUND(SUMIF(норм2016!$Q$11:$AR$76,$C26,норм2016!$BG$11:$BG$76),2) -> 546,686.88 | CL26: 0.00 | CM26: 2,293,580.84 | CN26: 693,318.68 | CO26: 2,986,899.52 | CP26: 7,299,480.84 | CQ26: 2,204,443.21 | CR26: 9,503,924.05 | CS26: 4,141,647.00 | CT26: 1,646,429.50 | CU26: 0.00 | CV26: 2,208,664.00 | CW26: 7,996,740.50 | CX26: 0.00 | CY26: 0.00 | CZ26: 0.00 | DA26: 7,996,740.500 | DB26: 0.00 | DC26: 10,983,640.02 | DK26: 0.00 | DL26: 0.00 | DM26: 0.00 | DN26: 0.00 | DO26: 0.000000000000 | DP26: 10,983,640.0200000000000000000 | DQ26: Муниципальное образовательное учреждение средняя общеобразовательная школа с.Нырты Кукморского муниципального района РТ | EA26: село | EB26: 1,078,684.93 | EC26: 0
A27: 18 | B27: МОУ Ныртинская ср.шк. | C27: 1623006034 | G27: 714,249.67 | H27: 660,338.90 | I27: 7,924,066.80 | J27: 2,393,068.17 | K27: 10,317,134.97 | L27: =SUMIF(норм2016!$Q$11:$AR$76,C27,норм2016!$AX$11:$AX$76) -> 8,321,294.50 | M27: =SUMIF(норм2016!$Q$11:$AR$76,$C27,норм2016!$AY$11:$AY$76) -> 6,478,144.00 | N27: 4,976,000.00 | O27: 1,502,144.00 | P27: 6,478,144.00 | U27: 2,740,766.80 | V27: 828,366.60 | W27: 3,569,133.40 | X27: =SUMIF(норм2016!$Q$11:$AR$76,$C27,норм2016!$AZ$11:$AZ$76) -> 1,843,150.50 | Y27: 1,416,000.00 | Z27: 427,150.50 | AA27: 1,843,150.50 | AB27: 1,324,766.80 | AC27: 401,216.10 | AD27: 1,725,982.90 | AE27: =SUMIF(норм2016!$Q$11:$AR$76,$C27,норм2016!$BC$11:$BC$76) -> 3,342,492.21 | AF27: =SUMIF(норм2016!$Q$11:$AR$76,$C27,норм2016!$BM$11:$BM$76) -> 1,889,474.77 | AG27: 748,000.00 | AH27: 1,270,084.24 | AI27: =SUMIF(газ!$G$71:$G$147,C27,газ!$J$71:$J$147)*1000 -> 0.00 | AJ27: 3,039.60 | AK27: 0.00 | AL27: 0.00 | AM27: 0.00 | AN27: 0.00 | AO27: 0.00 | AP27: 0.00 | AQ27: 2,021,123.84 | AR27: -131,649.07 | AT27: 131,649.07 | BC27: 131,649.07 | BD27: 0.00 | BE27: 748,000.00 | BF27: 1,138,435.17 | BG27: 0.00 | BH27: 3,039.60 | BI27: 0.00 | BJ27: 0.00 | BK27: 0.00 | BL27: 0.00 | BM27: 0.00 | BN27: 0.00 | BO27: 1,889,474.77 | BP27: 0.00 | BR27: 207,300.00 | BS27: 62,557.57 | BT27: =SUMIF(норм2016!$Q$11:$AR$76,$C27,норм2016!$BE$11:$BE$76) -> 269,857.57 | BU27: =SUMIF(норм2016!$Q$11:$AR$76,$C27,норм2016!$BF$11:$BF$76) -> 29,428.88 | BV27: 299,286.45 | BW27: 1,153,730.99 | BZ27: 48,639.60 | CA27: 5,166.00 | CB27: 27,680.00 | CD27: 1,890.00 | CE27: 12,600.00 | CF27: 95,975.60 | CG27: 120,577.89 | CH27: 1,057,755.39 | CI27: 719,800.00 | CJ27: 217,377.50 | CK27: =ROUND(SUMIF(норм2016!$Q$11:$AR$76,$C27,норм2016!$BG$11:$BG$76),2) -> 937,177.50 | CL27: 0.00 | CM27: 604,966.80 | CN27: 183,838.60 | CO27: 788,805.40 | CP27: 7,924,066.80 | CQ27: 2,393,068.17 | CR27: 10,317,134.97 | CS27: 6,478,144.00 | CT27: 1,843,150.50 | CU27: 0.00 | CV27: 3,342,492.21 | CW27: 11,663,786.71 | CX27: 0.00 | CY27: 0.00 | CZ27: 0.00 | DA27: 11,663,786.710 | DB27: 0.00 | DC27: 12,452,592.11 | DK27: 131,649.07 | DL27: 0.00 | DM27: 0.00 | DN27: 0.00 | DO27: 131,649.070000000000 | DP27: 12,584,241.1800000000000000000 | DQ27: Муниципальное образовательное учреждение средняя общеобразовательная школа с.Нырья Кукморского муниципального района РТ | EA27: село | EB27: 1,270,084.24 | EC27: 0
A28: 19 | B28: МОУ Нырьинская ср.шк. | C28: 1623006059 | G28: 1,127,680.27 | H28: 1,112,340.61 | I28: 13,348,087.32 | J28: 4,031,122.37 | K28: 17,379,209.69 | L28: =SUMIF(норм2016!$Q$11:$AR$76,C28,норм2016!$AX$11:$AX$76) -> 11,228,937.00 | M28: =SUMIF(норм2016!$Q$11:$AR$76,$C28,норм2016!$AY$11:$AY$76) -> 10,616,472.00 | N28: 8,154,000.00 | O28: 2,462,472.00 | P28: 10,616,472.00 | Q28: =норм2016!BB34 -> 920,580.00 | R28: =ROUND(Q28/1.302,-3) -> 707000 | S28: =Q28-R28 -> 213580 | T28: =SUM(R28:S28) -> 920580 | U28: 4,061,787.32 | V28: 1,226,668.47 | W28: 5,288,455.79 | X28: =SUMIF(норм2016!$Q$11:$AR$76,$C28,норм2016!$AZ$11:$AZ$76) -> 612,465.00 | Y28: 470,000.00 | Z28: 142,465.00 | AA28: 612,465.00 | AB28: 3,591,787.32 | AC28: 1,084,203.47 | AD28: 4,675,990.79 | AE28: =SUMIF(норм2016!$Q$11:$AR$76,$C28,норм2016!$BC$11:$BC$76) -> 3,660,788.39 | AF28: =SUMIF(норм2016!$Q$11:$AR$76,$C28,норм2016!$BM$11:$BM$76) -> 1,642,686.36 | AG28: 759,000.00 | AH28: 971,161.36 | AI28: =SUMIF(газ!$G$71:$G$147,C28,газ!$J$71:$J$147)*1000 -> 67,969.30 | AJ28: 0.00 | AK28: 0.00 | AL28: 0.00 | AM28: 0.00 | AN28: 0.00 | AO28: 0.00 | AP28: 0.00 | AQ28: 1,798,130.66 | AR28: -155,444.30 | AT28: 155,444.30 | BC28: 155,444.30 | BD28: 0.00 | BE28: 759,000.00 | BF28: 815,717.06 | BG28: 67,969.30 | BH28: 0.00 | BI28: 0.00 | BJ28: 0.00 | BK28: 0.00 | BL28: 0.00 | BM28: 0.00 | BN28: 0.00 | BO28: 1,642,686.36 | BP28: 20,500.00 | BQ28: 161,253.00 | BR28: 425,300.00 | BS28: 128,401.90 | BT28: =SUMIF(норм2016!$Q$11:$AR$76,$C28,норм2016!$BE$11:$BE$76) -> 553,701.90 | BU28: =SUMIF(норм2016!$Q$11:$AR$76,$C28,норм2016!$BF$11:$BF$76) -> 182,331.77 | BV28: 736,033.67 | BW28: 1,282,068.36 | BZ28: 61,414.11 | CA28: 25,758.60 | CB28: 27,680.00 | CC28: 29,206.80 | CD28: =161253-161253 -> 0.00 | CF28: 144,059.51 | CG28: 44,635.09 | CH28: 1,138,008.85 | CI28: 839,800.00 | CJ28: 253,573.76 | CK28: =ROUND(SUMIF(норм2016!$Q$11:$AR$76,$C28,норм2016!$BG$11:$BG$76),2) -> 1,093,373.76 | CL28: 0.00 | CM28: 2,751,987.32 | CN28: 830,629.71 | CO28: 3,582,617.03 | CP28: 13,348,087.32 | CQ28: 4,031,122.37 | CR28: 17,379,209.69 | CS28: 10,616,472.00 | CT28: 612,465.00 | CU28: 920,580.00 | CV28: 3,660,788.39 | CW28: 15,810,305.39 | CX28: 0.00 | CY28: 0.00 | CZ28: 0.00 | DA28: 15,810,305.390 | DB28: 0.00 | DC28: 19,392,922.42 | DK28: 155,444.30 | DL28: 0.00 | DM28: 20,500.00 | DN28: 161,253.00 | DO28: 337,197.300000000000 | DP28: 19,730,119.7200000000000000000 | DQ28: Муниципальное образовательное учреждение средняя общеобразовательная школа с.Олуяз Кукморского муниципального района РТ | EA28: село | EB28: 971,161.36 | EC28: 0
A29: 20 | B29: МОУ Олуязская ср.шк. | C29: 1623005922 | G29: 847,286.12 | H29: 855,531.32 | I29: 10,266,375.84 | J29: 3,100,445.50 | K29: 13,366,821.34 | L29: =SUMIF(норм2016!$Q$11:$AR$76,C29,норм2016!$AX$11:$AX$76) -> 9,913,730.00 | M29: =SUMIF(норм2016!$Q$11:$AR$76,$C29,норм2016!$AY$11:$AY$76) -> 9,559,145.00 | N29: 7,342,000.00 | O29: 2,217,145.00 | P29: 9,559,145.00 | U29: 2,464,275.84 | V29: 744,340.40 | W29: 3,208,616.24 | X29: =SUMIF(норм2016!$Q$11:$AR$76,$C29,норм2016!$AZ$11:$AZ$76) -> 354,585.00 | Y29: 272,000.00 | Z29: 82,585.00 | AA29: 354,585.00 | AB29: 2,192,275.84 | AC29: 661,755.40 | AD29: 2,854,031.24 | AE29: =SUMIF(норм2016!$Q$11:$AR$76,$C29,норм2016!$BC$11:$BC$76) -> 3,514,370.28 | AF29: =SUMIF(норм2016!$Q$11:$AR$76,$C29,норм2016!$BM$11:$BM$76) -> 1,731,139.67 | AG29: 478,500.00 | AH29: 1,313,340.17 | AI29: =SUMIF(газ!$G$71:$G$147,C29,газ!$J$71:$J$147)*1000 -> 86,110.24 | AJ29: 0.00 | AK29: 0.00 | AL29: 0.00 | AM29: 0.00 | AN29: 0.00 | AO29: 0.00 | AP29: 0.00 | AQ29: 1,877,950.41 | AR29: -146,810.74 | AT29: 146,810.74 | BC29: 146,810.74 | BD29: 0.00 | BE29: 478,500.00 | BF29: 1,166,529.43 | BG29: 86,110.24 | BH29: 0.00 | BI29: 0.00 | BJ29: 0.00 | BK29: 0.00 | BL29: 0.00 | BM29: 0.00 | BN29: 0.00 | BO29: 1,731,139.67 | BP29: 0.00 | BR29: 460,100.00 | BS29: 138,960.10 | BT29: =SUMIF(норм2016!$Q$11:$AR$76,$C29,норм2016!$BE$11:$BE$76) -> 599,060.10 | BU29: =SUMIF(норм2016!$Q$11:$AR$76,$C29,норм2016!$BF$11:$BF$76) -> 34,137.50 | BV29: 633,197.60 | BW29: 1,150,033.01 | BX29: 13,219.36 | BZ29: 39,506.40 | CA29: 6,300.00 | CB29: 33,488.00 | CC29: 71,844.72 | CD29: 15,000.00 | CF29: 179,358.48 | CG29: 7,464.31 | CH29: 970,674.53 | CI29: 739,800.00 | CJ29: 223,410.22 | CK29: =ROUND(SUMIF(норм2016!$Q$11:$AR$76,$C29,норм2016!$BG$11:$BG$76),2) -> 963,210.22 | CL29: 0.00 | CM29: 1,452,475.84 | CN29: 438,345.18 | CO29: 1,890,821.02 | CP29: 10,266,375.84 | CQ29: 3,100,445.50 | CR29: 13,366,821.34 | CS29: 9,559,145.00 | CT29: 354,585.00 | CU29: 0.00 | CV29: 3,514,370.28 | CW29: 13,428,100.28 | CX29: 0.00 | CY29: 0.00 | CZ29: 0.00 | DA29: 13,428,100.280 | DB29: 0.00 | DC29: 15,318,921.30 | DK29: 146,810.74 | DL29: 0.00 | DM29: 0.00 | DN29: 0.00 | DO29: 146,810.740000000000 | DP29: 15,465,732.0400000000000000000 | DQ29: Муниципальное образовательное учреждение средняя общеобразовательная школа с.Ошторма-Юмья Кукморского муниципального района РТ | EA29: село | EB29: 1,313,340.17 | EC29: 0
A30: 21 | B30: МОУ Ош.Юмьинская ср.шк. | C30: 1623005961 | G30: 734,601.70 | H30: 708,866.98 | I30: 8,506,403.76 | J30: 2,568,933.94 | K30: 11,075,337.70 | L30: =SUMIF(норм2016!$Q$11:$AR$76,C30,норм2016!$AX$11:$AX$76) -> 8,111,696.00 | M30: =SUMIF(норм2016!$Q$11:$AR$76,$C30,норм2016!$AY$11:$AY$76) -> 7,135,888.00 | N30: 5,481,000.00 | O30: 1,654,888.00 | P30: 7,135,888.00 | U30: 2,800,703.76 | V30: 846,180.76 | W30: =SUM(U30:V30) -> 3,646,884.52 | X30: =SUMIF(норм2016!$Q$11:$AR$76,$C30,норм2016!$AZ$11:$AZ$76) -> 975,808.00 | Y30: 749,000.00 | Z30: 226,808.00 | AA30: 975,808.00 | AB30: 2,051,703.76 | AC30: 619,372.76 | AD30: =SUM(AB30:AC30) -> 2,671,076.52 | AE30: =SUMIF(норм2016!$Q$11:$AR$76,$C30,норм2016!$BC$11:$BC$76) -> 4,078,904.85 | AF30: =SUMIF(норм2016!$Q$11:$AR$76,$C30,норм2016!$BM$11:$BM$76) -> 2,718,115.32 | AG30: 1,314,500.00 | AH30: 1,340,017.79 | AI30: =SUMIF(газ!$G$71:$G$147,C30,газ!$J$71:$J$147)*1000 -> 0.00 | AJ30: 0.00 | AK30: 0.00 | AL30: 0.00 | AM30: 0.00 | AN30: 0.00 | AO30: 0.00 | AP30: 0.00 | AQ30: 2,654,517.79 | AR30: 63,597.53 | BC30: 0.00 | BD30: 63,597.53 | BE30: 1,314,500.00 | BF30: 1,340,017.79 | BG30: 0.00 | BH30: 0.00 | BI30: 0.00 | BJ30: 0.00 | BK30: 0.00 | BL30: 0.00 | BM30: 0.00 | BN30: 0.00 | BO30: 2,654,517.79 | BP30: 0.00 | BR30: =ROUND(BT30/1.302,-2) -> 224,700.00 | BS30: =BT30-BR30 -> 67,865.18 | BT30: =SUMIF(норм2016!$Q$11:$AR$76,$C30,норм2016!$BE$11:$BE$76) -> 292,565.18 | BU30: =SUMIF(норм2016!$Q$11:$AR$76,$C30,норм2016!$BF$11:$BF$76) -> 29,428.88 | BV30: 321,994.06 | BW30: 1,102,393.00 | BZ30: 47,506.80 | CA30: 10,374.00 | CB30: 22,146.00 | CD30: 1,260.00 | CE30: 9,000.00 | CF30: 90,286.80 | CG30: 205,092.24 | CH30: 1,012,106.20 | CI30: 619,800.00 | CJ30: 187,213.96 | CK30: =ROUND(SUMIF(норм2016!$Q$11:$AR$76,$C30,норм2016!$BG$11:$BG$76),2) -> 807,013.96 | CL30: 0.00 | CM30: 1,431,903.76 | CN30: 432,158.80 | CO30: 1,864,062.56 | CP30: 8,506,403.76 | CQ30: 2,568,933.94 | CR30: 11,075,337.70 | CS30: 7,135,888.00 | CT30: 975,808.00 | CU30: 0.00 | CV30: 4,078,904.85 | CW30: 12,190,600.85 | CX30: 0.00 | CY30: 0.00 | CZ30: 0.00 | DA30: 12,190,600.850 | DB30: 0.00 | DC30: 14,054,663.41 | DK30: 0.00 | DL30: 0.00 | DM30: 0.00 | DN30: 0.00 | DO30: 0.000000000000 | DP30: 14,054,663.4100000000000000000 | DQ30: Муниципальное образовательное учреждение средняя общеобразовательная школа д.Починок Сутер Кукморского муниципального района РТ | EA30: село | EB30: 1,340,017.79 | EC30: 0
A31: 22 | B31: МОУ Поч-Кучукская ср.шк. | C31: 1623006027 | G31: 645,512.17 | H31: 662,978.88 | I31: 7,955,746.56 | J31: 2,402,635.46 | K31: 10,358,382.02 | L31: =SUMIF(норм2016!$Q$11:$AR$76,C31,норм2016!$AX$11:$AX$76) -> 6,936,479.50 | M31: =SUMIF(норм2016!$Q$11:$AR$76,$C31,норм2016!$AY$11:$AY$76) -> 5,309,989.00 | N31: 4,078,000.00 | O31: 1,231,989.00 | P31: 5,309,989.00 | U31: 3,646,946.56 | V31: 1,101,004.13 | W31: 4,747,950.69 | X31: =SUMIF(норм2016!$Q$11:$AR$76,$C31,норм2016!$AZ$11:$AZ$76) -> 1,626,490.50 | Y31: 1,249,000.00 | Z31: 377,490.50 | AA31: 1,626,490.50 | AB31: 2,397,946.56 | AC31: 723,513.63 | AD31: 3,121,460.19 | AE31: =SUMIF(норм2016!$Q$11:$AR$76,$C31,норм2016!$BC$11:$BC$76) -> 3,003,744.39 | AF31: =SUMIF(норм2016!$Q$11:$AR$76,$C31,норм2016!$BM$11:$BM$76) -> 1,658,829.37 | AG31: 896,500.00 | AH31: 1,009,157.92 | AI31: =SUMIF(газ!$G$71:$G$147,C31,газ!$J$71:$J$147)*1000 -> 17,916.52 | AJ31: 0.00 | AK31: 0.00 | AL31: 0.00 | AM31: 0.00 | AN31: 0.00 | AO31: 0.00 | AP31: 0.00 | AQ31: 1,923,574.44 | AR31: -264,745.07 | AT31: 264,745.07 | BC31: 264,745.07 | BD31: 0.00 | BE31: 896,500.00 | BF31: 744,412.85 | BG31: 17,916.52 | BH31: 0.00 | BI31: 0.00 | BJ31: 0.00 | BK31: 0.00 | BL31: 0.00 | BM31: 0.00 | BN31: 0.00 | BO31: 1,658,829.37 | BP31: 0.00 | BR31: 230,800.00 | BS31: 69,642.33 | BT31: =SUMIF(норм2016!$Q$11:$AR$76,$C31,норм2016!$BE$11:$BE$76) -> 300,442.33 | BU31: =SUMIF(норм2016!$Q$11:$AR$76,$C31,норм2016!$BF$11:$BF$76) -> 0.00 | BV31: 300,442.33 | BW31: 1,044,472.69 | BX31: 11,330.88 | BZ31: 38,798.40 | CA31: 2,352.00 | CB31: 22,146.00 | CD31: 15,992.03 | CE31: 6,300.00 | CF31: 96,919.31 | CG31: 140,539.42 | CH31: 947,553.38 | CI31: 619,800.00 | CJ31: 187,213.96 | CK31: =ROUND(SUMIF(норм2016!$Q$11:$AR$76,$C31,норм2016!$BG$11:$BG$76),2) -> 807,013.96 | CL31: 0.00 | CM31: 1,778,146.56 | CN31: 536,299.67 | CO31: 2,314,446.23 | CP31: 7,955,746.56 | CQ31: 2,402,635.46 | CR31: 10,358,382.02 | CS31: 5,309,989.00 | CT31: 1,626,490.50 | CU31: 0.00 | CV31: 3,003,744.39 | CW31: 9,940,223.89 | CX31: 0.00 | CY31: 0.00 | CZ31: 0.00 | DA31: 9,940,223.890 | DB31: 0.00 | DC31: 12,254,670.12 | DK31: 264,745.07 | DL31: 0.00 | DM31: 0.00 | DN31: 0.00 | DO31: 264,745.070000000000 | DP31: 12,519,415.1900000000000000000 | DQ31: Муниципальное образовательное учреждение средняя общеобразовательная школа с.Починок Кучук Кукморского муниципального района РТ | EA31: село | EB31: 1,009,157.92 | EC31: 0
A32: 23 | B32: МОУ Поч.Сутерская ср.шк | C32: 1623005834 | G32: 585,294.71 | H32: 556,891.41 | I32: 6,682,696.92 | J32: 2,018,174.47 | K32: 8,700,871.39 | L32: =SUMIF(норм2016!$Q$11:$AR$76,C32,норм2016!$AX$11:$AX$76) -> 6,318,631.50 | M32: =SUMIF(норм2016!$Q$11:$AR$76,$C32,норм2016!$AY$11:$AY$76) -> 4,384,854.00 | N32: 3,368,000.00 | O32: 1,016,854.00 | P32: 4,384,854.00 | U32: 3,124,096.92 | V32: 943,794.32 | W32: 4,067,891.24 | X32: =SUMIF(норм2016!$Q$11:$AR$76,$C32,норм2016!$AZ$11:$AZ$76) -> 1,933,777.50 | Y32: 1,485,000.00 | Z32: 448,777.50 | AA32: 1,933,777.50 | AB32: 1,639,096.92 | AC32: 495,016.82 | AD32: 2,134,113.74 | AE32: =SUMIF(норм2016!$Q$11:$AR$76,$C32,норм2016!$BC$11:$BC$76) -> 2,308,043.83 | AF32: =SUMIF(норм2016!$Q$11:$AR$76,$C32,норм2016!$BM$11:$BM$76) -> 1,236,898.70 | AG32: 143,000.00 | AH32: 936,797.97 | AI32: =SUMIF(газ!$G$71:$G$147,C32,газ!$J$71:$J$147)*1000 -> 53,905.40 | AJ32: 0.00 | AK32: 0.00 | AL32: 0.00 | AM32: 0.00 | AN32: 0.00 | AO32: 0.00 | AP32: 0.00 | AQ32: 1,133,703.37 | AR32: 103,195.33 | BC32: 0.00 | BD32: 103,195.33 | BE32: 143,000.00 | BF32: 936,797.97 | BG32: 53,905.40 | BH32: 0.00 | BI32: 0.00 | BJ32: 0.00 | BK32: 0.00 | BL32: 0.00 | BM32: 0.00 | BN32: 0.00 | BO32: 1,133,703.37 | BP32: =20000-20000 -> 0.00 | BR32: 190,600.00 | BS32: 57,526.15 | BT32: =SUMIF(норм2016!$Q$11:$AR$76,$C32,норм2016!$BE$11:$BE$76) -> 248,126.15 | BU32: =SUMIF(норм2016!$Q$11:$AR$76,$C32,норм2016!$BF$11:$BF$76) -> 0.00 | BV32: 248,126.15 | BW32: 926,214.31 | BX32: 10,049.20 | BZ32: 28,656.96 | CA32: 5,040.00 | CB32: 18,419.00 | CD32: 5,985.00 | CF32: 68,150.16 | CG32: 181,213.73 | CH32: 858,064.15 | CI32: 519,900.00 | CJ32: 156,950.42 | CK32: =ROUND(SUMIF(норм2016!$Q$11:$AR$76,$C32,норм2016!$BG$11:$BG$76),2) -> 676,850.42 | CL32: 0.00 | CM32: 1,119,196.92 | CN32: 338,066.40 | CO32: 1,457,263.32 | CP32: 6,682,696.92 | CQ32: 2,018,174.47 | CR32: 8,700,871.39 | CS32: 4,384,854.00 | CT32: 1,933,777.50 | CU32: 0.00 | CV32: 2,308,043.83 | CW32: 8,626,675.33 | CX32: 0.00 | CY32: 0.00 | CZ32: 0.00 | DA32: 8,626,675.330 | DB32: 0.00 | DC32: 10,083,938.65 | DK32: 0.00 | DL32: 0.00 | DM32: 0.00 | DN32: 0.00 | DO32: 0.000000000000 | DP32: 10,083,938.6500000000000000000 | DQ32: Муниципальное образовательное учреждение средняя общеобразовательная школа с.Псяк Кукморского муниципального района РТ | EA32: село | EB32: 936,797.97 | EC32: 0
A33: 24 | B33: МОУ Псякская ср.шк. | C33: 1623006041 | G33: 604,889.21 | H33: 606,087.89 | I33: 7,273,054.68 | J33: 2,196,462.51 | K33: 9,469,517.19 | L33: =SUMIF(норм2016!$Q$11:$AR$76,C33,норм2016!$AX$11:$AX$76) -> 6,842,934.50 | M33: =SUMIF(норм2016!$Q$11:$AR$76,$C33,норм2016!$AY$11:$AY$76) -> 5,114,277.00 | N33: 3,928,000.00 | O33: 1,186,277.00 | P33: 5,114,277.00 | U33: 3,185,854.68 | V33: 962,132.21 | W33: 4,147,986.89 | X33: =SUMIF(норм2016!$Q$11:$AR$76,$C33,норм2016!$AZ$11:$AZ$76) -> 1,728,657.50 | Y33: 1,328,000.00 | Z33: 400,657.50 | AA33: 1,728,657.50 | AB33: 1,857,854.68 | AC33: 561,474.71 | AD33: 2,419,329.39 | AE33: =SUMIF(норм2016!$Q$11:$AR$76,$C33,норм2016!$BC$11:$BC$76) -> 2,076,589.76 | AF33: =SUMIF(норм2016!$Q$11:$AR$76,$C33,норм2016!$BM$11:$BM$76) -> 1,035,337.11 | AG33: 176,000.00 | AH33: 760,757.32 | AI33: =SUMIF(газ!$G$71:$G$147,C33,газ!$J$71:$J$147)*1000 -> 0.00 | AJ33: 0.00 | AK33: 0.00 | AL33: 0.00 | AM33: 0.00 | AN33: 19,000.00 | AO33: 0.00 | AP33: 0.00 | AQ33: 955,757.32 | AR33: 79,579.79 | BC33: 0.00 | BD33: 79,579.79 | BE33: 176,000.00 | BF33: 760,757.32 | BG33: 0.00 | BH33: 0.00 | BI33: 0.00 | BJ33: 0.00 | BK33: 0.00 | BL33: 19,000.00 | BM33: 0.00 | BN33: 0.00 | BO33: 955,757.32 | BP33: 0.00 | BR33: 159,200.00 | BS33: 48,053.30 | BT33: =SUMIF(норм2016!$Q$11:$AR$76,$C33,норм2016!$BE$11:$BE$76) -> 207,253.30 | BU33: =SUMIF(норм2016!$Q$11:$AR$76,$C33,норм2016!$BF$11:$BF$76) -> 30,606.03 | BV33: 237,859.33 | BW33: 882,973.11 | BX33: 8,613.60 | BZ33: 30,231.60 | CA33: 17,337.60 | CB33: 18,419.00 | CD33: 2,835.00 | CE33: 4,500.00 | CF33: 81,936.80 | CG33: 124,185.89 | CH33: 801,036.31 | CI33: 519,900.00 | CJ33: 156,950.42 | CK33: =ROUND(SUMIF(норм2016!$Q$11:$AR$76,$C33,норм2016!$BG$11:$BG$76),2) -> 676,850.42 | CL33: 0.00 | CM33: 1,337,954.68 | CN33: 404,524.29 | CO33: 1,742,478.97 | CP33: 7,273,054.68 | CQ33: 2,196,462.51 | CR33: 9,469,517.19 | CS33: 5,114,277.00 | CT33: 1,728,657.50 | CU33: 0.00 | CV33: 2,076,589.76 | CW33: 8,919,524.26 | CX33: 0.00 | CY33: 0.00 | CZ33: 0.00 | DA33: 8,919,524.260 | DB33: 0.00 | DC33: 10,662,003.23 | DK33: 0.00 | DL33: 0.00 | DM33: 0.00 | DN33: 0.00 | DO33: 0.000000000000 | DP33: 10,662,003.2300000000000000000 | DQ33: Муниципальное образовательное учреждение средняя общеобразовательная школа с.Сардекбаш Кукморского муниципального района РТ | EA33: село | EB33: 760,757.32 | EC33: 0
A34: 25 | B34: МОУ СОШ села Манзарас | C34: 1623010030 | G34: 1,456,509.81 | H34: 1,471,754.49 | I34: 17,661,053.88 | J34: 5,333,638.27 | K34: 22,994,692.15 | L34: =SUMIF(норм2016!$Q$11:$AR$76,C34,норм2016!$AX$11:$AX$76) -> 15,875,761.20 | M34: =SUMIF(норм2016!$Q$11:$AR$76,$C34,норм2016!$AY$11:$AY$76) -> 15,875,761.20 | N34: 12,193,000.00 | O34: 3,682,761.20 | P34: 15,875,761.20 | U34: 5,048,653.88 | V34: 1,524,210.15 | W34: 6,572,864.03 | X34: =SUMIF(норм2016!$Q$11:$AR$76,$C34,норм2016!$AZ$11:$AZ$76) -> 0.00 | Y34: 0.00 | Z34: 0.00 | AA34: 0.00 | AB34: 5,048,653.88 | AC34: 1,524,210.15 | AD34: 6,572,864.03 | AE34: =SUMIF(норм2016!$Q$11:$AR$76,$C34,норм2016!$BC$11:$BC$76) -> 4,391,002.33 | AF34: =SUMIF(норм2016!$Q$11:$AR$76,$C34,норм2016!$BM$11:$BM$76) -> 2,465,851.54 | AG34: 572,000.00 | AH34: 2,092,289.12 | AI34: =SUMIF(газ!$G$71:$G$147,C34,газ!$J$71:$J$147)*1000 -> 0.00 | AJ34: 60,792.00 | AK34: 38,400.00 | AL34: 0.00 | AM34: 0.00 | AN34: 0.00 | AO34: 0.00 | AP34: 0.00 | AQ34: 2,763,481.12 | AR34: -297,629.58 | AT34: 297,629.58 | BC34: 297,629.58 | BD34: 0.00 | BE34: 572,000.00 | BF34: 1,794,659.54 | BG34: 0.00 | BH34: 60,792.00 | BI34: 38,400.00 | BJ34: 0.00 | BK34: 0.00 | BL34: 0.00 | BM34: 0.00 | BN34: 0.00 | BO34: 2,465,851.54 | BP34: 0.00 | BR34: 419,400.00 | BS34: 126,666.92 | BT34: =SUMIF(норм2016!$Q$11:$AR$76,$C34,норм2016!$BE$11:$BE$76) -> 546,066.92 | BU34: =SUMIF(норм2016!$Q$11:$AR$76,$C34,норм2016!$BF$11:$BF$76) -> 88,286.63 | BV34: 634,353.55 | BW34: 1,290,797.24 | BX34: 22,235.52 | BY34: 44,880.00 | BZ34: 20,260.08 | CA34: 3,360.00 | CB34: 19,003.00 | CC34: 5,074.68 | CD34: 10,395.00 | CE34: 9,600.00 | CF34: 134,808.28 | CG34: 175,423.60 | CH34: 1,155,988.96 | CI34: 753,100.00 | CJ34: 227,465.36 | CK34: =ROUND(SUMIF(норм2016!$Q$11:$AR$76,$C34,норм2016!$BG$11:$BG$76),2) -> 980,565.36 | CL34: 0.00 | CM34: 4,295,553.88 | CN34: 1,296,744.79 | CO34: 5,592,298.67 | CP34: 17,661,053.88 | CQ34: 5,333,638.27 | CR34: 22,994,692.15 | CS34: 15,875,761.20 | CT34: 0.00 | CU34: 0.00 | CV34: 4,391,002.33 | CW34: 20,266,763.53 | CX34: 0.00 | CY34: 0.00 | CZ34: 0.00 | DA34: 20,266,763.530 | DB34: 0.00 | DC34: 25,859,062.20 | DK34: 297,629.58 | DL34: 0.00 | DM34: 0.00 | DN34: 0.00 | DO34: 297,629.580000000000 | DP34: 26,156,691.7800000000000000000 | DQ34: Муниципальное образовательное учреждение средняя общеобразовательная школа с. Село-Чура Кукморского муниципального района РТ | EA34: село | EB34: 2,092,289.12 | EC34: 0
A35: 26 | B35: МОУ Сардекбашская ср.шк. | C35: 1623005841 | G35: 741,671.26 | H35: 749,048.39 | I35: 8,988,580.68 | J35: 2,714,551.37 | K35: 11,703,132.05 | L35: =SUMIF(норм2016!$Q$11:$AR$76,C35,норм2016!$AX$11:$AX$76) -> 8,788,944.00 | M35: =SUMIF(норм2016!$Q$11:$AR$76,$C35,норм2016!$AY$11:$AY$76) -> 7,177,086.00 | N35: 5,512,000.00 | O35: 1,665,086.00 | P35: 7,177,086.00 | U35: 3,205,980.68 | V35: 967,790.10 | W35: 4,173,770.78 | X35: =SUMIF(норм2016!$Q$11:$AR$76,$C35,норм2016!$AZ$11:$AZ$76) -> 1,611,858.00 | Y35: 1,238,000.00 | Z35: 373,858.00 | AA35: 1,611,858.00 | AB35: 1,967,980.68 | AC35: 593,932.10 | AD35: 2,561,912.78 | AE35: =SUMIF(норм2016!$Q$11:$AR$76,$C35,норм2016!$BC$11:$BC$76) -> 2,981,011.94 | AF35: =SUMIF(норм2016!$Q$11:$AR$76,$C35,норм2016!$BM$11:$BM$76) -> 1,453,661.70 | AG35: 203,500.00 | AH35: 1,146,401.78 | AI35: =SUMIF(газ!$G$71:$G$147,C35,газ!$J$71:$J$147)*1000 -> 104,232.48 | AJ35: 0.00 | AK35: 0.00 | AL35: 0.00 | AM35: 0.00 | AN35: 0.00 | AO35: 0.00 | AP35: 0.00 | AQ35: 1,454,134.26 | AR35: -472.56 | AT35: 472.56 | BC35: 472.56 | BD35: 0.00 | BE35: 203,500.00 | BF35: 1,145,929.22 | BG35: 104,232.48 | BH35: 0.00 | BI35: 0.00 | BJ35: 0.00 | BK35: 0.00 | BL35: 0.00 | BM35: 0.00 | BN35: 0.00 | BO35: 1,453,661.70 | BP35: =29000-29000 -> 0.00 | BR35: 270,600.00 | BS35: 81,675.27 | BT35: =SUMIF(норм2016!$Q$11:$AR$76,$C35,норм2016!$BE$11:$BE$76) -> 352,275.27 | BU35: =SUMIF(норм2016!$Q$11:$AR$76,$C35,норм2016!$BF$11:$BF$76) -> 29,428.88 | BV35: 381,704.15 | BW35: 1,145,646.09 | BX35: 12,784.24 | BZ35: 49,206.00 | CA35: 5,880.00 | CB35: 22,146.00 | CD35: 26,587.50 | CF35: 116,603.74 | CG35: 65,832.13 | CH35: 1,029,042.35 | CI35: 739,800.00 | CJ35: 223,410.22 | CK35: =ROUND(SUMIF(норм2016!$Q$11:$AR$76,$C35,норм2016!$BG$11:$BG$76),2) -> 963,210.22 | CL35: 0.00 | CM35: 1,228,180.68 | CN35: 370,521.88 | CO35: 1,598,702.56 | CP35: 8,988,580.68 | CQ35: 2,714,551.37 | CR35: 11,703,132.05 | CS35: 7,177,086.00 | CT35: 1,611,858.00 | CU35: 0.00 | CV35: 2,981,011.94 | CW35: 11,769,955.94 | CX35: 0.00 | CY35: 0.00 | CZ35: 0.00 | DA35: 11,769,955.940 | DB35: 0.00 | DC35: 13,368,658.50 | DK35: 472.56 | DL35: 0.00 | DM35: 0.00 | DN35: 0.00 | DO35: 472.560000000000 | DP35: 13,369,131.0600000000000000000 | DQ35: Муниципальное образовательное учреждение средняя общеобразовательная школа с.Средний Кумор Кукморского муниципального района РТ | EA35: село | EB35: 1,146,401.78 | EC35: 0
A36: 27 | B36: МОУ Село-Чуринская ср.шк. | C36: 1623005930 | G36: 699,178.68 | H36: 705,814.10 | I36: 8,469,769.20 | J36: 2,557,870.30 | K36: 11,027,639.50 | L36: =SUMIF(норм2016!$Q$11:$AR$76,C36,норм2016!$AX$11:$AX$76) -> 8,060,579.00 | M36: =SUMIF(норм2016!$Q$11:$AR$76,$C36,норм2016!$AY$11:$AY$76) -> 6,830,996.00 | N36: 5,247,000.00 | O36: 1,583,996.00 | P36: 6,830,996.00 | U36: 2,985,269.20 | V36: 902,130.66 | W36: 3,887,399.86 | X36: =SUMIF(норм2016!$Q$11:$AR$76,$C36,норм2016!$AZ$11:$AZ$76) -> 1,229,583.00 | Y36: 944,000.00 | Z36: 285,583.00 | AA36: 1,229,583.00 | AB36: 2,041,269.20 | AC36: 616,547.66 | AD36: 2,657,816.86 | AE36: =SUMIF(норм2016!$Q$11:$AR$76,$C36,норм2016!$BC$11:$BC$76) -> 2,191,352.86 | AF36: =SUMIF(норм2016!$Q$11:$AR$76,$C36,норм2016!$BM$11:$BM$76) -> 914,518.86 | AG36: 159,500.00 | AH36: 625,952.74 | AI36: =SUMIF(газ!$G$71:$G$147,C36,газ!$J$71:$J$147)*1000 -> 75,069.83 | AJ36: 0.00 | AK36: 0.00 | AL36: 0.00 | AM36: 0.00 | AN36: 41,000.00 | AO36: 0.00 | AP36: 0.00 | AQ36: 901,522.57 | AR36: 12,996.29 | BC36: 0.00 | BD36: 12,996.29 | BE36: 159,500.00 | BF36: 625,952.74 | BG36: 75,069.83 | BH36: 0.00 | BI36: 0.00 | BJ36: 0.00 | BK36: 0.00 | BL36: 41,000.00 | BM36: 0.00 | BN36: 0.00 | BO36: 901,522.57 | BP36: 0.00 | BR36: 237,500.00 | BS36: 71,743.64 | BT36: =SUMIF(норм2016!$Q$11:$AR$76,$C36,норм2016!$BE$11:$BE$76) -> 309,243.64 | BU36: =SUMIF(норм2016!$Q$11:$AR$76,$C36,норм2016!$BF$11:$BF$76) -> 31,783.19 | BV36: 341,026.83 | BW36: 948,803.46 | BZ36: 39,364.80 | CA36: 4,998.00 | CB36: 22,146.00 | CD36: 1,043.75 | CE36: 12,600.00 | CF36: 80,152.55 | CG36: 61,636.95 | CH36: 868,650.91 | CI36: 619,800.00 | CJ36: 187,213.96 | CK36: =ROUND(SUMIF(норм2016!$Q$11:$AR$76,$C36,норм2016!$BG$11:$BG$76),2) -> 807,013.96 | CL36: 0.00 | CM36: 1,421,469.20 | CN36: 429,333.70 | CO36: 1,850,802.90 | CP36: 8,469,769.20 | CQ36: 2,557,870.30 | CR36: 11,027,639.50 | CS36: 6,830,996.00 | CT36: 1,229,583.00 | CU36: 0.00 | CV36: 2,191,352.86 | CW36: 10,251,931.86 | CX36: 0.00 | CY36: 0.00 | CZ36: 0.00 | DA36: 10,251,931.860 | DB36: 0.00 | DC36: 12,102,734.76 | DK36: 0.00 | DL36: 0.00 | DM36: 0.00 | DN36: 0.00 | DO36: 0.000000000000 | DP36: 12,102,734.7600000000000000000 | DQ36: Муниципальное образовательное учреждение " средняя общеобразовательная школа с углубленным изучением отдельных предметов с.Манзарас " Кукморского муниципального района РТ | EA36: село | EB36: 625,952.74 | EC36: 0
A37: 28 | B37: МОУ Средне-Куморская ср.школа | C37: 1623006066 | G37: 625,306.73 | H37: 622,879.59 | I37: 7,474,555.08 | J37: 2,257,315.63 | K37: 9,731,870.71 | L37: =SUMIF(норм2016!$Q$11:$AR$76,C37,норм2016!$AX$11:$AX$76) -> 7,755,173.50 | M37: =SUMIF(норм2016!$Q$11:$AR$76,$C37,норм2016!$AY$11:$AY$76) -> 6,718,843.00 | N37: 5,160,000.00 | O37: 1,558,843.00 | P37: 6,718,843.00 | U37: 2,080,755.08 | V37: 627,860.71 | W37: 2,708,615.79 | X37: =SUMIF(норм2016!$Q$11:$AR$76,$C37,норм2016!$AZ$11:$AZ$76) -> 1,036,330.50 | Y37: 796,000.00 | Z37: 240,330.50 | AA37: 1,036,330.50 | AB37: 1,284,755.08 | AC37: 387,530.21 | AD37: 1,672,285.29 | AE37: =SUMIF(норм2016!$Q$11:$AR$76,$C37,норм2016!$BC$11:$BC$76) -> 2,673,685.33 | AF37: =SUMIF(норм2016!$Q$11:$AR$76,$C37,норм2016!$BM$11:$BM$76) -> 1,372,672.90 | AG37: 198,000.00 | AH37: 1,104,759.16 | AI37: =SUMIF(газ!$G$71:$G$147,C37,газ!$J$71:$J$147)*1000 -> 0.00 | AJ37: 0.00 | AK37: 0.00 | AL37: 0.00 | AM37: 0.00 | AN37: 0.00 | AO37: 0.00 | AP37: 0.00 | AQ37: 1,302,759.16 | AR37: 69,913.74 | BC37: 0.00 | BD37: 69,913.74 | BE37: 198,000.00 | BF37: 1,104,759.16 | BG37: 0.00 | BH37: 0.00 | BI37: 0.00 | BJ37: 0.00 | BK37: 0.00 | BL37: 0.00 | BM37: 0.00 | BN37: 0.00 | BO37: 1,302,759.16 | BP37: 24,600.00 | BR37: 233,800.00 | BS37: 70,611.92 | BT37: =SUMIF(норм2016!$Q$11:$AR$76,$C37,норм2016!$BE$11:$BE$76) -> 304,411.92 | BU37: =SUMIF(норм2016!$Q$11:$AR$76,$C37,норм2016!$BF$11:$BF$76) -> 29,428.88 | BV37: 333,840.80 | BW37: 1,037,085.37 | BX37: 7,178.00 | BZ37: 30,756.96 | CA37: 4,872.00 | CB37: 22,146.00 | CD37: 9,135.00 | CE37: 19,200.00 | CF37: 93,287.96 | CG37: 136,783.45 | CH37: 943,797.41 | CI37: 619,800.00 | CJ37: 187,213.96 | CK37: =ROUND(SUMIF(норм2016!$Q$11:$AR$76,$C37,норм2016!$BG$11:$BG$76),2) -> 807,013.96 | CL37: 0.00 | CM37: 664,955.08 | CN37: 200,316.25 | CO37: =SUM(CM37:CN37) -> 865,271.33 | CP37: 7,474,555.08 | CQ37: 2,257,315.63 | CR37: 9,731,870.71 | CS37: 6,718,843.00 | CT37: 1,036,330.50 | CU37: 0.00 | CV37: 2,673,685.33 | CW37: 10,428,858.83 | CX37: 0.00 | CY37: 0.00 | CZ37: 0.00 | DA37: 10,428,858.830 | DB37: 0.00 | DC37: 11,294,130.16 | DK37: 0.00 | DL37: 0.00 | DM37: 24,600.00 | DN37: 0.00 | DO37: 24,600.000000000000 | DP37: 11,318,730.1600000000000000000 | DQ37: Муниципальное образовательное учреждение основная общеобразовательная школа с.Туенбаш Кукморского муниципального района РТ | EA37: село | EB37: 1,104,759.16 | EC37: 0
A38: 29 | B38: МОУ Туембашская осн.шк. | C38: 1623005954 | G38: 443,382.36 | H38: 426,733.61 | I38: 5,120,803.32 | J38: 1,546,482.60 | K38: 6,667,285.92 | L38: =SUMIF(норм2016!$Q$11:$AR$76,C38,норм2016!$AX$11:$AX$76) -> 4,786,963.00 | M38: =SUMIF(норм2016!$Q$11:$AR$76,$C38,норм2016!$AY$11:$AY$76) -> 3,333,004.00 | N38: 2,560,000.00 | O38: 773,004.00 | P38: 3,333,004.00 | U38: 2,435,103.32 | V38: 735,456.27 | W38: 3,170,559.59 | X38: =SUMIF(норм2016!$Q$11:$AR$76,$C38,норм2016!$AZ$11:$AZ$76) -> 1,453,959.00 | Y38: 1,117,000.00 | Z38: 336,959.00 | AA38: 1,453,959.00 | AB38: 1,318,103.32 | AC38: 398,497.27 | AD38: 1,716,600.59 | AE38: =SUMIF(норм2016!$Q$11:$AR$76,$C38,норм2016!$BC$11:$BC$76) -> 1,135,688.13 | AF38: =SUMIF(норм2016!$Q$11:$AR$76,$C38,норм2016!$BM$11:$BM$76) -> 403,547.89 | AG38: 85,800.00 | AH38: 0.00 | AI38: =SUMIF(газ!$G$71:$G$147,C38,газ!$J$71:$J$147)*1000 -> 145,588.84 | AJ38: 0.00 | AK38: 0.00 | AL38: 0.00 | AM38: 0.00 | AN38: 0.00 | AO38: 0.00 | AP38: 0.00 | AQ38: 231,388.84 | AR38: 172,159.05 | BC38: 0.00 | BD38: 172,159.05 | BE38: 85,800.00 | BF38: 0.00 | BG38: 145,588.84 | BH38: 0.00 | BI38: 0.00 | BJ38: 0.00 | BK38: 0.00 | BL38: 0.00 | BM38: 0.00 | BN38: 0.00 | BO38: 231,388.84 | BP38: 67,000.00 | BR38: 125,700.00 | BS38: 38,022.33 | BT38: =SUMIF(норм2016!$Q$11:$AR$76,$C38,норм2016!$BE$11:$BE$76) -> 163,722.33 | BU38: =SUMIF(норм2016!$Q$11:$AR$76,$C38,норм2016!$BF$11:$BF$76) -> 0.00 | BV38: 163,722.33 | BW38: 740,576.96 | BZ38: 20,956.80 | CA38: 2,520.00 | CB38: 18,419.00 | CD38: 49.60 | CE38: 7,200.00 | CF38: 49,145.40 | CG38: 188,132.53 | CH38: 691,431.56 | CI38: 386,600.00 | CJ38: 116,699.03 | CK38: =ROUND(SUMIF(норм2016!$Q$11:$AR$76,$C38,норм2016!$BG$11:$BG$76),2) -> 503,299.03 | CL38: 0.00 | CM38: 931,503.32 | CN38: 281,798.24 | CO38: 1,213,301.56 | CP38: 5,120,803.32 | CQ38: 1,546,482.60 | CR38: 6,667,285.92 | CS38: 3,333,004.00 | CT38: 1,453,959.00 | CU38: 0.00 | CV38: 1,135,688.13 | CW38: 5,922,651.13 | CX38: 0.00 | CY38: 0.00 | CZ38: 0.00 | DA38: 5,922,651.130 | DB38: 0.00 | DC38: 7,135,952.69 | DK38: 0.00 | DL38: 0.00 | DM38: 67,000.00 | DN38: 0.00 | DO38: 67,000.000000000000 | DP38: 7,202,952.6900000000000000000 | DQ38: Муниципальное образовательное учреждение средняя общеобразовательная школа с.Чарли Кукморского муниципального района РТ | EA38: село | EB38: 0.00 | EC38: 0
A39: 30 | B39: МОУ Чарлинская ср.шк. | C39: 1623005979 | G39: 572,632.28 | H39: 551,528.99 | I39: 6,618,347.88 | J39: 1,998,741.06 | K39: 8,617,088.94 | L39: =SUMIF(норм2016!$Q$11:$AR$76,C39,норм2016!$AX$11:$AX$76) -> 6,539,779.00 | M39: =SUMIF(норм2016!$Q$11:$AR$76,$C39,норм2016!$AY$11:$AY$76) -> 6,539,779.00 | N39: 5,023,000.00 | O39: 1,516,779.00 | P39: 6,539,779.00 | U39: 1,408,247.88 | V39: 425,459.06 | W39: 1,833,706.94 | X39: =SUMIF(норм2016!$Q$11:$AR$76,$C39,норм2016!$AZ$11:$AZ$76) -> 0.00 | Y39: 0.00 | Z39: 0.00 | AA39: 0.00 | AB39: 1,408,247.88 | AC39: 425,459.06 | AD39: 1,833,706.94 | AE39: =SUMIF(норм2016!$Q$11:$AR$76,$C39,норм2016!$BC$11:$BC$76) -> 1,752,427.16 | AF39: =SUMIF(норм2016!$Q$11:$AR$76,$C39,норм2016!$BM$11:$BM$76) -> 898,611.32 | AG39: 27,500.00 | AH39: 708,412.01 | AI39: =SUMIF(газ!$G$71:$G$147,C39,газ!$J$71:$J$147)*1000 -> 96,658.17 | AJ39: 0.00 | AK39: 0.00 | AL39: 0.00 | AM39: 0.00 | AN39: 0.00 | AO39: 0.00 | AP39: 0.00 | AQ39: 832,570.18 | AR39: 66,041.14 | BC39: 0.00 | BD39: 66,041.14 | BE39: 27,500.00 | BF39: 708,412.01 | BG39: 96,658.17 | BH39: 0.00 | BI39: 0.00 | BJ39: 0.00 | BK39: 0.00 | BL39: 0.00 | BM39: 0.00 | BN39: 0.00 | BO39: 832,570.18 | BP39: 0.00 | BQ39: 38,410.00 | BR39: 187,100.00 | BS39: 56,503.00 | BT39: =SUMIF(норм2016!$Q$11:$AR$76,$C39,норм2016!$BE$11:$BE$76) -> 243,603.00 | BU39: =SUMIF(норм2016!$Q$11:$AR$76,$C39,норм2016!$BF$11:$BF$76) -> 0.00 | BV39: 243,603.00 | BW39: 676,253.98 | BZ39: 19,682.40 | CA39: 14,893.20 | CB39: 18,419.00 | CD39: =38410-38410 -> 0.00 | CE39: 13,500.00 | CF39: 66,494.60 | CG39: 106,460.35 | CH39: 609,759.38 | CI39: 386,600.00 | CJ39: 116,699.03 | CK39: =ROUND(SUMIF(норм2016!$Q$11:$AR$76,$C39,норм2016!$BG$11:$BG$76),2) -> 503,299.03 | CL39: 0.00 | CM39: 1,021,647.88 | CN39: 308,760.03 | CO39: 1,330,407.91 | CP39: 6,618,347.88 | CQ39: 1,998,741.06 | CR39: 8,617,088.94 | CS39: 6,539,779.00 | CT39: 0.00 | CU39: 0.00 | CV39: 1,752,427.16 | CW39: 8,292,206.16 | CX39: 0.00 | CY39: 0.00 | CZ39: 0.00 | DA39: 8,292,206.160 | DB39: 0.00 | DC39: 9,622,614.07 | DK39: 0.00 | DL39: 0.00 | DM39: 0.00 | DN39: 38,410.00 | DO39: 38,410.000000000000 | DP39: 9,661,024.0700000000000000000 | DQ39: Муниципальное образовательное учреждение средняя общеобразовательная школа с.Ядыгерь Кукморского муниципального района РТ | EA39: село | EB39: 708,412.01 | EC39: 0
A40: 31 | B40: МОУ Ядыгерская ср.шк. | C40: 1623005908 | G40: 673,123.31 | H40: 642,362.61 | I40: 7,708,351.32 | J40: 2,327,922.10 | K40: 10,036,273.42 | L40: =SUMIF(норм2016!$Q$11:$AR$76,C40,норм2016!$AX$11:$AX$76) -> 7,394,360.50 | M40: =SUMIF(норм2016!$Q$11:$AR$76,$C40,норм2016!$AY$11:$AY$76) -> 5,761,416.00 | N40: 4,425,000.00 | O40: 1,336,416.00 | P40: 5,761,416.00 | U40: 3,102,651.32 | V40: 936,879.29 | W40: 4,039,530.61 | X40: =SUMIF(норм2016!$Q$11:$AR$76,$C40,норм2016!$AZ$11:$AZ$76) -> 1,632,944.50 | Y40: 1,254,000.00 | Z40: 378,944.50 | AA40: 1,632,944.50 | AB40: 1,848,651.32 | AC40: 557,934.79 | AD40: 2,406,586.11 | AE40: =SUMIF(норм2016!$Q$11:$AR$76,$C40,норм2016!$BC$11:$BC$76) -> 2,526,133.12 | AF40: =SUMIF(норм2016!$Q$11:$AR$76,$C40,норм2016!$BM$11:$BM$76) -> 1,300,889.84 | AG40: 358,600.00 | AH40: 891,535.04 | AI40: =SUMIF(газ!$G$71:$G$147,C40,газ!$J$71:$J$147)*1000 -> 0.00 | AJ40: 0.00 | AK40: 0.00 | AL40: 93,000.00 | AM40: 0.00 | AN40: 0.00 | AO40: 0.00 | AP40: 0.00 | AQ40: 1,343,135.04 | AR40: -42,245.20 | AT40: 42,245.20 | BC40: 42,245.20 | BD40: 0.00 | BE40: 358,600.00 | BF40: 849,289.84 | BG40: 0.00 | BH40: 0.00 | BI40: 0.00 | BJ40: 93,000.00 | BK40: 0.00 | BL40: 0.00 | BM40: 0.00 | BN40: 0.00 | BO40: 1,300,889.84 | BP40: 0.00 | BR40: 180,700.00 | BS40: 54,626.81 | BT40: =SUMIF(норм2016!$Q$11:$AR$76,$C40,норм2016!$BE$11:$BE$76) -> 235,326.81 | BU40: =SUMIF(норм2016!$Q$11:$AR$76,$C40,норм2016!$BF$11:$BF$76) -> 23,543.10 | BV40: 258,869.91 | BW40: 966,373.37 | BZ40: 48,639.60 | CA40: 3,990.00 | CB40: 18,419.00 | CD40: 3,780.00 | CE40: 10,800.00 | CF40: 85,628.60 | CG40: 73,730.81 | CH40: 880,744.77 | CI40: 619,800.00 | CJ40: 187,213.96 | CK40: =ROUND(SUMIF(норм2016!$Q$11:$AR$76,$C40,норм2016!$BG$11:$BG$76),2) -> 807,013.96 | CL40: 0.00 | CM40: 1,228,851.32 | CN40: 370,720.83 | CO40: 1,599,572.15 | CP40: 7,708,351.32 | CQ40: 2,327,922.10 | CR40: 10,036,273.42 | CS40: 5,761,416.00 | CT40: 1,632,944.50 | CU40: 0.00 | CV40: 2,526,133.12 | CW40: 9,920,493.62 | CX40: 0.00 | CY40: 0.00 | CZ40: 0.00 | DA40: 9,920,493.620 | DB40: 0.00 | DC40: 11,520,065.77 | DK40: 42,245.20 | DL40: 0.00 | DM40: 0.00 | DN40: 0.00 | DO40: 42,245.200000000000 | DP40: 11,562,310.9700000000000000000 | DQ40: Муниципальное образовательное учреждение средняя общеобразовательная школа с.Яныль Кукморского муниципального района РТ | EA40: село | EB40: 891,535.04 | EC40: 0
A41: 32 | B41: МОУ Яныльская ср.шк. | C41: 1623005898 | G41: 742,759.02 | H41: 775,970.19 | I41: 9,311,642.28 | J41: 2,812,115.97 | K41: 12,123,758.25 | L41: =SUMIF(норм2016!$Q$11:$AR$76,C41,норм2016!$AX$11:$AX$76) -> 8,631,718.70 | M41: =SUMIF(норм2016!$Q$11:$AR$76,$C41,норм2016!$AY$11:$AY$76) -> 7,939,593.20 | N41: 6,098,000.00 | O41: 1,841,593.20 | P41: 7,939,593.20 | U41: 2,976,942.28 | V41: 899,064.99 | W41: 3,876,007.27 | X41: =SUMIF(норм2016!$Q$11:$AR$76,$C41,норм2016!$AZ$11:$AZ$76) -> 692,125.50 | Y41: 532,000.00 | Z41: 160,125.50 | AA41: 692,125.50 | AB41: 2,444,942.28 | AC41: 738,939.49 | AD41: 3,183,881.77 | AE41: =SUMIF(норм2016!$Q$11:$AR$76,$C41,норм2016!$BC$11:$BC$76) -> 2,902,324.25 | AF41: =SUMIF(норм2016!$Q$11:$AR$76,$C41,норм2016!$BM$11:$BM$76) -> 1,513,788.50 | AG41: 261,250.00 | AH41: 1,328,908.55 | AI41: =SUMIF(газ!$G$71:$G$147,C41,газ!$J$71:$J$147)*1000 -> 0.00 | AJ41: 0.00 | AK41: 0.00 | AL41: 0.00 | AM41: 0.00 | AN41: 100,000.00 | AO41: 0.00 | AP41: 0.00 | AQ41: 1,690,158.55 | AR41: -176,370.05 | AT41: 176,370.05 | BC41: 176,370.05 | BD41: 0.00 | BE41: 261,250.00 | BF41: 1,152,538.50 | BG41: 0.00 | BH41: 0.00 | BI41: 0.00 | BJ41: 0.00 | BK41: 0.00 | BL41: 100,000.00 | BM41: 0.00 | BN41: 0.00 | BO41: 1,513,788.50 | BP41: 0.00 | BR41: 236,700.00 | BS41: 71,457.78 | BT41: =SUMIF(норм2016!$Q$11:$AR$76,$C41,норм2016!$BE$11:$BE$76) -> 308,157.78 | BU41: =SUMIF(норм2016!$Q$11:$AR$76,$C41,норм2016!$BF$11:$BF$76) -> 29,428.88 | BV41: 337,586.66 | BW41: 1,050,949.09 | BX41: 8,613.60 | BZ41: 28,957.20 | CA41: 21,000.00 | CB41: 18,419.00 | CD41: 18,158.00 | CF41: 95,147.80 | CG41: 122,754.61 | CH41: 955,801.29 | CI41: 639,800.00 | CJ41: 193,246.68 | CK41: =ROUND(SUMIF(норм2016!$Q$11:$AR$76,$C41,норм2016!$BG$11:$BG$76),2) -> 833,046.68 | CL41: 0.00 | CM41: 1,805,142.28 | CN41: 545,692.81 | CO41: 2,350,835.09 | CP41: 9,311,642.28 | CQ41: 2,812,115.97 | CR41: 12,123,758.25 | CS41: 7,939,593.20 | CT41: 692,125.50 | CU41: 0.00 | CV41: 2,902,324.25 | CW41: 11,534,042.95 | CX41: 0.00 | CY41: 0.00 | CZ41: 0.00 | DA41: 11,534,042.950 | DB41: 0.00 | DC41: 13,884,878.04 | DK41: 176,370.05 | DL41: 0.00 | DM41: 0.00 | DN41: 0.00 | DO41: 176,370.050000000000 | DP41: 14,061,248.0900000000000000000 | DQ41: Муниципальное образовательное учреждение "Вечерняя (сменная) общеобразовательная школа п.г.т. Кукмор" | EA41: село | EB41: 1,328,908.55 | EC41: 0
A42: 1 | B42: 2 | C42: 3 | D42: 4 | E42: 5 | F42: 6 | G42: 7 | H42: 8 | I42: 9 | J42: 10 | K42: 11 | L42: 12 | M42: 13 | N42: 14 | O42: 15 | P42: 16 | Q42: 17 | R42: 18 | S42: 19 | T42: 20 | U42: 21 | V42: 22 | W42: 23 | X42: 24 | Y42: 25 | Z42: 26 | AA42: 27 | AB42: 28 | AC42: 29 | AD42: 30 | AE42: 31 | AF42: 32 | AG42: 33 | AH42: 34 | AI42: 35 | AJ42: 36 | AK42: 37 | AL42: 38 | AM42: 39 | AN42: 40 | AO42: 41 | AP42: 42 | AQ42: 43 | AR42: 44 | AS42: 45 | AT42: 46 | AU42: 47 | AV42: 48 | AW42: 49 | AX42: 50 | AY42: 51 | AZ42: 52 | BA42: 53 | BB42: 54 | BC42: 55 | BD42: 56 | BE42: 57 | BF42: 58 | BG42: 59 | BH42: 60 | BI42: 61 | BJ42: 62 | BK42: 63 | BL42: 64 | BM42: 65 | BN42: 66 | BO42: 67 | BP42: 68 | BQ42: 69 | BR42: 70 | BS42: 71 | BT42: 72 | BU42: 73 | BV42: 74 | BW42: 75 | BX42: 76 | BY42: 77 | BZ42: 78 | CA42: 79 | CB42: 80 | CC42: 81 | CD42: 82 | CE42: 83 | CF42: 84 | CG42: 85 | CH42: 86 | CI42: 87 | CJ42: 88 | CK42: 89 | CL42: 90 | CM42: 91 | CN42: 92 | CO42: 93 | CP42: 94 | CQ42: 95 | CR42: 96 | CS42: 97 | CT42: 98 | CU42: 99 | CV42: 100 | CW42: 101 | CX42: 102 | CY42: 103 | CZ42: 104 | DA42: 105 | DB42: 106 | DC42: 107 | DD42: 108 | DE42: 109 | DF42: 110 | DG42: 111 | DH42: 112 | DI42: 113 | DJ42: 114 | DK42: 115 | DL42: 116 | DM42: 117 | DN42: 118 | DO42: 119 | DP42: 120 | DQ42: 133 | DR42: 134 | DS42: 135 | DT42: 136 | DU42: 137 | DV42: 137 | DW42: 138 | DX42: 139 | DY42: 140 | DZ42: 141 | EA42: 142

Sheet форма
B1: =VLOOKUP(G1,зпшк!A10:B41,2) -> МОУ Олуязская ср.шк. | G1: 20
B4: Наименование | C4: ДопКр | D4: КЦСР | E4: ДопЭК | F4: ДопФК | G4: План ФХД на 2016 год, рублей
B7: Нормативные расходы
A8: 14 | B8: Заработная плата | C8: 302 | D8: 0220825280 | E8: 211004 | F8: 00936 | G8: =VLOOKUP($G$1,зпшк!$A$10:$DP$41,A8) -> 7,342,000.00
A9: 15 | B9: Отчисления от ЗП | C9: 302 | D9: 0220825280 | E9: 213004 | F9: 00936 | G9: =VLOOKUP($G$1,зпшк!$A$10:$DP$41,A9) -> 2,217,145.00
A10: 25 | B10: Заработная плата | C10: 302 | D10: 0220242100 | E10: 211004 | F10: 00954 | G10: =VLOOKUP($G$1,зпшк!$A$10:$DP$41,A10) -> 272,000.00
A11: 26 | B11: Отчисления от ЗП | C11: 302 | D11: 0220242100 | E11: 213004 | F11: 00954 | G11: =VLOOKUP($G$1,зпшк!$A$10:$DP$41,A11) -> 82,585.00
A12: 18 | B12: Заработная плата | C12: 303 | D12: 0220242100 | E12: 211004 | F12: 00954 | G12: =VLOOKUP($G$1,зпшк!$A$10:$DP$41,A12) -> 0.00
A13: 19 | B13: Отчисления от ЗП | C13: 303 | D13: 0220242100 | E13: 213004 | F13: 00954 | G13: =VLOOKUP($G$1,зпшк!$A$10:$DP$41,A13) -> 0.00
A14: 57 | B14: Электроэнергия | C14: 304 | D14: 0220242100 | E14: 223001 | F14: 00000 | G14: =VLOOKUP($G$1,зпшк!$A$10:$DP$41,A14) -> 478,500.00
A15: 58 | B15: Отопление | C15: 304 | D15: 0220242100 | E15: 223002 | F15: 00000 | G15: =VLOOKUP($G$1,зпшк!$A$10:$DP$41,A15) -> 1,166,529.43
A16: 59 | B16: Газ | C16: 304 | D16: 0220242100 | E16: 223003 | F16: 00000 | G16: =VLOOKUP($G$1,зпшк!$A$10:$DP$41,A16) -> 86,110.24
A17: 60 | B17: Вода | C17: 304 | D17: 0220242100 | E17: 223004 | F17: 00000 | G17: =VLOOKUP($G$1,зпшк!$A$10:$DP$41,A17) -> 0.00
A18: 61 | B18: Канализация | C18: 304 | D18: 0220242100 | E18: 223005 | F18: 00000 | G18: =VLOOKUP($G$1,зпшк!$A$10:$DP$41,A18) -> 0.00
A19: 62 | B19: Электроэнергия (возмещение) | C19: 304 | D19: 0220242100 | E19: 223011 | F19: 00000 | G19: =VLOOKUP($G$1,зпшк!$A$10:$DP$41,A19) -> 0.00
A20: 63 | B20: Отопление (возмещение) | C20: 304 | D20: 0220242100 | E20: 223012 | F20: 00000 | G20: =VLOOKUP($G$1,зпшк!$A$10:$DP$41,A20) -> 0.00
A21: 64 | B21: Газ (возмещение) | C21: 304 | D21: 0220242100 | E21: 223013 | F21: 00000 | G21: =VLOOKUP($G$1,зпшк!$A$10:$DP$41,A21) -> 0.00
A22: 65 | B22: Вода (возмещение) | C22: 304 | D22: 0220242100 | E22: 223014 | F22: 00000 | G22: =VLOOKUP($G$1,зпшк!$A$10:$DP$41,A22) -> 0.00
A23: 66 | B23: Канализация (возмещение) | C23: 304 | D23: 0220242100 | E23: 223015 | F23: 00000 | G23: =VLOOKUP($G$1,зпшк!$A$10:$DP$41,A23) -> 0.00
A24: 70 | B24: Заработная плата кухонных работников | C24: 304 | D24: 0220242100 | E24: 211004 | F24: 00954 | G24: =VLOOKUP($G$1,зпшк!$A$10:$DP$41,A24) -> 460,100.00
A25: 71 | B25: Отчисления от ЗП кухонных работников | C25: 304 | D25: 0220242100 | E25: 213004 | F25: 00954 | G25: =VLOOKUP($G$1,зпшк!$A$10:$DP$41,A25) -> 138,960.10
A26: 87 | B26: Заработная плата обслуживающего персонала | C26: 304 | D26: 0220242100 | E26: 211004 | F26: 00954 | G26: =VLOOKUP($G$1,зпшк!$A$10:$DP$41,A26) -> 739,800.00
A27: 88 | B27: Отчисления от ЗП обслуживающего персонала | C27: 304 | D27: 0220242100 | E27: 213004 | F27: 00954 | G27: =VLOOKUP($G$1,зпшк!$A$10:$DP$41,A27) -> 223,410.22
A28: 73 | B28: Питание в ГПД | C28: 304 | D28: 0220242100 | E28: 340005 | F28: 00000 | G28: =VLOOKUP($G$1,зпшк!$A$10:$DP$41,A28) -> 34,137.50
A29: 76 | B29: Услуги охраны | C29: 304 | D29: 0220242100 | E29: 226004 | F29: 00000 | G29: =VLOOKUP($G$1,зпшк!$A$10:$DP$41,A29) -> 13,219.36
A30: 77 | B30: Вывоз ТБО | C30: 304 | D30: 0220242100 | E30: 225002 | F30: 00000 | G30: =VLOOKUP($G$1,зпшк!$A$10:$DP$41,A30) -> 0.00
A31: 78 | B31: Услуги связи | C31: 304 | D31: 0220242100 | E31: 221001 | F31: 00000 | G31: =VLOOKUP($G$1,зпшк!$A$10:$DP$41,A31) -> 39,506.40
A32: 79 | B32: Дератизация | C32: 304 | D32: 0220242100 | E32: 225023 | F32: 00000 | G32: =VLOOKUP($G$1,зпшк!$A$10:$DP$41,A32) -> 6,300.00
A33: 80 | B33: Сан.гиг. обследования | C33: 304 | D33: 0220242100 | E33: 226034 | F33: 00000 | G33: =VLOOKUP($G$1,зпшк!$A$10:$DP$41,A33) -> 33,488.00
A34: 81 | B34: Техобслуживание (охрана) | C34: 304 | D34: 0220242100 | E34: 225001 | F34: 00000 | G34: =VLOOKUP($G$1,зпшк!$A$10:$DP$41,A34) -> 71,844.72
A35: 82 | B35: ГСМ | C35: 304 | D35: 0220242100 | E35: 212099 | F35: 00000 | G35: =VLOOKUP($G$1,зпшк!$A$10:$DP$41,A35) -> 15,000.00
A36: 83 | B36: Компенсация ГСМ | C36: 304 | D36: 0220242100 | E36: 212099 | F36: 00000 | G36: =VLOOKUP($G$1,зпшк!$A$10:$DP$41,A36) -> 0.00
A37: 85 | B37: Прочие услуги | C37: 304 | D37: 0220242100 | E37: 226099 | F37: 00000 | G37: =VLOOKUP($G$1,зпшк!$A$10:$DP$41,A37) -> 7,464.31
B38: ИТОГО нормативные расходы | G38: =SUM(G8:G37) -> 13,428,100.28 | H38: ='форма 1'!C8-G38 -> 0.00
B39: Сверхнормативные расходы
A40: 91 | B40: Заработная плата | C40: 305 | D40: 0220242100 | E40: 211004 | F40: 00000 | G40: =VLOOKUP($G$1,зпшк!$A$10:$DP$41,A40) -> 1,452,475.84
A41: 92 | B41: Отчисления от ЗП | C41: 305 | D41: 0220242100 | E41: 213004 | F41: 00000 | G41: =VLOOKUP($G$1,зпшк!$A$10:$DP$41,A41) -> 438,345.18
A42: 45 | B42: Электроэнергия | C42: 308 | D42: 0220242100 | E42: 223001 | F42: 00000 | G42: =VLOOKUP($G$1,зпшк!$A$10:$DP$41,A42) -> 0.00
A43: 46 | B43: Отопление | C43: 308 | D43: 0220242100 | E43: 223002 | F43: 00000 | G43: =VLOOKUP($G$1,зпшк!$A$10:$DP$41,A43) -> 146,810.74
A44: 47 | B44: Газ | C44: 308 | D44: 0220242100 | E44: 223003 | F44: 00000 | G44: =VLOOKUP($G$1,зпшк!$A$10:$DP$41,A44) -> 0.00
A45: 48 | B45: Вода | C45: 308 | D45: 0220242100 | E45: 223004 | F45: 00000 | G45: =VLOOKUP($G$1,зпшк!$A$10:$DP$41,A45) -> 0.00
A46: 49 | B46: Канализация | C46: 308 | D46: 0220242100 | E46: 223005 | F46: 00000 | G46: =VLOOKUP($G$1,зпшк!$A$10:$DP$41,A46) -> 0.00
A47: 50 | B47: Электроэнергия (возмещение) | C47: 308 | D47: 0220242100 | E47: 223011 | F47: 00000 | G47: =VLOOKUP($G$1,зпшк!$A$10:$DP$41,A47) -> 0.00
A48: 51 | B48: Отопление (возмещение) | C48: 308 | D48: 0220242100 | E48: 223012 | F48: 00000 | G48: =VLOOKUP($G$1,зпшк!$A$10:$DP$41,A48) -> 0.00
A49: 52 | B49: Газ (возмещение) | C49: 308 | D49: 0220242100 | E49: 223013 | F49: 00000 | G49: =VLOOKUP($G$1,зпшк!$A$10:$DP$41,A49) -> 0.00
A50: 53 | B50: Вода (возмещение) | C50: 308 | D50: 0220242100 | E50: 223014 | F50: 00000 | G50: =VLOOKUP($G$1,зпшк!$A$10:$DP$41,A50) -> 0.00
A51: 54 | B51: Канализация (возмещение) | C51: 308 | D51: 0220242100 | E51: 223015 | F51: 00000 | G51: =VLOOKUP($G$1,зпшк!$A$10:$DP$41,A51) -> 0.00
A52: 68 | B52: Уголь | C52: 308 | D52: 0220242100 | E52: 340007 | F52: 00000 | G52: =VLOOKUP($G$1,зпшк!$A$10:$DP$41,A52) -> 0.00
A53: 69 | B53: ГСМ для автобусов | C53: 308 | D53: 0220242100 | E53: 340014 | F53: 00000 | G53: =VLOOKUP($G$1,зпшк!$A$10:$DP$41,A53) -> 0.00
B54: ИТОГО нормативные расходы | G54: =SUM(G40:G53) -> 2,037,631.76
B55: ИТОГО ПЛАН ФХД | G55: =G38+G54 -> 15,465,732.04 | H55: =SUMIF(зпшк!A10:A41,G1,зпшк!DP10:DP41)-G55 -> 0.00

Sheet форма 1
B1: =VLOOKUP(C1,зпшк!A10:B41,2) -> МОУ Олуязская ср.шк. | C1: =форма!G1 -> 20
B4: Наименование | C4: Норматив на 2016 год, рублей
A7: 11 | B7: ФОТ | C7: =VLOOKUP($C$1,зпшк!$A$10:$DP$41,A7) -> 13,366,821.34
A8: 105 | B8: Финансовое обеспечение всего, в т.ч. | C8: =VLOOKUP($C$1,зпшк!$A$10:$DP$41,A8) -> 13,428,100.28 | D8: =C8-C10-C11-C12-C13 -> 0.00
B9: в том числе по ДОП КР
A10: 13 | B10: Норматив финансовых затрат (302) Субвенция | C10: =VLOOKUP($C$1,зпшк!$A$10:$DP$41,A10) -> 9,559,145.00
A11: 24 | B11: Норматив финансовых затрат (302) Субсидия | C11: =VLOOKUP($C$1,зпшк!$A$10:$DP$41,A11) -> 354,585.00
A12: 17 | B12: Норматив содержания воспитанников (303) | C12: =VLOOKUP($C$1,зпшк!$A$10:$DP$41,A12) -> 0.00
A13: 31 | B13: Норматив содержания имущества (304) | C13: =VLOOKUP($C$1,зпшк!$A$10:$DP$41,A13) -> 3,514,370.28
B14: в том числе
A15: 72 | B15: Зарплата кухонных работников (304) | C15: =VLOOKUP($C$1,зпшк!$A$10:$DP$41,A15) -> 599,060.10
A16: 89 | B16: Зарплата обсуживающего персонала (304) | C16: =VLOOKUP($C$1,зпшк!$A$10:$DP$41,A16) -> 963,210.22
A17: 32 | B17: Коммунальные услуги (304) | C17: =VLOOKUP($C$1,зпшк!$A$10:$DP$41,A17) -> 1,731,139.67

Sheet норм2016
A1: Выборка: Основные показатели работы учреждений Школы_OLAP
A2: Дата печати: 11.12.2015 16:32:07
A3: Отчет распечатан: Самигуллин Ильнур Кафилович
A4: Отчетные периоды: 2016_Нормативы
A6: 1. Класс комплект
A8: 2. Классов | B8: 3. Учащихся | D8: 4. Наполняемость | G8: 5. Норматив НФЗ | I8: 6. Объем по нормативу НФЗ | K8: 7. Субвенции (из формы) | L8: 8. Субсидии (из формы) | N8: 9. Норматив содержания воспитанников | P8: 10. Объем по содержанию воспитанников | R8: 11. Стоимость содержания имущества | T8: 12. Объем фин. обеспечения | V8: 13. Фонд кухонных работников | X8: 14. Бесплатное питание | Z8: 15. ФОТ вспомогательного персонала | AB8: 16. Связь | AD8: 17. Дератизация | AF8: 18. Расходы на бассейн | AG8: 19. Прочие расходы доведение | AI8: 20. Вывоз мусора | AK8: 21. Ком.услуги факт | AM8: 22. Расходы на текущий ремонт | AO8: 23. Отапливаемая площадь | AQ8: 24. Общая площадь
AS9: Общий итог
A10: Учреждение 1 | C10: Учреждение 2 | E10: Учреждение 3 | H10: Учреждение 4 | J10: Учреждение 5 | M10: Учреждение 6 | O10: Учреждение 7 | Q10: ИНН | S10: Учреждение 8 | U10: Ступень образования | Y10: Программа обучения | AA10: Тип населенного пункта | AC10: Вид НФЗ | AE10: Тип учреждения | AH10: Тип класса | AJ10: Вид НСИ | AL10: Статус Гос. услуги | AN10: Специальная коррекционная школа- интернат | AP10: КПП | AS10: 2. Классов | AT10: 3. Учащихся | AU10: 4. Наполняемость | AW10: 5. Норматив НФЗ | AX10: 6. Объем по нормативу НФЗ | AY10: 7. Субвенции (из формы) | AZ10: 8. Субсидии (из формы) | BA10: 9. Норматив содержания воспитанников | BB10: 10. Объем по содержанию воспитанников | BC10: 11. Стоимость содержания имущества | BD10: 12. Объем фин. обеспечения | BE10: 13. Фонд кухонных работников | BF10: 14. Бесплатное питание | BG10: 15. ФОТ вспомогательного персонала | BH10: 16. Связь | BI10: 17. Дератизация | BJ10: 18. Расходы на бассейн | BK10: 19. Прочие расходы доведение | BL10: 20. Вывоз мусора | BM10: 21. Ком.услуги факт | BN10: 22. Расходы на текущий ремонт | BO10: 23. Отапливаемая площадь | BP10: 24. Общая площадь
A11: Общеотраслевое | C11: Школы | E11: Министерство образования и науки Республики Татарстан | H11: Муниципальные учреждения | J11: Кукморский муниципальный район | M11: Школы - Кукморский район | O11: ВОШ Кукморск. района | Q11: 1623005055 | AS11: 8.00 | AT11: 200.00 | AU11: 49.60 | AW11: 112,480.00 | AX11: 4,323,538.80 | AY11: 4,323,538.80 | AZ11: 0.00 | BA11: 0.00 | BB11: 0.00 | BC11: 1,087,456.13 | BD11: 5,410,994.93 | BE11: 0.00 | BF11: 0.00 | BG11: 459,911.19 | BH11: 3,470.40 | BI11: 465.30 | BJ11: 0.00 | BK11: 37,542.24 | BL11: 5,218.88 | BM11: 478,644.86 | BN11: 4,653.00 | BO11: 258.50 | BP11: 258.50
O12: ВОШ Кукморск. района Итого | AS12: 8.00 | AT12: 200.00 | AU12: 49.60 | AW12: 112,480.00 | AX12: 4,323,538.80 | AY12: 4,323,538.80 | AZ12: 0.00 | BA12: 0.00 | BB12: 0.00 | BC12: 1,087,456.13 | BD12: 5,410,994.93 | BE12: 0.00 | BF12: 0.00 | BG12: 459,911.19 | BH12: 3,470.40 | BI12: 465.30 | BJ12: 0.00 | BK12: 37,542.24 | BL12: 5,218.88 | BM12: 478,644.86 | BN12: 4,653.00 | BO12: 258.50 | BP12: 258.50
O13: Гимназия № 1.п.г.т.Кукмор Кукморск. района | Q13: 1623002417 | AS13: 41.00 | AT13: 909.00 | AU13: 171.14 | AW13: 559,901.00 | AX13: 15,752,007.00 | AY13: 14,565,515.00 | AZ13: 1,186,492.00 | BA13: 0.00 | BB13: 0.00 | BC13: 3,540,690.05 | BD13: 19,292,697.05 | BE13: 562,376.51 | BF13: 117,715.50 | BG13: 937,177.52 | BH13: 21,816.00 | BI13: 4,201.20 | BJ13: 0.00 | BK13: 105,821.35 | BL13: 41,213.70 | BM13: 1,708,356.27 | BN13: 42,012.00 | BO13: 2,334.00 | BP13: 2,334.00
O14: Гимназия № 1.п.г.т.Кукмор Кукморск. района Итого | AS14: 41.00 | AT14: 909.00 | AU14: 171.14 | AW14: 559,901.00 | AX14: 15,752,007.00 | AY14: 14,565,515.00 | AZ14: 1,186,492.00 | BA14: 0.00 | BB14: 0.00 | BC14: 3,540,690.05 | BD14: 19,292,697.05 | BE14: 562,376.51 | BF14: 117,715.50 | BG14: 937,177.52 | BH14: 21,816.00 | BI14: 4,201.20 | BJ14: 0.00 | BK14: 105,821.35 | BL14: 41,213.70 | BM14: 1,708,356.27 | BN14: 42,012.00 | BO14: 2,334.00 | BP14: 2,334.00
O15: Гимназия с. Большой Сардек Кукморск. района | Q15: 1623003298 | AS15: 73.00 | AT15: 919.00 | AU15: 222.50 | AW15: 987,525.00 | AX15: 22,591,491.00 | AY15: 21,077,745.00 | AZ15: 1,513,746.00 | BA15: 0.00 | BB15: 0.00 | BC15: 4,866,238.57 | BD15: 27,457,729.57 | BE15: 660,143.22 | BF15: 58,857.75 | BG15: 1,883,032.61 | BH15: 35,697.60 | BI15: 8,955.00 | BJ15: 0.00 | BK15: 154,347.49 | BL15: 0.00 | BM15: 1,975,654.90 | BN15: 89,550.00 | BO15: 4,975.00 | BP15: 4,975.00
O16: Гимназия с. Большой Сардек Кукморск. района Итого | AS16: 73.00 | AT16: 919.00 | AU16: 222.50 | AW16: 987,525.00 | AX16: 22,591,491.00 | AY16: 21,077,745.00 | AZ16: 1,513,746.00 | BA16: 0.00 | BB16: 0.00 | BC16: 4,866,238.57 | BD16: 27,457,729.57 | BE16: 660,143.22 | BF16: 58,857.75 | BG16: 1,883,032.61 | BH16: 35,697.60 | BI16: 8,955.00 | BJ16: 0.00 | BK16: 154,347.49 | BL16: 0.00 | BM16: 1,975,654.90 | BN16: 89,550.00 | BO16: 4,975.00 | BP16: 4,975.00
O17: МБОУ СОШ Ныртинского совхоза Кукморского района | Q17: 1623006034 | AS17: 4.00 | AT17: 10.00 | AU17: 2.50 | AW17: 420,392.00 | AX17: 840,784.00 | AY17: 840,784.00 | AZ17: 0.00 | BA17: 0.00 | BB17: 0.00 | BC17: 142,503.48 | BD17: 983,287.48 | BE17: 0.00 | BF17: 0.00 | BG17: 130,163.54 | BH17: 3,470.40 | BI17: 333.00 | BJ17: 0.00 | BK17: 5,206.54 | BL17: 0.00 | BM17: 0.00 | BN17: 3,330.00 | BO17: 185.00 | BP17: 185.00
Q18: 1623006034 | AS18: 28.00 | AT18: 168.00 | AU18: 60.57 | AW18: 1,482,805.00 | AX18: 7,480,510.50 | AY18: 5,637,360.00 | AZ18: 1,843,150.50 | BA18: 0.00 | BB18: 0.00 | BC18: 3,199,988.73 | BD18: 10,680,499.23 | BE18: 269,857.57 | BF18: 29,428.88 | BG18: 807,013.96 | BH18: 28,756.80 | BI18: 6,145.20 | BJ18: 0.00 | BK18: 107,859.55 | BL18: 0.00 | BM18: 1,889,474.77 | BN18: 61,452.00 | BO18: 3,414.00 | BP18: 3,414.00
O19: МБОУ СОШ Ныртинского совхоза Кукморского района Итого | AS19: 32.00 | AT19: 178.00 | AU19: 63.07 | AW19: 1,903,197.00 | AX19: 8,321,294.50 | AY19: 6,478,144.00 | AZ19: 1,843,150.50 | BA19: 0.00 | BB19: 0.00 | BC19: 3,342,492.21 | BD19: 11,663,786.71 | BE19: 269,857.57 | BF19: 29,428.88 | BG19: 937,177.50 | BH19: 32,227.20 | BI19: 6,478.20 | BJ19: 0.00 | BK19: 113,066.09 | BL19: 0.00 | BM19: 1,889,474.77 | BN19: 64,782.00 | BO19: 3,599.00 | BP19: 3,599.00
O20: МБОУ СОШ с. Чарли Кукморского района | Q20: 1623005979 | AS20: 26.00 | AT20: 113.00 | AU20: 32.95 | AW20: 2,264,798.00 | AX20: 6,539,779.00 | AY20: 6,539,779.00 | AZ20: 0.00 | BA20: 0.00 | BB20: 0.00 | BC20: 1,752,427.16 | BD20: 8,292,206.16 | BE20: 243,603.00 | BF20: 0.00 | BG20: 503,299.03 | BH20: 6,940.80 | BI20: 3,990.60 | BJ20: 0.00 | BK20: 56,076.41 | BL20: 0.00 | BM20: 898,611.32 | BN20: 39,906.00 | BO20: 2,217.00 | BP20: 2,217.00
O21: МБОУ СОШ с. Чарли Кукморского района Итого | AS21: 26.00 | AT21: 113.00 | AU21: 32.95 | AW21: 2,264,798.00 | AX21: 6,539,779.00 | AY21: 6,539,779.00 | AZ21: 0.00 | BA21: 0.00 | BB21: 0.00 | BC21: 1,752,427.16 | BD21: 8,292,206.16 | BE21: 243,603.00 | BF21: 0.00 | BG21: 503,299.03 | BH21: 6,940.80 | BI21: 3,990.60 | BJ21: 0.00 | BK21: 56,076.41 | BL21: 0.00 | BM21: 898,611.32 | BN21: 39,906.00 | BO21: 2,217.00 | BP21: 2,217.00
O22: МБОУ СОШ с.Байлангар Кукморского района | Q22: 1623005915 | AS22: 23.00 | AT22: 148.00 | AU22: 50.60 | AW22: 160,248.00 | AX22: 5,463,793.00 | AY22: 3,435,532.00 | AZ22: 2,028,261.00 | BA22: 0.00 | BB22: 0.00 | BC22: 1,926,684.03 | BD22: 7,390,477.03 | BE22: 202,632.03 | BF22: 29,428.88 | BG22: 546,686.88 | BH22: 21,816.00 | BI22: 3,087.00 | BJ22: 0.00 | BK22: 63,032.70 | BL22: 0.00 | BM22: 1,029,130.54 | BN22: 30,870.00 | BO22: 1,971.00 | BP22: 1,971.00
O23: МБОУ СОШ с.Байлангар Кукморского района Итого | AS23: 23.00 | AT23: 148.00 | AU23: 50.60 | AW23: 160,248.00 | AX23: 5,463,793.00 | AY23: 3,435,532.00 | AZ23: 2,028,261.00 | BA23: 0.00 | BB23: 0.00 | BC23: 1,926,684.03 | BD23: 7,390,477.03 | BE23: 202,632.03 | BF23: 29,428.88 | BG23: 546,686.88 | BH23: 21,816.00 | BI23: 3,087.00 | BJ23: 0.00 | BK23: 63,032.70 | BL23: 0.00 | BM23: 1,029,130.54 | BN23: 30,870.00 | BO23: 1,971.00 | BP23: 1,971.00
O24: МБОУ СОШ с.Березняк Кукморского района | Q24: 1623006010 | AS24: 15.00 | AT24: 50.00 | AU24: 11.75 | AW24: 1,931,237.00 | AX24: 5,452,265.00 | AY24: 5,452,265.00 | AZ24: 0.00 | BA24: 0.00 | BB24: 0.00 | BC24: 1,907,322.68 | BD24: 7,359,587.68 | BE24: 235,151.98 | BF24: 27,074.57 | BG24: 633,462.57 | BH24: 13,881.60 | BI24: 3,389.40 | BJ24: 0.00 | BK24: 61,305.04 | BL24: 0.00 | BM24: 899,163.52 | BN24: 33,894.00 | BO24: 1,883.00 | BP24: 1,883.00
O25: МБОУ СОШ с.Березняк Кукморского района Итого | AS25: 15.00 | AT25: 50.00 | AU25: 11.75 | AW25: 1,931,237.00 | AX25: 5,452,265.00 | AY25: 5,452,265.00 | AZ25: 0.00 | BA25: 0.00 | BB25: 0.00 | BC25: 1,907,322.68 | BD25: 7,359,587.68 | BE25: 235,151.98 | BF25: 27,074.57 | BG25: 633,462.57 | BH25: 13,881.60 | BI25: 3,389.40 | BJ25: 0.00 | BK25: 61,305.04 | BL25: 0.00 | BM25: 899,163.52 | BN25: 33,894.00 | BO25: 1,883.00 | BP25: 1,883.00
O26: МБОУ СОШ с.Большой Кукмор Кукморского района | Q26: 1623005866 | AS26: 38.00 | AT26: 554.00 | AU26: 113.28 | AW26: 1,017,198.00 | AX26: 11,546,718.00 | AY26: 11,546,718.00 | AZ26: 0.00 | BA26: 0.00 | BB26: 0.00 | BC26: 4,019,507.87 | BD26: 15,566,225.87 | BE26: 371,099.06 | BF26: 58,857.75 | BG26: 807,013.96 | BH26: 28,756.80 | BI26: 8,683.92 | BJ26: 0.00 | BK26: 132,323.32 | BL26: 24,864.84 | BM26: 2,501,069.02 | BN26: 86,839.20 | BO26: 4,824.40 | BP26: 4,824.40
O27: МБОУ СОШ с.Большой Кукмор Кукморского района Итого | AS27: 38.00 | AT27: 554.00 | AU27: 113.28 | AW27: 1,017,198.00 | AX27: 11,546,718.00 | AY27: 11,546,718.00 | AZ27: 0.00 | BA27: 0.00 | BB27: 0.00 | BC27: 4,019,507.87 | BD27: 15,566,225.87 | BE27: 371,099.06 | BF27: 58,857.75 | BG27: 807,013.96 | BH27: 28,756.80 | BI27: 8,683.92 | BJ27: 0.00 | BK27: 132,323.32 | BL27: 24,864.84 | BM27: 2,501,069.02 | BN27: 86,839.20 | BO27: 4,824.40 | BP27: 4,824.40
O28: МБОУ СОШ с.Каркаусь Кукморского района | Q28: 1623005947 | AS28: 29.00 | AT28: 129.00 | AU28: 34.70 | AW28: 1,005,212.00 | AX28: 6,649,956.50 | AY28: 4,366,006.00 | AZ28: 2,283,950.50 | BA28: 0.00 | BB28: 0.00 | BC28: 2,455,517.01 | BD28: 9,105,473.51 | BE28: 278,191.26 | BF28: 0.00 | BG28: 807,013.96 | BH28: 28,756.80 | BI28: 4,030.20 | BJ28: 0.00 | BK28: 80,932.18 | BL28: 0.00 | BM28: 1,216,290.61 | BN28: 40,302.00 | BO28: 2,239.00 | BP28: 2,239.00
O29: МБОУ СОШ с.Каркаусь Кукморского района Итого | AS29: 29.00 | AT29: 129.00 | AU29: 34.70 | AW29: 1,005,212.00 | AX29: 6,649,956.50 | AY29: 4,366,006.00 | AZ29: 2,283,950.50 | BA29: 0.00 | BB29: 0.00 | BC29: 2,455,517.01 | BD29: 9,105,473.51 | BE29: 278,191.26 | BF29: 0.00 | BG29: 807,013.96 | BH29: 28,756.80 | BI29: 4,030.20 | BJ29: 0.00 | BK29: 80,932.18 | BL29: 0.00 | BM29: 1,216,290.61 | BN29: 40,302.00 | BO29: 2,239.00 | BP29: 2,239.00
O30: МБОУ СОШ с.Нижний Искубаш Кукморского района | Q30: 1623006098 | AS30: 31.00 | AT30: 147.00 | AU30: 38.88 | AW30: 1,425,604.00 | AX30: 7,425,618.00 | AY30: 5,469,712.00 | AZ30: 1,955,906.00 | BA30: 0.00 | BB30: 0.00 | BC30: 2,669,844.02 | BD30: 10,095,462.02 | BE30: 302,761.56 | BF30: 0.00 | BG30: 937,177.50 | BH30: 32,227.20 | BI30: 4,383.00 | BJ30: 0.00 | BK30: 87,947.77 | BL30: 0.00 | BM30: 1,261,516.99 | BN30: 43,830.00 | BO30: 2,435.00 | BP30: 2,435.00
O31: МБОУ СОШ с.Нижний Искубаш Кукморского района Итого | AS31: 31.00 | AT31: 147.00 | AU31: 38.88 | AW31: 1,425,604.00 | AX31: 7,425,618.00 | AY31: 5,469,712.00 | AZ31: 1,955,906.00 | BA31: 0.00 | BB31: 0.00 | BC31: 2,669,844.02 | BD31: 10,095,462.02 | BE31: 302,761.56 | BF31: 0.00 | BG31: 937,177.50 | BH31: 32,227.20 | BI31: 4,383.00 | BJ31: 0.00 | BK31: 87,947.77 | BL31: 0.00 | BM31: 1,261,516.99 | BN31: 43,830.00 | BO31: 2,435.00 | BP31: 2,435.00
O32: МБОУ СОШ с.Нижняя Русь Кукморского района | Q32: 1623004051 | AS32: 21.00 | AT32: 193.00 | AU32: 80.40 | AW32: 171,319.00 | AX32: 5,788,076.50 | AY32: 4,141,647.00 | AZ32: 1,646,429.50 | BA32: 0.00 | BB32: 0.00 | BC32: 2,208,664.00 | BD32: 7,996,740.50 | BE32: 182,261.15 | BF32: 0.00 | BG32: 546,686.88 | BH32: 21,816.00 | BI32: 8,179.20 | BJ32: 0.00 | BK32: 73,639.06 | BL32: 0.00 | BM32: 1,294,289.71 | BN32: 81,792.00 | BO32: 5,339.00 | BP32: 5,339.00
O33: МБОУ СОШ с.Нижняя Русь Кукморского района Итого | AS33: 21.00 | AT33: 193.00 | AU33: 80.40 | AW33: 171,319.00 | AX33: 5,788,076.50 | AY33: 4,141,647.00 | AZ33: 1,646,429.50 | BA33: 0.00 | BB33: 0.00 | BC33: 2,208,664.00 | BD33: 7,996,740.50 | BE33: 182,261.15 | BF33: 0.00 | BG33: 546,686.88 | BH33: 21,816.00 | BI33: 8,179.20 | BJ33: 0.00 | BK33: 73,639.06 | BL33: 0.00 | BM33: 1,294,289.71 | BN33: 81,792.00 | BO33: 5,339.00 | BP33: 5,339.00
O34: МБОУ СОШ с.Нырья Кукморского района | Q34: 1623006059 | AS34: 39.00 | AT34: 442.00 | AU34: 142.50 | AW34: 1,472,900.00 | AX34: 11,228,937.00 | AY34: 10,616,472.00 | AZ34: 612,465.00 | BA34: 122,744.00 | BB34: 920,580.00 | BC34: 3,660,788.39 | BD34: 15,810,305.39 | BE34: 553,701.90 | BF34: 182,331.77 | BG34: 1,093,373.76 | BH34: 32,227.20 | BI34: 4,275.00 | BJ34: 0.00 | BK34: 109,442.40 | BL34: 0.00 | BM34: 1,642,686.36 | BN34: 42,750.00 | BO34: 2,458.00 | BP34: 2,458.00
O35: МБОУ СОШ с.Нырья Кукморского района Итого | AS35: 39.00 | AT35: 442.00 | AU35: 142.50 | AW35: 1,472,900.00 | AX35: 11,228,937.00 | AY35: 10,616,472.00 | AZ35: 612,465.00 | BA35: 122,744.00 | BB35: 920,580.00 | BC35: 3,660,788.39 | BD35: 15,810,305.39 | BE35: 553,701.90 | BF35: 182,331.77 | BG35: 1,093,373.76 | BH35: 32,227.20 | BI35: 4,275.00 | BJ35: 0.00 | BK35: 109,442.40 | BL35: 0.00 | BM35: 1,642,686.36 | BN35: 42,750.00 | BO35: 2,458.00 | BP35: 2,458.00
O36: МБОУ СОШ с.Олуяз Кукморского района | Q36: 1623005922 | AS36: 30.00 | AT36: 352.00 | AU36: 122.75 | AW36: 1,013,231.00 | AX36: 9,913,730.00 | AY36: 9,559,145.00 | AZ36: 354,585.00 | BA36: 0.00 | BB36: 0.00 | BC36: 3,514,370.28 | BD36: 13,428,100.28 | BE36: 599,060.10 | BF36: 34,137.50 | BG36: 963,210.22 | BH36: 28,756.80 | BI36: 4,572.00 | BJ36: 0.00 | BK36: 107,773.99 | BL36: 0.00 | BM36: 1,731,139.67 | BN36: 45,720.00 | BO36: 2,540.00 | BP36: 2,540.00
O37: МБОУ СОШ с.Олуяз Кукморского района Итого | AS37: 30.00 | AT37: 352.00 | AU37: 122.75 | AW37: 1,013,231.00 | AX37: 9,913,730.00 | AY37: 9,559,145.00 | AZ37: 354,585.00 | BA37: 0.00 | BB37: 0.00 | BC37: 3,514,370.28 | BD37: 13,428,100.28 | BE37: 599,060.10 | BF37: 34,137.50 | BG37: 963,210.22 | BH37: 28,756.80 | BI37: 4,572.00 | BJ37: 0.00 | BK37: 107,773.99 | BL37: 0.00 | BM37: 1,731,139.67 | BN37: 45,720.00 | BO37: 2,540.00 | BP37: 2,540.00
O38: МБОУ СОШ с.Починок Кучук Кукморского района | Q38: 1623006027 | AS38: 26.00 | AT38: 172.00 | AU38: 52.50 | AW38: 1,222,908.00 | AX38: 6,936,479.50 | AY38: 5,309,989.00 | AZ38: 1,626,490.50 | BA38: 0.00 | BB38: 0.00 | BC38: 3,003,744.39 | BD38: 9,940,223.89 | BE38: 300,442.33 | BF38: 0.00 | BG38: 807,013.96 | BH38: 28,756.80 | BI38: 10,006.20 | BJ38: 0.00 | BK38: 98,633.73 | BL38: 0.00 | BM38: 1,658,829.37 | BN38: 100,062.00 | BO38: 5,559.00 | BP38: 5,559.00
O39: МБОУ СОШ с.Починок Кучук Кукморского района Итого | AS39: 26.00 | AT39: 172.00 | AU39: 52.50 | AW39: 1,222,908.00 | AX39: 6,936,479.50 | AY39: 5,309,989.00 | AZ39: 1,626,490.50 | BA39: 0.00 | BB39: 0.00 | BC39: 3,003,744.39 | BD39: 9,940,223.89 | BE39: 300,442.33 | BF39: 0.00 | BG39: 807,013.96 | BH39: 28,756.80 | BI39: 10,006.20 | BJ39: 0.00 | BK39: 98,633.73 | BL39: 0.00 | BM39: 1,658,829.37 | BN39: 100,062.00 | BO39: 5,559.00 | BP39: 5,559.00
O40: МБОУ СОШ с.Починок Сутер Кукморского района | Q40: 1623005834 | AS40: 24.00 | AT40: 143.00 | AU40: 40.70 | AW40: 742,411.00 | AX40: 6,318,631.50 | AY40: 4,384,854.00 | AZ40: 1,933,777.50 | BA40: 0.00 | BB40: 0.00 | BC40: 2,308,043.83 | BD40: 8,626,675.33 | BE40: 248,126.15 | BF40: 0.00 | BG40: 676,850.42 | BH40: 25,286.40 | BI40: 4,030.20 | BJ40: 0.00 | BK40: 76,549.96 | BL40: 0.00 | BM40: 1,236,898.70 | BN40: 40,302.00 | BO40: 2,429.00 | BP40: 2,429.00
O41: МБОУ СОШ с.Починок Сутер Кукморского района Итого | AS41: 24.00 | AT41: 143.00 | AU41: 40.70 | AW41: 742,411.00 | AX41: 6,318,631.50 | AY41: 4,384,854.00 | AZ41: 1,933,777.50 | BA41: 0.00 | BB41: 0.00 | BC41: 2,308,043.83 | BD41: 8,626,675.33 | BE41: 248,126.15 | BF41: 0.00 | BG41: 676,850.42 | BH41: 25,286.40 | BI41: 4,030.20 | BJ41: 0.00 | BK41: 76,549.96 | BL41: 0.00 | BM41: 1,236,898.70 | BN41: 40,302.00 | BO41: 2,429.00 | BP41: 2,429.00
O42: МБОУ СОШ с.Псяк Кукморского района | Q42: 1623006041 | AS42: 27.00 | AT42: 192.00 | AU42: 72.00 | AW42: 651,816.00 | AX42: 6,842,934.50 | AY42: 5,114,277.00 | AZ42: 1,728,657.50 | BA42: 0.00 | BB42: 0.00 | BC42: 2,076,589.76 | BD42: 8,919,524.26 | BE42: 207,253.30 | BF42: 30,606.03 | BG42: 676,850.42 | BH42: 25,286.40 | BI42: 2,979.00 | BJ42: 0.00 | BK42: 68,487.50 | BL42: 0.00 | BM42: 1,035,337.11 | BN42: 29,790.00 | BO42: 1,655.00 | BP42: 1,655.00
O43: МБОУ СОШ с.Псяк Кукморского района Итого | AS43: 27.00 | AT43: 192.00 | AU43: 72.00 | AW43: 651,816.00 | AX43: 6,842,934.50 | AY43: 5,114,277.00 | AZ43: 1,728,657.50 | BA43: 0.00 | BB43: 0.00 | BC43: 2,076,589.76 | BD43: 8,919,524.26 | BE43: 207,253.30 | BF43: 30,606.03 | BG43: 676,850.42 | BH43: 25,286.40 | BI43: 2,979.00 | BJ43: 0.00 | BK43: 68,487.50 | BL43: 0.00 | BM43: 1,035,337.11 | BN43: 29,790.00 | BO43: 1,655.00 | BP43: 1,655.00
O44: МБОУ СОШ с.Сардек-Баш Кукморского района | Q44: 1623005841 | AS44: 35.00 | AT44: 274.00 | AU44: 98.20 | AW44: 684,114.00 | AX44: 8,788,944.00 | AY44: 7,177,086.00 | AZ44: 1,611,858.00 | BA44: 0.00 | BB44: 0.00 | BC44: 2,981,011.94 | BD44: 11,769,955.94 | BE44: 352,275.27 | BF44: 29,428.88 | BG44: 963,210.22 | BH44: 28,756.80 | BI44: 5,182.20 | BJ44: 0.00 | BK44: 96,674.87 | BL44: 0.00 | BM44: 1,453,661.70 | BN44: 51,822.00 | BO44: 2,953.00 | BP44: 2,953.00
O45: МБОУ СОШ с.Сардек-Баш Кукморского района Итого | AS45: 35.00 | AT45: 274.00 | AU45: 98.20 | AW45: 684,114.00 | AX45: 8,788,944.00 | AY45: 7,177,086.00 | AZ45: 1,611,858.00 | BA45: 0.00 | BB45: 0.00 | BC45: 2,981,011.94 | BD45: 11,769,955.94 | BE45: 352,275.27 | BF45: 29,428.88 | BG45: 963,210.22 | BH45: 28,756.80 | BI45: 5,182.20 | BJ45: 0.00 | BK45: 96,674.87 | BL45: 0.00 | BM45: 1,453,661.70 | BN45: 51,822.00 | BO45: 2,953.00 | BP45: 2,953.00
O46: МБОУ СОШ с.Село-Чура Кукморского района | Q46: 1623005930 | AS46: 29.00 | AT46: 249.00 | AU46: 85.44 | AW46: 1,001,032.00 | AX46: 8,060,579.00 | AY46: 6,830,996.00 | AZ46: 1,229,583.00 | BA46: 0.00 | BB46: 0.00 | BC46: 2,191,352.86 | BD46: 10,251,931.86 | BE46: 309,243.64 | BF46: 31,783.19 | BG46: 807,013.96 | BH46: 28,756.80 | BI46: 2,834.10 | BJ46: 0.00 | BK46: 68,861.31 | BL46: 0.00 | BM46: 914,518.86 | BN46: 28,341.00 | BO46: 1,887.50 | BP46: 1,887.50
O47: МБОУ СОШ с.Село-Чура Кукморского района Итого | AS47: 29.00 | AT47: 249.00 | AU47: 85.44 | AW47: 1,001,032.00 | AX47: 8,060,579.00 | AY47: 6,830,996.00 | AZ47: 1,229,583.00 | BA47: 0.00 | BB47: 0.00 | BC47: 2,191,352.86 | BD47: 10,251,931.86 | BE47: 309,243.64 | BF47: 31,783.19 | BG47: 807,013.96 | BH47: 28,756.80 | BI47: 2,834.10 | BJ47: 0.00 | BK47: 68,861.31 | BL47: 0.00 | BM47: 914,518.86 | BN47: 28,341.00 | BO47: 1,887.50 | BP47: 1,887.50
O48: МБОУ СОШ с.Средний Кукмор Кукморского района | Q48: 1623006066 | AS48: 27.00 | AT48: 199.00 | AU48: 67.77 | AW48: 1,064,189.00 | AX48: 7,755,173.50 | AY48: 6,718,843.00 | AZ48: 1,036,330.50 | BA48: 0.00 | BB48: 0.00 | BC48: 2,673,685.33 | BD48: 10,428,858.83 | BE48: 304,411.92 | BF48: 29,428.88 | BG48: 807,013.96 | BH48: 28,756.80 | BI48: 4,019.40 | BJ48: 0.00 | BK48: 87,187.47 | BL48: 0.00 | BM48: 1,372,672.90 | BN48: 40,194.00 | BO48: 2,233.00 | BP48: 2,233.00
O49: МБОУ СОШ с.Средний Кукмор Кукморского района Итого | AS49: 27.00 | AT49: 199.00 | AU49: 67.77 | AW49: 1,064,189.00 | AX49: 7,755,173.50 | AY49: 6,718,843.00 | AZ49: 1,036,330.50 | BA49: 0.00 | BB49: 0.00 | BC49: 2,673,685.33 | BD49: 10,428,858.83 | BE49: 304,411.92 | BF49: 29,428.88 | BG49: 807,013.96 | BH49: 28,756.80 | BI49: 4,019.40 | BJ49: 0.00 | BK49: 87,187.47 | BL49: 0.00 | BM49: 1,372,672.90 | BN49: 40,194.00 | BO49: 2,233.00 | BP49: 2,233.00
O50: МБОУ СОШ с.Ядыгерь Кукморского района | Q50: 1623005908 | AS50: 29.00 | AT50: 205.00 | AU50: 83.57 | AW50: 1,072,208.00 | AX50: 7,394,360.50 | AY50: 5,761,416.00 | AZ50: 1,632,944.50 | BA50: 0.00 | BB50: 0.00 | BC50: 2,526,133.12 | BD50: 9,920,493.62 | BE50: 235,326.81 | BF50: 23,543.10 | BG50: 807,013.96 | BH50: 28,756.80 | BI50: 4,207.86 | BJ50: 0.00 | BK50: 84,316.15 | BL50: 0.00 | BM50: 1,300,889.84 | BN50: 42,078.60 | BO50: 2,337.70 | BP50: 2,337.70
O51: МБОУ СОШ с.Ядыгерь Кукморского района Итого | AS51: 29.00 | AT51: 205.00 | AU51: 83.57 | AW51: 1,072,208.00 | AX51: 7,394,360.50 | AY51: 5,761,416.00 | AZ51: 1,632,944.50 | BA51: 0.00 | BB51: 0.00 | BC51: 2,526,133.12 | BD51: 9,920,493.62 | BE51: 235,326.81 | BF51: 23,543.10 | BG51: 807,013.96 | BH51: 28,756.80 | BI51: 4,207.86 | BJ51: 0.00 | BK51: 84,316.15 | BL51: 0.00 | BM51: 1,300,889.84 | BN51: 42,078.60 | BO51: 2,337.70 | BP51: 2,337.70
O52: МБОУ СОШ с.Яныль Кукморского района | Q52: 1623005898 | AS52: 21.00 | AT52: 273.00 | AU52: 104.36 | AW52: 231,424.00 | AX52: 6,933,648.70 | AY52: 6,434,933.20 | AZ52: 498,715.50 | BA52: 0.00 | BB52: 0.00 | BC52: 2,582,962.26 | BD52: 9,516,610.96 | BE52: 308,157.78 | BF52: 29,428.88 | BG52: 546,686.88 | BH52: 21,816.00 | BI52: 7,333.20 | BJ52: 0.00 | BK52: 82,419.02 | BL52: 0.00 | BM52: 1,513,788.50 | BN52: 73,332.00 | BO52: 4,074.00 | BP52: 4,074.00
Q53: 1623005898 | AS53: 8.00 | AT53: 88.00 | AU53: 22.00 | AW53: 34,393.00 | AX53: 1,698,070.00 | AY53: 1,504,660.00 | AZ53: 193,410.00 | BA53: 0.00 | BB53: 0.00 | BC53: 319,361.99 | BD53: 2,017,431.99 | BE53: 0.00 | BF53: 0.00 | BG53: 286,359.80 | BH53: 3,470.40 | BI53: 1,643.40 | BJ53: 0.00 | BK53: 11,454.39 | BL53: 0.00 | BM53: 0.00 | BN53: 16,434.00 | BO53: 913.00 | BP53: 913.00
O54: МБОУ СОШ с.Яныль Кукморского района Итого | AS54: 29.00 | AT54: 361.00 | AU54: 126.36 | AW54: 265,817.00 | AX54: 8,631,718.70 | AY54: 7,939,593.20 | AZ54: 692,125.50 | BA54: 0.00 | BB54: 0.00 | BC54: 2,902,324.25 | BD54: 11,534,042.95 | BE54: 308,157.78 | BF54: 29,428.88 | BG54: 833,046.68 | BH54: 25,286.40 | BI54: 8,976.60 | BJ54: 0.00 | BK54: 93,873.41 | BL54: 0.00 | BM54: 1,513,788.50 | BN54: 89,766.00 | BO54: 4,987.00 | BP54: 4,987.00
O55: ООШ с.Туенбаш Кукморск. района | Q55: 1623005954 | AS55: 20.00 | AT55: 96.00 | AU55: 21.49 | AW55: 719,281.00 | AX55: 4,786,963.00 | AY55: 3,333,004.00 | AZ55: 1,453,959.00 | BA55: 0.00 | BB55: 0.00 | BC55: 1,135,688.13 | BD55: 5,922,651.13 | BE55: 163,722.33 | BF55: 0.00 | BG55: 503,299.03 | BH55: 10,411.20 | BI55: 1,675.80 | BJ55: 0.00 | BK55: 36,273.88 | BL55: 0.00 | BM55: 403,547.89 | BN55: 16,758.00 | BO55: 931.00 | BP55: 931.00
O56: ООШ с.Туенбаш Кукморск. района Итого | AS56: 20.00 | AT56: 96.00 | AU56: 21.49 | AW56: 719,281.00 | AX56: 4,786,963.00 | AY56: 3,333,004.00 | AZ56: 1,453,959.00 | BA56: 0.00 | BB56: 0.00 | BC56: 1,135,688.13 | BD56: 5,922,651.13 | BE56: 163,722.33 | BF56: 0.00 | BG56: 503,299.03 | BH56: 10,411.20 | BI56: 1,675.80 | BJ56: 0.00 | BK56: 36,273.88 | BL56: 0.00 | BM56: 403,547.89 | BN56: 16,758.00 | BO56: 931.00 | BP56: 931.00
O57: СОШ №2 п.г.т.Кукмор Кукморск. района | Q57: 1623002424 | AS57: 73.00 | AT57: 1,810.00 | AU57: 271.30 | AW57: 443,952.00 | AX57: 28,654,376.10 | AY57: 28,420,064.60 | AZ57: 234,311.50 | BA57: 0.00 | BB57: 0.00 | BC57: 6,075,797.19 | BD57: 34,730,173.29 | BE57: 870,186.96 | BF57: 264,859.88 | BG57: 1,240,892.45 | BH57: 21,816.00 | BI57: 13,626.72 | BJ57: 0.00 | BK57: 180,256.10 | BL57: 82,381.86 | BM57: 3,265,510.02 | BN57: 136,267.20 | BO57: 7,570.40 | BP57: 7,570.40
O58: СОШ №2 п.г.т.Кукмор Кукморск. района Итого | AS58: 73.00 | AT58: 1,810.00 | AU58: 271.30 | AW58: 443,952.00 | AX58: 28,654,376.10 | AY58: 28,420,064.60 | AZ58: 234,311.50 | BA58: 0.00 | BB58: 0.00 | BC58: 6,075,797.19 | BD58: 34,730,173.29 | BE58: 870,186.96 | BF58: 264,859.88 | BG58: 1,240,892.45 | BH58: 21,816.00 | BI58: 13,626.72 | BJ58: 0.00 | BK58: 180,256.10 | BL58: 82,381.86 | BM58: 3,265,510.02 | BN58: 136,267.20 | BO58: 7,570.40 | BP58: 7,570.40
O59: СОШ №3 п.г.т.Кукмор Кукморск. района | Q59: 1623002431 | AS59: 54.00 | AT59: 1,356.00 | AU59: 182.37 | AW59: 153,768.00 | AX59: 19,121,270.80 | AY59: 19,121,270.80 | AZ59: 0.00 | BA59: 0.00 | BB59: 0.00 | BC59: 3,871,702.13 | BD59: 22,992,972.93 | BE59: 692,505.52 | BF59: 117,715.50 | BG59: 1,154,116.76 | BH59: 21,816.00 | BI59: 6,391.80 | BJ59: 0.00 | BK59: 111,830.89 | BL59: 61,752.24 | BM59: 1,641,655.42 | BN59: 63,918.00 | BO59: 3,551.00 | BP59: 3,551.00
O60: СОШ №3 п.г.т.Кукмор Кукморск. района Итого | AS60: 54.00 | AT60: 1,356.00 | AU60: 182.37 | AW60: 153,768.00 | AX60: 19,121,270.80 | AY60: 19,121,270.80 | AZ60: 0.00 | BA60: 0.00 | BB60: 0.00 | BC60: 3,871,702.13 | BD60: 22,992,972.93 | BE60: 692,505.52 | BF60: 117,715.50 | BG60: 1,154,116.76 | BH60: 21,816.00 | BI60: 6,391.80 | BJ60: 0.00 | BK60: 111,830.89 | BL60: 61,752.24 | BM60: 1,641,655.42 | BN60: 63,918.00 | BO60: 3,551.00 | BP60: 3,551.00
O61: СОШ №4 п.г.т.Кукмор Кукморск. района | Q61: 1623002449 | AS61: 50.00 | AT61: 1,074.00 | AU61: 171.89 | AW61: 734,143.00 | AX61: 18,582,023.50 | AY61: 17,028,346.00 | AZ61: 1,553,677.50 | BA61: 0.00 | BB61: 0.00 | BC61: 5,773,281.48 | BD61: 24,355,304.98 | BE61: 644,059.09 | BF61: 176,573.25 | BG61: 1,154,116.76 | BH61: 21,816.00 | BI61: 12,936.60 | BJ61: 0.00 | BK61: 182,300.11 | BL61: 48,727.80 | BM61: 3,403,385.87 | BN61: 129,366.00 | BO61: 7,187.00 | BP61: 7,187.00
O62: СОШ №4 п.г.т.Кукмор Кукморск. района Итого | AS62: 50.00 | AT62: 1,074.00 | AU62: 171.89 | AW62: 734,143.00 | AX62: 18,582,023.50 | AY62: 17,028,346.00 | AZ62: 1,553,677.50 | BA62: 0.00 | BB62: 0.00 | BC62: 5,773,281.48 | BD62: 24,355,304.98 | BE62: 644,059.09 | BF62: 176,573.25 | BG62: 1,154,116.76 | BH62: 21,816.00 | BI62: 12,936.60 | BJ62: 0.00 | BK62: 182,300.11 | BL62: 48,727.80 | BM62: 3,403,385.87 | BN62: 129,366.00 | BO62: 7,187.00 | BP62: 7,187.00
O63: СОШ д.Верхний Арбаш Кукморск. района | Q63: 1623006073 | AS63: 23.00 | AT63: 139.00 | AU63: 61.00 | AW63: 229,329.00 | AX63: 5,408,630.00 | AY63: 3,172,808.00 | AZ63: 2,235,822.00 | BA63: 0.00 | BB63: 0.00 | BC63: 2,283,751.68 | BD63: 7,692,381.68 | BE63: 184,008.85 | BF63: 24,720.26 | BG63: 546,686.88 | BH63: 21,816.00 | BI63: 3,864.60 | BJ63: 0.00 | BK63: 77,334.46 | BL63: 0.00 | BM63: 1,386,674.63 | BN63: 38,646.00 | BO63: 2,147.00 | BP63: 2,147.00
O64: СОШ д.Верхний Арбаш Кукморск. района Итого | AS64: 23.00 | AT64: 139.00 | AU64: 61.00 | AW64: 229,329.00 | AX64: 5,408,630.00 | AY64: 3,172,808.00 | AZ64: 2,235,822.00 | BA64: 0.00 | BB64: 0.00 | BC64: 2,283,751.68 | BD64: 7,692,381.68 | BE64: 184,008.85 | BF64: 24,720.26 | BG64: 546,686.88 | BH64: 21,816.00 | BI64: 3,864.60 | BJ64: 0.00 | BK64: 77,334.46 | BL64: 0.00 | BM64: 1,386,674.63 | BN64: 38,646.00 | BO64: 2,147.00 | BP64: 2,147.00
O65: СОШ с. Мамашир Кукморск. района | Q65: 1623005993 | AS65: 23.00 | AT65: 178.00 | AU65: 77.30 | AW65: 231,424.00 | AX65: 5,885,190.50 | AY65: 4,025,803.00 | AZ65: 1,859,387.50 | BA65: 0.00 | BB65: 0.00 | BC65: 1,727,359.32 | BD65: 7,612,549.82 | BE65: 238,187.57 | BF65: 28,251.72 | BG65: 546,686.88 | BH65: 21,816.00 | BI65: 5,344.20 | BJ65: 0.00 | BK65: 53,089.15 | BL65: 0.00 | BM65: 780,541.80 | BN65: 53,442.00 | BO65: 2,969.00 | BP65: 2,969.00
O66: СОШ с. Мамашир Кукморск. района Итого | AS66: 23.00 | AT66: 178.00 | AU66: 77.30 | AW66: 231,424.00 | AX66: 5,885,190.50 | AY66: 4,025,803.00 | AZ66: 1,859,387.50 | BA66: 0.00 | BB66: 0.00 | BC66: 1,727,359.32 | BD66: 7,612,549.82 | BE66: 238,187.57 | BF66: 28,251.72 | BG66: 546,686.88 | BH66: 21,816.00 | BI66: 5,344.20 | BJ66: 0.00 | BK66: 53,089.15 | BL66: 0.00 | BM66: 780,541.80 | BN66: 53,442.00 | BO66: 2,969.00 | BP66: 2,969.00
O67: СОШ с. Маскара Кукморск. района | Q67: 1623005859 | AS67: 22.00 | AT67: 186.00 | AU67: 50.00 | AW67: 152,229.00 | AX67: 6,010,636.00 | AY67: 4,603,804.00 | AZ67: 1,406,832.00 | BA67: 0.00 | BB67: 0.00 | BC67: 2,296,393.43 | BD67: 8,307,029.43 | BE67: 238,187.57 | BF67: 0.00 | BG67: 546,686.88 | BH67: 21,816.00 | BI67: 4,318.20 | BJ67: 0.00 | BK67: 76,495.76 | BL67: 0.00 | BM67: 1,365,707.02 | BN67: 43,182.00 | BO67: 2,399.00 | BP67: 2,399.00
O68: СОШ с. Маскара Кукморск. района Итого | AS68: 22.00 | AT68: 186.00 | AU68: 50.00 | AW68: 152,229.00 | AX68: 6,010,636.00 | AY68: 4,603,804.00 | AZ68: 1,406,832.00 | BA68: 0.00 | BB68: 0.00 | BC68: 2,296,393.43 | BD68: 8,307,029.43 | BE68: 238,187.57 | BF68: 0.00 | BG68: 546,686.88 | BH68: 21,816.00 | BI68: 4,318.20 | BJ68: 0.00 | BK68: 76,495.76 | BL68: 0.00 | BM68: 1,365,707.02 | BN68: 43,182.00 | BO68: 2,399.00 | BP68: 2,399.00
O69: СОШ с.Лельвиж Кукморск. района | Q69: 1623005880 | AS69: 23.00 | AT69: 137.00 | AU69: 53.00 | AW69: 231,424.00 | AX69: 5,500,209.00 | AY69: 3,368,880.00 | AZ69: 2,131,329.00 | BA69: 0.00 | BB69: 0.00 | BC69: 1,716,100.18 | BD69: 7,216,309.18 | BE69: 178,615.13 | BF69: 32,960.34 | BG69: 546,686.88 | BH69: 21,816.00 | BI69: 3,184.20 | BJ69: 0.00 | BK69: 55,680.10 | BL69: 0.00 | BM69: 845,315.53 | BN69: 31,842.00 | BO69: 1,769.00 | BP69: 1,769.00
O70: СОШ с.Лельвиж Кукморск. района Итого | AS70: 23.00 | AT70: 137.00 | AU70: 53.00 | AW70: 231,424.00 | AX70: 5,500,209.00 | AY70: 3,368,880.00 | AZ70: 2,131,329.00 | BA70: 0.00 | BB70: 0.00 | BC70: 1,716,100.18 | BD70: 7,216,309.18 | BE70: 178,615.13 | BF70: 32,960.34 | BG70: 546,686.88 | BH70: 21,816.00 | BI70: 3,184.20 | BJ70: 0.00 | BK70: 55,680.10 | BL70: 0.00 | BM70: 845,315.53 | BN70: 31,842.00 | BO70: 1,769.00 | BP70: 1,769.00
O71: СОШ с.Лубяны Кукморск. района | Q71: 1623003266 | AS71: 23.00 | AT71: 241.00 | AU71: 78.90 | AW71: 231,424.00 | AX71: 6,590,345.00 | AY71: 5,392,927.00 | AZ71: 1,197,418.00 | BA71: 0.00 | BB71: 0.00 | BC71: 2,353,949.74 | BD71: 8,944,294.74 | BE71: 168,123.93 | BF71: 29,428.88 | BG71: 546,686.88 | BH71: 21,816.00 | BI71: 2,478.60 | BJ71: 0.00 | BK71: 81,050.63 | BL71: 0.00 | BM71: 1,479,578.82 | BN71: 24,786.00 | BO71: 1,377.00 | BP71: 1,377.00
O72: СОШ с.Лубяны Кукморск. района Итого | AS72: 23.00 | AT72: 241.00 | AU72: 78.90 | AW72: 231,424.00 | AX72: 6,590,345.00 | AY72: 5,392,927.00 | AZ72: 1,197,418.00 | BA72: 0.00 | BB72: 0.00 | BC72: 2,353,949.74 | BD72: 8,944,294.74 | BE72: 168,123.93 | BF72: 29,428.88 | BG72: 546,686.88 | BH72: 21,816.00 | BI72: 2,478.60 | BJ72: 0.00 | BK72: 81,050.63 | BL72: 0.00 | BM72: 1,479,578.82 | BN72: 24,786.00 | BO72: 1,377.00 | BP72: 1,377.00
O73: СОШ с.Манзарас Кукморск. района | Q73: 1623010030 | AS73: 45.00 | AT73: 848.00 | AU73: 149.97 | AW73: 390,143.00 | AX73: 15,875,761.20 | AY73: 15,875,761.20 | AZ73: 0.00 | BA73: 0.00 | BB73: 0.00 | BC73: 4,391,002.33 | BD73: 20,266,763.53 | BE73: 546,066.92 | BF73: 88,286.63 | BG73: 980,565.36 | BH73: 21,816.00 | BI73: 10,180.62 | BJ73: 0.00 | BK73: 137,856.68 | BL73: 38,572.38 | BM73: 2,465,851.54 | BN73: 101,806.20 | BO73: 5,655.90 | BP73: 5,655.90
O74: СОШ с.Манзарас Кукморск. района Итого | AS74: 45.00 | AT74: 848.00 | AU74: 149.97 | AW74: 390,143.00 | AX74: 15,875,761.20 | AY74: 15,875,761.20 | AZ74: 0.00 | BA74: 0.00 | BB74: 0.00 | BC74: 4,391,002.33 | BD74: 20,266,763.53 | BE74: 546,066.92 | BF74: 88,286.63 | BG74: 980,565.36 | BH74: 21,816.00 | BI74: 10,180.62 | BJ74: 0.00 | BK74: 137,856.68 | BL74: 38,572.38 | BM74: 2,465,851.54 | BN74: 101,806.20 | BO74: 5,655.90 | BP74: 5,655.90
O75: СОШ с.Ошторма Юмья Кукморск. района | Q75: 1623005961 | AS75: 28.00 | AT75: 224.00 | AU75: 73.49 | AW75: 1,013,231.00 | AX75: 8,111,696.00 | AY75: 7,135,888.00 | AZ75: 975,808.00 | BA75: 0.00 | BB75: 0.00 | BC75: 4,078,904.85 | BD75: 12,190,600.85 | BE75: 292,565.18 | BF75: 29,428.88 | BG75: 807,013.96 | BH75: 28,756.80 | BI75: 5,638.14 | BJ75: 0.00 | BK75: 141,005.17 | BL75: 0.00 | BM75: 2,718,115.32 | BN75: 56,381.40 | BO75: 3,268.30 | BP75: 3,268.30
O76: СОШ с.Ошторма Юмья Кукморск. района Итого | AS76: 28.00 | AT76: 224.00 | AU76: 73.49 | AW76: 1,013,231.00 | AX76: 8,111,696.00 | AY76: 7,135,888.00 | AZ76: 975,808.00 | BA76: 0.00 | BB76: 0.00 | BC76: 4,078,904.85 | BD76: 12,190,600.85 | BE76: 292,565.18 | BF76: 29,428.88 | BG76: 807,013.96 | BH76: 28,756.80 | BI76: 5,638.14 | BJ76: 0.00 | BK76: 141,005.17 | BL76: 0.00 | BM76: 2,718,115.32 | BN76: 56,381.40 | BO76: 3,268.30 | BP76: 3,268.30
M77: Школы - Кукморский район Итого | AS77: 1,016.00 | AT77: 12,418.00 | AU77: 2,951.37 | AW77: 25,259,693.00 | AX77: 306,253,126.60 | AY77: 268,287,829.60 | AZ77: 37,965,297.00 | BA77: 122,744.00 | BB77: 920,580.00 | BC77: 93,318,818.34 | BD77: 400,492,524.94 | BE77: 10,942,305.59 | BF77: 1,504,276.90 | BG77: 26,006,675.88 | BH77: 763,545.60 | BI77: 176,565.06 | BJ77: 0.00 | BK77: 2,991,007.37 | BL77: 302,731.70 | BM77: 48,768,509.38 | BN77: 1,765,650.60 | BO77: 99,938.70 | BP77: 99,938.70
J78: Кукморский муниципальный район Итого | AS78: 1,016.00 | AT78: 12,418.00 | AU78: 2,951.37 | AW78: 25,259,693.00 | AX78: 306,253,126.60 | AY78: 268,287,829.60 | AZ78: 37,965,297.00 | BA78: 122,744.00 | BB78: 920,580.00 | BC78: 93,318,818.34 | BD78: 400,492,524.94 | BE78: 10,942,305.59 | BF78: 1,504,276.90 | BG78: 26,006,675.88 | BH78: 763,545.60 | BI78: 176,565.06 | BJ78: 0.00 | BK78: 2,991,007.37 | BL78: 302,731.70 | BM78: 48,768,509.38 | BN78: 1,765,650.60 | BO78: 99,938.70 | BP78: 99,938.70
H79: Муниципальные учреждения Итого | AS79: 1,016.00 | AT79: 12,418.00 | AU79: 2,951.37 | AW79: 25,259,693.00 | AX79: 306,253,126.60 | AY79: 268,287,829.60 | AZ79: 37,965,297.00 | BA79: 122,744.00 | BB79: 920,580.00 | BC79: 93,318,818.34 | BD79: 400,492,524.94 | BE79: 10,942,305.59 | BF79: 1,504,276.90 | BG79: 26,006,675.88 | BH79: 763,545.60 | BI79: 176,565.06 | BJ79: 0.00 | BK79: 2,991,007.37 | BL79: 302,731.70 | BM79: 48,768,509.38 | BN79: 1,765,650.60 | BO79: 99,938.70 | BP79: 99,938.70
E80: Министерство образования и науки Республики Татарстан Итого | AS80: 1,016.00 | AT80: 12,418.00 | AU80: 2,951.37 | AW80: 25,259,693.00 | AX80: 306,253,126.60 | AY80: 268,287,829.60 | AZ80: 37,965,297.00 | BA80: 122,744.00 | BB80: 920,580.00 | BC80: 93,318,818.34 | BD80: 400,492,524.94 | BE80: 10,942,305.59 | BF80: 1,504,276.90 | BG80: 26,006,675.88 | BH80: 763,545.60 | BI80: 176,565.06 | BJ80: 0.00 | BK80: 2,991,007.37 | BL80: 302,731.70 | BM80: 48,768,509.38 | BN80: 1,765,650.60 | BO80: 99,938.70 | BP80: 99,938.70
C81: Школы Итого | AS81: 1,016.00 | AT81: 12,418.00 | AU81: 2,951.37 | AW81: 25,259,693.00 | AX81: 306,253,126.60 | AY81: 268,287,829.60 | AZ81: 37,965,297.00 | BA81: 122,744.00 | BB81: 920,580.00 | BC81: 93,318,818.34 | BD81: 400,492,524.94 | BE81: 10,942,305.59 | BF81: 1,504,276.90 | BG81: 26,006,675.88 | BH81: 763,545.60 | BI81: 176,565.06 | BJ81: 0.00 | BK81: 2,991,007.37 | BL81: 302,731.70 | BM81: 48,768,509.38 | BN81: 1,765,650.60 | BO81: 99,938.70 | BP81: 99,938.70
A82: Общеотраслевое Итого | AS82: 1,016.00 | AT82: 12,418.00 | AU82: 2,951.37 | AW82: 25,259,693.00 | AX82: 306,253,126.60 | AY82: 268,287,829.60 | AZ82: 37,965,297.00 | BA82: 122,744.00 | BB82: 920,580.00 | BC82: 93,318,818.34 | BD82: 400,492,524.94 | BE82: 10,942,305.59 | BF82: 1,504,276.90 | BG82: 26,006,675.88 | BH82: 763,545.60 | BI82: 176,565.06 | BJ82: 0.00 | BK82: 2,991,007.37 | BL82: 302,731.70 | BM82: 48,768,509.38 | BN82: 1,765,650.60 | BO82: 99,938.70 | BP82: 99,938.70
A83: Общий итог | AS83: 1,016.00 | AT83: 12,418.00 | AU83: 2,951.37 | AW83: 25,259,693.00 | AX83: 306,253,126.60 | AY83: 268,287,829.60 | AZ83: 37,965,297.00 | BA83: 122,744.00 | BB83: 920,580.00 | BC83: 93,318,818.34 | BD83: 400,492,524.94 | BE83: 10,942,305.59 | BF83: 1,504,276.90 | BG83: 26,006,675.88 | BH83: 763,545.60 | BI83: 176,565.06 | BJ83: 0.00 | BK83: 2,991,007.37 | BL83: 302,731.70 | BM83: 48,768,509.38 | BN83: 1,765,650.60 | BO83: 99,938.70 | BP83: 99,938.70

Sheet прогноз на 20.05.12 (ср.шк) (hidden)
B1: Госстандарт 2013 год
A2: № п/п | B2: Наименование | C2: инн | D2: инн | E2: инн | F2: инн | G2: инн | H2: инн | I2: инн | J2: инн | K2: инн | L2: число учащихся | P2: класс-комплект | T2: обучение на дому(в т.числе) | X2: ГПД | Z2: Интернат | AA2: число учащихся нормативное | AE2: число учащихся разница | AI2: разница учащихся для расчета бюджета (75%-20%) | AM2: число учащихся для расчета бюджета (75%-20%) | AQ2: дополнительные средства на образование | AU2: дополнительные средства на допобразование | AY2: дополнительные средства всего | BC2: не хватает в 2012 году на нфз | BD2: в том числе | BF2: не хватает в 2013 году на нфз | BG2: в том числе | BI2: средняя наполнемость
L3: 1-4 кл | M3: 5-9 кл | N3: 10-11 кл | O3: Итого | P3: 1-4 кл | Q3: 5-9 кл | R3: 10-11 кл | S3: Итого | T3: 1-4 кл | U3: 5-9 кл | V3: 10-11 кл | W3: Итого | X3: кол-во групп | Y3: число уч. | AA3: 1-4 кл | AB3: 5-9 кл | AC3: 10-11 кл | AD3: Итого | AE3: 1-4 кл | AF3: 5-9 кл | AG3: 10-11 кл | AH3: Итого | AI3: 1-4 кл | AJ3: 5-9 кл | AK3: 10-11 кл | AL3: Итого | AM3: 1-4 кл | AN3: 5-9 кл | AO3: 10-11 кл | AP3: Итого | AQ3: 1-4 кл | AR3: 5-9 кл | AS3: 10-11 кл | AT3: Итого | AU3: 1-4 кл | AV3: 5-9 кл | AW3: 10-11 кл | AX3: Итого | AY3: 1-4 кл | AZ3: 5-9 кл | BA3: 10-11 кл | BB3: Итого | BD3: не хватает | BE3: излишек | BG3: не хватает | BH3: излишек | BI3: 1-4 кл | BJ3: 5-9 кл | BK3: 10-11 кл | BL3: Итого
B5: Итого: | L5: =SUBTOTAL(9,L7:L800) -> 2,107 | M5: 3,101 | N5: 1,330 | O5: 6,538 | P5: 210 | Q5: 196 | R5: 81 | S5: 487 | T5: 6 | U5: 15 | V5: 6 | W5: 27 | X5: 46 | Y5: 1,148 | Z5: 18 | AA5: 2,627 | AB5: =SUBTOTAL(9,AB7:AB800) -> 3,239 | AC5: 1,373 | AD5: 7,239 | AE5: 520 | AF5: 138 | AG5: 43 | AH5: 701 | AI5: 415 | AJ5: 378 | AK5: 99 | AL5: 892 | AM5: 2,522 | AN5: 3,479 | AO5: 1,429 | AP5: 7,430 | AQ5: 7,762,856 | AR5: 12,630,960 | AS5: 3,532,190 | AT5: 23,926,006 | AU5: 492,490 | AV5: 512,617 | AW5: 161,366 | AX5: 1,166,472 | AY5: 8,255,346 | AZ5: 13,143,577 | BA5: 3,693,555 | BB5: 25,092,478 | BC5: 26,065,110 | BD5: 33,509,107 | BE5: -7,443,997 | BF5: -128,677 | BG5: 11,862,799 | BH5: -11,991,475 | BI5: =IF(L5=0,"",L5/P5) -> 10.0 | BJ5: =IF(M5=0,"",M5/Q5) -> 15.8 | BK5: =IF(N5=0,"",N5/R5) -> 16.4 | BL5: =IF(O5=0,"",O5/S5) -> 13.4
A7: 1 | B7: МОУ Байлянгарская ср.шк. | C7: 1623005915 | D7: МОУ Саз-Тамакская начальная школа | E7: 1623010496 | L7: =SUMIF('прогноз на 20.05.12'!$C$7:$C$83,$C7,'прогноз на 20.05.12'!D$7:D$83)+SUMIF('прогноз на 20.05.12'!$C$7:$C$83,$E7,'прогноз на 20.05.12'!D$7:D$83)+SUMIF('прогноз на 20.05.12'!$C$7:$C$83,$G7,'прогноз на 20.05.12'!D$7:D$83)+SUMIF('прогноз на 20.05.12'!$C$7:$C$83,$I7,'прогноз на 20.05.12'!D$7:D$83)+SUMIF('прогноз на 20.05.12'!$C$7:$C$83,$K7,'прогноз на 20.05.12'!D$7:D$83) -> 33 | M7: =SUMIF('прогноз на 20.05.12'!$C$7:$C$83,$C7,'прогноз на 20.05.12'!E$7:E$83)+SUMIF('прогноз на 20.05.12'!$C$7:$C$83,$E7,'прогноз на 20.05.12'!E$7:E$83)+SUMIF('прогноз на 20.05.12'!$C$7:$C$83,$G7,'прогноз на 20.05.12'!E$7:E$83)+SUMIF('прогноз на 20.05.12'!$C$7:$C$83,$I7,'прогноз на 20.05.12'!E$7:E$83)+SUMIF('прогноз на 20.05.12'!$C$7:$C$83,$K7,'прогноз на 20.05.12'!E$7:E$83) -> 49 | N7: =SUMIF('прогноз на 20.05.12'!$C$7:$C$83,$C7,'прогноз на 20.05.12'!F$7:F$83)+SUMIF('прогноз на 20.05.12'!$C$7:$C$83,$E7,'прогноз на 20.05.12'!F$7:F$83)+SUMIF('прогноз на 20.05.12'!$C$7:$C$83,$G7,'прогноз на 20.05.12'!F$7:F$83)+SUMIF('прогноз на 20.05.12'!$C$7:$C$83,$I7,'прогноз на 20.05.12'!F$7:F$83)+SUMIF('прогноз на 20.05.12'!$C$7:$C$83,$K7,'прогноз на 20.05.12'!F$7:F$83) -> 29 | O7: =L7+M7+N7 -> 111 | P7: =SUMIF('прогноз на 20.05.12'!$C$7:$C$83,$C7,'прогноз на 20.05.12'!H$7:H$83)+SUMIF('прогноз на 20.05.12'!$C$7:$C$83,$E7,'прогноз на 20.05.12'!H$7:H$83)+SUMIF('прогноз на 20.05.12'!$C$7:$C$83,$G7,'прогноз на 20.05.12'!H$7:H$83)+SUMIF('прогноз на 20.05.12'!$C$7:$C$83,$I7,'прогноз на 20.05.12'!H$7:H$83)+SUMIF('прогноз на 20.05.12'!$C$7:$C$83,$K7,'прогноз на 20.05.12'!H$7:H$83) -> 3 | Q7: =SUMIF('прогноз на 20.05.12'!$C$7:$C$83,$C7,'прогноз на 20.05.12'!I$7:I$83)+SUMIF('прогноз на 20.05.12'!$C$7:$C$83,$E7,'прогноз на 20.05.12'!I$7:I$83)+SUMIF('прогноз на 20.05.12'!$C$7:$C$83,$G7,'прогноз на 20.05.12'!I$7:I$83)+SUMIF('прогноз на 20.05.12'!$C$7:$C$83,$I7,'прогноз на 20.05.12'!I$7:I$83)+SUMIF('прогноз на 20.05.12'!$C$7:$C$83,$K7,'прогноз на 20.05.12'!I$7:I$83) -> 5 | R7: =SUMIF('прогноз на 20.05.12'!$C$7:$C$83,$C7,'прогноз на 20.05.12'!J$7:J$83)+SUMIF('прогноз на 20.05.12'!$C$7:$C$83,$E7,'прогноз на 20.05.12'!J$7:J$83)+SUMIF('прогноз на 20.05.12'!$C$7:$C$83,$G7,'прогноз на 20.05.12'!J$7:J$83)+SUMIF('прогноз на 20.05.12'!$C$7:$C$83,$I7,'прогноз на 20.05.12'!J$7:J$83)+SUMIF('прогноз на 20.05.12'!$C$7:$C$83,$K7,'прогноз на 20.05.12'!J$7:J$83) -> 2 | S7: =P7+Q7+R7 -> 10 | T7: =SUMIF('прогноз на 20.05.12'!$C$7:$C$83,$C7,'прогноз на 20.05.12'!L$7:L$83)+SUMIF('прогноз на 20.05.12'!$C$7:$C$83,$E7,'прогноз на 20.05.12'!L$7:L$83)+SUMIF('прогноз на 20.05.12'!$C$7:$C$83,$G7,'прогноз на 20.05.12'!L$7:L$83)+SUMIF('прогноз на 20.05.12'!$C$7:$C$83,$I7,'прогноз на 20.05.12'!L$7:L$83)+SUMIF('прогноз на 20.05.12'!$C$7:$C$83,$K7,'прогноз на 20.05.12'!L$7:L$83) -> 0 | U7: =SUMIF('прогноз на 20.05.12'!$C$7:$C$83,$C7,'прогноз на 20.05.12'!M$7:M$83)+SUMIF('прогноз на 20.05.12'!$C$7:$C$83,$E7,'прогноз на 20.05.12'!M$7:M$83)+SUMIF('прогноз на 20.05.12'!$C$7:$C$83,$G7,'прогноз на 20.05.12'!M$7:M$83)+SUMIF('прогноз на 20.05.12'!$C$7:$C$83,$I7,'прогноз на 20.05.12'!M$7:M$83)+SUMIF('прогноз на 20.05.12'!$C$7:$C$83,$K7,'прогноз на 20.05.12'!M$7:M$83) -> 1 | V7: =SUMIF('прогноз на 20.05.12'!$C$7:$C$83,$C7,'прогноз на 20.05.12'!N$7:N$83)+SUMIF('прогноз на 20.05.12'!$C$7:$C$83,$E7,'прогноз на 20.05.12'!N$7:N$83)+SUMIF('прогноз на 20.05.12'!$C$7:$C$83,$G7,'прогноз на 20.05.12'!N$7:N$83)+SUMIF('прогноз на 20.05.12'!$C$7:$C$83,$I7,'прогноз на 20.05.12'!N$7:N$83)+SUMIF('прогноз на 20.05.12'!$C$7:$C$83,$K7,'прогноз на 20.05.12'!N$7:N$83) -> 0 | W7: =T7+U7+V7 -> 1 | X7: =SUMIF('прогноз на 20.05.12'!$C$7:$C$83,$C7,'прогноз на 20.05.12'!P$7:P$83)+SUMIF('прогноз на 20.05.12'!$C$7:$C$83,$E7,'прогноз на 20.05.12'!P$7:P$83)+SUMIF('прогноз на 20.05.12'!$C$7:$C$83,$G7,'прогноз на 20.05.12'!P$7:P$83)+SUMIF('прогноз на 20.05.12'!$C$7:$C$83,$I7,'прогноз на 20.05.12'!P$7:P$83)+SUMIF('прогноз на 20.05.12'!$C$7:$C$83,$K7,'прогноз на 20.05.12'!P$7:P$83) -> 1 | Y7: =SUMIF('прогноз на 20.05.12'!$C$7:$C$83,$C7,'прогноз на 20.05.12'!Q$7:Q$83)+SUMIF('прогноз на 20.05.12'!$C$7:$C$83,$E7,'прогноз на 20.05.12'!Q$7:Q$83)+SUMIF('прогноз на 20.05.12'!$C$7:$C$83,$G7,'прогноз на 20.05.12'!Q$7:Q$83)+SUMIF('прогноз на 20.05.12'!$C$7:$C$83,$I7,'прогноз на 20.05.12'!Q$7:Q$83)+SUMIF('прогноз на 20.05.12'!$C$7:$C$83,$K7,'прогноз на 20.05.12'!Q$7:Q$83) -> 25 | Z7: =SUMIF('прогноз на 20.05.12'!$C$7:$C$83,$C7,'прогноз на 20.05.12'!R$7:R$83)+SUMIF('прогноз на 20.05.12'!$C$7:$C$83,$E7,'прогноз на 20.05.12'!R$7:R$83)+SUMIF('прогноз на 20.05.12'!$C$7:$C$83,$G7,'прогноз на 20.05.12'!R$7:R$83)+SUMIF('прогноз на 20.05.12'!$C$7:$C$83,$I7,'прогноз на 20.05.12'!R$7:R$83)+SUMIF('прогноз на 20.05.12'!$C$7:$C$83,$K7,'прогноз на 20.05.12'!R$7:R$83) -> 0 | AA7: =SUMIF('прогноз на 20.05.12'!$C$7:$C$83,$C7,'прогноз на 20.05.12'!S$7:S$83)+SUMIF('прогноз на 20.05.12'!$C$7:$C$83,$E7,'прогноз на 20.05.12'!S$7:S$83)+SUMIF('прогноз на 20.05.12'!$C$7:$C$83,$G7,'прогноз на 20.05.12'!S$7:S$83)+SUMIF('прогноз на 20.05.12'!$C$7:$C$83,$I7,'прогноз на 20.05.12'!S$7:S$83)+SUMIF('прогноз на 20.05.12'!$C$7:$C$83,$K7,'прогноз на 20.05.12'!S$7:S$83) -> 36 | AB7: =SUMIF('прогноз на 20.05.12'!$C$7:$C$83,$C7,'прогноз на 20.05.12'!T$7:T$83)+SUMIF('прогноз на 20.05.12'!$C$7:$C$83,$E7,'прогноз на 20.05.12'!T$7:T$83)+SUMIF('прогноз на 20.05.12'!$C$7:$C$83,$G7,'прогноз на 20.05.12'!T$7:T$83)+SUMIF('прогноз на 20.05.12'!$C$7:$C$83,$I7,'прогноз на 20.05.12'!T$7:T$83)+SUMIF('прогноз на 20.05.12'!$C$7:$C$83,$K7,'прогноз на 20.05.12'!T$7:T$83) -> 70 | AC7: =SUMIF('прогноз на 20.05.12'!$C$7:$C$83,$C7,'прогноз на 20.05.12'!U$7:U$83)+SUMIF('прогноз на 20.05.12'!$C$7:$C$83,$E7,'прогноз на 20.05.12'!U$7:U$83)+SUMIF('прогноз на 20.05.12'!$C$7:$C$83,$G7,'прогноз на 20.05.12'!U$7:U$83)+SUMIF('прогноз на 20.05.12'!$C$7:$C$83,$I7,'прогноз на 20.05.12'!U$7:U$83)+SUMIF('прогноз на 20.05.12'!$C$7:$C$83,$K7,'прогноз на 20.05.12'!U$7:U$83) -> 28 | AD7: =SUMIF('прогноз на 20.05.12'!$C$7:$C$83,$C7,'прогноз на 20.05.12'!V$7:V$83)+SUMIF('прогноз на 20.05.12'!$C$7:$C$83,$E7,'прогноз на 20.05.12'!V$7:V$83)+SUMIF('прогноз на 20.05.12'!$C$7:$C$83,$G7,'прогноз на 20.05.12'!V$7:V$83)+SUMIF('прогноз на 20.05.12'!$C$7:$C$83,$I7,'прогноз на 20.05.12'!V$7:V$83)+SUMIF('прогноз на 20.05.12'!$C$7:$C$83,$K7,'прогноз на 20.05.12'!V$7:V$83) -> 134 | AE7: =SUMIF('прогноз на 20.05.12'!$C$7:$C$83,$C7,'прогноз на 20.05.12'!W$7:W$83)+SUMIF('прогноз на 20.05.12'!$C$7:$C$83,$E7,'прогноз на 20.05.12'!W$7:W$83)+SUMIF('прогноз на 20.05.12'!$C$7:$C$83,$G7,'прогноз на 20.05.12'!W$7:W$83)+SUMIF('прогноз на 20.05.12'!$C$7:$C$83,$I7,'прогноз на 20.05.12'!W$7:W$83)+SUMIF('прогноз на 20.05.12'!$C$7:$C$83,$K7,'прогноз на 20.05.12'!W$7:W$83) -> 3 | AF7: =SUMIF('прогноз на 20.05.12'!$C$7:$C$83,$C7,'прогноз на 20.05.12'!X$7:X$83)+SUMIF('прогноз на 20.05.12'!$C$7:$C$83,$E7,'прогноз на 20.05.12'!X$7:X$83)+SUMIF('прогноз на 20.05.12'!$C$7:$C$83,$G7,'прогноз на 20.05.12'!X$7:X$83)+SUMIF('прогноз на 20.05.12'!$C$7:$C$83,$I7,'прогноз на 20.05.12'!X$7:X$83)+SUMIF('прогноз на 20.05.12'!$C$7:$C$83,$K7,'прогноз на 20.05.12'!X$7:X$83) -> 21 | AG7: =SUMIF('прогноз на 20.05.12'!$C$7:$C$83,$C7,'прогноз на 20.05.12'!Y$7:Y$83)+SUMIF('прогноз на 20.05.12'!$C$7:$C$83,$E7,'прогноз на 20.05.12'!Y$7:Y$83)+SUMIF('прогноз на 20.05.12'!$C$7:$C$83,$G7,'прогноз на 20.05.12'!Y$7:Y$83)+SUMIF('прогноз на 20.05.12'!$C$7:$C$83,$I7,'прогноз на 20.05.12'!Y$7:Y$83)+SUMIF('прогноз на 20.05.12'!$C$7:$C$83,$K7,'прогноз на 20.05.12'!Y$7:Y$83) -> -1 | AH7: =SUMIF('прогноз на 20.05.12'!$C$7:$C$83,$C7,'прогноз на 20.05.12'!Z$7:Z$83)+SUMIF('прогноз на 20.05.12'!$C$7:$C$83,$E7,'прогноз на 20.05.12'!Z$7:Z$83)+SUMIF('прогноз на 20.05.12'!$C$7:$C$83,$G7,'прогноз на 20.05.12'!Z$7:Z$83)+SUMIF('прогноз на 20.05.12'!$C$7:$C$83,$I7,'прогноз на 20.05.12'!Z$7:Z$83)+SUMIF('прогноз на 20.05.12'!$C$7:$C$83,$K7,'прогноз на 20.05.12'!Z$7:Z$83) -> 23 | AI7: =SUMIF('прогноз на 20.05.12'!$C$7:$C$83,$C7,'прогноз на 20.05.12'!AA$7:AA$83)+SUMIF('прогноз на 20.05.12'!$C$7:$C$83,$E7,'прогноз на 20.05.12'!AA$7:AA$83)+SUMIF('прогноз на 20.05.12'!$C$7:$C$83,$G7,'прогноз на 20.05.12'!AA$7:AA$83)+SUMIF('прогноз на 20.05.12'!$C$7:$C$83,$I7,'прогноз на 20.05.12'!AA$7:AA$83)+SUMIF('прогноз на 20.05.12'!$C$7:$C$83,$K7,'прогноз на 20.05.12'!AA$7:AA$83) -> 2 | AJ7: =SUMIF('прогноз на 20.05.12'!$C$7:$C$83,$C7,'прогноз на 20.05.12'!AB$7:AB$83)+SUMIF('прогноз на 20.05.12'!$C$7:$C$83,$E7,'прогноз на 20.05.12'!AB$7:AB$83)+SUMIF('прогноз на 20.05.12'!$C$7:$C$83,$G7,'прогноз на 20.05.12'!AB$7:AB$83)+SUMIF('прогноз на 20.05.12'!$C$7:$C$83,$I7,'прогноз на 20.05.12'!AB$7:AB$83)+SUMIF('прогноз на 20.05.12'!$C$7:$C$83,$K7,'прогноз на 20.05.12'!AB$7:AB$83) -> 16 | AK7: =SUMIF('прогноз на 20.05.12'!$C$7:$C$83,$C7,'прогноз на 20.05.12'!AC$7:AC$83)+SUMIF('прогноз на 20.05.12'!$C$7:$C$83,$E7,'прогноз на 20.05.12'!AC$7:AC$83)+SUMIF('прогноз на 20.05.12'!$C$7:$C$83,$G7,'прогноз на 20.05.12'!AC$7:AC$83)+SUMIF('прогноз на 20.05.12'!$C$7:$C$83,$I7,'прогноз на 20.05.12'!AC$7:AC$83)+SUMIF('прогноз на 20.05.12'!$C$7:$C$83,$K7,'прогноз на 20.05.12'!AC$7:AC$83) -> 0 | AL7: =SUMIF('прогноз на 20.05.12'!$C$7:$C$83,$C7,'прогноз на 20.05.12'!AD$7:AD$83)+SUMIF('прогноз на 20.05.12'!$C$7:$C$83,$E7,'прогноз на 20.05.12'!AD$7:AD$83)+SUMIF('прогноз на 20.05.12'!$C$7:$C$83,$G7,'прогноз на 20.05.12'!AD$7:AD$83)+SUMIF('прогноз на 20.05.12'!$C$7:$C$83,$I7,'прогноз на 20.05.12'!AD$7:AD$83)+SUMIF('прогноз на 20.05.12'!$C$7:$C$83,$K7,'прогноз на 20.05.12'!AD$7:AD$83) -> 18 | AM7: =SUMIF('прогноз на 20.05.12'!$C$7:$C$83,$C7,'прогноз на 20.05.12'!AE$7:AE$83)+SUMIF('прогноз на 20.05.12'!$C$7:$C$83,$E7,'прогноз на 20.05.12'!AE$7:AE$83)+SUMIF('прогноз на 20.05.12'!$C$7:$C$83,$G7,'прогноз на 20.05.12'!AE$7:AE$83)+SUMIF('прогноз на 20.05.12'!$C$7:$C$83,$I7,'прогноз на 20.05.12'!AE$7:AE$83)+SUMIF('прогноз на 20.05.12'!$C$7:$C$83,$K7,'прогноз на 20.05.12'!AE$7:AE$83) -> 35 | AN7: =SUMIF('прогноз на 20.05.12'!$C$7:$C$83,$C7,'прогноз на 20.05.12'!AF$7:AF$83)+SUMIF('прогноз на 20.05.12'!$C$7:$C$83,$E7,'прогноз на 20.05.12'!AF$7:AF$83)+SUMIF('прогноз на 20.05.12'!$C$7:$C$83,$G7,'прогноз на 20.05.12'!AF$7:AF$83)+SUMIF('прогноз на 20.05.12'!$C$7:$C$83,$I7,'прогноз на 20.05.12'!AF$7:AF$83)+SUMIF('прогноз на 20.05.12'!$C$7:$C$83,$K7,'прогноз на 20.05.12'!AF$7:AF$83) -> 65 | AO7: =SUMIF('прогноз на 20.05.12'!$C$7:$C$83,$C7,'прогноз на 20.05.12'!AG$7:AG$83)+SUMIF('прогноз на 20.05.12'!$C$7:$C$83,$E7,'прогноз на 20.05.12'!AG$7:AG$83)+SUMIF('прогноз на 20.05.12'!$C$7:$C$83,$G7,'прогноз на 20.05.12'!AG$7:AG$83)+SUMIF('прогноз на 20.05.12'!$C$7:$C$83,$I7,'прогноз на 20.05.12'!AG$7:AG$83)+SUMIF('прогноз на 20.05.12'!$C$7:$C$83,$K7,'прогноз на 20.05.12'!AG$7:AG$83) -> 29 | AP7: =SUMIF('прогноз на 20.05.12'!$C$7:$C$83,$C7,'прогноз на 20.05.12'!AH$7:AH$83)+SUMIF('прогноз на 20.05.12'!$C$7:$C$83,$E7,'прогноз на 20.05.12'!AH$7:AH$83)+SUMIF('прогноз на 20.05.12'!$C$7:$C$83,$G7,'прогноз на 20.05.12'!AH$7:AH$83)+SUMIF('прогноз на 20.05.12'!$C$7:$C$83,$I7,'прогноз на 20.05.12'!AH$7:AH$83)+SUMIF('прогноз на 20.05.12'!$C$7:$C$83,$K7,'прогноз на 20.05.12'!AH$7:AH$83) -> 129 | AQ7: =SUMIF('прогноз на 20.05.12'!$C$7:$C$83,$C7,'прогноз на 20.05.12'!AM$7:AM$83)+SUMIF('прогноз на 20.05.12'!$C$7:$C$83,$E7,'прогноз на 20.05.12'!AM$7:AM$83)+SUMIF('прогноз на 20.05.12'!$C$7:$C$83,$G7,'прогноз на 20.05.12'!AM$7:AM$83)+SUMIF('прогноз на 20.05.12'!$C$7:$C$83,$I7,'прогноз на 20.05.12'!AM$7:AM$83)+SUMIF('прогноз на 20.05.12'!$C$7:$C$83,$K7,'прогноз на 20.05.12'!AM$7:AM$83) -> 44,903 | AR7: =SUMIF('прогноз на 20.05.12'!$C$7:$C$83,$C7,'прогноз на 20.05.12'!AN$7:AN$83)+SUMIF('прогноз на 20.05.12'!$C$7:$C$83,$E7,'прогноз на 20.05.12'!AN$7:AN$83)+SUMIF('прогноз на 20.05.12'!$C$7:$C$83,$G7,'прогноз на 20.05.12'!AN$7:AN$83)+SUMIF('прогноз на 20.05.12'!$C$7:$C$83,$I7,'прогноз на 20.05.12'!AN$7:AN$83)+SUMIF('прогноз на 20.05.12'!$C$7:$C$83,$K7,'прогноз на 20.05.12'!AN$7:AN$83) -> 535,169 | AS7: =SUMIF('прогноз на 20.05.12'!$C$7:$C$83,$C7,'прогноз на 20.05.12'!AO$7:AO$83)+SUMIF('прогноз на 20.05.12'!$C$7:$C$83,$E7,'прогноз на 20.05.12'!AO$7:AO$83)+SUMIF('прогноз на 20.05.12'!$C$7:$C$83,$G7,'прогноз на 20.05.12'!AO$7:AO$83)+SUMIF('прогноз на 20.05.12'!$C$7:$C$83,$I7,'прогноз на 20.05.12'!AO$7:AO$83)+SUMIF('прогноз на 20.05.12'!$C$7:$C$83,$K7,'прогноз на 20.05.12'!AO$7:AO$83) -> 7,257 | AT7: =SUMIF('прогноз на 20.05.12'!$C$7:$C$83,$C7,'прогноз на 20.05.12'!AP$7:AP$83)+SUMIF('прогноз на 20.05.12'!$C$7:$C$83,$E7,'прогноз на 20.05.12'!AP$7:AP$83)+SUMIF('прогноз на 20.05.12'!$C$7:$C$83,$G7,'прогноз на 20.05.12'!AP$7:AP$83)+SUMIF('прогноз на 20.05.12'!$C$7:$C$83,$I7,'прогноз на 20.05.12'!AP$7:AP$83)+SUMIF('прогноз на 20.05.12'!$C$7:$C$83,$K7,'прогноз на 20.05.12'!AP$7:AP$83) -> 587,330 | AU7: =SUMIF('прогноз на 20.05.12'!$C$7:$C$83,$C7,'прогноз на 20.05.12'!AU$7:AU$83)+SUMIF('прогноз на 20.05.12'!$C$7:$C$83,$E7,'прогноз на 20.05.12'!AU$7:AU$83)+SUMIF('прогноз на 20.05.12'!$C$7:$C$83,$G7,'прогноз на 20.05.12'!AU$7:AU$83)+SUMIF('прогноз на 20.05.12'!$C$7:$C$83,$I7,'прогноз на 20.05.12'!AU$7:AU$83)+SUMIF('прогноз на 20.05.12'!$C$7:$C$83,$K7,'прогноз на 20.05.12'!AU$7:AU$83) -> 2,846 | AV7: =SUMIF('прогноз на 20.05.12'!$C$7:$C$83,$C7,'прогноз на 20.05.12'!AV$7:AV$83)+SUMIF('прогноз на 20.05.12'!$C$7:$C$83,$E7,'прогноз на 20.05.12'!AV$7:AV$83)+SUMIF('прогноз на 20.05.12'!$C$7:$C$83,$G7,'прогноз на 20.05.12'!AV$7:AV$83)+SUMIF('прогноз на 20.05.12'!$C$7:$C$83,$I7,'прогноз на 20.05.12'!AV$7:AV$83)+SUMIF('прогноз на 20.05.12'!$C$7:$C$83,$K7,'прогноз на 20.05.12'!AV$7:AV$83) -> 22,696 | AW7: =SUMIF('прогноз на 20.05.12'!$C$7:$C$83,$C7,'прогноз на 20.05.12'!AW$7:AW$83)+SUMIF('прогноз на 20.05.12'!$C$7:$C$83,$E7,'прогноз на 20.05.12'!AW$7:AW$83)+SUMIF('прогноз на 20.05.12'!$C$7:$C$83,$G7,'прогноз на 20.05.12'!AW$7:AW$83)+SUMIF('прогноз на 20.05.12'!$C$7:$C$83,$I7,'прогноз на 20.05.12'!AW$7:AW$83)+SUMIF('прогноз на 20.05.12'!$C$7:$C$83,$K7,'прогноз на 20.05.12'!AW$7:AW$83) -> 365 | AX7: =SUMIF('прогноз на 20.05.12'!$C$7:$C$83,$C7,'прогноз на 20.05.12'!AX$7:AX$83)+SUMIF('прогноз на 20.05.12'!$C$7:$C$83,$E7,'прогноз на 20.05.12'!AX$7:AX$83)+SUMIF('прогноз на 20.05.12'!$C$7:$C$83,$G7,'прогноз на 20.05.12'!AX$7:AX$83)+SUMIF('прогноз на 20.05.12'!$C$7:$C$83,$I7,'прогноз на 20.05.12'!AX$7:AX$83)+SUMIF('прогноз на 20.05.12'!$C$7:$C$83,$K7,'прогноз на 20.05.12'!AX$7:AX$83) -> 25,907 | AY7: =SUMIF('прогноз на 20.05.12'!$C$7:$C$83,$C7,'прогноз на 20.05.12'!AY$7:AY$83)+SUMIF('прогноз на 20.05.12'!$C$7:$C$83,$E7,'прогноз на 20.05.12'!AY$7:AY$83)+SUMIF('прогноз на 20.05.12'!$C$7:$C$83,$G7,'прогноз на 20.05.12'!AY$7:AY$83)+SUMIF('прогноз на 20.05.12'!$C$7:$C$83,$I7,'прогноз на 20.05.12'!AY$7:AY$83)+SUMIF('прогноз на 20.05.12'!$C$7:$C$83,$K7,'прогноз на 20.05.12'!AY$7:AY$83) -> 47,750 | AZ7: =SUMIF('прогноз на 20.05.12'!$C$7:$C$83,$C7,'прогноз на 20.05.12'!AZ$7:AZ$83)+SUMIF('прогноз на 20.05.12'!$C$7:$C$83,$E7,'прогноз на 20.05.12'!AZ$7:AZ$83)+SUMIF('прогноз на 20.05.12'!$C$7:$C$83,$G7,'прогноз на 20.05.12'!AZ$7:AZ$83)+SUMIF('прогноз на 20.05.12'!$C$7:$C$83,$I7,'прогноз на 20.05.12'!AZ$7:AZ$83)+SUMIF('прогноз на 20.05.12'!$C$7:$C$83,$K7,'прогноз на 20.05.12'!AZ$7:AZ$83) -> 557,865 | BA7: =SUMIF('прогноз на 20.05.12'!$C$7:$C$83,$C7,'прогноз на 20.05.12'!BA$7:BA$83)+SUMIF('прогноз на 20.05.12'!$C$7:$C$83,$E7,'прогноз на 20.05.12'!BA$7:BA$83)+SUMIF('прогноз на 20.05.12'!$C$7:$C$83,$G7,'прогноз на 20.05.12'!BA$7:BA$83)+SUMIF('прогноз на 20.05.12'!$C$7:$C$83,$I7,'прогноз на 20.05.12'!BA$7:BA$83)+SUMIF('прогноз на 20.05.12'!$C$7:$C$83,$K7,'прогноз на 20.05.12'!BA$7:BA$83) -> 7,623 | BB7: =SUMIF('прогноз на 20.05.12'!$C$7:$C$83,$C7,'прогноз на 20.05.12'!BB$7:BB$83)+SUMIF('прогноз на 20.05.12'!$C$7:$C$83,$E7,'прогноз на 20.05.12'!BB$7:BB$83)+SUMIF('прогноз на 20.05.12'!$C$7:$C$83,$G7,'прогноз на 20.05.12'!BB$7:BB$83)+SUMIF('прогноз на 20.05.12'!$C$7:$C$83,$I7,'прогноз на 20.05.12'!BB$7:BB$83)+SUMIF('прогноз на 20.05.12'!$C$7:$C$83,$K7,'прогноз на 20.05.12'!BB$7:BB$83) -> 613,237 | BC7: =SUMIF('прогноз на 20.05.12'!$C$7:$C$83,$C7,'прогноз на 20.05.12'!BC$7:BC$83)+SUMIF('прогноз на 20.05.12'!$C$7:$C$83,$E7,'прогноз на 20.05.12'!BC$7:BC$83)+SUMIF('прогноз на 20.05.12'!$C$7:$C$83,$G7,'прогноз на 20.05.12'!BC$7:BC$83)+SUMIF('прогноз на 20.05.12'!$C$7:$C$83,$I7,'прогноз на 20.05.12'!BC$7:BC$83)+SUMIF('прогноз на 20.05.12'!$C$7:$C$83,$K7,'прогноз на 20.05.12'!BC$7:BC$83) -> 844,442 | BD7: =SUMIF('прогноз на 20.05.12'!$C$7:$C$83,$C7,'прогноз на 20.05.12'!BD$7:BD$83)+SUMIF('прогноз на 20.05.12'!$C$7:$C$83,$E7,'прогноз на 20.05.12'!BD$7:BD$83)+SUMIF('прогноз на 20.05.12'!$C$7:$C$83,$G7,'прогноз на 20.05.12'!BD$7:BD$83)+SUMIF('прогноз на 20.05.12'!$C$7:$C$83,$I7,'прогноз на 20.05.12'!BD$7:BD$83)+SUMIF('прогноз на 20.05.12'!$C$7:$C$83,$K7,'прогноз на 20.05.12'!BD$7:BD$83) -> 844,442 | BE7: =SUMIF('прогноз на 20.05.12'!$C$7:$C$83,$C7,'прогноз на 20.05.12'!BE$7:BE$83)+SUMIF('прогноз на 20.05.12'!$C$7:$C$83,$E7,'прогноз на 20.05.12'!BE$7:BE$83)+SUMIF('прогноз на 20.05.12'!$C$7:$C$83,$G7,'прогноз на 20.05.12'!BE$7:BE$83)+SUMIF('прогноз на 20.05.12'!$C$7:$C$83,$I7,'прогноз на 20.05.12'!BE$7:BE$83)+SUMIF('прогноз на 20.05.12'!$C$7:$C$83,$K7,'прогноз на 20.05.12'!BE$7:BE$83) -> 0 | BF7: =SUMIF('прогноз на 20.05.12'!$C$7:$C$83,$C7,'прогноз на 20.05.12'!BF$7:BF$83)+SUMIF('прогноз на 20.05.12'!$C$7:$C$83,$E7,'прогноз на 20.05.12'!BF$7:BF$83)+SUMIF('прогноз на 20.05.12'!$C$7:$C$83,$G7,'прогноз на 20.05.12'!BF$7:BF$83)+SUMIF('прогноз на 20.05.12'!$C$7:$C$83,$I7,'прогноз на 20.05.12'!BF$7:BF$83)+SUMIF('прогноз на 20.05.12'!$C$7:$C$83,$K7,'прогноз на 20.05.12'!BF$7:BF$83) -> 231,205 | BG7: =SUMIF('прогноз на 20.05.12'!$C$7:$C$83,$C7,'прогноз на 20.05.12'!BG$7:BG$83)+SUMIF('прогноз на 20.05.12'!$C$7:$C$83,$E7,'прогноз на 20.05.12'!BG$7:BG$83)+SUMIF('прогноз на 20.05.12'!$C$7:$C$83,$G7,'прогноз на 20.05.12'!BG$7:BG$83)+SUMIF('прогноз на 20.05.12'!$C$7:$C$83,$I7,'прогноз на 20.05.12'!BG$7:BG$83)+SUMIF('прогноз на 20.05.12'!$C$7:$C$83,$K7,'прогноз на 20.05.12'!BG$7:BG$83) -> 231,205 | BH7: =SUMIF('прогноз на 20.05.12'!$C$7:$C$83,$C7,'прогноз на 20.05.12'!BH$7:BH$83)+SUMIF('прогноз на 20.05.12'!$C$7:$C$83,$E7,'прогноз на 20.05.12'!BH$7:BH$83)+SUMIF('прогноз на 20.05.12'!$C$7:$C$83,$G7,'прогноз на 20.05.12'!BH$7:BH$83)+SUMIF('прогноз на 20.05.12'!$C$7:$C$83,$I7,'прогноз на 20.05.12'!BH$7:BH$83)+SUMIF('прогноз на 20.05.12'!$C$7:$C$83,$K7,'прогноз на 20.05.12'!BH$7:BH$83) -> 0 | BI7: =IF(L7=0,"",L7/P7) -> 11.0 | BJ7: =IF(M7=0,"",M7/Q7) -> 9.8 | BK7: 14.5 | BL7: 11.1
A8: 2 | B8: МОУ Березнякская ср.шк. | C8: 1623006010 | D8: МОУ Аман-Оштарминская начальная школа | E8: 1623004816 | F8: МОУ Камышлинская начальная школа | G8: 1623004809 | L8: =SUMIF('прогноз на 20.05.12'!$C$7:$C$83,$C8,'прогноз на 20.05.12'!D$7:D$83)+SUMIF('прогноз на 20.05.12'!$C$7:$C$83,$E8,'прогноз на 20.05.12'!D$7:D$83)+SUMIF('прогноз на 20.05.12'!$C$7:$C$83,$G8,'прогноз на 20.05.12'!D$7:D$83)+SUMIF('прогноз на 20.05.12'!$C$7:$C$83,$I8,'прогноз на 20.05.12'!D$7:D$83)+SUMIF('прогноз на 20.05.12'!$C$7:$C$83,$K8,'прогноз на 20.05.12'!D$7:D$83) -> 21 | M8: =SUMIF('прогноз на 20.05.12'!$C$7:$C$83,$C8,'прогноз на 20.05.12'!E$7:E$83)+SUMIF('прогноз на 20.05.12'!$C$7:$C$83,$E8,'прогноз на 20.05.12'!E$7:E$83)+SUMIF('прогноз на 20.05.12'!$C$7:$C$83,$G8,'прогноз на 20.05.12'!E$7:E$83)+SUMIF('прогноз на 20.05.12'!$C$7:$C$83,$I8,'прогноз на 20.05.12'!E$7:E$83)+SUMIF('прогноз на 20.05.12'!$C$7:$C$83,$K8,'прогноз на 20.05.12'!E$7:E$83) -> 30 | N8: =SUMIF('прогноз на 20.05.12'!$C$7:$C$83,$C8,'прогноз на 20.05.12'!F$7:F$83)+SUMIF('прогноз на 20.05.12'!$C$7:$C$83,$E8,'прогноз на 20.05.12'!F$7:F$83)+SUMIF('прогноз на 20.05.12'!$C$7:$C$83,$G8,'прогноз на 20.05.12'!F$7:F$83)+SUMIF('прогноз на 20.05.12'!$C$7:$C$83,$I8,'прогноз на 20.05.12'!F$7:F$83)+SUMIF('прогноз на 20.05.12'!$C$7:$C$83,$K8,'прогноз на 20.05.12'!F$7:F$83) -> 12 | O8: 63 | P8: =SUMIF('прогноз на 20.05.12'!$C$7:$C$83,$C8,'прогноз на 20.05.12'!H$7:H$83)+SUMIF('прогноз на 20.05.12'!$C$7:$C$83,$E8,'прогноз на 20.05.12'!H$7:H$83)+SUMIF('прогноз на 20.05.12'!$C$7:$C$83,$G8,'прогноз на 20.05.12'!H$7:H$83)+SUMIF('прогноз на 20.05.12'!$C$7:$C$83,$I8,'прогноз на 20.05.12'!H$7:H$83)+SUMIF('прогноз на 20.05.12'!$C$7:$C$83,$K8,'прогноз на 20.05.12'!H$7:H$83) -> 5 | Q8: =SUMIF('прогноз на 20.05.12'!$C$7:$C$83,$C8,'прогноз на 20.05.12'!I$7:I$83)+SUMIF('прогноз на 20.05.12'!$C$7:$C$83,$E8,'прогноз на 20.05.12'!I$7:I$83)+SUMIF('прогноз на 20.05.12'!$C$7:$C$83,$G8,'прогноз на 20.05.12'!I$7:I$83)+SUMIF('прогноз на 20.05.12'!$C$7:$C$83,$I8,'прогноз на 20.05.12'!I$7:I$83)+SUMIF('прогноз на 20.05.12'!$C$7:$C$83,$K8,'прогноз на 20.05.12'!I$7:I$83) -> 5 | R8: =SUMIF('прогноз на 20.05.12'!$C$7:$C$83,$C8,'прогноз на 20.05.12'!J$7:J$83)+SUMIF('прогноз на 20.05.12'!$C$7:$C$83,$E8,'прогноз на 20.05.12'!J$7:J$83)+SUMIF('прогноз на 20.05.12'!$C$7:$C$83,$G8,'прогноз на 20.05.12'!J$7:J$83)+SUMIF('прогноз на 20.05.12'!$C$7:$C$83,$I8,'прогноз на 20.05.12'!J$7:J$83)+SUMIF('прогноз на 20.05.12'!$C$7:$C$83,$K8,'прогноз на 20.05.12'!J$7:J$83) -> 2 | S8: 12 | T8: =SUMIF('прогноз на 20.05.12'!$C$7:$C$83,$C8,'прогноз на 20.05.12'!L$7:L$83)+SUMIF('прогноз на 20.05.12'!$C$7:$C$83,$E8,'прогноз на 20.05.12'!L$7:L$83)+SUMIF('прогноз на 20.05.12'!$C$7:$C$83,$G8,'прогноз на 20.05.12'!L$7:L$83)+SUMIF('прогноз на 20.05.12'!$C$7:$C$83,$I8,'прогноз на 20.05.12'!L$7:L$83)+SUMIF('прогноз на 20.05.12'!$C$7:$C$83,$K8,'прогноз на 20.05.12'!L$7:L$83) -> 0 | U8: =SUMIF('прогноз на 20.05.12'!$C$7:$C$83,$C8,'прогноз на 20.05.12'!M$7:M$83)+SUMIF('прогноз на 20.05.12'!$C$7:$C$83,$E8,'прогноз на 20.05.12'!M$7:M$83)+SUMIF('прогноз на 20.05.12'!$C$7:$C$83,$G8,'прогноз на 20.05.12'!M$7:M$83)+SUMIF('прогноз на 20.05.12'!$C$7:$C$83,$I8,'прогноз на 20.05.12'!M$7:M$83)+SUMIF('прогноз на 20.05.12'!$C$7:$C$83,$K8,'прогноз на 20.05.12'!M$7:M$83) -> 0 | V8: =SUMIF('прогноз на 20.05.12'!$C$7:$C$83,$C8,'прогноз на 20.05.12'!N$7:N$83)+SUMIF('прогноз на 20.05.12'!$C$7:$C$83,$E8,'прогноз на 20.05.12'!N$7:N$83)+SUMIF('прогноз на 20.05.12'!$C$7:$C$83,$G8,'прогноз на 20.05.12'!N$7:N$83)+SUMIF('прогноз на 20.05.12'!$C$7:$C$83,$I8,'прогноз на 20.05.12'!N$7:N$83)+SUMIF('прогноз на 20.05.12'!$C$7:$C$83,$K8,'прогноз на 20.05.12'!N$7:N$83) -> 0 | W8: 0 | X8: =SUMIF('прогноз на 20.05.12'!$C$7:$C$83,$C8,'прогноз на 20.05.12'!P$7:P$83)+SUMIF('прогноз на 20.05.12'!$C$7:$C$83,$E8,'прогноз на 20.05.12'!P$7:P$83)+SUMIF('прогноз на 20.05.12'!$C$7:$C$83,$G8,'прогноз на 20.05.12'!P$7:P$83)+SUMIF('прогноз на 20.05.12'!$C$7:$C$83,$I8,'прогноз на 20.05.12'!P$7:P$83)+SUMIF('прогноз на 20.05.12'!$C$7:$C$83,$K8,'прогноз на 20.05.12'!P$7:P$83) -> 1 | Y8: =SUMIF('прогноз на 20.05.12'!$C$7:$C$83,$C8,'прогноз на 20.05.12'!Q$7:Q$83)+SUMIF('прогноз на 20.05.12'!$C$7:$C$83,$E8,'прогноз на 20.05.12'!Q$7:Q$83)+SUMIF('прогноз на 20.05.12'!$C$7:$C$83,$G8,'прогноз на 20.05.12'!Q$7:Q$83)+SUMIF('прогноз на 20.05.12'!$C$7:$C$83,$I8,'прогноз на 20.05.12'!Q$7:Q$83)+SUMIF('прогноз на 20.05.12'!$C$7:$C$83,$K8,'прогноз на 20.05.12'!Q$7:Q$83) -> 23 | Z8: =SUMIF('прогноз на 20.05.12'!$C$7:$C$83,$C8,'прогноз на 20.05.12'!R$7:R$83)+SUMIF('прогноз на 20.05.12'!$C$7:$C$83,$E8,'прогноз на 20.05.12'!R$7:R$83)+SUMIF('прогноз на 20.05.12'!$C$7:$C$83,$G8,'прогноз на 20.05.12'!R$7:R$83)+SUMIF('прогноз на 20.05.12'!$C$7:$C$83,$I8,'прогноз на 20.05.12'!R$7:R$83)+SUMIF('прогноз на 20.05.12'!$C$7:$C$83,$K8,'прогноз на 20.05.12'!R$7:R$83) -> 0 | AA8: =SUMIF('прогноз на 20.05.12'!$C$7:$C$83,$C8,'прогноз на 20.05.12'!S$7:S$83)+SUMIF('прогноз на 20.05.12'!$C$7:$C$83,$E8,'прогноз на 20.05.12'!S$7:S$83)+SUMIF('прогноз на 20.05.12'!$C$7:$C$83,$G8,'прогноз на 20.05.12'!S$7:S$83)+SUMIF('прогноз на 20.05.12'!$C$7:$C$83,$I8,'прогноз на 20.05.12'!S$7:S$83)+SUMIF('прогноз на 20.05.12'!$C$7:$C$83,$K8,'прогноз на 20.05.12'!S$7:S$83) -> 36 | AB8: =SUMIF('прогноз на 20.05.12'!$C$7:$C$83,$C8,'прогноз на 20.05.12'!T$7:T$83)+SUMIF('прогноз на 20.05.12'!$C$7:$C$83,$E8,'прогноз на 20.05.12'!T$7:T$83)+SUMIF('прогноз на 20.05.12'!$C$7:$C$83,$G8,'прогноз на 20.05.12'!T$7:T$83)+SUMIF('прогноз на 20.05.12'!$C$7:$C$83,$I8,'прогноз на 20.05.12'!T$7:T$83)+SUMIF('прогноз на 20.05.12'!$C$7:$C$83,$K8,'прогноз на 20.05.12'!T$7:T$83) -> 70 | AC8: =SUMIF('прогноз на 20.05.12'!$C$7:$C$83,$C8,'прогноз на 20.05.12'!U$7:U$83)+SUMIF('прогноз на 20.05.12'!$C$7:$C$83,$E8,'прогноз на 20.05.12'!U$7:U$83)+SUMIF('прогноз на 20.05.12'!$C$7:$C$83,$G8,'прогноз на 20.05.12'!U$7:U$83)+SUMIF('прогноз на 20.05.12'!$C$7:$C$83,$I8,'прогноз на 20.05.12'!U$7:U$83)+SUMIF('прогноз на 20.05.12'!$C$7:$C$83,$K8,'прогноз на 20.05.12'!U$7:U$83) -> 28 | AD8: =SUMIF('прогноз на 20.05.12'!$C$7:$C$83,$C8,'прогноз на 20.05.12'!V$7:V$83)+SUMIF('прогноз на 20.05.12'!$C$7:$C$83,$E8,'прогноз на 20.05.12'!V$7:V$83)+SUMIF('прогноз на 20.05.12'!$C$7:$C$83,$G8,'прогноз на 20.05.12'!V$7:V$83)+SUMIF('прогноз на 20.05.12'!$C$7:$C$83,$I8,'прогноз на 20.05.12'!V$7:V$83)+SUMIF('прогноз на 20.05.12'!$C$7:$C$83,$K8,'прогноз на 20.05.12'!V$7:V$83) -> 134 | AE8: =SUMIF('прогноз на 20.05.12'!$C$7:$C$83,$C8,'прогноз на 20.05.12'!W$7:W$83)+SUMIF('прогноз на 20.05.12'!$C$7:$C$83,$E8,'прогноз на 20.05.12'!W$7:W$83)+SUMIF('прогноз на 20.05.12'!$C$7:$C$83,$G8,'прогноз на 20.05.12'!W$7:W$83)+SUMIF('прогноз на 20.05.12'!$C$7:$C$83,$I8,'прогноз на 20.05.12'!W$7:W$83)+SUMIF('прогноз на 20.05.12'!$C$7:$C$83,$K8,'прогноз на 20.05.12'!W$7:W$83) -> 15 | AF8: =SUMIF('прогноз на 20.05.12'!$C$7:$C$83,$C8,'прогноз на 20.05.12'!X$7:X$83)+SUMIF('прогноз на 20.05.12'!$C$7:$C$83,$E8,'прогноз на 20.05.12'!X$7:X$83)+SUMIF('прогноз на 20.05.12'!$C$7:$C$83,$G8,'прогноз на 20.05.12'!X$7:X$83)+SUMIF('прогноз на 20.05.12'!$C$7:$C$83,$I8,'прогноз на 20.05.12'!X$7:X$83)+SUMIF('прогноз на 20.05.12'!$C$7:$C$83,$K8,'прогноз на 20.05.12'!X$7:X$83) -> 40 | AG8: =SUMIF('прогноз на 20.05.12'!$C$7:$C$83,$C8,'прогноз на 20.05.12'!Y$7:Y$83)+SUMIF('прогноз на 20.05.12'!$C$7:$C$83,$E8,'прогноз на 20.05.12'!Y$7:Y$83)+SUMIF('прогноз на 20.05.12'!$C$7:$C$83,$G8,'прогноз на 20.05.12'!Y$7:Y$83)+SUMIF('прогноз на 20.05.12'!$C$7:$C$83,$I8,'прогноз на 20.05.12'!Y$7:Y$83)+SUMIF('прогноз на 20.05.12'!$C$7:$C$83,$K8,'прогноз на 20.05.12'!Y$7:Y$83) -> 16 | AH8: =SUMIF('прогноз на 20.05.12'!$C$7:$C$83,$C8,'прогноз на 20.05.12'!Z$7:Z$83)+SUMIF('прогноз на 20.05.12'!$C$7:$C$83,$E8,'прогноз на 20.05.12'!Z$7:Z$83)+SUMIF('прогноз на 20.05.12'!$C$7:$C$83,$G8,'прогноз на 20.05.12'!Z$7:Z$83)+SUMIF('прогноз на 20.05.12'!$C$7:$C$83,$I8,'прогноз на 20.05.12'!Z$7:Z$83)+SUMIF('прогноз на 20.05.12'!$C$7:$C$83,$K8,'прогноз на 20.05.12'!Z$7:Z$83) -> 71 | AI8: =SUMIF('прогноз на 20.05.12'!$C$7:$C$83,$C8,'прогноз на 20.05.12'!AA$7:AA$83)+SUMIF('прогноз на 20.05.12'!$C$7:$C$83,$E8,'прогноз на 20.05.12'!AA$7:AA$83)+SUMIF('прогноз на 20.05.12'!$C$7:$C$83,$G8,'прогноз на 20.05.12'!AA$7:AA$83)+SUMIF('прогноз на 20.05.12'!$C$7:$C$83,$I8,'прогноз на 20.05.12'!AA$7:AA$83)+SUMIF('прогноз на 20.05.12'!$C$7:$C$83,$K8,'прогноз на 20.05.12'!AA$7:AA$83) -> 11 | AJ8: =SUMIF('прогноз на 20.05.12'!$C$7:$C$83,$C8,'прогноз на 20.05.12'!AB$7:AB$83)+SUMIF('прогноз на 20.05.12'!$C$7:$C$83,$E8,'прогноз на 20.05.12'!AB$7:AB$83)+SUMIF('прогноз на 20.05.12'!$C$7:$C$83,$G8,'прогноз на 20.05.12'!AB$7:AB$83)+SUMIF('прогноз на 20.05.12'!$C$7:$C$83,$I8,'прогноз на 20.05.12'!AB$7:AB$83)+SUMIF('прогноз на 20.05.12'!$C$7:$C$83,$K8,'прогноз на 20.05.12'!AB$7:AB$83) -> 30 | AK8: =SUMIF('прогноз на 20.05.12'!$C$7:$C$83,$C8,'прогноз на 20.05.12'!AC$7:AC$83)+SUMIF('прогноз на 20.05.12'!$C$7:$C$83,$E8,'прогноз на 20.05.12'!AC$7:AC$83)+SUMIF('прогноз на 20.05.12'!$C$7:$C$83,$G8,'прогноз на 20.05.12'!AC$7:AC$83)+SUMIF('прогноз на 20.05.12'!$C$7:$C$83,$I8,'прогноз на 20.05.12'!AC$7:AC$83)+SUMIF('прогноз на 20.05.12'!$C$7:$C$83,$K8,'прогноз на 20.05.12'!AC$7:AC$83) -> 12 | AL8: =SUMIF('прогноз на 20.05.12'!$C$7:$C$83,$C8,'прогноз на 20.05.12'!AD$7:AD$83)+SUMIF('прогноз на 20.05.12'!$C$7:$C$83,$E8,'прогноз на 20.05.12'!AD$7:AD$83)+SUMIF('прогноз на 20.05.12'!$C$7:$C$83,$G8,'прогноз на 20.05.12'!AD$7:AD$83)+SUMIF('прогноз на 20.05.12'!$C$7:$C$83,$I8,'прогноз на 20.05.12'!AD$7:AD$83)+SUMIF('прогноз на 20.05.12'!$C$7:$C$83,$K8,'прогноз на 20.05.12'!AD$7:AD$83) -> 53 | AM8: =SUMIF('прогноз на 20.05.12'!$C$7:$C$83,$C8,'прогноз на 20.05.12'!AE$7:AE$83)+SUMIF('прогноз на 20.05.12'!$C$7:$C$83,$E8,'прогноз на 20.05.12'!AE$7:AE$83)+SUMIF('прогноз на 20.05.12'!$C$7:$C$83,$G8,'прогноз на 20.05.12'!AE$7:AE$83)+SUMIF('прогноз на 20.05.12'!$C$7:$C$83,$I8,'прогноз на 20.05.12'!AE$7:AE$83)+SUMIF('прогноз на 20.05.12'!$C$7:$C$83,$K8,'прогноз на 20.05.12'!AE$7:AE$83) -> 32 | AN8: =SUMIF('прогноз на 20.05.12'!$C$7:$C$83,$C8,'прогноз на 20.05.12'!AF$7:AF$83)+SUMIF('прогноз на 20.05.12'!$C$7:$C$83,$E8,'прогноз на 20.05.12'!AF$7:AF$83)+SUMIF('прогноз на 20.05.12'!$C$7:$C$83,$G8,'прогноз на 20.05.12'!AF$7:AF$83)+SUMIF('прогноз на 20.05.12'!$C$7:$C$83,$I8,'прогноз на 20.05.12'!AF$7:AF$83)+SUMIF('прогноз на 20.05.12'!$C$7:$C$83,$K8,'прогноз на 20.05.12'!AF$7:AF$83) -> 60 | AO8: =SUMIF('прогноз на 20.05.12'!$C$7:$C$83,$C8,'прогноз на 20.05.12'!AG$7:AG$83)+SUMIF('прогноз на 20.05.12'!$C$7:$C$83,$E8,'прогноз на 20.05.12'!AG$7:AG$83)+SUMIF('прогноз на 20.05.12'!$C$7:$C$83,$G8,'прогноз на 20.05.12'!AG$7:AG$83)+SUMIF('прогноз на 20.05.12'!$C$7:$C$83,$I8,'прогноз на 20.05.12'!AG$7:AG$83)+SUMIF('прогноз на 20.05.12'!$C$7:$C$83,$K8,'прогноз на 20.05.12'!AG$7:AG$83) -> 24 | AP8: =SUMIF('прогноз на 20.05.12'!$C$7:$C$83,$C8,'прогноз на 20.05.12'!AH$7:AH$83)+SUMIF('прогноз на 20.05.12'!$C$7:$C$83,$E8,'прогноз на 20.05.12'!AH$7:AH$83)+SUMIF('прогноз на 20.05.12'!$C$7:$C$83,$G8,'прогноз на 20.05.12'!AH$7:AH$83)+SUMIF('прогноз на 20.05.12'!$C$7:$C$83,$I8,'прогноз на 20.05.12'!AH$7:AH$83)+SUMIF('прогноз на 20.05.12'!$C$7:$C$83,$K8,'прогноз на 20.05.12'!AH$7:AH$83) -> 116 | AQ8: =SUMIF('прогноз на 20.05.12'!$C$7:$C$83,$C8,'прогноз на 20.05.12'!AM$7:AM$83)+SUMIF('прогноз на 20.05.12'!$C$7:$C$83,$E8,'прогноз на 20.05.12'!AM$7:AM$83)+SUMIF('прогноз на 20.05.12'!$C$7:$C$83,$G8,'прогноз на 20.05.12'!AM$7:AM$83)+SUMIF('прогноз на 20.05.12'!$C$7:$C$83,$I8,'прогноз на 20.05.12'!AM$7:AM$83)+SUMIF('прогноз на 20.05.12'!$C$7:$C$83,$K8,'прогноз на 20.05.12'!AM$7:AM$83) -> 224,516 | AR8: =SUMIF('прогноз на 20.05.12'!$C$7:$C$83,$C8,'прогноз на 20.05.12'!AN$7:AN$83)+SUMIF('прогноз на 20.05.12'!$C$7:$C$83,$E8,'прогноз на 20.05.12'!AN$7:AN$83)+SUMIF('прогноз на 20.05.12'!$C$7:$C$83,$G8,'прогноз на 20.05.12'!AN$7:AN$83)+SUMIF('прогноз на 20.05.12'!$C$7:$C$83,$I8,'прогноз на 20.05.12'!AN$7:AN$83)+SUMIF('прогноз на 20.05.12'!$C$7:$C$83,$K8,'прогноз на 20.05.12'!AN$7:AN$83) -> 1,019,370 | AS8: =SUMIF('прогноз на 20.05.12'!$C$7:$C$83,$C8,'прогноз на 20.05.12'!AO$7:AO$83)+SUMIF('прогноз на 20.05.12'!$C$7:$C$83,$E8,'прогноз на 20.05.12'!AO$7:AO$83)+SUMIF('прогноз на 20.05.12'!$C$7:$C$83,$G8,'прогноз на 20.05.12'!AO$7:AO$83)+SUMIF('прогноз на 20.05.12'!$C$7:$C$83,$I8,'прогноз на 20.05.12'!AO$7:AO$83)+SUMIF('прогноз на 20.05.12'!$C$7:$C$83,$K8,'прогноз на 20.05.12'!AO$7:AO$83) -> 435,444 | AT8: =SUMIF('прогноз на 20.05.12'!$C$7:$C$83,$C8,'прогноз на 20.05.12'!AP$7:AP$83)+SUMIF('прогноз на 20.05.12'!$C$7:$C$83,$E8,'прогноз на 20.05.12'!AP$7:AP$83)+SUMIF('прогноз на 20.05.12'!$C$7:$C$83,$G8,'прогноз на 20.05.12'!AP$7:AP$83)+SUMIF('прогноз на 20.05.12'!$C$7:$C$83,$I8,'прогноз на 20.05.12'!AP$7:AP$83)+SUMIF('прогноз на 20.05.12'!$C$7:$C$83,$K8,'прогноз на 20.05.12'!AP$7:AP$83) -> 1,679,330 | AU8: =SUMIF('прогноз на 20.05.12'!$C$7:$C$83,$C8,'прогноз на 20.05.12'!AU$7:AU$83)+SUMIF('прогноз на 20.05.12'!$C$7:$C$83,$E8,'прогноз на 20.05.12'!AU$7:AU$83)+SUMIF('прогноз на 20.05.12'!$C$7:$C$83,$G8,'прогноз на 20.05.12'!AU$7:AU$83)+SUMIF('прогноз на 20.05.12'!$C$7:$C$83,$I8,'прогноз на 20.05.12'!AU$7:AU$83)+SUMIF('прогноз на 20.05.12'!$C$7:$C$83,$K8,'прогноз на 20.05.12'!AU$7:AU$83) -> 14,231 | AV8: =SUMIF('прогноз на 20.05.12'!$C$7:$C$83,$C8,'прогноз на 20.05.12'!AV$7:AV$83)+SUMIF('прогноз на 20.05.12'!$C$7:$C$83,$E8,'прогноз на 20.05.12'!AV$7:AV$83)+SUMIF('прогноз на 20.05.12'!$C$7:$C$83,$G8,'прогноз на 20.05.12'!AV$7:AV$83)+SUMIF('прогноз на 20.05.12'!$C$7:$C$83,$I8,'прогноз на 20.05.12'!AV$7:AV$83)+SUMIF('прогноз на 20.05.12'!$C$7:$C$83,$K8,'прогноз на 20.05.12'!AV$7:AV$83) -> 43,230 | AW8: =SUMIF('прогноз на 20.05.12'!$C$7:$C$83,$C8,'прогноз на 20.05.12'!AW$7:AW$83)+SUMIF('прогноз на 20.05.12'!$C$7:$C$83,$E8,'прогноз на 20.05.12'!AW$7:AW$83)+SUMIF('прогноз на 20.05.12'!$C$7:$C$83,$G8,'прогноз на 20.05.12'!AW$7:AW$83)+SUMIF('прогноз на 20.05.12'!$C$7:$C$83,$I8,'прогноз на 20.05.12'!AW$7:AW$83)+SUMIF('прогноз на 20.05.12'!$C$7:$C$83,$K8,'прогноз на 20.05.12'!AW$7:AW$83) -> 21,924 | AX8: =SUMIF('прогноз на 20.05.12'!$C$7:$C$83,$C8,'прогноз на 20.05.12'!AX$7:AX$83)+SUMIF('прогноз на 20.05.12'!$C$7:$C$83,$E8,'прогноз на 20.05.12'!AX$7:AX$83)+SUMIF('прогноз на 20.05.12'!$C$7:$C$83,$G8,'прогноз на 20.05.12'!AX$7:AX$83)+SUMIF('прогноз на 20.05.12'!$C$7:$C$83,$I8,'прогноз на 20.05.12'!AX$7:AX$83)+SUMIF('прогноз на 20.05.12'!$C$7:$C$83,$K8,'прогноз на 20.05.12'!AX$7:AX$83) -> 79,385 | AY8: =SUMIF('прогноз на 20.05.12'!$C$7:$C$83,$C8,'прогноз на 20.05.12'!AY$7:AY$83)+SUMIF('прогноз на 20.05.12'!$C$7:$C$83,$E8,'прогноз на 20.05.12'!AY$7:AY$83)+SUMIF('прогноз на 20.05.12'!$C$7:$C$83,$G8,'прогноз на 20.05.12'!AY$7:AY$83)+SUMIF('прогноз на 20.05.12'!$C$7:$C$83,$I8,'прогноз на 20.05.12'!AY$7:AY$83)+SUMIF('прогноз на 20.05.12'!$C$7:$C$83,$K8,'прогноз на 20.05.12'!AY$7:AY$83) -> 238,748 | AZ8: =SUMIF('прогноз на 20.05.12'!$C$7:$C$83,$C8,'прогноз на 20.05.12'!AZ$7:AZ$83)+SUMIF('прогноз на 20.05.12'!$C$7:$C$83,$E8,'прогноз на 20.05.12'!AZ$7:AZ$83)+SUMIF('прогноз на 20.05.12'!$C$7:$C$83,$G8,'прогноз на 20.05.12'!AZ$7:AZ$83)+SUMIF('прогноз на 20.05.12'!$C$7:$C$83,$I8,'прогноз на 20.05.12'!AZ$7:AZ$83)+SUMIF('прогноз на 20.05.12'!$C$7:$C$83,$K8,'прогноз на 20.05.12'!AZ$7:AZ$83) -> 1,062,600 | BA8: =SUMIF('прогноз на 20.05.12'!$C$7:$C$83,$C8,'прогноз на 20.05.12'!BA$7:BA$83)+SUMIF('прогноз на 20.05.12'!$C$7:$C$83,$E8,'прогноз на 20.05.12'!BA$7:BA$83)+SUMIF('прогноз на 20.05.12'!$C$7:$C$83,$G8,'прогноз на 20.05.12'!BA$7:BA$83)+SUMIF('прогноз на 20.05.12'!$C$7:$C$83,$I8,'прогноз на 20.05.12'!BA$7:BA$83)+SUMIF('прогноз на 20.05.12'!$C$7:$C$83,$K8,'прогноз на 20.05.12'!BA$7:BA$83) -> 457,368 | BB8: =SUMIF('прогноз на 20.05.12'!$C$7:$C$83,$C8,'прогноз на 20.05.12'!BB$7:BB$83)+SUMIF('прогноз на 20.05.12'!$C$7:$C$83,$E8,'прогноз на 20.05.12'!BB$7:BB$83)+SUMIF('прогноз на 20.05.12'!$C$7:$C$83,$G8,'прогноз на 20.05.12'!BB$7:BB$83)+SUMIF('прогноз на 20.05.12'!$C$7:$C$83,$I8,'прогноз на 20.05.12'!BB$7:BB$83)+SUMIF('прогноз на 20.05.12'!$C$7:$C$83,$K8,'прогноз на 20.05.12'!BB$7:BB$83) -> 1,758,716 | BC8: =SUMIF('прогноз на 20.05.12'!$C$7:$C$83,$C8,'прогноз на 20.05.12'!BC$7:BC$83)+SUMIF('прогноз на 20.05.12'!$C$7:$C$83,$E8,'прогноз на 20.05.12'!BC$7:BC$83)+SUMIF('прогноз на 20.05.12'!$C$7:$C$83,$G8,'прогноз на 20.05.12'!BC$7:BC$83)+SUMIF('прогноз на 20.05.12'!$C$7:$C$83,$I8,'прогноз на 20.05.12'!BC$7:BC$83)+SUMIF('прогноз на 20.05.12'!$C$7:$C$83,$K8,'прогноз на 20.05.12'!BC$7:BC$83) -> 2,797,198 | BD8: =SUMIF('прогноз на 20.05.12'!$C$7:$C$83,$C8,'прогноз на 20.05.12'!BD$7:BD$83)+SUMIF('прогноз на 20.05.12'!$C$7:$C$83,$E8,'прогноз на 20.05.12'!BD$7:BD$83)+SUMIF('прогноз на 20.05.12'!$C$7:$C$83,$G8,'прогноз на 20.05.12'!BD$7:BD$83)+SUMIF('прогноз на 20.05.12'!$C$7:$C$83,$I8,'прогноз на 20.05.12'!BD$7:BD$83)+SUMIF('прогноз на 20.05.12'!$C$7:$C$83,$K8,'прогноз на 20.05.12'!BD$7:BD$83) -> 2,799,549 | BE8: =SUMIF('прогноз на 20.05.12'!$C$7:$C$83,$C8,'прогноз на 20.05.12'!BE$7:BE$83)+SUMIF('прогноз на 20.05.12'!$C$7:$C$83,$E8,'прогноз на 20.05.12'!BE$7:BE$83)+SUMIF('прогноз на 20.05.12'!$C$7:$C$83,$G8,'прогноз на 20.05.12'!BE$7:BE$83)+SUMIF('прогноз на 20.05.12'!$C$7:$C$83,$I8,'прогноз на 20.05.12'!BE$7:BE$83)+SUMIF('прогноз на 20.05.12'!$C$7:$C$83,$K8,'прогноз на 20.05.12'!BE$7:BE$83) -> -2,351 | BF8: =SUMIF('прогноз на 20.05.12'!$C$7:$C$83,$C8,'прогноз на 20.05.12'!BF$7:BF$83)+SUMIF('прогноз на 20.05.12'!$C$7:$C$83,$E8,'прогноз на 20.05.12'!BF$7:BF$83)+SUMIF('прогноз на 20.05.12'!$C$7:$C$83,$G8,'прогноз на 20.05.12'!BF$7:BF$83)+SUMIF('прогноз на 20.05.12'!$C$7:$C$83,$I8,'прогноз на 20.05.12'!BF$7:BF$83)+SUMIF('прогноз на 20.05.12'!$C$7:$C$83,$K8,'прогноз на 20.05.12'!BF$7:BF$83) -> 1,038,483 | BG8: =SUMIF('прогноз на 20.05.12'!$C$7:$C$83,$C8,'прогноз на 20.05.12'!BG$7:BG$83)+SUMIF('прогноз на 20.05.12'!$C$7:$C$83,$E8,'прогноз на 20.05.12'!BG$7:BG$83)+SUMIF('прогноз на 20.05.12'!$C$7:$C$83,$G8,'прогноз на 20.05.12'!BG$7:BG$83)+SUMIF('прогноз на 20.05.12'!$C$7:$C$83,$I8,'прогноз на 20.05.12'!BG$7:BG$83)+SUMIF('прогноз на 20.05.12'!$C$7:$C$83,$K8,'прогноз на 20.05.12'!BG$7:BG$83) -> 1,040,834 | BH8: =SUMIF('прогноз на 20.05.12'!$C$7:$C$83,$C8,'прогноз на 20.05.12'!BH$7:BH$83)+SUMIF('прогноз на 20.05.12'!$C$7:$C$83,$E8,'прогноз на 20.05.12'!BH$7:BH$83)+SUMIF('прогноз на 20.05.12'!$C$7:$C$83,$G8,'прогноз на 20.05.12'!BH$7:BH$83)+SUMIF('прогноз на 20.05.12'!$C$7:$C$83,$I8,'прогноз на 20.05.12'!BH$7:BH$83)+SUMIF('прогноз на 20.05.12'!$C$7:$C$83,$K8,'прогноз на 20.05.12'!BH$7:BH$83) -> -2,351 | BI8: =IF(L8=0,"",L8/P8) -> 4.2 | BJ8: =IF(M8=0,"",M8/Q8) -> 6.0 | BK8: =IF(N8=0,"",N8/R8) -> 6.0 | BL8: =IF(O8=0,"",O8/S8) -> 5.3
A9: 3 | B9: МОУ Больше Кукморская ср.шк. | C9: 1623005866 | D9: МОУ Иске -Юртская начальная школа | E9: 1623004750 | F9: МОУ Янцобинская начальная школа | G9: 1623004566 | L9: =SUMIF('прогноз на 20.05.12'!$C$7:$C$83,$C9,'прогноз на 20.05.12'!D$7:D$83)+SUMIF('прогноз на 20.05.12'!$C$7:$C$83,$E9,'прогноз на 20.05.12'!D$7:D$83)+SUMIF('прогноз на 20.05.12'!$C$7:$C$83,$G9,'прогноз на 20.05.12'!D$7:D$83)+SUMIF('прогноз на 20.05.12'!$C$7:$C$83,$I9,'прогноз на 20.05.12'!D$7:D$83)+SUMIF('прогноз на 20.05.12'!$C$7:$C$83,$K9,'прогноз на 20.05.12'!D$7:D$83) -> 92 | M9: =SUMIF('прогноз на 20.05.12'!$C$7:$C$83,$C9,'прогноз на 20.05.12'!E$7:E$83)+SUMIF('прогноз на 20.05.12'!$C$7:$C$83,$E9,'прогноз на 20.05.12'!E$7:E$83)+SUMIF('прогноз на 20.05.12'!$C$7:$C$83,$G9,'прогноз на 20.05.12'!E$7:E$83)+SUMIF('прогноз на 20.05.12'!$C$7:$C$83,$I9,'прогноз на 20.05.12'!E$7:E$83)+SUMIF('прогноз на 20.05.12'!$C$7:$C$83,$K9,'прогноз на 20.05.12'!E$7:E$83) -> 110 | N9: =SUMIF('прогноз на 20.05.12'!$C$7:$C$83,$C9,'прогноз на 20.05.12'!F$7:F$83)+SUMIF('прогноз на 20.05.12'!$C$7:$C$83,$E9,'прогноз на 20.05.12'!F$7:F$83)+SUMIF('прогноз на 20.05.12'!$C$7:$C$83,$G9,'прогноз на 20.05.12'!F$7:F$83)+SUMIF('прогноз на 20.05.12'!$C$7:$C$83,$I9,'прогноз на 20.05.12'!F$7:F$83)+SUMIF('прогноз на 20.05.12'!$C$7:$C$83,$K9,'прогноз на 20.05.12'!F$7:F$83) -> 34 | O9: 236 | P9: =SUMIF('прогноз на 20.05.12'!$C$7:$C$83,$C9,'прогноз на 20.05.12'!H$7:H$83)+SUMIF('прогноз на 20.05.12'!$C$7:$C$83,$E9,'прогноз на 20.05.12'!H$7:H$83)+SUMIF('прогноз на 20.05.12'!$C$7:$C$83,$G9,'прогноз на 20.05.12'!H$7:H$83)+SUMIF('прогноз на 20.05.12'!$C$7:$C$83,$I9,'прогноз на 20.05.12'!H$7:H$83)+SUMIF('прогноз на 20.05.12'!$C$7:$C$83,$K9,'прогноз на 20.05.12'!H$7:H$83) -> 10 | Q9: =SUMIF('прогноз на 20.05.12'!$C$7:$C$83,$C9,'прогноз на 20.05.12'!I$7:I$83)+SUMIF('прогноз на 20.05.12'!$C$7:$C$83,$E9,'прогноз на 20.05.12'!I$7:I$83)+SUMIF('прогноз на 20.05.12'!$C$7:$C$83,$G9,'прогноз на 20.05.12'!I$7:I$83)+SUMIF('прогноз на 20.05.12'!$C$7:$C$83,$I9,'прогноз на 20.05.12'!I$7:I$83)+SUMIF('прогноз на 20.05.12'!$C$7:$C$83,$K9,'прогноз на 20.05.12'!I$7:I$83) -> 6 | R9: =SUMIF('прогноз на 20.05.12'!$C$7:$C$83,$C9,'прогноз на 20.05.12'!J$7:J$83)+SUMIF('прогноз на 20.05.12'!$C$7:$C$83,$E9,'прогноз на 20.05.12'!J$7:J$83)+SUMIF('прогноз на 20.05.12'!$C$7:$C$83,$G9,'прогноз на 20.05.12'!J$7:J$83)+SUMIF('прогноз на 20.05.12'!$C$7:$C$83,$I9,'прогноз на 20.05.12'!J$7:J$83)+SUMIF('прогноз на 20.05.12'!$C$7:$C$83,$K9,'прогноз на 20.05.12'!J$7:J$83) -> 2 | S9: 18 | T9: =SUMIF('прогноз на 20.05.12'!$C$7:$C$83,$C9,'прогноз на 20.05.12'!L$7:L$83)+SUMIF('прогноз на 20.05.12'!$C$7:$C$83,$E9,'прогноз на 20.05.12'!L$7:L$83)+SUMIF('прогноз на 20.05.12'!$C$7:$C$83,$G9,'прогноз на 20.05.12'!L$7:L$83)+SUMIF('прогноз на 20.05.12'!$C$7:$C$83,$I9,'прогноз на 20.05.12'!L$7:L$83)+SUMIF('прогноз на 20.05.12'!$C$7:$C$83,$K9,'прогноз на 20.05.12'!L$7:L$83) -> 0 | U9: =SUMIF('прогноз на 20.05.12'!$C$7:$C$83,$C9,'прогноз на 20.05.12'!M$7:M$83)+SUMIF('прогноз на 20.05.12'!$C$7:$C$83,$E9,'прогноз на 20.05.12'!M$7:M$83)+SUMIF('прогноз на 20.05.12'!$C$7:$C$83,$G9,'прогноз на 20.05.12'!M$7:M$83)+SUMIF('прогноз на 20.05.12'!$C$7:$C$83,$I9,'прогноз на 20.05.12'!M$7:M$83)+SUMIF('прогноз на 20.05.12'!$C$7:$C$83,$K9,'прогноз на 20.05.12'!M$7:M$83) -> 0 | V9: =SUMIF('прогноз на 20.05.12'!$C$7:$C$83,$C9,'прогноз на 20.05.12'!N$7:N$83)+SUMIF('прогноз на 20.05.12'!$C$7:$C$83,$E9,'прогноз на 20.05.12'!N$7:N$83)+SUMIF('прогноз на 20.05.12'!$C$7:$C$83,$G9,'прогноз на 20.05.12'!N$7:N$83)+SUMIF('прогноз на 20.05.12'!$C$7:$C$83,$I9,'прогноз на 20.05.12'!N$7:N$83)+SUMIF('прогноз на 20.05.12'!$C$7:$C$83,$K9,'прогноз на 20.05.12'!N$7:N$83) -> 1 | W9: 1 | X9: =SUMIF('прогноз на 20.05.12'!$C$7:$C$83,$C9,'прогноз на 20.05.12'!P$7:P$83)+SUMIF('прогноз на 20.05.12'!$C$7:$C$83,$E9,'прогноз на 20.05.12'!P$7:P$83)+SUMIF('прогноз на 20.05.12'!$C$7:$C$83,$G9,'прогноз на 20.05.12'!P$7:P$83)+SUMIF('прогноз на 20.05.12'!$C$7:$C$83,$I9,'прогноз на 20.05.12'!P$7:P$83)+SUMIF('прогноз на 20.05.12'!$C$7:$C$83,$K9,'прогноз на 20.05.12'!P$7:P$83) -> 2 | Y9: =SUMIF('прогноз на 20.05.12'!$C$7:$C$83,$C9,'прогноз на 20.05.12'!Q$7:Q$83)+SUMIF('прогноз на 20.05.12'!$C$7:$C$83,$E9,'прогноз на 20.05.12'!Q$7:Q$83)+SUMIF('прогноз на 20.05.12'!$C$7:$C$83,$G9,'прогноз на 20.05.12'!Q$7:Q$83)+SUMIF('прогноз на 20.05.12'!$C$7:$C$83,$I9,'прогноз на 20.05.12'!Q$7:Q$83)+SUMIF('прогноз на 20.05.12'!$C$7:$C$83,$K9,'прогноз на 20.05.12'!Q$7:Q$83) -> 50 | Z9: =SUMIF('прогноз на 20.05.12'!$C$7:$C$83,$C9,'прогноз на 20.05.12'!R$7:R$83)+SUMIF('прогноз на 20.05.12'!$C$7:$C$83,$E9,'прогноз на 20.05.12'!R$7:R$83)+SUMIF('прогноз на 20.05.12'!$C$7:$C$83,$G9,'прогноз на 20.05.12'!R$7:R$83)+SUMIF('прогноз на 20.05.12'!$C$7:$C$83,$I9,'прогноз на 20.05.12'!R$7:R$83)+SUMIF('прогноз на 20.05.12'!$C$7:$C$83,$K9,'прогноз на 20.05.12'!R$7:R$83) -> 0 | AA9: =SUMIF('прогноз на 20.05.12'!$C$7:$C$83,$C9,'прогноз на 20.05.12'!S$7:S$83)+SUMIF('прогноз на 20.05.12'!$C$7:$C$83,$E9,'прогноз на 20.05.12'!S$7:S$83)+SUMIF('прогноз на 20.05.12'!$C$7:$C$83,$G9,'прогноз на 20.05.12'!S$7:S$83)+SUMIF('прогноз на 20.05.12'!$C$7:$C$83,$I9,'прогноз на 20.05.12'!S$7:S$83)+SUMIF('прогноз на 20.05.12'!$C$7:$C$83,$K9,'прогноз на 20.05.12'!S$7:S$83) -> 90 | AB9: =SUMIF('прогноз на 20.05.12'!$C$7:$C$83,$C9,'прогноз на 20.05.12'!T$7:T$83)+SUMIF('прогноз на 20.05.12'!$C$7:$C$83,$E9,'прогноз на 20.05.12'!T$7:T$83)+SUMIF('прогноз на 20.05.12'!$C$7:$C$83,$G9,'прогноз на 20.05.12'!T$7:T$83)+SUMIF('прогноз на 20.05.12'!$C$7:$C$83,$I9,'прогноз на 20.05.12'!T$7:T$83)+SUMIF('прогноз на 20.05.12'!$C$7:$C$83,$K9,'прогноз на 20.05.12'!T$7:T$83) -> 84 | AC9: =SUMIF('прогноз на 20.05.12'!$C$7:$C$83,$C9,'прогноз на 20.05.12'!U$7:U$83)+SUMIF('прогноз на 20.05.12'!$C$7:$C$83,$E9,'прогноз на 20.05.12'!U$7:U$83)+SUMIF('прогноз на 20.05.12'!$C$7:$C$83,$G9,'прогноз на 20.05.12'!U$7:U$83)+SUMIF('прогноз на 20.05.12'!$C$7:$C$83,$I9,'прогноз на 20.05.12'!U$7:U$83)+SUMIF('прогноз на 20.05.12'!$C$7:$C$83,$K9,'прогноз на 20.05.12'!U$7:U$83) -> 28 | AD9: =SUMIF('прогноз на 20.05.12'!$C$7:$C$83,$C9,'прогноз на 20.05.12'!V$7:V$83)+SUMIF('прогноз на 20.05.12'!$C$7:$C$83,$E9,'прогноз на 20.05.12'!V$7:V$83)+SUMIF('прогноз на 20.05.12'!$C$7:$C$83,$G9,'прогноз на 20.05.12'!V$7:V$83)+SUMIF('прогноз на 20.05.12'!$C$7:$C$83,$I9,'прогноз на 20.05.12'!V$7:V$83)+SUMIF('прогноз на 20.05.12'!$C$7:$C$83,$K9,'прогноз на 20.05.12'!V$7:V$83) -> 202 | AE9: =SUMIF('прогноз на 20.05.12'!$C$7:$C$83,$C9,'прогноз на 20.05.12'!W$7:W$83)+SUMIF('прогноз на 20.05.12'!$C$7:$C$83,$E9,'прогноз на 20.05.12'!W$7:W$83)+SUMIF('прогноз на 20.05.12'!$C$7:$C$83,$G9,'прогноз на 20.05.12'!W$7:W$83)+SUMIF('прогноз на 20.05.12'!$C$7:$C$83,$I9,'прогноз на 20.05.12'!W$7:W$83)+SUMIF('прогноз на 20.05.12'!$C$7:$C$83,$K9,'прогноз на 20.05.12'!W$7:W$83) -> -2 | AF9: =SUMIF('прогноз на 20.05.12'!$C$7:$C$83,$C9,'прогноз на 20.05.12'!X$7:X$83)+SUMIF('прогноз на 20.05.12'!$C$7:$C$83,$E9,'прогноз на 20.05.12'!X$7:X$83)+SUMIF('прогноз на 20.05.12'!$C$7:$C$83,$G9,'прогноз на 20.05.12'!X$7:X$83)+SUMIF('прогноз на 20.05.12'!$C$7:$C$83,$I9,'прогноз на 20.05.12'!X$7:X$83)+SUMIF('прогноз на 20.05.12'!$C$7:$C$83,$K9,'прогноз на 20.05.12'!X$7:X$83) -> -26 | AG9: =SUMIF('прогноз на 20.05.12'!$C$7:$C$83,$C9,'прогноз на 20.05.12'!Y$7:Y$83)+SUMIF('прогноз на 20.05.12'!$C$7:$C$83,$E9,'прогноз на 20.05.12'!Y$7:Y$83)+SUMIF('прогноз на 20.05.12'!$C$7:$C$83,$G9,'прогноз на 20.05.12'!Y$7:Y$83)+SUMIF('прогноз на 20.05.12'!$C$7:$C$83,$I9,'прогноз на 20.05.12'!Y$7:Y$83)+SUMIF('прогноз на 20.05.12'!$C$7:$C$83,$K9,'прогноз на 20.05.12'!Y$7:Y$83) -> -6 | AH9: =SUMIF('прогноз на 20.05.12'!$C$7:$C$83,$C9,'прогноз на 20.05.12'!Z$7:Z$83)+SUMIF('прогноз на 20.05.12'!$C$7:$C$83,$E9,'прогноз на 20.05.12'!Z$7:Z$83)+SUMIF('прогноз на 20.05.12'!$C$7:$C$83,$G9,'прогноз на 20.05.12'!Z$7:Z$83)+SUMIF('прогноз на 20.05.12'!$C$7:$C$83,$I9,'прогноз на 20.05.12'!Z$7:Z$83)+SUMIF('прогноз на 20.05.12'!$C$7:$C$83,$K9,'прогноз на 20.05.12'!Z$7:Z$83) -> -34 | AI9: =SUMIF('прогноз на 20.05.12'!$C$7:$C$83,$C9,'прогноз на 20.05.12'!AA$7:AA$83)+SUMIF('прогноз на 20.05.12'!$C$7:$C$83,$E9,'прогноз на 20.05.12'!AA$7:AA$83)+SUMIF('прогноз на 20.05.12'!$C$7:$C$83,$G9,'прогноз на 20.05.12'!AA$7:AA$83)+SUMIF('прогноз на 20.05.12'!$C$7:$C$83,$I9,'прогноз на 20.05.12'!AA$7:AA$83)+SUMIF('прогноз на 20.05.12'!$C$7:$C$83,$K9,'прогноз на 20.05.12'!AA$7:AA$83) -> 0 | AJ9: =SUMIF('прогноз на 20.05.12'!$C$7:$C$83,$C9,'прогноз на 20.05.12'!AB$7:AB$83)+SUMIF('прогноз на 20.05.12'!$C$7:$C$83,$E9,'прогноз на 20.05.12'!AB$7:AB$83)+SUMIF('прогноз на 20.05.12'!$C$7:$C$83,$G9,'прогноз на 20.05.12'!AB$7:AB$83)+SUMIF('прогноз на 20.05.12'!$C$7:$C$83,$I9,'прогноз на 20.05.12'!AB$7:AB$83)+SUMIF('прогноз на 20.05.12'!$C$7:$C$83,$K9,'прогноз на 20.05.12'!AB$7:AB$83) -> 5 | AK9: =SUMIF('прогноз на 20.05.12'!$C$7:$C$83,$C9,'прогноз на 20.05.12'!AC$7:AC$83)+SUMIF('прогноз на 20.05.12'!$C$7:$C$83,$E9,'прогноз на 20.05.12'!AC$7:AC$83)+SUMIF('прогноз на 20.05.12'!$C$7:$C$83,$G9,'прогноз на 20.05.12'!AC$7:AC$83)+SUMIF('прогноз на 20.05.12'!$C$7:$C$83,$I9,'прогноз на 20.05.12'!AC$7:AC$83)+SUMIF('прогноз на 20.05.12'!$C$7:$C$83,$K9,'прогноз на 20.05.12'!AC$7:AC$83) -> 1 | AL9: =SUMIF('прогноз на 20.05.12'!$C$7:$C$83,$C9,'прогноз на 20.05.12'!AD$7:AD$83)+SUMIF('прогноз на 20.05.12'!$C$7:$C$83,$E9,'прогноз на 20.05.12'!AD$7:AD$83)+SUMIF('прогноз на 20.05.12'!$C$7:$C$83,$G9,'прогноз на 20.05.12'!AD$7:AD$83)+SUMIF('прогноз на 20.05.12'!$C$7:$C$83,$I9,'прогноз на 20.05.12'!AD$7:AD$83)+SUMIF('прогноз на 20.05.12'!$C$7:$C$83,$K9,'прогноз на 20.05.12'!AD$7:AD$83) -> 7 | AM9: =SUMIF('прогноз на 20.05.12'!$C$7:$C$83,$C9,'прогноз на 20.05.12'!AE$7:AE$83)+SUMIF('прогноз на 20.05.12'!$C$7:$C$83,$E9,'прогноз на 20.05.12'!AE$7:AE$83)+SUMIF('прогноз на 20.05.12'!$C$7:$C$83,$G9,'прогноз на 20.05.12'!AE$7:AE$83)+SUMIF('прогноз на 20.05.12'!$C$7:$C$83,$I9,'прогноз на 20.05.12'!AE$7:AE$83)+SUMIF('прогноз на 20.05.12'!$C$7:$C$83,$K9,'прогноз на 20.05.12'!AE$7:AE$83) -> 92 | AN9: =SUMIF('прогноз на 20.05.12'!$C$7:$C$83,$C9,'прогноз на 20.05.12'!AF$7:AF$83)+SUMIF('прогноз на 20.05.12'!$C$7:$C$83,$E9,'прогноз на 20.05.12'!AF$7:AF$83)+SUMIF('прогноз на 20.05.12'!$C$7:$C$83,$G9,'прогноз на 20.05.12'!AF$7:AF$83)+SUMIF('прогноз на 20.05.12'!$C$7:$C$83,$I9,'прогноз на 20.05.12'!AF$7:AF$83)+SUMIF('прогноз на 20.05.12'!$C$7:$C$83,$K9,'прогноз на 20.05.12'!AF$7:AF$83) -> 115 | AO9: =SUMIF('прогноз на 20.05.12'!$C$7:$C$83,$C9,'прогноз на 20.05.12'!AG$7:AG$83)+SUMIF('прогноз на 20.05.12'!$C$7:$C$83,$E9,'прогноз на 20.05.12'!AG$7:AG$83)+SUMIF('прогноз на 20.05.12'!$C$7:$C$83,$G9,'прогноз на 20.05.12'!AG$7:AG$83)+SUMIF('прогноз на 20.05.12'!$C$7:$C$83,$I9,'прогноз на 20.05.12'!AG$7:AG$83)+SUMIF('прогноз на 20.05.12'!$C$7:$C$83,$K9,'прогноз на 20.05.12'!AG$7:AG$83) -> 35 | AP9: =SUMIF('прогноз на 20.05.12'!$C$7:$C$83,$C9,'прогноз на 20.05.12'!AH$7:AH$83)+SUMIF('прогноз на 20.05.12'!$C$7:$C$83,$E9,'прогноз на 20.05.12'!AH$7:AH$83)+SUMIF('прогноз на 20.05.12'!$C$7:$C$83,$G9,'прогноз на 20.05.12'!AH$7:AH$83)+SUMIF('прогноз на 20.05.12'!$C$7:$C$83,$I9,'прогноз на 20.05.12'!AH$7:AH$83)+SUMIF('прогноз на 20.05.12'!$C$7:$C$83,$K9,'прогноз на 20.05.12'!AH$7:AH$83) -> 243 | AQ9: =SUMIF('прогноз на 20.05.12'!$C$7:$C$83,$C9,'прогноз на 20.05.12'!AM$7:AM$83)+SUMIF('прогноз на 20.05.12'!$C$7:$C$83,$E9,'прогноз на 20.05.12'!AM$7:AM$83)+SUMIF('прогноз на 20.05.12'!$C$7:$C$83,$G9,'прогноз на 20.05.12'!AM$7:AM$83)+SUMIF('прогноз на 20.05.12'!$C$7:$C$83,$I9,'прогноз на 20.05.12'!AM$7:AM$83)+SUMIF('прогноз на 20.05.12'!$C$7:$C$83,$K9,'прогноз на 20.05.12'!AM$7:AM$83) -> 7,983 | AR9: =SUMIF('прогноз на 20.05.12'!$C$7:$C$83,$C9,'прогноз на 20.05.12'!AN$7:AN$83)+SUMIF('прогноз на 20.05.12'!$C$7:$C$83,$E9,'прогноз на 20.05.12'!AN$7:AN$83)+SUMIF('прогноз на 20.05.12'!$C$7:$C$83,$G9,'прогноз на 20.05.12'!AN$7:AN$83)+SUMIF('прогноз на 20.05.12'!$C$7:$C$83,$I9,'прогноз на 20.05.12'!AN$7:AN$83)+SUMIF('прогноз на 20.05.12'!$C$7:$C$83,$K9,'прогноз на 20.05.12'!AN$7:AN$83) -> 176,691 | AS9: =SUMIF('прогноз на 20.05.12'!$C$7:$C$83,$C9,'прогноз на 20.05.12'!AO$7:AO$83)+SUMIF('прогноз на 20.05.12'!$C$7:$C$83,$E9,'прогноз на 20.05.12'!AO$7:AO$83)+SUMIF('прогноз на 20.05.12'!$C$7:$C$83,$G9,'прогноз на 20.05.12'!AO$7:AO$83)+SUMIF('прогноз на 20.05.12'!$C$7:$C$83,$I9,'прогноз на 20.05.12'!AO$7:AO$83)+SUMIF('прогноз на 20.05.12'!$C$7:$C$83,$K9,'прогноз на 20.05.12'!AO$7:AO$83) -> 43,544 | AT9: =SUMIF('прогноз на 20.05.12'!$C$7:$C$83,$C9,'прогноз на 20.05.12'!AP$7:AP$83)+SUMIF('прогноз на 20.05.12'!$C$7:$C$83,$E9,'прогноз на 20.05.12'!AP$7:AP$83)+SUMIF('прогноз на 20.05.12'!$C$7:$C$83,$G9,'прогноз на 20.05.12'!AP$7:AP$83)+SUMIF('прогноз на 20.05.12'!$C$7:$C$83,$I9,'прогноз на 20.05.12'!AP$7:AP$83)+SUMIF('прогноз на 20.05.12'!$C$7:$C$83,$K9,'прогноз на 20.05.12'!AP$7:AP$83) -> 228,218 | AU9: =SUMIF('прогноз на 20.05.12'!$C$7:$C$83,$C9,'прогноз на 20.05.12'!AU$7:AU$83)+SUMIF('прогноз на 20.05.12'!$C$7:$C$83,$E9,'прогноз на 20.05.12'!AU$7:AU$83)+SUMIF('прогноз на 20.05.12'!$C$7:$C$83,$G9,'прогноз на 20.05.12'!AU$7:AU$83)+SUMIF('прогноз на 20.05.12'!$C$7:$C$83,$I9,'прогноз на 20.05.12'!AU$7:AU$83)+SUMIF('прогноз на 20.05.12'!$C$7:$C$83,$K9,'прогноз на 20.05.12'!AU$7:AU$83) -> 506 | AV9: =SUMIF('прогноз на 20.05.12'!$C$7:$C$83,$C9,'прогноз на 20.05.12'!AV$7:AV$83)+SUMIF('прогноз на 20.05.12'!$C$7:$C$83,$E9,'прогноз на 20.05.12'!AV$7:AV$83)+SUMIF('прогноз на 20.05.12'!$C$7:$C$83,$G9,'прогноз на 20.05.12'!AV$7:AV$83)+SUMIF('прогноз на 20.05.12'!$C$7:$C$83,$I9,'прогноз на 20.05.12'!AV$7:AV$83)+SUMIF('прогноз на 20.05.12'!$C$7:$C$83,$K9,'прогноз на 20.05.12'!AV$7:AV$83) -> 7,493 | AW9: =SUMIF('прогноз на 20.05.12'!$C$7:$C$83,$C9,'прогноз на 20.05.12'!AW$7:AW$83)+SUMIF('прогноз на 20.05.12'!$C$7:$C$83,$E9,'прогноз на 20.05.12'!AW$7:AW$83)+SUMIF('прогноз на 20.05.12'!$C$7:$C$83,$G9,'прогноз на 20.05.12'!AW$7:AW$83)+SUMIF('прогноз на 20.05.12'!$C$7:$C$83,$I9,'прогноз на 20.05.12'!AW$7:AW$83)+SUMIF('прогноз на 20.05.12'!$C$7:$C$83,$K9,'прогноз на 20.05.12'!AW$7:AW$83) -> 2,192 | AX9: =SUMIF('прогноз на 20.05.12'!$C$7:$C$83,$C9,'прогноз на 20.05.12'!AX$7:AX$83)+SUMIF('прогноз на 20.05.12'!$C$7:$C$83,$E9,'прогноз на 20.05.12'!AX$7:AX$83)+SUMIF('прогноз на 20.05.12'!$C$7:$C$83,$G9,'прогноз на 20.05.12'!AX$7:AX$83)+SUMIF('прогноз на 20.05.12'!$C$7:$C$83,$I9,'прогноз на 20.05.12'!AX$7:AX$83)+SUMIF('прогноз на 20.05.12'!$C$7:$C$83,$K9,'прогноз на 20.05.12'!AX$7:AX$83) -> 10,192 | AY9: =SUMIF('прогноз на 20.05.12'!$C$7:$C$83,$C9,'прогноз на 20.05.12'!AY$7:AY$83)+SUMIF('прогноз на 20.05.12'!$C$7:$C$83,$E9,'прогноз на 20.05.12'!AY$7:AY$83)+SUMIF('прогноз на 20.05.12'!$C$7:$C$83,$G9,'прогноз на 20.05.12'!AY$7:AY$83)+SUMIF('прогноз на 20.05.12'!$C$7:$C$83,$I9,'прогноз на 20.05.12'!AY$7:AY$83)+SUMIF('прогноз на 20.05.12'!$C$7:$C$83,$K9,'прогноз на 20.05.12'!AY$7:AY$83) -> 8,489 | AZ9: =SUMIF('прогноз на 20.05.12'!$C$7:$C$83,$C9,'прогноз на 20.05.12'!AZ$7:AZ$83)+SUMIF('прогноз на 20.05.12'!$C$7:$C$83,$E9,'прогноз на 20.05.12'!AZ$7:AZ$83)+SUMIF('прогноз на 20.05.12'!$C$7:$C$83,$G9,'прогноз на 20.05.12'!AZ$7:AZ$83)+SUMIF('прогноз на 20.05.12'!$C$7:$C$83,$I9,'прогноз на 20.05.12'!AZ$7:AZ$83)+SUMIF('прогноз на 20.05.12'!$C$7:$C$83,$K9,'прогноз на 20.05.12'!AZ$7:AZ$83) -> 184,184 | BA9: =SUMIF('прогноз на 20.05.12'!$C$7:$C$83,$C9,'прогноз на 20.05.12'!BA$7:BA$83)+SUMIF('прогноз на 20.05.12'!$C$7:$C$83,$E9,'прогноз на 20.05.12'!BA$7:BA$83)+SUMIF('прогноз на 20.05.12'!$C$7:$C$83,$G9,'прогноз на 20.05.12'!BA$7:BA$83)+SUMIF('прогноз на 20.05.12'!$C$7:$C$83,$I9,'прогноз на 20.05.12'!BA$7:BA$83)+SUMIF('прогноз на 20.05.12'!$C$7:$C$83,$K9,'прогноз на 20.05.12'!BA$7:BA$83) -> 45,737 | BB9: =SUMIF('прогноз на 20.05.12'!$C$7:$C$83,$C9,'прогноз на 20.05.12'!BB$7:BB$83)+SUMIF('прогноз на 20.05.12'!$C$7:$C$83,$E9,'прогноз на 20.05.12'!BB$7:BB$83)+SUMIF('прогноз на 20.05.12'!$C$7:$C$83,$G9,'прогноз на 20.05.12'!BB$7:BB$83)+SUMIF('прогноз на 20.05.12'!$C$7:$C$83,$I9,'прогноз на 20.05.12'!BB$7:BB$83)+SUMIF('прогноз на 20.05.12'!$C$7:$C$83,$K9,'прогноз на 20.05.12'!BB$7:BB$83) -> 238,410 | BC9: =SUMIF('прогноз на 20.05.12'!$C$7:$C$83,$C9,'прогноз на 20.05.12'!BC$7:BC$83)+SUMIF('прогноз на 20.05.12'!$C$7:$C$83,$E9,'прогноз на 20.05.12'!BC$7:BC$83)+SUMIF('прогноз на 20.05.12'!$C$7:$C$83,$G9,'прогноз на 20.05.12'!BC$7:BC$83)+SUMIF('прогноз на 20.05.12'!$C$7:$C$83,$I9,'прогноз на 20.05.12'!BC$7:BC$83)+SUMIF('прогноз на 20.05.12'!$C$7:$C$83,$K9,'прогноз на 20.05.12'!BC$7:BC$83) -> -203,493 | BD9: =SUMIF('прогноз на 20.05.12'!$C$7:$C$83,$C9,'прогноз на 20.05.12'!BD$7:BD$83)+SUMIF('прогноз на 20.05.12'!$C$7:$C$83,$E9,'прогноз на 20.05.12'!BD$7:BD$83)+SUMIF('прогноз на 20.05.12'!$C$7:$C$83,$G9,'прогноз на 20.05.12'!BD$7:BD$83)+SUMIF('прогноз на 20.05.12'!$C$7:$C$83,$I9,'прогноз на 20.05.12'!BD$7:BD$83)+SUMIF('прогноз на 20.05.12'!$C$7:$C$83,$K9,'прогноз на 20.05.12'!BD$7:BD$83) -> 78,745 | BE9: =SUMIF('прогноз на 20.05.12'!$C$7:$C$83,$C9,'прогноз на 20.05.12'!BE$7:BE$83)+SUMIF('прогноз на 20.05.12'!$C$7:$C$83,$E9,'прогноз на 20.05.12'!BE$7:BE$83)+SUMIF('прогноз на 20.05.12'!$C$7:$C$83,$G9,'прогноз на 20.05.12'!BE$7:BE$83)+SUMIF('прогноз на 20.05.12'!$C$7:$C$83,$I9,'прогноз на 20.05.12'!BE$7:BE$83)+SUMIF('прогноз на 20.05.12'!$C$7:$C$83,$K9,'прогноз на 20.05.12'!BE$7:BE$83) -> -282,238 | BF9: =SUMIF('прогноз на 20.05.12'!$C$7:$C$83,$C9,'прогноз на 20.05.12'!BF$7:BF$83)+SUMIF('прогноз на 20.05.12'!$C$7:$C$83,$E9,'прогноз на 20.05.12'!BF$7:BF$83)+SUMIF('прогноз на 20.05.12'!$C$7:$C$83,$G9,'прогноз на 20.05.12'!BF$7:BF$83)+SUMIF('прогноз на 20.05.12'!$C$7:$C$83,$I9,'прогноз на 20.05.12'!BF$7:BF$83)+SUMIF('прогноз на 20.05.12'!$C$7:$C$83,$K9,'прогноз на 20.05.12'!BF$7:BF$83) -> -441,903 | BG9: =SUMIF('прогноз на 20.05.12'!$C$7:$C$83,$C9,'прогноз на 20.05.12'!BG$7:BG$83)+SUMIF('прогноз на 20.05.12'!$C$7:$C$83,$E9,'прогноз на 20.05.12'!BG$7:BG$83)+SUMIF('прогноз на 20.05.12'!$C$7:$C$83,$G9,'прогноз на 20.05.12'!BG$7:BG$83)+SUMIF('прогноз на 20.05.12'!$C$7:$C$83,$I9,'прогноз на 20.05.12'!BG$7:BG$83)+SUMIF('прогноз на 20.05.12'!$C$7:$C$83,$K9,'прогноз на 20.05.12'!BG$7:BG$83) -> 78,745 | BH9: =SUMIF('прогноз на 20.05.12'!$C$7:$C$83,$C9,'прогноз на 20.05.12'!BH$7:BH$83)+SUMIF('прогноз на 20.05.12'!$C$7:$C$83,$E9,'прогноз на 20.05.12'!BH$7:BH$83)+SUMIF('прогноз на 20.05.12'!$C$7:$C$83,$G9,'прогноз на 20.05.12'!BH$7:BH$83)+SUMIF('прогноз на 20.05.12'!$C$7:$C$83,$I9,'прогноз на 20.05.12'!BH$7:BH$83)+SUMIF('прогноз на 20.05.12'!$C$7:$C$83,$K9,'прогноз на 20.05.12'!BH$7:BH$83) -> -520,648 | BI9: 9.2 | BJ9: 18.3 | BK9: 17.0 | BL9: 13.1
A10: 4 | B10: МОУ Больше Сардекская гимназия | C10: 1623003298 | D10: МОУ Адаевская начальная школа | E10: 1623004630 | F10: МОУ Аш-Бузинская начальная школа | G10: 1623004615 | H10: МОУ Копкинская начальная школа | I10: 1623004943 | J10: МОУ Чишмабашская начальная школа | K10: 1623004622 | L10: =SUMIF('прогноз на 20.05.12'!$C$7:$C$83,$C10,'прогноз на 20.05.12'!D$7:D$83)+SUMIF('прогноз на 20.05.12'!$C$7:$C$83,$E10,'прогноз на 20.05.12'!D$7:D$83)+SUMIF('прогноз на 20.05.12'!$C$7:$C$83,$G10,'прогноз на 20.05.12'!D$7:D$83)+SUMIF('прогноз на 20.05.12'!$C$7:$C$83,$I10,'прогноз на 20.05.12'!D$7:D$83)+SUMIF('прогноз на 20.05.12'!$C$7:$C$83,$K10,'прогноз на 20.05.12'!D$7:D$83) -> 159 | M10: =SUMIF('прогноз на 20.05.12'!$C$7:$C$83,$C10,'прогноз на 20.05.12'!E$7:E$83)+SUMIF('прогноз на 20.05.12'!$C$7:$C$83,$E10,'прогноз на 20.05.12'!E$7:E$83)+SUMIF('прогноз на 20.05.12'!$C$7:$C$83,$G10,'прогноз на 20.05.12'!E$7:E$83)+SUMIF('прогноз на 20.05.12'!$C$7:$C$83,$I10,'прогноз на 20.05.12'!E$7:E$83)+SUMIF('прогноз на 20.05.12'!$C$7:$C$83,$K10,'прогноз на 20.05.12'!E$7:E$83) -> 252 | N10: =SUMIF('прогноз на 20.05.12'!$C$7:$C$83,$C10,'прогноз на 20.05.12'!F$7:F$83)+SUMIF('прогноз на 20.05.12'!$C$7:$C$83,$E10,'прогноз на 20.05.12'!F$7:F$83)+SUMIF('прогноз на 20.05.12'!$C$7:$C$83,$G10,'прогноз на 20.05.12'!F$7:F$83)+SUMIF('прогноз на 20.05.12'!$C$7:$C$83,$I10,'прогноз на 20.05.12'!F$7:F$83)+SUMIF('прогноз на 20.05.12'!$C$7:$C$83,$K10,'прогноз на 20.05.12'!F$7:F$83) -> 85 | O10: 496 | P10: =SUMIF('прогноз на 20.05.12'!$C$7:$C$83,$C10,'прогноз на 20.05.12'!H$7:H$83)+SUMIF('прогноз на 20.05.12'!$C$7:$C$83,$E10,'прогноз на 20.05.12'!H$7:H$83)+SUMIF('прогноз на 20.05.12'!$C$7:$C$83,$G10,'прогноз на 20.05.12'!H$7:H$83)+SUMIF('прогноз на 20.05.12'!$C$7:$C$83,$I10,'прогноз на 20.05.12'!H$7:H$83)+SUMIF('прогноз на 20.05.12'!$C$7:$C$83,$K10,'прогноз на 20.05.12'!H$7:H$83) -> 17 | Q10: =SUMIF('прогноз на 20.05.12'!$C$7:$C$83,$C10,'прогноз на 20.05.12'!I$7:I$83)+SUMIF('прогноз на 20.05.12'!$C$7:$C$83,$E10,'прогноз на 20.05.12'!I$7:I$83)+SUMIF('прогноз на 20.05.12'!$C$7:$C$83,$G10,'прогноз на 20.05.12'!I$7:I$83)+SUMIF('прогноз на 20.05.12'!$C$7:$C$83,$I10,'прогноз на 20.05.12'!I$7:I$83)+SUMIF('прогноз на 20.05.12'!$C$7:$C$83,$K10,'прогноз на 20.05.12'!I$7:I$83) -> 13 | R10: =SUMIF('прогноз на 20.05.12'!$C$7:$C$83,$C10,'прогноз на 20.05.12'!J$7:J$83)+SUMIF('прогноз на 20.05.12'!$C$7:$C$83,$E10,'прогноз на 20.05.12'!J$7:J$83)+SUMIF('прогноз на 20.05.12'!$C$7:$C$83,$G10,'прогноз на 20.05.12'!J$7:J$83)+SUMIF('прогноз на 20.05.12'!$C$7:$C$83,$I10,'прогноз на 20.05.12'!J$7:J$83)+SUMIF('прогноз на 20.05.12'!$C$7:$C$83,$K10,'прогноз на 20.05.12'!J$7:J$83) -> 4 | S10: 34 | T10: =SUMIF('прогноз на 20.05.12'!$C$7:$C$83,$C10,'прогноз на 20.05.12'!L$7:L$83)+SUMIF('прогноз на 20.05.12'!$C$7:$C$83,$E10,'прогноз на 20.05.12'!L$7:L$83)+SUMIF('прогноз на 20.05.12'!$C$7:$C$83,$G10,'прогноз на 20.05.12'!L$7:L$83)+SUMIF('прогноз на 20.05.12'!$C$7:$C$83,$I10,'прогноз на 20.05.12'!L$7:L$83)+SUMIF('прогноз на 20.05.12'!$C$7:$C$83,$K10,'прогноз на 20.05.12'!L$7:L$83) -> 0 | U10: =SUMIF('прогноз на 20.05.12'!$C$7:$C$83,$C10,'прогноз на 20.05.12'!M$7:M$83)+SUMIF('прогноз на 20.05.12'!$C$7:$C$83,$E10,'прогноз на 20.05.12'!M$7:M$83)+SUMIF('прогноз на 20.05.12'!$C$7:$C$83,$G10,'прогноз на 20.05.12'!M$7:M$83)+SUMIF('прогноз на 20.05.12'!$C$7:$C$83,$I10,'прогноз на 20.05.12'!M$7:M$83)+SUMIF('прогноз на 20.05.12'!$C$7:$C$83,$K10,'прогноз на 20.05.12'!M$7:M$83) -> 0 | V10: =SUMIF('прогноз на 20.05.12'!$C$7:$C$83,$C10,'прогноз на 20.05.12'!N$7:N$83)+SUMIF('прогноз на 20.05.12'!$C$7:$C$83,$E10,'прогноз на 20.05.12'!N$7:N$83)+SUMIF('прогноз на 20.05.12'!$C$7:$C$83,$G10,'прогноз на 20.05.12'!N$7:N$83)+SUMIF('прогноз на 20.05.12'!$C$7:$C$83,$I10,'прогноз на 20.05.12'!N$7:N$83)+SUMIF('прогноз на 20.05.12'!$C$7:$C$83,$K10,'прогноз на 20.05.12'!N$7:N$83) -> 1 | W10: 1 | X10: =SUMIF('прогноз на 20.05.12'!$C$7:$C$83,$C10,'прогноз на 20.05.12'!P$7:P$83)+SUMIF('прогноз на 20.05.12'!$C$7:$C$83,$E10,'прогноз на 20.05.12'!P$7:P$83)+SUMIF('прогноз на 20.05.12'!$C$7:$C$83,$G10,'прогноз на 20.05.12'!P$7:P$83)+SUMIF('прогноз на 20.05.12'!$C$7:$C$83,$I10,'прогноз на 20.05.12'!P$7:P$83)+SUMIF('прогноз на 20.05.12'!$C$7:$C$83,$K10,'прогноз на 20.05.12'!P$7:P$83) -> 2 | Y10: =SUMIF('прогноз на 20.05.12'!$C$7:$C$83,$C10,'прогноз на 20.05.12'!Q$7:Q$83)+SUMIF('прогноз на 20.05.12'!$C$7:$C$83,$E10,'прогноз на 20.05.12'!Q$7:Q$83)+SUMIF('прогноз на 20.05.12'!$C$7:$C$83,$G10,'прогноз на 20.05.12'!Q$7:Q$83)+SUMIF('прогноз на 20.05.12'!$C$7:$C$83,$I10,'прогноз на 20.05.12'!Q$7:Q$83)+SUMIF('прогноз на 20.05.12'!$C$7:$C$83,$K10,'прогноз на 20.05.12'!Q$7:Q$83) -> 50 | Z10: =SUMIF('прогноз на 20.05.12'!$C$7:$C$83,$C10,'прогноз на 20.05.12'!R$7:R$83)+SUMIF('прогноз на 20.05.12'!$C$7:$C$83,$E10,'прогноз на 20.05.12'!R$7:R$83)+SUMIF('прогноз на 20.05.12'!$C$7:$C$83,$G10,'прогноз на 20.05.12'!R$7:R$83)+SUMIF('прогноз на 20.05.12'!$C$7:$C$83,$I10,'прогноз на 20.05.12'!R$7:R$83)+SUMIF('прогноз на 20.05.12'!$C$7:$C$83,$K10,'прогноз на 20.05.12'!R$7:R$83) -> 0 | AA10: =SUMIF('прогноз на 20.05.12'!$C$7:$C$83,$C10,'прогноз на 20.05.12'!S$7:S$83)+SUMIF('прогноз на 20.05.12'!$C$7:$C$83,$E10,'прогноз на 20.05.12'!S$7:S$83)+SUMIF('прогноз на 20.05.12'!$C$7:$C$83,$G10,'прогноз на 20.05.12'!S$7:S$83)+SUMIF('прогноз на 20.05.12'!$C$7:$C$83,$I10,'прогноз на 20.05.12'!S$7:S$83)+SUMIF('прогноз на 20.05.12'!$C$7:$C$83,$K10,'прогноз на 20.05.12'!S$7:S$83) -> 238 | AB10: =SUMIF('прогноз на 20.05.12'!$C$7:$C$83,$C10,'прогноз на 20.05.12'!T$7:T$83)+SUMIF('прогноз на 20.05.12'!$C$7:$C$83,$E10,'прогноз на 20.05.12'!T$7:T$83)+SUMIF('прогноз на 20.05.12'!$C$7:$C$83,$G10,'прогноз на 20.05.12'!T$7:T$83)+SUMIF('прогноз на 20.05.12'!$C$7:$C$83,$I10,'прогноз на 20.05.12'!T$7:T$83)+SUMIF('прогноз на 20.05.12'!$C$7:$C$83,$K10,'прогноз на 20.05.12'!T$7:T$83) -> 182 | AC10: =SUMIF('прогноз на 20.05.12'!$C$7:$C$83,$C10,'прогноз на 20.05.12'!U$7:U$83)+SUMIF('прогноз на 20.05.12'!$C$7:$C$83,$E10,'прогноз на 20.05.12'!U$7:U$83)+SUMIF('прогноз на 20.05.12'!$C$7:$C$83,$G10,'прогноз на 20.05.12'!U$7:U$83)+SUMIF('прогноз на 20.05.12'!$C$7:$C$83,$I10,'прогноз на 20.05.12'!U$7:U$83)+SUMIF('прогноз на 20.05.12'!$C$7:$C$83,$K10,'прогноз на 20.05.12'!U$7:U$83) -> 56 | AD10: =SUMIF('прогноз на 20.05.12'!$C$7:$C$83,$C10,'прогноз на 20.05.12'!V$7:V$83)+SUMIF('прогноз на 20.05.12'!$C$7:$C$83,$E10,'прогноз на 20.05.12'!V$7:V$83)+SUMIF('прогноз на 20.05.12'!$C$7:$C$83,$G10,'прогноз на 20.05.12'!V$7:V$83)+SUMIF('прогноз на 20.05.12'!$C$7:$C$83,$I10,'прогноз на 20.05.12'!V$7:V$83)+SUMIF('прогноз на 20.05.12'!$C$7:$C$83,$K10,'прогноз на 20.05.12'!V$7:V$83) -> 476 | AE10: =SUMIF('прогноз на 20.05.12'!$C$7:$C$83,$C10,'прогноз на 20.05.12'!W$7:W$83)+SUMIF('прогноз на 20.05.12'!$C$7:$C$83,$E10,'прогноз на 20.05.12'!W$7:W$83)+SUMIF('прогноз на 20.05.12'!$C$7:$C$83,$G10,'прогноз на 20.05.12'!W$7:W$83)+SUMIF('прогноз на 20.05.12'!$C$7:$C$83,$I10,'прогноз на 20.05.12'!W$7:W$83)+SUMIF('прогноз на 20.05.12'!$C$7:$C$83,$K10,'прогноз на 20.05.12'!W$7:W$83) -> 79 | AF10: =SUMIF('прогноз на 20.05.12'!$C$7:$C$83,$C10,'прогноз на 20.05.12'!X$7:X$83)+SUMIF('прогноз на 20.05.12'!$C$7:$C$83,$E10,'прогноз на 20.05.12'!X$7:X$83)+SUMIF('прогноз на 20.05.12'!$C$7:$C$83,$G10,'прогноз на 20.05.12'!X$7:X$83)+SUMIF('прогноз на 20.05.12'!$C$7:$C$83,$I10,'прогноз на 20.05.12'!X$7:X$83)+SUMIF('прогноз на 20.05.12'!$C$7:$C$83,$K10,'прогноз на 20.05.12'!X$7:X$83) -> -70 | AG10: =SUMIF('прогноз на 20.05.12'!$C$7:$C$83,$C10,'прогноз на 20.05.12'!Y$7:Y$83)+SUMIF('прогноз на 20.05.12'!$C$7:$C$83,$E10,'прогноз на 20.05.12'!Y$7:Y$83)+SUMIF('прогноз на 20.05.12'!$C$7:$C$83,$G10,'прогноз на 20.05.12'!Y$7:Y$83)+SUMIF('прогноз на 20.05.12'!$C$7:$C$83,$I10,'прогноз на 20.05.12'!Y$7:Y$83)+SUMIF('прогноз на 20.05.12'!$C$7:$C$83,$K10,'прогноз на 20.05.12'!Y$7:Y$83) -> -29 | AH10: =SUMIF('прогноз на 20.05.12'!$C$7:$C$83,$C10,'прогноз на 20.05.12'!Z$7:Z$83)+SUMIF('прогноз на 20.05.12'!$C$7:$C$83,$E10,'прогноз на 20.05.12'!Z$7:Z$83)+SUMIF('прогноз на 20.05.12'!$C$7:$C$83,$G10,'прогноз на 20.05.12'!Z$7:Z$83)+SUMIF('прогноз на 20.05.12'!$C$7:$C$83,$I10,'прогноз на 20.05.12'!Z$7:Z$83)+SUMIF('прогноз на 20.05.12'!$C$7:$C$83,$K10,'прогноз на 20.05.12'!Z$7:Z$83) -> -20 | AI10: =SUMIF('прогноз на 20.05.12'!$C$7:$C$83,$C10,'прогноз на 20.05.12'!AA$7:AA$83)+SUMIF('прогноз на 20.05.12'!$C$7:$C$83,$E10,'прогноз на 20.05.12'!AA$7:AA$83)+SUMIF('прогноз на 20.05.12'!$C$7:$C$83,$G10,'прогноз на 20.05.12'!AA$7:AA$83)+SUMIF('прогноз на 20.05.12'!$C$7:$C$83,$I10,'прогноз на 20.05.12'!AA$7:AA$83)+SUMIF('прогноз на 20.05.12'!$C$7:$C$83,$K10,'прогноз на 20.05.12'!AA$7:AA$83) -> 59 | AJ10: =SUMIF('прогноз на 20.05.12'!$C$7:$C$83,$C10,'прогноз на 20.05.12'!AB$7:AB$83)+SUMIF('прогноз на 20.05.12'!$C$7:$C$83,$E10,'прогноз на 20.05.12'!AB$7:AB$83)+SUMIF('прогноз на 20.05.12'!$C$7:$C$83,$G10,'прогноз на 20.05.12'!AB$7:AB$83)+SUMIF('прогноз на 20.05.12'!$C$7:$C$83,$I10,'прогноз на 20.05.12'!AB$7:AB$83)+SUMIF('прогноз на 20.05.12'!$C$7:$C$83,$K10,'прогноз на 20.05.12'!AB$7:AB$83) -> 12 | AK10: =SUMIF('прогноз на 20.05.12'!$C$7:$C$83,$C10,'прогноз на 20.05.12'!AC$7:AC$83)+SUMIF('прогноз на 20.05.12'!$C$7:$C$83,$E10,'прогноз на 20.05.12'!AC$7:AC$83)+SUMIF('прогноз на 20.05.12'!$C$7:$C$83,$G10,'прогноз на 20.05.12'!AC$7:AC$83)+SUMIF('прогноз на 20.05.12'!$C$7:$C$83,$I10,'прогноз на 20.05.12'!AC$7:AC$83)+SUMIF('прогноз на 20.05.12'!$C$7:$C$83,$K10,'прогноз на 20.05.12'!AC$7:AC$83) -> 5 | AL10: =SUMIF('прогноз на 20.05.12'!$C$7:$C$83,$C10,'прогноз на 20.05.12'!AD$7:AD$83)+SUMIF('прогноз на 20.05.12'!$C$7:$C$83,$E10,'прогноз на 20.05.12'!AD$7:AD$83)+SUMIF('прогноз на 20.05.12'!$C$7:$C$83,$G10,'прогноз на 20.05.12'!AD$7:AD$83)+SUMIF('прогноз на 20.05.12'!$C$7:$C$83,$I10,'прогноз на 20.05.12'!AD$7:AD$83)+SUMIF('прогноз на 20.05.12'!$C$7:$C$83,$K10,'прогноз на 20.05.12'!AD$7:AD$83) -> 76 | AM10: =SUMIF('прогноз на 20.05.12'!$C$7:$C$83,$C10,'прогноз на 20.05.12'!AE$7:AE$83)+SUMIF('прогноз на 20.05.12'!$C$7:$C$83,$E10,'прогноз на 20.05.12'!AE$7:AE$83)+SUMIF('прогноз на 20.05.12'!$C$7:$C$83,$G10,'прогноз на 20.05.12'!AE$7:AE$83)+SUMIF('прогноз на 20.05.12'!$C$7:$C$83,$I10,'прогноз на 20.05.12'!AE$7:AE$83)+SUMIF('прогноз на 20.05.12'!$C$7:$C$83,$K10,'прогноз на 20.05.12'!AE$7:AE$83) -> 218 | AN10: =SUMIF('прогноз на 20.05.12'!$C$7:$C$83,$C10,'прогноз на 20.05.12'!AF$7:AF$83)+SUMIF('прогноз на 20.05.12'!$C$7:$C$83,$E10,'прогноз на 20.05.12'!AF$7:AF$83)+SUMIF('прогноз на 20.05.12'!$C$7:$C$83,$G10,'прогноз на 20.05.12'!AF$7:AF$83)+SUMIF('прогноз на 20.05.12'!$C$7:$C$83,$I10,'прогноз на 20.05.12'!AF$7:AF$83)+SUMIF('прогноз на 20.05.12'!$C$7:$C$83,$K10,'прогноз на 20.05.12'!AF$7:AF$83) -> 264 | AO10: =SUMIF('прогноз на 20.05.12'!$C$7:$C$83,$C10,'прогноз на 20.05.12'!AG$7:AG$83)+SUMIF('прогноз на 20.05.12'!$C$7:$C$83,$E10,'прогноз на 20.05.12'!AG$7:AG$83)+SUMIF('прогноз на 20.05.12'!$C$7:$C$83,$G10,'прогноз на 20.05.12'!AG$7:AG$83)+SUMIF('прогноз на 20.05.12'!$C$7:$C$83,$I10,'прогноз на 20.05.12'!AG$7:AG$83)+SUMIF('прогноз на 20.05.12'!$C$7:$C$83,$K10,'прогноз на 20.05.12'!AG$7:AG$83) -> 90 | AP10: =SUMIF('прогноз на 20.05.12'!$C$7:$C$83,$C10,'прогноз на 20.05.12'!AH$7:AH$83)+SUMIF('прогноз на 20.05.12'!$C$7:$C$83,$E10,'прогноз на 20.05.12'!AH$7:AH$83)+SUMIF('прогноз на 20.05.12'!$C$7:$C$83,$G10,'прогноз на 20.05.12'!AH$7:AH$83)+SUMIF('прогноз на 20.05.12'!$C$7:$C$83,$I10,'прогноз на 20.05.12'!AH$7:AH$83)+SUMIF('прогноз на 20.05.12'!$C$7:$C$83,$K10,'прогноз на 20.05.12'!AH$7:AH$83) -> 572 | AQ10: =SUMIF('прогноз на 20.05.12'!$C$7:$C$83,$C10,'прогноз на 20.05.12'!AM$7:AM$83)+SUMIF('прогноз на 20.05.12'!$C$7:$C$83,$E10,'прогноз на 20.05.12'!AM$7:AM$83)+SUMIF('прогноз на 20.05.12'!$C$7:$C$83,$G10,'прогноз на 20.05.12'!AM$7:AM$83)+SUMIF('прогноз на 20.05.12'!$C$7:$C$83,$I10,'прогноз на 20.05.12'!AM$7:AM$83)+SUMIF('прогноз на 20.05.12'!$C$7:$C$83,$K10,'прогноз на 20.05.12'!AM$7:AM$83) -> 1,182,452 | AR10: =SUMIF('прогноз на 20.05.12'!$C$7:$C$83,$C10,'прогноз на 20.05.12'!AN$7:AN$83)+SUMIF('прогноз на 20.05.12'!$C$7:$C$83,$E10,'прогноз на 20.05.12'!AN$7:AN$83)+SUMIF('прогноз на 20.05.12'!$C$7:$C$83,$G10,'прогноз на 20.05.12'!AN$7:AN$83)+SUMIF('прогноз на 20.05.12'!$C$7:$C$83,$I10,'прогноз на 20.05.12'!AN$7:AN$83)+SUMIF('прогноз на 20.05.12'!$C$7:$C$83,$K10,'прогноз на 20.05.12'!AN$7:AN$83) -> 574,699 | AS10: =SUMIF('прогноз на 20.05.12'!$C$7:$C$83,$C10,'прогноз на 20.05.12'!AO$7:AO$83)+SUMIF('прогноз на 20.05.12'!$C$7:$C$83,$E10,'прогноз на 20.05.12'!AO$7:AO$83)+SUMIF('прогноз на 20.05.12'!$C$7:$C$83,$G10,'прогноз на 20.05.12'!AO$7:AO$83)+SUMIF('прогноз на 20.05.12'!$C$7:$C$83,$I10,'прогноз на 20.05.12'!AO$7:AO$83)+SUMIF('прогноз на 20.05.12'!$C$7:$C$83,$K10,'прогноз на 20.05.12'!AO$7:AO$83) -> 276,780 | AT10: =SUMIF('прогноз на 20.05.12'!$C$7:$C$83,$C10,'прогноз на 20.05.12'!AP$7:AP$83)+SUMIF('прогноз на 20.05.12'!$C$7:$C$83,$E10,'прогноз на 20.05.12'!AP$7:AP$83)+SUMIF('прогноз на 20.05.12'!$C$7:$C$83,$G10,'прогноз на 20.05.12'!AP$7:AP$83)+SUMIF('прогноз на 20.05.12'!$C$7:$C$83,$I10,'прогноз на 20.05.12'!AP$7:AP$83)+SUMIF('прогноз на 20.05.12'!$C$7:$C$83,$K10,'прогноз на 20.05.12'!AP$7:AP$83) -> 2,033,931 | AU10: =SUMIF('прогноз на 20.05.12'!$C$7:$C$83,$C10,'прогноз на 20.05.12'!AU$7:AU$83)+SUMIF('прогноз на 20.05.12'!$C$7:$C$83,$E10,'прогноз на 20.05.12'!AU$7:AU$83)+SUMIF('прогноз на 20.05.12'!$C$7:$C$83,$G10,'прогноз на 20.05.12'!AU$7:AU$83)+SUMIF('прогноз на 20.05.12'!$C$7:$C$83,$I10,'прогноз на 20.05.12'!AU$7:AU$83)+SUMIF('прогноз на 20.05.12'!$C$7:$C$83,$K10,'прогноз на 20.05.12'!AU$7:AU$83) -> 74,951 | AV10: =SUMIF('прогноз на 20.05.12'!$C$7:$C$83,$C10,'прогноз на 20.05.12'!AV$7:AV$83)+SUMIF('прогноз на 20.05.12'!$C$7:$C$83,$E10,'прогноз на 20.05.12'!AV$7:AV$83)+SUMIF('прогноз на 20.05.12'!$C$7:$C$83,$G10,'прогноз на 20.05.12'!AV$7:AV$83)+SUMIF('прогноз на 20.05.12'!$C$7:$C$83,$I10,'прогноз на 20.05.12'!AV$7:AV$83)+SUMIF('прогноз на 20.05.12'!$C$7:$C$83,$K10,'прогноз на 20.05.12'!AV$7:AV$83) -> 17,148 | AW10: =SUMIF('прогноз на 20.05.12'!$C$7:$C$83,$C10,'прогноз на 20.05.12'!AW$7:AW$83)+SUMIF('прогноз на 20.05.12'!$C$7:$C$83,$E10,'прогноз на 20.05.12'!AW$7:AW$83)+SUMIF('прогноз на 20.05.12'!$C$7:$C$83,$G10,'прогноз на 20.05.12'!AW$7:AW$83)+SUMIF('прогноз на 20.05.12'!$C$7:$C$83,$I10,'прогноз на 20.05.12'!AW$7:AW$83)+SUMIF('прогноз на 20.05.12'!$C$7:$C$83,$K10,'прогноз на 20.05.12'!AW$7:AW$83) -> 9,007 | AX10: =SUMIF('прогноз на 20.05.12'!$C$7:$C$83,$C10,'прогноз на 20.05.12'!AX$7:AX$83)+SUMIF('прогноз на 20.05.12'!$C$7:$C$83,$E10,'прогноз на 20.05.12'!AX$7:AX$83)+SUMIF('прогноз на 20.05.12'!$C$7:$C$83,$G10,'прогноз на 20.05.12'!AX$7:AX$83)+SUMIF('прогноз на 20.05.12'!$C$7:$C$83,$I10,'прогноз на 20.05.12'!AX$7:AX$83)+SUMIF('прогноз на 20.05.12'!$C$7:$C$83,$K10,'прогноз на 20.05.12'!AX$7:AX$83) -> 101,106 | AY10: =SUMIF('прогноз на 20.05.12'!$C$7:$C$83,$C10,'прогноз на 20.05.12'!AY$7:AY$83)+SUMIF('прогноз на 20.05.12'!$C$7:$C$83,$E10,'прогноз на 20.05.12'!AY$7:AY$83)+SUMIF('прогноз на 20.05.12'!$C$7:$C$83,$G10,'прогноз на 20.05.12'!AY$7:AY$83)+SUMIF('прогноз на 20.05.12'!$C$7:$C$83,$I10,'прогноз на 20.05.12'!AY$7:AY$83)+SUMIF('прогноз на 20.05.12'!$C$7:$C$83,$K10,'прогноз на 20.05.12'!AY$7:AY$83) -> 1,257,404 | AZ10: =SUMIF('прогноз на 20.05.12'!$C$7:$C$83,$C10,'прогноз на 20.05.12'!AZ$7:AZ$83)+SUMIF('прогноз на 20.05.12'!$C$7:$C$83,$E10,'прогноз на 20.05.12'!AZ$7:AZ$83)+SUMIF('прогноз на 20.05.12'!$C$7:$C$83,$G10,'прогноз на 20.05.12'!AZ$7:AZ$83)+SUMIF('прогноз на 20.05.12'!$C$7:$C$83,$I10,'прогноз на 20.05.12'!AZ$7:AZ$83)+SUMIF('прогноз на 20.05.12'!$C$7:$C$83,$K10,'прогноз на 20.05.12'!AZ$7:AZ$83) -> 591,847 | BA10: =SUMIF('прогноз на 20.05.12'!$C$7:$C$83,$C10,'прогноз на 20.05.12'!BA$7:BA$83)+SUMIF('прогноз на 20.05.12'!$C$7:$C$83,$E10,'прогноз на 20.05.12'!BA$7:BA$83)+SUMIF('прогноз на 20.05.12'!$C$7:$C$83,$G10,'прогноз на 20.05.12'!BA$7:BA$83)+SUMIF('прогноз на 20.05.12'!$C$7:$C$83,$I10,'прогноз на 20.05.12'!BA$7:BA$83)+SUMIF('прогноз на 20.05.12'!$C$7:$C$83,$K10,'прогноз на 20.05.12'!BA$7:BA$83) -> 285,787 | BB10: =SUMIF('прогноз на 20.05.12'!$C$7:$C$83,$C10,'прогноз на 20.05.12'!BB$7:BB$83)+SUMIF('прогноз на 20.05.12'!$C$7:$C$83,$E10,'прогноз на 20.05.12'!BB$7:BB$83)+SUMIF('прогноз на 20.05.12'!$C$7:$C$83,$G10,'прогноз на 20.05.12'!BB$7:BB$83)+SUMIF('прогноз на 20.05.12'!$C$7:$C$83,$I10,'прогноз на 20.05.12'!BB$7:BB$83)+SUMIF('прогноз на 20.05.12'!$C$7:$C$83,$K10,'прогноз на 20.05.12'!BB$7:BB$83) -> 2,135,037 | BC10: =SUMIF('прогноз на 20.05.12'!$C$7:$C$83,$C10,'прогноз на 20.05.12'!BC$7:BC$83)+SUMIF('прогноз на 20.05.12'!$C$7:$C$83,$E10,'прогноз на 20.05.12'!BC$7:BC$83)+SUMIF('прогноз на 20.05.12'!$C$7:$C$83,$G10,'прогноз на 20.05.12'!BC$7:BC$83)+SUMIF('прогноз на 20.05.12'!$C$7:$C$83,$I10,'прогноз на 20.05.12'!BC$7:BC$83)+SUMIF('прогноз на 20.05.12'!$C$7:$C$83,$K10,'прогноз на 20.05.12'!BC$7:BC$83) -> -4,833,701 | BD10: =SUMIF('прогноз на 20.05.12'!$C$7:$C$83,$C10,'прогноз на 20.05.12'!BD$7:BD$83)+SUMIF('прогноз на 20.05.12'!$C$7:$C$83,$E10,'прогноз на 20.05.12'!BD$7:BD$83)+SUMIF('прогноз на 20.05.12'!$C$7:$C$83,$G10,'прогноз на 20.05.12'!BD$7:BD$83)+SUMIF('прогноз на 20.05.12'!$C$7:$C$83,$I10,'прогноз на 20.05.12'!BD$7:BD$83)+SUMIF('прогноз на 20.05.12'!$C$7:$C$83,$K10,'прогноз на 20.05.12'!BD$7:BD$83) -> 525,446 | BE10: =SUMIF('прогноз на 20.05.12'!$C$7:$C$83,$C10,'прогноз на 20.05.12'!BE$7:BE$83)+SUMIF('прогноз на 20.05.12'!$C$7:$C$83,$E10,'прогноз на 20.05.12'!BE$7:BE$83)+SUMIF('прогноз на 20.05.12'!$C$7:$C$83,$G10,'прогноз на 20.05.12'!BE$7:BE$83)+SUMIF('прогноз на 20.05.12'!$C$7:$C$83,$I10,'прогноз на 20.05.12'!BE$7:BE$83)+SUMIF('прогноз на 20.05.12'!$C$7:$C$83,$K10,'прогноз на 20.05.12'!BE$7:BE$83) -> -5,359,147 | BF10: =SUMIF('прогноз на 20.05.12'!$C$7:$C$83,$C10,'прогноз на 20.05.12'!BF$7:BF$83)+SUMIF('прогноз на 20.05.12'!$C$7:$C$83,$E10,'прогноз на 20.05.12'!BF$7:BF$83)+SUMIF('прогноз на 20.05.12'!$C$7:$C$83,$G10,'прогноз на 20.05.12'!BF$7:BF$83)+SUMIF('прогноз на 20.05.12'!$C$7:$C$83,$I10,'прогноз на 20.05.12'!BF$7:BF$83)+SUMIF('прогноз на 20.05.12'!$C$7:$C$83,$K10,'прогноз на 20.05.12'!BF$7:BF$83) -> -6,968,738 | BG10: =SUMIF('прогноз на 20.05.12'!$C$7:$C$83,$C10,'прогноз на 20.05.12'!BG$7:BG$83)+SUMIF('прогноз на 20.05.12'!$C$7:$C$83,$E10,'прогноз на 20.05.12'!BG$7:BG$83)+SUMIF('прогноз на 20.05.12'!$C$7:$C$83,$G10,'прогноз на 20.05.12'!BG$7:BG$83)+SUMIF('прогноз на 20.05.12'!$C$7:$C$83,$I10,'прогноз на 20.05.12'!BG$7:BG$83)+SUMIF('прогноз на 20.05.12'!$C$7:$C$83,$K10,'прогноз на 20.05.12'!BG$7:BG$83) -> 0 | BH10: =SUMIF('прогноз на 20.05.12'!$C$7:$C$83,$C10,'прогноз на 20.05.12'!BH$7:BH$83)+SUMIF('прогноз на 20.05.12'!$C$7:$C$83,$E10,'прогноз на 20.05.12'!BH$7:BH$83)+SUMIF('прогноз на 20.05.12'!$C$7:$C$83,$G10,'прогноз на 20.05.12'!BH$7:BH$83)+SUMIF('прогноз на 20.05.12'!$C$7:$C$83,$I10,'прогноз на 20.05.12'!BH$7:BH$83)+SUMIF('прогноз на 20.05.12'!$C$7:$C$83,$K10,'прогноз на 20.05.12'!BH$7:BH$83) -> -6,968,738 | BI10: 9.4 | BJ10: 19.4 | BK10: 21.3 | BL10: 14.6
A11: 5 | B11: МОУ Верхне-Арбашская ср.шк | C11: 1623006073 | L11: =SUMIF('прогноз на 20.05.12'!$C$7:$C$83,$C11,'прогноз на 20.05.12'!D$7:D$83)+SUMIF('прогноз на 20.05.12'!$C$7:$C$83,$E11,'прогноз на 20.05.12'!D$7:D$83)+SUMIF('прогноз на 20.05.12'!$C$7:$C$83,$G11,'прогноз на 20.05.12'!D$7:D$83)+SUMIF('прогноз на 20.05.12'!$C$7:$C$83,$I11,'прогноз на 20.05.12'!D$7:D$83)+SUMIF('прогноз на 20.05.12'!$C$7:$C$83,$K11,'прогноз на 20.05.12'!D$7:D$83) -> 21 | M11: =SUMIF('прогноз на 20.05.12'!$C$7:$C$83,$C11,'прогноз на 20.05.12'!E$7:E$83)+SUMIF('прогноз на 20.05.12'!$C$7:$C$83,$E11,'прогноз на 20.05.12'!E$7:E$83)+SUMIF('прогноз на 20.05.12'!$C$7:$C$83,$G11,'прогноз на 20.05.12'!E$7:E$83)+SUMIF('прогноз на 20.05.12'!$C$7:$C$83,$I11,'прогноз на 20.05.12'!E$7:E$83)+SUMIF('прогноз на 20.05.12'!$C$7:$C$83,$K11,'прогноз на 20.05.12'!E$7:E$83) -> 36 | N11: =SUMIF('прогноз на 20.05.12'!$C$7:$C$83,$C11,'прогноз на 20.05.12'!F$7:F$83)+SUMIF('прогноз на 20.05.12'!$C$7:$C$83,$E11,'прогноз на 20.05.12'!F$7:F$83)+SUMIF('прогноз на 20.05.12'!$C$7:$C$83,$G11,'прогноз на 20.05.12'!F$7:F$83)+SUMIF('прогноз на 20.05.12'!$C$7:$C$83,$I11,'прогноз на 20.05.12'!F$7:F$83)+SUMIF('прогноз на 20.05.12'!$C$7:$C$83,$K11,'прогноз на 20.05.12'!F$7:F$83) -> 21 | O11: 78 | P11: =SUMIF('прогноз на 20.05.12'!$C$7:$C$83,$C11,'прогноз на 20.05.12'!H$7:H$83)+SUMIF('прогноз на 20.05.12'!$C$7:$C$83,$E11,'прогноз на 20.05.12'!H$7:H$83)+SUMIF('прогноз на 20.05.12'!$C$7:$C$83,$G11,'прогноз на 20.05.12'!H$7:H$83)+SUMIF('прогноз на 20.05.12'!$C$7:$C$83,$I11,'прогноз на 20.05.12'!H$7:H$83)+SUMIF('прогноз на 20.05.12'!$C$7:$C$83,$K11,'прогноз на 20.05.12'!H$7:H$83) -> 2 | Q11: =SUMIF('прогноз на 20.05.12'!$C$7:$C$83,$C11,'прогноз на 20.05.12'!I$7:I$83)+SUMIF('прогноз на 20.05.12'!$C$7:$C$83,$E11,'прогноз на 20.05.12'!I$7:I$83)+SUMIF('прогноз на 20.05.12'!$C$7:$C$83,$G11,'прогноз на 20.05.12'!I$7:I$83)+SUMIF('прогноз на 20.05.12'!$C$7:$C$83,$I11,'прогноз на 20.05.12'!I$7:I$83)+SUMIF('прогноз на 20.05.12'!$C$7:$C$83,$K11,'прогноз на 20.05.12'!I$7:I$83) -> 5 | R11: =SUMIF('прогноз на 20.05.12'!$C$7:$C$83,$C11,'прогноз на 20.05.12'!J$7:J$83)+SUMIF('прогноз на 20.05.12'!$C$7:$C$83,$E11,'прогноз на 20.05.12'!J$7:J$83)+SUMIF('прогноз на 20.05.12'!$C$7:$C$83,$G11,'прогноз на 20.05.12'!J$7:J$83)+SUMIF('прогноз на 20.05.12'!$C$7:$C$83,$I11,'прогноз на 20.05.12'!J$7:J$83)+SUMIF('прогноз на 20.05.12'!$C$7:$C$83,$K11,'прогноз на 20.05.12'!J$7:J$83) -> 2 | S11: 9 | T11: =SUMIF('прогноз на 20.05.12'!$C$7:$C$83,$C11,'прогноз на 20.05.12'!L$7:L$83)+SUMIF('прогноз на 20.05.12'!$C$7:$C$83,$E11,'прогноз на 20.05.12'!L$7:L$83)+SUMIF('прогноз на 20.05.12'!$C$7:$C$83,$G11,'прогноз на 20.05.12'!L$7:L$83)+SUMIF('прогноз на 20.05.12'!$C$7:$C$83,$I11,'прогноз на 20.05.12'!L$7:L$83)+SUMIF('прогноз на 20.05.12'!$C$7:$C$83,$K11,'прогноз на 20.05.12'!L$7:L$83) -> 0 | U11: =SUMIF('прогноз на 20.05.12'!$C$7:$C$83,$C11,'прогноз на 20.05.12'!M$7:M$83)+SUMIF('прогноз на 20.05.12'!$C$7:$C$83,$E11,'прогноз на 20.05.12'!M$7:M$83)+SUMIF('прогноз на 20.05.12'!$C$7:$C$83,$G11,'прогноз на 20.05.12'!M$7:M$83)+SUMIF('прогноз на 20.05.12'!$C$7:$C$83,$I11,'прогноз на 20.05.12'!M$7:M$83)+SUMIF('прогноз на 20.05.12'!$C$7:$C$83,$K11,'прогноз на 20.05.12'!M$7:M$83) -> 0 | V11: =SUMIF('прогноз на 20.05.12'!$C$7:$C$83,$C11,'прогноз на 20.05.12'!N$7:N$83)+SUMIF('прогноз на 20.05.12'!$C$7:$C$83,$E11,'прогноз на 20.05.12'!N$7:N$83)+SUMIF('прогноз на 20.05.12'!$C$7:$C$83,$G11,'прогноз на 20.05.12'!N$7:N$83)+SUMIF('прогноз на 20.05.12'!$C$7:$C$83,$I11,'прогноз на 20.05.12'!N$7:N$83)+SUMIF('прогноз на 20.05.12'!$C$7:$C$83,$K11,'прогноз на 20.05.12'!N$7:N$83) -> 0 | W11: 0 | X11: =SUMIF('прогноз на 20.05.12'!$C$7:$C$83,$C11,'прогноз на 20.05.12'!P$7:P$83)+SUMIF('прогноз на 20.05.12'!$C$7:$C$83,$E11,'прогноз на 20.05.12'!P$7:P$83)+SUMIF('прогноз на 20.05.12'!$C$7:$C$83,$G11,'прогноз на 20.05.12'!P$7:P$83)+SUMIF('прогноз на 20.05.12'!$C$7:$C$83,$I11,'прогноз на 20.05.12'!P$7:P$83)+SUMIF('прогноз на 20.05.12'!$C$7:$C$83,$K11,'прогноз на 20.05.12'!P$7:P$83) -> 1 | Y11: =SUMIF('прогноз на 20.05.12'!$C$7:$C$83,$C11,'прогноз на 20.05.12'!Q$7:Q$83)+SUMIF('прогноз на 20.05.12'!$C$7:$C$83,$E11,'прогноз на 20.05.12'!Q$7:Q$83)+SUMIF('прогноз на 20.05.12'!$C$7:$C$83,$G11,'прогноз на 20.05.12'!Q$7:Q$83)+SUMIF('прогноз на 20.05.12'!$C$7:$C$83,$I11,'прогноз на 20.05.12'!Q$7:Q$83)+SUMIF('прогноз на 20.05.12'!$C$7:$C$83,$K11,'прогноз на 20.05.12'!Q$7:Q$83) -> 21 | Z11: =SUMIF('прогноз на 20.05.12'!$C$7:$C$83,$C11,'прогноз на 20.05.12'!R$7:R$83)+SUMIF('прогноз на 20.05.12'!$C$7:$C$83,$E11,'прогноз на 20.05.12'!R$7:R$83)+SUMIF('прогноз на 20.05.12'!$C$7:$C$83,$G11,'прогноз на 20.05.12'!R$7:R$83)+SUMIF('прогноз на 20.05.12'!$C$7:$C$83,$I11,'прогноз на 20.05.12'!R$7:R$83)+SUMIF('прогноз на 20.05.12'!$C$7:$C$83,$K11,'прогноз на 20.05.12'!R$7:R$83) -> 0 | AA11: =SUMIF('прогноз на 20.05.12'!$C$7:$C$83,$C11,'прогноз на 20.05.12'!S$7:S$83)+SUMIF('прогноз на 20.05.12'!$C$7:$C$83,$E11,'прогноз на 20.05.12'!S$7:S$83)+SUMIF('прогноз на 20.05.12'!$C$7:$C$83,$G11,'прогноз на 20.05.12'!S$7:S$83)+SUMIF('прогноз на 20.05.12'!$C$7:$C$83,$I11,'прогноз на 20.05.12'!S$7:S$83)+SUMIF('прогноз на 20.05.12'!$C$7:$C$83,$K11,'прогноз на 20.05.12'!S$7:S$83) -> 28 | AB11: =SUMIF('прогноз на 20.05.12'!$C$7:$C$83,$C11,'прогноз на 20.05.12'!T$7:T$83)+SUMIF('прогноз на 20.05.12'!$C$7:$C$83,$E11,'прогноз на 20.05.12'!T$7:T$83)+SUMIF('прогноз на 20.05.12'!$C$7:$C$83,$G11,'прогноз на 20.05.12'!T$7:T$83)+SUMIF('прогноз на 20.05.12'!$C$7:$C$83,$I11,'прогноз на 20.05.12'!T$7:T$83)+SUMIF('прогноз на 20.05.12'!$C$7:$C$83,$K11,'прогноз на 20.05.12'!T$7:T$83) -> 70 | AC11: =SUMIF('прогноз на 20.05.12'!$C$7:$C$83,$C11,'прогноз на 20.05.12'!U$7:U$83)+SUMIF('прогноз на 20.05.12'!$C$7:$C$83,$E11,'прогноз на 20.05.12'!U$7:U$83)+SUMIF('прогноз на 20.05.12'!$C$7:$C$83,$G11,'прогноз на 20.05.12'!U$7:U$83)+SUMIF('прогноз на 20.05.12'!$C$7:$C$83,$I11,'прогноз на 20.05.12'!U$7:U$83)+SUMIF('прогноз на 20.05.12'!$C$7:$C$83,$K11,'прогноз на 20.05.12'!U$7:U$83) -> 28 | AD11: =SUMIF('прогноз на 20.05.12'!$C$7:$C$83,$C11,'прогноз на 20.05.12'!V$7:V$83)+SUMIF('прогноз на 20.05.12'!$C$7:$C$83,$E11,'прогноз на 20.05.12'!V$7:V$83)+SUMIF('прогноз на 20.05.12'!$C$7:$C$83,$G11,'прогноз на 20.05.12'!V$7:V$83)+SUMIF('прогноз на 20.05.12'!$C$7:$C$83,$I11,'прогноз на 20.05.12'!V$7:V$83)+SUMIF('прогноз на 20.05.12'!$C$7:$C$83,$K11,'прогноз на 20.05.12'!V$7:V$83) -> 126 | AE11: =SUMIF('прогноз на 20.05.12'!$C$7:$C$83,$C11,'прогноз на 20.05.12'!W$7:W$83)+SUMIF('прогноз на 20.05.12'!$C$7:$C$83,$E11,'прогноз на 20.05.12'!W$7:W$83)+SUMIF('прогноз на 20.05.12'!$C$7:$C$83,$G11,'прогноз на 20.05.12'!W$7:W$83)+SUMIF('прогноз на 20.05.12'!$C$7:$C$83,$I11,'прогноз на 20.05.12'!W$7:W$83)+SUMIF('прогноз на 20.05.12'!$C$7:$C$83,$K11,'прогноз на 20.05.12'!W$7:W$83) -> 7 | AF11: =SUMIF('прогноз на 20.05.12'!$C$7:$C$83,$C11,'прогноз на 20.05.12'!X$7:X$83)+SUMIF('прогноз на 20.05.12'!$C$7:$C$83,$E11,'прогноз на 20.05.12'!X$7:X$83)+SUMIF('прогноз на 20.05.12'!$C$7:$C$83,$G11,'прогноз на 20.05.12'!X$7:X$83)+SUMIF('прогноз на 20.05.12'!$C$7:$C$83,$I11,'прогноз на 20.05.12'!X$7:X$83)+SUMIF('прогноз на 20.05.12'!$C$7:$C$83,$K11,'прогноз на 20.05.12'!X$7:X$83) -> 34 | AG11: =SUMIF('прогноз на 20.05.12'!$C$7:$C$83,$C11,'прогноз на 20.05.12'!Y$7:Y$83)+SUMIF('прогноз на 20.05.12'!$C$7:$C$83,$E11,'прогноз на 20.05.12'!Y$7:Y$83)+SUMIF('прогноз на 20.05.12'!$C$7:$C$83,$G11,'прогноз на 20.05.12'!Y$7:Y$83)+SUMIF('прогноз на 20.05.12'!$C$7:$C$83,$I11,'прогноз на 20.05.12'!Y$7:Y$83)+SUMIF('прогноз на 20.05.12'!$C$7:$C$83,$K11,'прогноз на 20.05.12'!Y$7:Y$83) -> 7 | AH11: =SUMIF('прогноз на 20.05.12'!$C$7:$C$83,$C11,'прогноз на 20.05.12'!Z$7:Z$83)+SUMIF('прогноз на 20.05.12'!$C$7:$C$83,$E11,'прогноз на 20.05.12'!Z$7:Z$83)+SUMIF('прогноз на 20.05.12'!$C$7:$C$83,$G11,'прогноз на 20.05.12'!Z$7:Z$83)+SUMIF('прогноз на 20.05.12'!$C$7:$C$83,$I11,'прогноз на 20.05.12'!Z$7:Z$83)+SUMIF('прогноз на 20.05.12'!$C$7:$C$83,$K11,'прогноз на 20.05.12'!Z$7:Z$83) -> 48 | AI11: =SUMIF('прогноз на 20.05.12'!$C$7:$C$83,$C11,'прогноз на 20.05.12'!AA$7:AA$83)+SUMIF('прогноз на 20.05.12'!$C$7:$C$83,$E11,'прогноз на 20.05.12'!AA$7:AA$83)+SUMIF('прогноз на 20.05.12'!$C$7:$C$83,$G11,'прогноз на 20.05.12'!AA$7:AA$83)+SUMIF('прогноз на 20.05.12'!$C$7:$C$83,$I11,'прогноз на 20.05.12'!AA$7:AA$83)+SUMIF('прогноз на 20.05.12'!$C$7:$C$83,$K11,'прогноз на 20.05.12'!AA$7:AA$83) -> 5 | AJ11: =SUMIF('прогноз на 20.05.12'!$C$7:$C$83,$C11,'прогноз на 20.05.12'!AB$7:AB$83)+SUMIF('прогноз на 20.05.12'!$C$7:$C$83,$E11,'прогноз на 20.05.12'!AB$7:AB$83)+SUMIF('прогноз на 20.05.12'!$C$7:$C$83,$G11,'прогноз на 20.05.12'!AB$7:AB$83)+SUMIF('прогноз на 20.05.12'!$C$7:$C$83,$I11,'прогноз на 20.05.12'!AB$7:AB$83)+SUMIF('прогноз на 20.05.12'!$C$7:$C$83,$K11,'прогноз на 20.05.12'!AB$7:AB$83) -> 26 | AK11: =SUMIF('прогноз на 20.05.12'!$C$7:$C$83,$C11,'прогноз на 20.05.12'!AC$7:AC$83)+SUMIF('прогноз на 20.05.12'!$C$7:$C$83,$E11,'прогноз на 20.05.12'!AC$7:AC$83)+SUMIF('прогноз на 20.05.12'!$C$7:$C$83,$G11,'прогноз на 20.05.12'!AC$7:AC$83)+SUMIF('прогноз на 20.05.12'!$C$7:$C$83,$I11,'прогноз на 20.05.12'!AC$7:AC$83)+SUMIF('прогноз на 20.05.12'!$C$7:$C$83,$K11,'прогноз на 20.05.12'!AC$7:AC$83) -> 5 | AL11: =SUMIF('прогноз на 20.05.12'!$C$7:$C$83,$C11,'прогноз на 20.05.12'!AD$7:AD$83)+SUMIF('прогноз на 20.05.12'!$C$7:$C$83,$E11,'прогноз на 20.05.12'!AD$7:AD$83)+SUMIF('прогноз на 20.05.12'!$C$7:$C$83,$G11,'прогноз на 20.05.12'!AD$7:AD$83)+SUMIF('прогноз на 20.05.12'!$C$7:$C$83,$I11,'прогноз на 20.05.12'!AD$7:AD$83)+SUMIF('прогноз на 20.05.12'!$C$7:$C$83,$K11,'прогноз на 20.05.12'!AD$7:AD$83) -> 36 | AM11: =SUMIF('прогноз на 20.05.12'!$C$7:$C$83,$C11,'прогноз на 20.05.12'!AE$7:AE$83)+SUMIF('прогноз на 20.05.12'!$C$7:$C$83,$E11,'прогноз на 20.05.12'!AE$7:AE$83)+SUMIF('прогноз на 20.05.12'!$C$7:$C$83,$G11,'прогноз на 20.05.12'!AE$7:AE$83)+SUMIF('прогноз на 20.05.12'!$C$7:$C$83,$I11,'прогноз на 20.05.12'!AE$7:AE$83)+SUMIF('прогноз на 20.05.12'!$C$7:$C$83,$K11,'прогноз на 20.05.12'!AE$7:AE$83) -> 26 | AN11: =SUMIF('прогноз на 20.05.12'!$C$7:$C$83,$C11,'прогноз на 20.05.12'!AF$7:AF$83)+SUMIF('прогноз на 20.05.12'!$C$7:$C$83,$E11,'прогноз на 20.05.12'!AF$7:AF$83)+SUMIF('прогноз на 20.05.12'!$C$7:$C$83,$G11,'прогноз на 20.05.12'!AF$7:AF$83)+SUMIF('прогноз на 20.05.12'!$C$7:$C$83,$I11,'прогноз на 20.05.12'!AF$7:AF$83)+SUMIF('прогноз на 20.05.12'!$C$7:$C$83,$K11,'прогноз на 20.05.12'!AF$7:AF$83) -> 62 | AO11: =SUMIF('прогноз на 20.05.12'!$C$7:$C$83,$C11,'прогноз на 20.05.12'!AG$7:AG$83)+SUMIF('прогноз на 20.05.12'!$C$7:$C$83,$E11,'прогноз на 20.05.12'!AG$7:AG$83)+SUMIF('прогноз на 20.05.12'!$C$7:$C$83,$G11,'прогноз на 20.05.12'!AG$7:AG$83)+SUMIF('прогноз на 20.05.12'!$C$7:$C$83,$I11,'прогноз на 20.05.12'!AG$7:AG$83)+SUMIF('прогноз на 20.05.12'!$C$7:$C$83,$K11,'прогноз на 20.05.12'!AG$7:AG$83) -> 26 | AP11: =SUMIF('прогноз на 20.05.12'!$C$7:$C$83,$C11,'прогноз на 20.05.12'!AH$7:AH$83)+SUMIF('прогноз на 20.05.12'!$C$7:$C$83,$E11,'прогноз на 20.05.12'!AH$7:AH$83)+SUMIF('прогноз на 20.05.12'!$C$7:$C$83,$G11,'прогноз на 20.05.12'!AH$7:AH$83)+SUMIF('прогноз на 20.05.12'!$C$7:$C$83,$I11,'прогноз на 20.05.12'!AH$7:AH$83)+SUMIF('прогноз на 20.05.12'!$C$7:$C$83,$K11,'прогноз на 20.05.12'!AH$7:AH$83) -> 114 | AQ11: =SUMIF('прогноз на 20.05.12'!$C$7:$C$83,$C11,'прогноз на 20.05.12'!AM$7:AM$83)+SUMIF('прогноз на 20.05.12'!$C$7:$C$83,$E11,'прогноз на 20.05.12'!AM$7:AM$83)+SUMIF('прогноз на 20.05.12'!$C$7:$C$83,$G11,'прогноз на 20.05.12'!AM$7:AM$83)+SUMIF('прогноз на 20.05.12'!$C$7:$C$83,$I11,'прогноз на 20.05.12'!AM$7:AM$83)+SUMIF('прогноз на 20.05.12'!$C$7:$C$83,$K11,'прогноз на 20.05.12'!AM$7:AM$83) -> 104,774 | AR11: =SUMIF('прогноз на 20.05.12'!$C$7:$C$83,$C11,'прогноз на 20.05.12'!AN$7:AN$83)+SUMIF('прогноз на 20.05.12'!$C$7:$C$83,$E11,'прогноз на 20.05.12'!AN$7:AN$83)+SUMIF('прогноз на 20.05.12'!$C$7:$C$83,$G11,'прогноз на 20.05.12'!AN$7:AN$83)+SUMIF('прогноз на 20.05.12'!$C$7:$C$83,$I11,'прогноз на 20.05.12'!AN$7:AN$83)+SUMIF('прогноз на 20.05.12'!$C$7:$C$83,$K11,'прогноз на 20.05.12'!AN$7:AN$83) -> 866,465 | AS11: =SUMIF('прогноз на 20.05.12'!$C$7:$C$83,$C11,'прогноз на 20.05.12'!AO$7:AO$83)+SUMIF('прогноз на 20.05.12'!$C$7:$C$83,$E11,'прогноз на 20.05.12'!AO$7:AO$83)+SUMIF('прогноз на 20.05.12'!$C$7:$C$83,$G11,'прогноз на 20.05.12'!AO$7:AO$83)+SUMIF('прогноз на 20.05.12'!$C$7:$C$83,$I11,'прогноз на 20.05.12'!AO$7:AO$83)+SUMIF('прогноз на 20.05.12'!$C$7:$C$83,$K11,'прогноз на 20.05.12'!AO$7:AO$83) -> 190,507 | AT11: =SUMIF('прогноз на 20.05.12'!$C$7:$C$83,$C11,'прогноз на 20.05.12'!AP$7:AP$83)+SUMIF('прогноз на 20.05.12'!$C$7:$C$83,$E11,'прогноз на 20.05.12'!AP$7:AP$83)+SUMIF('прогноз на 20.05.12'!$C$7:$C$83,$G11,'прогноз на 20.05.12'!AP$7:AP$83)+SUMIF('прогноз на 20.05.12'!$C$7:$C$83,$I11,'прогноз на 20.05.12'!AP$7:AP$83)+SUMIF('прогноз на 20.05.12'!$C$7:$C$83,$K11,'прогноз на 20.05.12'!AP$7:AP$83) -> 1,161,746 | AU11: =SUMIF('прогноз на 20.05.12'!$C$7:$C$83,$C11,'прогноз на 20.05.12'!AU$7:AU$83)+SUMIF('прогноз на 20.05.12'!$C$7:$C$83,$E11,'прогноз на 20.05.12'!AU$7:AU$83)+SUMIF('прогноз на 20.05.12'!$C$7:$C$83,$G11,'прогноз на 20.05.12'!AU$7:AU$83)+SUMIF('прогноз на 20.05.12'!$C$7:$C$83,$I11,'прогноз на 20.05.12'!AU$7:AU$83)+SUMIF('прогноз на 20.05.12'!$C$7:$C$83,$K11,'прогноз на 20.05.12'!AU$7:AU$83) -> 6,641 | AV11: =SUMIF('прогноз на 20.05.12'!$C$7:$C$83,$C11,'прогноз на 20.05.12'!AV$7:AV$83)+SUMIF('прогноз на 20.05.12'!$C$7:$C$83,$E11,'прогноз на 20.05.12'!AV$7:AV$83)+SUMIF('прогноз на 20.05.12'!$C$7:$C$83,$G11,'прогноз на 20.05.12'!AV$7:AV$83)+SUMIF('прогноз на 20.05.12'!$C$7:$C$83,$I11,'прогноз на 20.05.12'!AV$7:AV$83)+SUMIF('прогноз на 20.05.12'!$C$7:$C$83,$K11,'прогноз на 20.05.12'!AV$7:AV$83) -> 36,746 | AW11: =SUMIF('прогноз на 20.05.12'!$C$7:$C$83,$C11,'прогноз на 20.05.12'!AW$7:AW$83)+SUMIF('прогноз на 20.05.12'!$C$7:$C$83,$E11,'прогноз на 20.05.12'!AW$7:AW$83)+SUMIF('прогноз на 20.05.12'!$C$7:$C$83,$G11,'прогноз на 20.05.12'!AW$7:AW$83)+SUMIF('прогноз на 20.05.12'!$C$7:$C$83,$I11,'прогноз на 20.05.12'!AW$7:AW$83)+SUMIF('прогноз на 20.05.12'!$C$7:$C$83,$K11,'прогноз на 20.05.12'!AW$7:AW$83) -> 9,592 | AX11: =SUMIF('прогноз на 20.05.12'!$C$7:$C$83,$C11,'прогноз на 20.05.12'!AX$7:AX$83)+SUMIF('прогноз на 20.05.12'!$C$7:$C$83,$E11,'прогноз на 20.05.12'!AX$7:AX$83)+SUMIF('прогноз на 20.05.12'!$C$7:$C$83,$G11,'прогноз на 20.05.12'!AX$7:AX$83)+SUMIF('прогноз на 20.05.12'!$C$7:$C$83,$I11,'прогноз на 20.05.12'!AX$7:AX$83)+SUMIF('прогноз на 20.05.12'!$C$7:$C$83,$K11,'прогноз на 20.05.12'!AX$7:AX$83) -> 52,979 | AY11: =SUMIF('прогноз на 20.05.12'!$C$7:$C$83,$C11,'прогноз на 20.05.12'!AY$7:AY$83)+SUMIF('прогноз на 20.05.12'!$C$7:$C$83,$E11,'прогноз на 20.05.12'!AY$7:AY$83)+SUMIF('прогноз на 20.05.12'!$C$7:$C$83,$G11,'прогноз на 20.05.12'!AY$7:AY$83)+SUMIF('прогноз на 20.05.12'!$C$7:$C$83,$I11,'прогноз на 20.05.12'!AY$7:AY$83)+SUMIF('прогноз на 20.05.12'!$C$7:$C$83,$K11,'прогноз на 20.05.12'!AY$7:AY$83) -> 111,416 | AZ11: =SUMIF('прогноз на 20.05.12'!$C$7:$C$83,$C11,'прогноз на 20.05.12'!AZ$7:AZ$83)+SUMIF('прогноз на 20.05.12'!$C$7:$C$83,$E11,'прогноз на 20.05.12'!AZ$7:AZ$83)+SUMIF('прогноз на 20.05.12'!$C$7:$C$83,$G11,'прогноз на 20.05.12'!AZ$7:AZ$83)+SUMIF('прогноз на 20.05.12'!$C$7:$C$83,$I11,'прогноз на 20.05.12'!AZ$7:AZ$83)+SUMIF('прогноз на 20.05.12'!$C$7:$C$83,$K11,'прогноз на 20.05.12'!AZ$7:AZ$83) -> 903,210 | BA11: =SUMIF('прогноз на 20.05.12'!$C$7:$C$83,$C11,'прогноз на 20.05.12'!BA$7:BA$83)+SUMIF('прогноз на 20.05.12'!$C$7:$C$83,$E11,'прогноз на 20.05.12'!BA$7:BA$83)+SUMIF('прогноз на 20.05.12'!$C$7:$C$83,$G11,'прогноз на 20.05.12'!BA$7:BA$83)+SUMIF('прогноз на 20.05.12'!$C$7:$C$83,$I11,'прогноз на 20.05.12'!BA$7:BA$83)+SUMIF('прогноз на 20.05.12'!$C$7:$C$83,$K11,'прогноз на 20.05.12'!BA$7:BA$83) -> 200,099 | BB11: =SUMIF('прогноз на 20.05.12'!$C$7:$C$83,$C11,'прогноз на 20.05.12'!BB$7:BB$83)+SUMIF('прогноз на 20.05.12'!$C$7:$C$83,$E11,'прогноз на 20.05.12'!BB$7:BB$83)+SUMIF('прогноз на 20.05.12'!$C$7:$C$83,$G11,'прогноз на 20.05.12'!BB$7:BB$83)+SUMIF('прогноз на 20.05.12'!$C$7:$C$83,$I11,'прогноз на 20.05.12'!BB$7:BB$83)+SUMIF('прогноз на 20.05.12'!$C$7:$C$83,$K11,'прогноз на 20.05.12'!BB$7:BB$83) -> 1,214,724 | BC11: =SUMIF('прогноз на 20.05.12'!$C$7:$C$83,$C11,'прогноз на 20.05.12'!BC$7:BC$83)+SUMIF('прогноз на 20.05.12'!$C$7:$C$83,$E11,'прогноз на 20.05.12'!BC$7:BC$83)+SUMIF('прогноз на 20.05.12'!$C$7:$C$83,$G11,'прогноз на 20.05.12'!BC$7:BC$83)+SUMIF('прогноз на 20.05.12'!$C$7:$C$83,$I11,'прогноз на 20.05.12'!BC$7:BC$83)+SUMIF('прогноз на 20.05.12'!$C$7:$C$83,$K11,'прогноз на 20.05.12'!BC$7:BC$83) -> 1,553,966 | BD11: =SUMIF('прогноз на 20.05.12'!$C$7:$C$83,$C11,'прогноз на 20.05.12'!BD$7:BD$83)+SUMIF('прогноз на 20.05.12'!$C$7:$C$83,$E11,'прогноз на 20.05.12'!BD$7:BD$83)+SUMIF('прогноз на 20.05.12'!$C$7:$C$83,$G11,'прогноз на 20.05.12'!BD$7:BD$83)+SUMIF('прогноз на 20.05.12'!$C$7:$C$83,$I11,'прогноз на 20.05.12'!BD$7:BD$83)+SUMIF('прогноз на 20.05.12'!$C$7:$C$83,$K11,'прогноз на 20.05.12'!BD$7:BD$83) -> 1,553,966 | BE11: =SUMIF('прогноз на 20.05.12'!$C$7:$C$83,$C11,'прогноз на 20.05.12'!BE$7:BE$83)+SUMIF('прогноз на 20.05.12'!$C$7:$C$83,$E11,'прогноз на 20.05.12'!BE$7:BE$83)+SUMIF('прогноз на 20.05.12'!$C$7:$C$83,$G11,'прогноз на 20.05.12'!BE$7:BE$83)+SUMIF('прогноз на 20.05.12'!$C$7:$C$83,$I11,'прогноз на 20.05.12'!BE$7:BE$83)+SUMIF('прогноз на 20.05.12'!$C$7:$C$83,$K11,'прогноз на 20.05.12'!BE$7:BE$83) -> 0 | BF11: =SUMIF('прогноз на 20.05.12'!$C$7:$C$83,$C11,'прогноз на 20.05.12'!BF$7:BF$83)+SUMIF('прогноз на 20.05.12'!$C$7:$C$83,$E11,'прогноз на 20.05.12'!BF$7:BF$83)+SUMIF('прогноз на 20.05.12'!$C$7:$C$83,$G11,'прогноз на 20.05.12'!BF$7:BF$83)+SUMIF('прогноз на 20.05.12'!$C$7:$C$83,$I11,'прогноз на 20.05.12'!BF$7:BF$83)+SUMIF('прогноз на 20.05.12'!$C$7:$C$83,$K11,'прогноз на 20.05.12'!BF$7:BF$83) -> 339,242 | BG11: =SUMIF('прогноз на 20.05.12'!$C$7:$C$83,$C11,'прогноз на 20.05.12'!BG$7:BG$83)+SUMIF('прогноз на 20.05.12'!$C$7:$C$83,$E11,'прогноз на 20.05.12'!BG$7:BG$83)+SUMIF('прогноз на 20.05.12'!$C$7:$C$83,$G11,'прогноз на 20.05.12'!BG$7:BG$83)+SUMIF('прогноз на 20.05.12'!$C$7:$C$83,$I11,'прогноз на 20.05.12'!BG$7:BG$83)+SUMIF('прогноз на 20.05.12'!$C$7:$C$83,$K11,'прогноз на 20.05.12'!BG$7:BG$83) -> 339,242 | BH11: =SUMIF('прогноз на 20.05.12'!$C$7:$C$83,$C11,'прогноз на 20.05.12'!BH$7:BH$83)+SUMIF('прогноз на 20.05.12'!$C$7:$C$83,$E11,'прогноз на 20.05.12'!BH$7:BH$83)+SUMIF('прогноз на 20.05.12'!$C$7:$C$83,$G11,'прогноз на 20.05.12'!BH$7:BH$83)+SUMIF('прогноз на 20.05.12'!$C$7:$C$83,$I11,'прогноз на 20.05.12'!BH$7:BH$83)+SUMIF('прогноз на 20.05.12'!$C$7:$C$83,$K11,'прогноз на 20.05.12'!BH$7:BH$83) -> 0 | BI11: 10.5 | BJ11: 7.2 | BK11: 10.5 | BL11: 8.7
